Workbook

Sheet Introduction
A1: Florida Department of Transportation (FDOT)
A2: Intersection Control Evaluation (ICE) Tool
A3: Introduction | B3: Overview of Tool
A4: This spreadsheet was developed by FDOT to support the ICE Policy. It is a modified version of the Life-Cycle Cost Estimating Tool (LCCET) that was developed as part of NCHRP Project 03-110. The objective of NCHRP Project 3-110 was to develop a spreadsheet-based tool that can be used to compare the life-cycle costs of different intersection control strategies | B4: This spreadsheet tool provides life cycle cost comparisons between different intersection treatments. The tool incorporates the following costs: safety, vehicular delay, operations and maintenance, design and construction, and right-of-way.
A5: Maintenance | B5: Tool Guidance
A6: Version: FDOT ICE 1.2 | B6: Additional user guidance can be found in the User Manual, currently under development. Additional information on the original NCHRP 3-110 tool can be found in Chapter 3 of the NCHRP Project 03-110 Final Report, located here: http://www.trb.org/Main/Blurbs/173928.aspx
A7: Maintained By: FDOT Traffic Engineering and Operations Office
B9: http://www.trb.org/Main/Blurbs/173928.aspx
A10: Disclaimers | B10: Legend
A11: The opinions and conclusions expressed or implied in the material are those of the consultant developer. They are not necessarily those of the Florida Department of Transportation, the Transportation Research Board, the National Academies, or the program sponsors. No warranty is made by the developers or their employer as to the accuracy, completeness, or reliability of this software and its associated equations and documentation. No responsibility is assumed by the developers for incorrect results or damages resulting from the use of this software. | C11: Required data entry field
C12: Optional data entry field
C13: Data entry field not used
B14: [Value] | C14: Automated input
B15: Abc | C15: Purple text Comment/Guidance text
C16: Cell with a comment, hover mouse to view additional guidance/instructions
B17: Abc | C17: Warning/Error text
C18: Purple tabs are for reference values only. Modifying these sheets may cause the ICE Tool to cease functioning properly.
A19: How to Use the Life-Cycle Cost Estimating Tool
A20: 1. On the OrganizationInformation sheet, provide basic project information. Analysts also select whether the project will be an at-grade intersection or the ramp terminals of a diamond interchange
A21: 2. The sheet Alternatives_MasterList is used to manage alternatives. This allows the analyst to add or remove alternatives and then generates hidden sheets for calculation purposes. Analysts also enter basic information such as opening year, design year, and peak hour volumes.
A22: 2A. The DemandCounts sheet appears if an analyst chooses to enter a turning count on the Alternatives_MasterList rather than the total volume. This sheet merely sums the turning movements to compute the total volume
A23: 2B. The DemandProfiles sheet appears if an analyst chooses to show Demand Profiles on the Alternatives_MasterList. This sheet contains the hourly, daily, and monthly volume profiles that are used to estimate demand for every hour of a year based on peak hour turning movement counts from a single day. Analysts may override default provides on the sheet.
A24: 3. The sheet CostParameters contains unit costs for delay, crashes, and various operations and maintenance items. Analysts must input capital costs for design and construction and right-of-way. Analysts may override default unit costs. This sheet also contains entry fields for an analyst to enter the crash prediction outputs from the SPICE tool.
A25: 4. On the Delay sheet, analysts enter peak period delay for alternatives being analyzed.
A26: 5. The worksheet Outputs displays the net present value of each alternative and benefit-cost ratio of each alternative if a user specifies a base case. This sheet provides a plot of the results and a comparison.
A27: 6. Purple worksheet tabs are for calculations and formula references. These sheets should not be modified without a thorough knowledge of the VBA code used in the LCCET.
A28: *Note: Due to widespread use of macros throughout the tool, the "undo" functionality of excel is not able to reverse changes related to many of the tool's computations. As such, analysts are encouraged to save often and maintain backup versions whenever necessary.
A29: ** Password for unlocking sheets: kai123

Sheet OrganizationInformation
A1: Organization Information | B1: This sheet provides general project information and analysis type selection.
A4: Organization Information
A5: Agency: | B5: Anywhere USA Department of Transportation
A6: Project Name: | B6: 1st Street and John Avenue Alternatives
A7: Project Reference: | B7: 12345
A8: Intersection: | B8: 1st Street and John Avenue Intersections
A9: City: | B9: City of Anywhere
A10: State: | B10: State of Anywhere
A11: Performing Department or Organization: | B11: Transportation Department
A12: Date: | B12: 42968
A13: Analyst: | B13: TAH
A14: Analysis Type | B14: At-Grade Intersection

Sheet GHG.Costs (hidden)
A1: Greenhouse Gas Costs
A3: This worksheet is used to provide discounted greenhouse gas costs. The default values in this sheet represent the latest values from the federal government as put forth in Executive Order 12866. Note that the discount rate for greenhouse gases may differ from the discount rate used for other costs in the life cycle cost analysis.
A5: GHG costs should be in the same year dollars as the costs in the CostParameters sheet.
B7: Exec order 12866 | C7: User defined
A8: Year of valuation | B8: 2013
A9: CPI for year of valuation | B9: 233.548
A10: ="CPI for base year: " &BaseYear -> CPI for base year: 2020 | B10: 236.384
A11: Annual growth rate | B11: 0.01886974889
A12: Discount rate | B12: 0.03 | D12: Greenhouse gases are discounted separately because a different discount rate may be used
A18: Year | B18: Spot costs in dollars (from agency source) | D18: ="Discount factor for base year: "&BaseYear -> Discount factor for base year: 2020 | F18: ="Discounted cost to base year: "&BaseYear&" in " & BaseYear&"$" -> Discounted cost to base year: 2020 in 2020$
B19: Exec order 12866 | C19: =C7 -> User defined | D19: Exec order 12866 | E19: =C19 -> User defined | F19: Exec order 12866 | G19: =C19 -> User defined
A20: 2014 | B20: 40 | D20: =(1+B$12)^($A20-BaseYear) -> 0.8374842567 | F20: =B20*D20*($B$10/B$9) -> 33.90615694
A21: =A20+1 -> 2015 | B21: 42 | D21: =D20/(1+B$12) -> 0.8130915113 | E21: =IF($C$9="","",E20/(1+C$12)) ->  | F21: =B21*D21*($B$10/B$9) -> 34.56452892
A22: =A21+1 -> 2016 | B22: 43 | D22: 0.7894092343 | F22: 34.35679019
A23: 2017 | B23: 44 | D23: 0.7664167323 | F23: 34.1318304
A24: 2018 | B24: 45 | D24: 0.7440939149 | F24: 33.89082895
A25: 2019 | B25: 46 | D25: 0.7224212766 | F25: 33.63491115
A26: 2020 | B26: 47 | D26: 0.7013798802 | F26: 33.36515036
A27: 2021 | B27: 48 | D27: 0.68095134 | F27: 33.08257007
A28: 2022 | B28: 49 | D28: 0.6611178058 | F28: 32.7881459
A29: 2023 | B29: 50 | D29: 0.6418619474 | F29: 32.48280751
A30: 2024 | B30: 51 | D30: 0.6231669392 | F30: 32.16744045
A31: 2025 | B31: 53 | D31: 0.6050164458 | F31: 32.45525117
A32: 2026 | B32: 53 | D32: 0.5873946076 | F32: 31.50995259
A33: 2027 | B33: 54 | D33: 0.5702860268 | F33: 31.16939805
A34: 2028 | B34: 55 | D34: 0.5536757542 | F34: 30.82195061
A35: 2029 | B35: 56 | D35: 0.5375492759 | F35: 30.46830069
A36: 2030 | B36: 57 | D36: 0.5218925009 | F36: 30.10910436
A37: 2031 | B37: 58 | D37: 0.5066917484 | F37: 29.74498472
A38: 2032 | B38: 59 | D38: 0.4919337363 | F38: 29.37653328
A39: 2033 | B39: 60 | D39: 0.4776055693 | F39: 29.00431129
A40: 2034 | B40: 61 | D40: 0.4636947274 | F40: 28.62885095
A41: 2035 | B41: 62 | D41: 0.4501890558 | F41: 28.25065667
A42: 2036 | B42: 63 | D42: 0.4370767532 | F42: 27.87020624
A43: 2037 | B43: 65 | D43: 0.4243463623 | F43: 27.91745116
A44: 2038 | B44: 66 | D44: 0.4119867595 | F44: 27.52131107
A45: 2039 | B45: 67 | D45: 0.3999871452 | F45: 27.12456372
A46: 2040 | B46: 68 | D46: 0.3883370341 | F46: 26.72758054
A47: 2041 | B47: 69 | D47: 0.3770262467 | F47: 26.33071184
A48: 2042 | B48: 70 | D48: 0.3660448997 | F48: 25.93428773
A49: 2043 | B49: 70 | D49: 0.3553833978 | F49: 25.17892013
A50: 2044 | B50: 71 | D50: 0.3450324251 | F50: 24.79477571
A51: 2045 | B51: 72 | D51: 0.3349829369 | F51: 24.41164845
A52: 2046 | B52: 73 | D52: 0.3252261524 | F52: 24.02980498
A53: 2047 | B53: 74 | D53: =D52/(1+B$12) -> 0.315753546 | E53: =IF($C$9="","",E52/(1+C$12)) ->  | F53: 23.64949552
A54: 2048 | B54: 76 | D54: 0.3065568408 | F54: 23.58123405
A55: 2049 | B55: 77 | D55: 0.2976280008 | F55: 23.19564413
A56: 2050 | B56: 78 | D56: 0.288959224 | F56: 22.81251093
A57: 2051 | B57: =B56*(1+$B$11) -> 79.47184041 | D57: 0.280542936 | F57: 22.56599736
A58: 2052 | B58: =B57*(1+$B$11) -> 80.97145409 | D58: 0.2723717825 | F58: 22.32214764
A59: 2053 | B59: 82.49936509 | D59: 0.2644386238 | F59: 22.08093297
A60: 2054 | B60: 84.05610739 | D60: 0.2567365279 | F60: 21.84232488
A61: 2055 | B61: 85.64222503 | D61: 0.249258765 | F61: 21.60629521
A62: 2056 | B62: 87.25827231 | D62: 0.2419988009 | F62: 21.37281609
A63: 2057 | B63: 88.904814 | D63: 0.2349502922 | F63: 21.14185997
A64: 2058 | B64: 90.58242552 | D64: 0.2281070798 | F64: 20.91339957
A65: 2059 | B65: 92.29169314 | D65: 0.2214631843 | F65: 20.68740793
A66: 2060 | B66: 94.03321421 | D66: 0.2150128003 | F66: 20.46385837
A67: 2061 | B67: 95.80759735 | D67: 0.2087502915 | F67: 20.2427245
A68: 2062 | B68: 97.61546266 | D68: 0.2026701859 | F68: 20.02398023
A69: 2063 | B69: 99.45744193 | D69: 0.1967671708 | F69: 19.80759971
A70: 2064 | B70: 101.3341789 | D70: 0.1910360882 | F70: 19.59355742
A71: 2065 | B71: 103.2463294 | D71: 0.1854719303 | F71: 19.38182809
A72: 2066 | B72: 105.1945617 | D72: 0.1800698352 | F72: 19.17238672
A73: 2067 | B73: 107.1795567 | D73: 0.1748250827 | F73: 18.96520858
A74: 2068 | B74: 109.202008 | D74: 0.16973309 | F74: 18.76026923
A75: 2069 | B75: 111.2626225 | D75: 0.1647894078 | F75: 18.55754446
A76: 2070 | B76: 113.3621202 | D76: 0.1599897163 | F76: 18.35701036
A77: 2071 | B77: 115.5012349 | D77: 0.1553298216 | F77: 18.15864324
A78: 2072 | B78: 117.6807142 | D78: 0.1508056521 | F78: 17.96241968
A79: 2073 | B79: 119.9013198 | D79: 0.1464132544 | F79: 17.76831654
A80: 2074 | B80: 122.1638276 | D80: 0.1421487907 | F80: 17.57631088
A81: 2075 | B81: 124.4690283 | D81: 0.1380085347 | F81: 17.38638005
A82: 2076 | B82: 126.8177276 | D82: 0.1339888686 | F82: 17.19850163
A83: 2077 | B83: 129.2107463 | D83: 0.1300862802 | F83: 17.01265343
A84: 2078 | B84: 131.6489206 | D84: 0.1262973594 | F84: 16.82881353
A85: 2079 | B85: 134.1331027 | D85: =D84/(1+B$12) -> 0.1226187956 | E85: =IF($C$9="","",E84/(1+C$12)) ->  | F85: =B85*D85*($B$10/B$9) -> 16.64696021
A86: =A85+1 -> 2080 | B86: 136.6641607 | D86: 0.1190473743 | F86: 16.467072
A87: 2081 | B87: 139.2429791 | D87: 0.1155799751 | F87: 16.28912769
A88: 2082 | B88: 141.8704591 | D88: 0.112213568 | F88: 16.11310625
A89: 2083 | B89: 144.5475191 | D89: 0.1089452117 | F89: 15.93898691
A90: 2084 | B90: 147.2750944 | D90: 0.1057720502 | F90: 15.76674912
A91: 2085 | B91: 150.0541385 | D91: 0.1026913109 | F91: 15.59637254
A92: 2086 | B92: 152.8856224 | D92: 0.09970030181 | F92: 15.42783706
A93: 2087 | B93: 155.7705357 | D93: 0.09679640952 | F93: 15.26112279
A94: 2088 | B94: 158.7098866 | D94: 0.09397709663 | F94: 15.09621004
A95: 2089 | B95: 161.7047023 | D95: 0.09123989964 | F95: 14.93307935
A96: 2090 | B96: 164.7560294 | D96: 0.08858242683 | F96: 14.77171147
A97: 2091 | B97: 167.8649343 | D97: 0.08600235615 | F97: 14.61208733
A98: 2092 | B98: 171.0325035 | D98: 0.08349743315 | F98: 14.45418811
A99: 2093 | B99: 174.2598439 | D99: 0.08106546908 | F99: 14.29799515
A100: 2094 | B100: 177.5480834 | D100: 0.07870433891 | F100: 14.14349003
A101: 2095 | B101: 180.8983711 | D101: 0.07641197953 | F101: 13.9906545
A102: 2096 | B102: 184.311878 | D102: 0.07418638789 | F102: 13.83947052
A103: 2097 | B103: 187.7897968 | D103: 0.07202561931 | F103: 13.68992025
A104: 2098 | B104: 191.3333431 | D104: 0.06992778574 | F104: 13.54198602
A105: 2099 | B105: 194.9437553 | D105: 0.06789105412 | F105: 13.39565039
A106: 2100 | B106: 198.622295 | D106: 0.06591364477 | F106: 13.25089607
A107: 2101 | B107: 202.3702478 | D107: 0.06399382988 | F107: 13.10770597
A108: 2102 | B108: 206.1889236 | D108: 0.06212993192 | F108: 12.96606319
A109: 2103 | B109: 210.0796568 | D109: 0.06032032225 | F109: 12.82595102
A110: 2104 | B110: 214.0438072 | D110: 0.05856341966 | F110: 12.68735291
A111: 2105 | B111: 218.0827601 | D111: 0.05685768899 | F111: 12.5502525
A112: 2106 | B112: 222.197927 | D112: 0.0552016398 | F112: 12.4146336
A113: 2107 | B113: 226.3907461 | D113: 0.05359382505 | F113: 12.28048021
A114: 2108 | B114: 230.6626826 | D114: 0.05203283985 | F114: 12.1477765
A115: 2109 | B115: 235.0152295 | D115: 0.05051732024 | F115: 12.01650678
A116: 2110 | B116: 239.4499079 | D116: 0.04904594198 | F116: 11.88665558
A117: 2111 | B117: 243.9682675 | D117: =D116/(1+B$12) -> 0.0476174194 | E117: =IF($C$9="","",E116/(1+C$12)) ->  | F117: 11.75820756
A118: 2112 | B118: 248.5718874 | D118: 0.04623050427 | F118: 11.63114756
A119: 2113 | B119: 253.2623765 | D119: 0.04488398473 | F119: 11.50546057
A120: 2114 | B120: 258.041374 | D120: 0.04357668421 | F120: 11.38113177
A121: 2115 | B121: 262.9105499 | D121: 0.04230746039 | F121: 11.25814648
A122: 2116 | B122: =B121*(1+$B$11) -> 267.871606 | D122: 0.04107520427 | F122: 11.13649017
A123: 2117 | B123: 272.9262759 | D123: 0.03987883909 | F123: 11.01614849
A124: 2118 | B124: 278.0763262 | D124: 0.03871731951 | F124: 10.89710723
A125: 2119 | B125: 283.3235566 | D125: 0.03758963059 | F125: 10.77935233
A126: 2120 | B126: 288.669801 | D126: 0.03649478698 | F126: 10.66286991
A127: 2121 | B127: 294.1169277 | D127: 0.03543183202 | F127: 10.5476462
A128: 2122 | B128: 299.6668402 | D128: 0.03439983691 | F128: 10.43366761
A129: 2123 | B129: 305.3214783 | D129: 0.03339789991 | F129: 10.32092067
A130: 2124 | B130: 311.0828179 | D130: 0.03242514555 | F130: 10.20939209
A131: 2125 | B131: 316.9528725 | D131: 0.03148072383 | F131: 10.0990687
A132: 2126 | B132: 322.9336937 | D132: 0.03056380955 | F132: 9.989937464
A133: 2127 | B133: 329.0273714 | D133: 0.0296736015 | F133: 9.88198551
A134: 2128 | B134: 335.2360352 | D134: 0.02880932185 | F134: 9.775200092
A135: 2129 | B135: 341.561855 | D135: 0.02797021538 | F135: 9.669568605
A136: 2130 | B136: 348.0070415 | D136: 0.02715554892 | F136: 9.565078579
A137: 2131 | B137: 354.573847 | D137: 0.0263646106 | F137: 9.46171768
A138: 2132 | B138: 361.2645664 | D138: 0.02559670932 | F138: 9.359473705
A139: 2133 | B139: 368.0815381 | D139: 0.0248511741 | F139: 9.258334586
A140: 2134 | B140: 375.0271443 | D140: 0.02412735349 | F140: 9.158288384
A141: 2135 | B141: 382.1038123 | D141: 0.02342461504 | F141: 9.059323287
A142: 2136 | B142: 389.3140153 | D142: 0.0227423447 | F142: 8.961427614
A143: 2137 | B143: 396.660273 | D143: 0.02207994631 | F143: 8.864589809
A144: 2138 | B144: 404.1451528 | D144: 0.02143684108 | F144: 8.768798439
A145: 2139 | B145: 411.7712703 | D145: 0.02081246707 | F145: 8.674042198
A146: 2140 | B146: 419.5412908 | D146: 0.02020627871 | F146: 8.580309899
A147: 2141 | B147: 427.4579296 | D147: 0.01961774632 | F147: 8.487590478
A148: 2142 | B148: 435.5239534 | D148: 0.01904635565 | F148: 8.395872989
A149: 2143 | B149: 443.742181 | D149: =D148/(1+B$12) -> 0.01849160742 | E149: =IF($C$9="","",E148/(1+C$12)) ->  | F149: =B149*D149*($B$10/B$9) -> 8.305146606
A150: =A149+1 -> 2144 | B150: 452.1154845 | D150: 0.01795301692 | F150: 8.215400619
A151: 2145 | B151: 460.6467902 | D151: 0.01743011351 | F151: 8.126624432
A152: 2146 | B152: 469.3390795 | D152: 0.0169224403 | F152: 8.038807568
A153: 2147 | B153: 478.19539 | D153: 0.01642955369 | F153: 7.951939658
A154: 2148 | B154: 487.218817 | D154: 0.015951023 | F154: 7.866010449
A155: 2149 | B155: 496.4125137 | D155: 0.0154864301 | F155: 7.781009797
A156: 2150 | B156: 505.7796932 | D156: 0.01503536903 | F156: 7.696927668

Sheet DemandParameters (hidden)
A1: Demand Volume Inputs | B1: This sheet creates demand profiles for specified years based on the major facility type and total entering AADT. You may either use the default hourly and daily factors or provide your own. These profiles are applied to all alternatives to convert peak hour information to annual delay estimates.
A2: Peak Hours and Facility Profile
C4: Open Year | D4: Design Year
B5: Operating Cycle | C5: =IF(ISNUMBER(Alternatives_MasterList!D8),Alternatives_MasterList!D8,"--") -> 2020 | D5: =IF(ISNUMBER(Alternatives_MasterList!F8),Alternatives_MasterList!F8,"--") -> 2040 | E5: =IF(OR(NOT(ISNUMBER(C5)),NOT(ISNUMBER(D5)),D5<C5),"Please Specify Valid Open and Design Years","") -> 
B6: Peak Weekday Time Period | C6: From | D6: To
A7: Enter peak period begin and end times: | B7: AM peak | C7: =Alternatives_MasterList!D10 -> 07:00:00 | D7: =Time_AM_Peak_Begin + 1/24 -> 08:00:00 | E7: =IF(OR(ISERR(Time_AM_Peak_Begin),ISERR(Time_AM_Peak_End),NOT(ISNUMBER(HOUR(Time_AM_Peak_Begin))),NOT(ISNUMBER(HOUR(Time_AM_Peak_End)))),"Please enter peak begin and end times in a recognizable time format: e.g., 6:00 am",IF(OR(MINUTE(Time_AM_Peak_Begin)<>0,MINUTE(Time_AM_Peak_End)<>0),"Warning: The LCCET only recognizes peak times defined on hour boundaries. Any minute specifications are ignored.",IF(HOUR(Time_AM_Peak_Begin)>=HOUR(Time_AM_Peak_End),"Warning: AM peak end hour must be one or more hours after AM peak begin hour",IF(OR(HOUR(Time_AM_Peak_Begin)>=12,HOUR(Time_AM_Peak_End)>=12),"Warning: Begin or end time of AM peak is specified outside morning period","")))) -> 
B8: PM peak | C8: =Alternatives_MasterList!D11 -> 16:00:00 | D8: =Time_PM_Peak_Begin + 1/24 -> 17:00:00 | E8: =IF(OR(ISERR(Time_PM_Peak_Begin),ISERR(Time_PM_Peak_End),NOT(ISNUMBER(HOUR(Time_PM_Peak_Begin))),NOT(ISNUMBER(HOUR(Time_PM_Peak_End)))),"Please enter peak begin and end times in a recognizable time format: e.g., 5:00 pm",IF(OR(MINUTE(Time_PM_Peak_Begin)<>0,MINUTE(Time_PM_Peak_End)<>0),"Warning: The LCCET only recognizes peak times defined on hour boundaries. Any minute specifications are ignored.",IF(HOUR(Time_PM_Peak_Begin)>=HOUR(Time_PM_Peak_End),"Warning: PM peak end hour must be one or more hours after PM peak begin hour",IF(OR(HOUR(Time_PM_Peak_Begin)<12,HOUR(Time_PM_Peak_End)<12),"Warning: Begin or end time of PM peak is specified outside afternoon/evening period","")))) -> 
B9: Weekend peak | C9: =Alternatives_MasterList!D12 -> 10:00:00 | D9: =Time_WE_Peak_Begin+1/24 -> 11:00:00
A11: Select Analysis Basis: | B11: =Alternatives_MasterList!C14 -> 2 | F11: Weekday Count: | G11: =IF(NOT(ISBLANK(Alternatives_MasterList!H14)),Alternatives_MasterList!H14,"") -> 2013-06-06 | J11: Enter dates as "mm/dd/yyyy"
F12: Weekend Count: | G12: =IF(NOT(ISBLANK(Alternatives_MasterList!H15)),Alternatives_MasterList!H15,"") ->  | J12: Enter dates as "mm/dd/yyyy"
A13: Select facility type: | B13: =Alternatives_MasterList!C16 -> 7 | E13: At intersections of varying facilities select the roadway that will be more representative of the volume, or interpolate between values.
A15: Volume Adjustment Factor: | B15: Automated Adj. Factor | C15: Override Value | D15: Value Applied
A16: Weekday Adjustment: | B16: =IF($B$11=1,1,IF($B$11=2,(1/INDEX(DemandProfiles!B47:N53,WEEKDAY(G11,2),6))*(1/INDEX(DemandProfiles!B61:N72,MONTH(G11),13)))) -> 1.033284852 | D16: =IF(C16="",B16,C16) -> 1.033284852 | E16: This adjustment factor is used to align the input delay values within the alternatives sheets with the specific volume factor.
A17: Weekend Adjustment: | B17: =IF(OR($B$11=1,G12=""),1,(1/(INDEX(DemandProfiles!B47:N53,WEEKDAY(G12,2),6))*(1/INDEX(DemandProfiles!B61:N72,MONTH(G12),13)))) -> 1 | D17: =IF(C17="",B17,C17) -> 1 | E17: This adjustment factor is used to align the input delay values within the alternatives sheets with the specific volume factor.
B19: Base Analysis Volumes | C19: Adjusted Average Annual Volume | D19: Override Value | E19: Year 1 Value Applied | G19: Specify total volumes or turning counts? | H19: Total Volumes | J19: (Select from drop-down menu)
A20: AM peak hour: | B20: =Input_Demand_Vol_AMPeak_Open -> 980 | C20: =IF(B20<>"",B20*D16,"") -> 1012.619155 | E20: =IF(D20="",C20,D20) -> 1012.619155 | F20: Volume entries are used to calibrate the volume-delay curve for a given alternative, and AADT values are used to develop demand profiles for each hour of each year. A minimum of one hourly volume must be entered within this table. If data is not available for a time period(s) please leave blank. Offpeak data is only used for calibrating the delay equation, not for AADT estimates.
A21: PM peak hour: | B21: =Input_Demand_Vol_PMPeak_Open -> 1100 | C21: =IF(B21<>"",B21*D16,"") -> 1136.613337 | E21: =IF(D21="",C21,D21) -> 1136.613337
A22: Weekend peak hour: | B22: =Input_Demand_Vol_Wknd_Open ->  | C22: =IF(B22<>"",B22*D17,"") ->  | E22: =IF(D22="",C22,D22) -> 
A23: =IF(B11=1,"Average Annual Daily Traffic (AADT):","Specific Weekday Daily Traffic:") -> Specific Weekday Daily Traffic: | C23: =IF(AND(B23<>0,B11=1),B23,IF(B23<>0,B23*B16,IF(AND(B20<>0,B21<>0)=TRUE,(B20+B21)/(MAX(DemandProfiles!O76:O87)+MAX(DemandProfiles!O88:O99)),IF(AND(B20=0,B21<>0)=TRUE,B21/MAX(DemandProfiles!O88:O99),IF(AND(B20<>0,B21=0)=TRUE,B20/MAX(DemandProfiles!O76:O87),IF(B23<>0,B23,"Enter Volumes")))))) -> 13635.55556 | E23: =IF(D23<>"",D23,IF(C23<>"",C23,"")) -> 13635.55556
A24: *Volumes are bidirectional
A25: Adjust hourly volume profile to input peak hour volumes (Yes/No)? | B25: Yes | C25: If 'Yes' is selected the default hourly volume profiles will be adjusted to match the input peak hour volumes. Review plots of demand profiles to the right of Column "R" to assess the appropriateness of the profiles. | M25: Yes
M26: No
A27: Quantity (sum over all cordon approaches) | B27: Units | C27: Year | E27: Year | G27: Opening and Design years must be entered on the Alternatives_MasterList Sheet
C28: Opening | D28: Design | E28: Opening | F28: Design
C29: =IF(ISNUMBER(C5),C5,"") -> 2020 | D29: =IF(ISNUMBER(D5),D5,"") -> 2040 | E29: =IF(ISNUMBER(C29),C29,"") -> 2020 | F29: =IF(ISNUMBER(D29),D29,"") -> 2040 | G29: Demand data must be entered for the opening year and end year for each alternative. Demand data must also be entered for any interim years specified for an alternative.
A30: Average annual daily traffic (AADT) | B30: Avg veh/day | C30: =IF(E23<>"",E23,"") -> 13635.55556 | D30: =IF(AND(D31<>0,D32<>0),(D31+D32)/(MAX(DemandProfiles!$O$76:$O$87)+MAX(DemandProfiles!$O$88:$O$99)),"Enter Volumes") -> 16362.66667 | E30: =IF(AND(Input_Demand_Vol_AMPeak_Open2<>0,Input_Demand_Vol_PMPeak_Open2<>0),(Input_Demand_Vol_AMPeak_Open2+Input_Demand_Vol_PMPeak_Open2)/(MAX(DemandProfiles!$O$76:$O$87)+MAX(DemandProfiles!$O$88:$O$99)),"Enter Volumes") -> 20322.22222 | F30: =IF(AND(Input_Demand_Vol_AMPeak_Design2<>0,Input_Demand_Vol_PMPeak_Design2<>0),(Input_Demand_Vol_AMPeak_Design2+Input_Demand_Vol_PMPeak_Design2)/(MAX(DemandProfiles!$O$76:$O$87)+MAX(DemandProfiles!$O$88:$O$99)),"Enter Volumes") -> 40644.44444
A31: AM peak hour volume | B31: veh/hr | C31: =IF(B20<>"",B20,"") -> 980 | D31: =Input_Demand_Vol_AMPeak_Design -> 1176 | E31: =Input_Demand_Vol_AMPeak_Open2 -> 1500 | F31: =Input_Demand_Vol_AMPeak_Design2 -> 3000 | G31: Enter hourly volumes used to carry out travel time/delay calculations for intersection(s)
A32: PM peak hour volume | B32: veh/hr | C32: =IF(B21<>"",B21,"") -> 1100 | D32: =Input_Demand_Vol_PMPeak_Design -> 1320 | E32: =Input_Demand_Vol_PMPeak_Open2 -> 1600 | F32: =Input_Demand_Vol_PMPeak_Design2 -> 3200
A33: Weekend peak hour volume: | B33: veh/hr | C33: =IF(B22<>"",B22,"") ->  | D33: =Input_Demand_Vol_Wknd_Design ->  | E33: =Input_Demand_Vol_Wknd_Open2 -> 0 | F33: =Input_Demand_Vol_Wknd_Design2 -> 0
A34: Average annual auto occupancy | B34: Passengers per vehicle | C34: =Input_Demand_PPV_Open -> 1 | D34: =Input_Demand_PPV_Design -> 1 | E34: =C34 -> 1 | F34: =D34 -> 1 | G34: Enter annual averages (Agency defaults)
A35: Average annual % trucks | B35: Average % | C35: =Input_Demand_PCTTruck_Open -> 0.02 | D35: =Input_Demand_PCTTruck_Design -> 0.02 | E35: =C35 -> 0.02 | F35: =D35 -> 0.02
A36: Annual transit passengers | B36: Transit passengers per year | E36: Enter annual totals
A37: Annual cyclists | B37: Cyclists per year
A38: Annual pedestrians | B38: Pedestrians per year
A39: Click button when years are entered to set up calculations tables: | G39: This button should be pressed any time changes are made to the values above. This button creates a "typical" annual profile in a hidden sheet. Use the button to the right to view and/or edit the detailed demand profiles.

Sheet Alternatives_MasterList
A1: At-Grade Intersections List | D1: This sheet is used to manage the at-grade intersections list. After entering all inputs, use the "Setup Worksheets" button at the bottom of the tab before proceeding with the ICE analysis.
D7: Open Year | F7: Design Year
C8: Operating Cycle | D8: 2020 | F8: 2040 | H8: Demand forecasts for the opening year must be provided below, and travel time/delay forecasts must be given in the Delay worksheet.
C9: Peak Hour Start | D9: From | F9: To
A10: Enter peak period begin and end times: | C10: AM peak | D10: 07:00:00 | F10: =Time_AM_Peak_Begin + 1/24 -> 08:00:00
B11: 1 | C11: PM peak | D11: 16:00:00 | F11: =Time_PM_Peak_Begin + 1/24 -> 17:00:00
C12: Weekend peak | D12: 10:00:00 | F12: =Time_WE_Peak_Begin+1/24 -> 11:00:00
A14: Select Analysis Basis: | C14: 2 | G14: Weekday Count: | H14: 2013-06-06 | K14: Enter dates as "mm/dd/yyyy"
G15: Weekend Count: | K15: Enter dates as "mm/dd/yyyy"
A16: Select facility type: | C16: 7 | F16: At intersections of varying facilities select the roadway that will be more representative of the volume, or interpolate between values.
A18: Specify total volumes or turning counts? | C18: Turning Counts | F18: (Select from drop-down menu)
C20: =IF(Input_Demand_VolType=VolType_Total,"Enter the total entering volume (i.e. sum of turning movement counts) for the peak hours. If data is not available for the weekend peak hour please leave blank.","Enter the turning movement counts in the DemandCounts worksheet for the peak hours. If data is not available for the weekend peak hour please leave blank.") -> Enter the turning movement counts in the DemandCounts worksheet for the peak hours. If data is not available for the weekend peak hour please leave blank.
C21: Units | D21: Year | H21: Year
D22: Opening | F22: Design | H22: Opening | J22: Design
D23: =IF(ISNUMBER(D8),D8,"--") -> 2020 | F23: =IF(ISNUMBER(F8),F8,"--") -> 2040 | H23: =IF(ISNUMBER(D23),D23,"--") -> 2020 | J23: =IF(ISNUMBER(F23),F23,"--") -> 2040
D24: Intersection 1 | H24: Intersection 2
A25: AM peak hour volume | C25: veh/hr | D25: =SUM(Range_Demand_Counts_AM_Open) -> 980 | F25: =SUM(Range_Demand_Counts_AM_Design) -> 1176 | H25: 1500 | J25: 3000
A26: PM peak hour volume | C26: veh/hr | D26: =SUM(Range_Demand_Counts_PM_Open) -> 1100 | F26: =SUM(Range_Demand_Counts_PM_Design) -> 1320 | H26: 1600 | J26: 3200
A27: Weekend peak hour volume: | C27: veh/hr | D27: =IF(SUM(Range_Demand_Counts_Wknd_Open)>0,SUM(Range_Demand_Counts_Wknd_Open),"") ->  | F27: =IF(SUM(Range_Demand_Counts_Wknd_Design)>0,SUM(Range_Demand_Counts_Wknd_Design),"") -> 
A28: Average annual auto occupancy | C28: Passengers per vehicle | D28: 1 | F28: 1 | H28: =Input_Demand_PPV_Open -> 1 | J28: =Input_Demand_PPV_Design -> 1
A29: Average annual % trucks | C29: Average % | D29: =(SUMPRODUCT(Range_Demand_PCTTruck_AM_Open, Range_Demand_Counts_AM_Open/SUM(Range_Demand_Counts_AM_Open))+ SUMPRODUCT(Range_Demand_PCTTruck_PM_Open, Range_Demand_Counts_PM_Open/SUM(Range_Demand_Counts_PM_Open)))/2 -> 0.02 | F29: =(SUMPRODUCT(Range_Demand_PCTTruck_AM_Design, Range_Demand_Counts_AM_Design/SUM(Range_Demand_Counts_AM_Design))+ SUMPRODUCT(Range_Demand_PCTTruck_PM_Design, Range_Demand_Counts_PM_Design/SUM(Range_Demand_Counts_PM_Design)))/2 -> 0.02 | H29: =Input_Demand_PCTTruck_Open -> 0.02 | J29: =Input_Demand_PCTTruck_Design -> 0.02
A31: Select intersection types from the following table to include in the ICE analysis. To include an intersection, select "Yes" in the include column, and to exclude an intersection, select "No" in the include column.
A33: At-Grade Control Strategies
A34: Control # | B34: Include | C34: Short Name | D34: Description | K34: Notes
A35: Base Case | C35: 1 | D35: Minor Road Stop
A36: 1 | B36: Yes | C36: TWSC | D36: Two-Way Stop Control
A37: 2 | B37: Yes | C37: AllStop | D37: =AGI_Label_AllStop -> All Way Stop
A38: 3 | B38: Yes | C38: TrafficSignal | D38: =AGI_Label_TrafficSignal -> Traffic Signal
A39: 4 | B39: Yes | C39: TrafficSignalAlt | D39: Traffic Signal (Alt.)
A40: 5 | B40: Yes | C40: Roundabout | D40: =AGI_Label_Rdbt -> Roundabout
A41: 6 | B41: Yes | C41: DLT | D41: =AGI_Label_DLT -> Displaced Left Turn (DLT)
A42: 7 | B42: Yes | C42: MUT | D42: =AGI_Label_MUT -> Median U-Turn (MUT)
A43: 8 | B43: Yes | C43: SignalRCUT | D43: =AGI_Label_RCUTSig -> Signalized Restricted Crossing U-Turn (RCUT)
A44: 9 | B44: Yes | C44: UnsignalRCUT | D44: =AGI_Label_RCUTUnsig -> Unsignalized Restricted Crossing U-Turn (RCUT)
A45: 10 | B45: Yes | C45: GreenT | D45: =AGI_Label_GreenT -> Continuous Green-T Intersection
A46: 11 | B46: Yes | C46: =AGI_Label_Jughandle -> Jughandle | D46: =AGI_Label_Jughandle -> Jughandle
A47: 12 | B47: Yes | C47: Quadrant Itx | D47: =AGI_Label_Quadrant -> Quadrant Roadway Intersection | K47: Note that no safety information is available
A48: 13 | B48: No | C48: Other1 | D48: Other 1 | K48: Safety information must be provided
A49: 14 | B49: No | C49: Other2 | D49: Other 2 | K49: Safety information must be provided
A54: Ramp Terminal Control Strategies
A55: Control # | B55: Include | C55: Short Name | D55: Description | K55: Notes
A56: 1 | B56: No | C56: D4TrafficSignal | D56: =RTI_Label_D4TS -> Conventional Traffic Signal
A57: 2 | B57: No | C57: D4TrafficSignalAlt | D57: =RTI_Label_D4TSA -> Conventional Traffic Signal (Alt.)
A58: 3 | B58: No | C58: D4MinorStop | D58: =RTI_Label_D4MS -> Minor Road (ramp) Stop
A59: 4 | B59: No | C59: DDI | D59: =RTI_Label_DDI -> Crossover Traffic Signal (of DDI)
A60: 5 | B60: No | C60: SPUI | D60: =RTI_Label_SPUI -> Single-Point Diamond Traffic Signal
A61: 6 | B61: No | C61: RAB1 | D61: =RTI_Label_R1 -> 1-lane Roundabout
A62: 7 | B62: No | C62: RAB2 | D62: =RTI_Label_R2 -> 2-lane Roundabout
A63: 8 | B63: No | C63: Other1 | D63: Other 1 | K63: Safety information must be provided
A64: 9 | B64: No | C64: Other2 | D64: Other 2 | K64: Safety information must be provided
D68: Press the "Setup Worksheets" button to create hidden worksheets that compute performance measures for each selected control strategy.

Sheet DemandCounts
AM2: # Legs | AN2: Y/N | AO2: Mjr St
B3: Intersection Configuration inputs | S3: Volume Summary | AM3: 3 | AN3: Yes | AO3: E-W
AM4: 4 | AN4: No | AO4: N-S
B6: Which legs exist? | E6: Westbound / East Leg | G6: Eastbound / West Leg | I6: Southbound / North Leg | K6: Northbound / South Leg | W6: Opening Year | AC6: Design Year
E7: Yes | G7: Yes | I7: Yes | K7: Yes | W7: Input | Z7: Adjusted | AC7: Input | AF7: Adjusted
T8: AM Peak | W8: =Input_Demand_Vol_AMPeak_Open -> 980 | Z8: =DemandProfiles!I37 -> 997.8412914 | AC8: =Input_Demand_Vol_AMPeak_Design -> 1176 | AF8: =DemandProfiles!O37 -> 1197.40955
T9: PM Peak | W9: =Input_Demand_Vol_PMPeak_Open -> 1100 | Z9: =DemandProfiles!I38 -> 1120.025939 | AC9: =Input_Demand_Vol_PMPeak_Design -> 1320 | AF9: =DemandProfiles!O38 -> 1344.031127
B10: Select Major Street Direction | F10: N-S | T10: Wknd Peak | W10: =Input_Demand_Vol_Wknd_Open ->  | Z10: =DemandProfiles!I39 ->  | AC10: =Input_Demand_Vol_Wknd_Design ->  | AF10: =DemandProfiles!O39 -> 
T11: Projected AADT | W11: -- | Z11: =DemandProfiles!I36 -> 13635.55556 | AC11: -- | AF11: =DemandProfiles!O36 -> 16362.66667
T12: Truck % | W12: =Input_Demand_PCTTruck_Open -> 0.02 | Z12: -- | AC12: =Input_Demand_PCTTruck_Design -> 0.02 | AF12: --
B15: Opening Year
B17: AM Peak Hour | S17: PM Peak Hour - Opening Year | AJ17: Weekend Peak Hour - Opening Year
B18: Eastbound (West Leg) | F18: Westbound (East Leg) | J18: Northbound (South Leg) | N18: Southbound (North Leg) | S18: Eastbound (West Leg) | W18: Westbound (East Leg) | AA18: Northbound (South Leg) | AE18: Southbound (North Leg) | AJ18: Eastbound (West Leg) | AN18: Westbound (East Leg) | AR18: Northbound (South Leg) | AV18: Southbound (North Leg)
B19: U | C19: L | D19: T | E19: R | F19: U | G19: L | H19: T | I19: R | J19: U | K19: L | L19: T | M19: R | N19: U | O19: L | P19: T | Q19: R | S19: U | T19: L | U19: T | V19: R | W19: U | X19: L | Y19: T | Z19: R | AA19: U | AB19: L | AC19: T | AD19: R | AE19: U | AF19: L | AG19: T | AH19: R | AJ19: U | AK19: L | AL19: T | AM19: R | AN19: U | AO19: L | AP19: T | AQ19: R | AR19: U | AS19: L | AT19: T | AU19: R | AV19: U | AW19: L | AX19: T | AY19: R
A20: Volume | B20: =B36 -> 0 | C20: =C36 -> 25 | D20: 51 | E20: 26 | F20: =B37 -> 0 | G20: =C37 -> 50 | H20: 100 | I20: 45 | J20: =B39 -> 0 | K20: =C39 -> 41 | L20: 313 | M20: 39 | N20: =B38 -> 0 | O20: =C38 -> 40 | P20: 212 | Q20: 38 | S20: =H36 -> 0 | T20: =I36 -> 35 | U20: 61 | V20: 36 | W20: =H37 -> 0 | X20: =I37 -> 60 | Y20: 110 | Z20: 55 | AA20: =H39 -> 0 | AB20: =I39 -> 51 | AC20: 323 | AD20: 49 | AE20: =H38 -> 0 | AF20: =I38 -> 50 | AG20: 222 | AH20: 48 | AJ20: =N36 -> 0 | AK20: =O36 -> 0 | AL20: 0 | AM20: 0 | AN20: =N37 -> 0 | AO20: =O37 -> 0 | AP20: 0 | AQ20: 0 | AR20: =N39 -> 0 | AS20: =O39 -> 0 | AT20: 0 | AU20: 0 | AV20: =N38 -> 0 | AW20: =O38 -> 0 | AX20: 0 | AY20: 0
A21: Truck % | B21: =$F$36 -> 0.02 | C21: =$F$36 -> 0.02 | D21: 0.02 | E21: 0.02 | F21: =$F$37 -> 0.02 | G21: =$F$37 -> 0.02 | H21: 0.02 | I21: 0.02 | J21: =$F$39 -> 0.02 | K21: =$F$39 -> 0.02 | L21: 0.02 | M21: 0.02 | N21: =$F$38 -> 0.02 | O21: =$F$38 -> 0.02 | P21: 0.02 | Q21: 0.02 | S21: =$L$36 -> 0.02 | T21: =$L$36 -> 0.02 | U21: 0.02 | V21: 0.02 | W21: =$L$37 -> 0.02 | X21: =$L$37 -> 0.02 | Y21: 0.02 | Z21: 0.02 | AA21: =$L$39 -> 0.02 | AB21: =$L$39 -> 0.02 | AC21: 0.02 | AD21: 0.02 | AE21: =$L$38 -> 0.02 | AF21: =$L$38 -> 0.02 | AG21: 0.02 | AH21: 0.02 | AJ21: =$R$36 -> 0.02 | AK21: =$R$36 -> 0.02 | AL21: 0.02 | AM21: 0.02 | AN21: =$R$37 -> 0.02 | AO21: =$R$37 -> 0.02 | AP21: 0.02 | AQ21: 0.02 | AR21: =$R$39 -> 0.02 | AS21: =$R$39 -> 0.02 | AT21: 0.02 | AU21: 0.02 | AV21: =$R$38 -> 0.02 | AW21: =$R$38 -> 0.02 | AX21: 0.02 | AY21: 0.02
B24: Design Year
B26: AM Peak Hour - Design Year | S26: PM Peak Hour - Design Year | AJ26: Weekend Peak Hour - Design Year
B27: Eastbound (West Leg) | F27: Westbound (East Leg) | J27: Northbound (South Leg) | N27: Southbound (North Leg) | S27: Eastbound (West Leg) | W27: Westbound (East Leg) | AA27: Northbound (South Leg) | AE27: Southbound (North Leg) | AJ27: Eastbound (West Leg) | AN27: Westbound (East Leg) | AR27: Northbound (South Leg) | AV27: Southbound (North Leg)
B28: U | C28: L | D28: T | E28: R | F28: U | G28: L | H28: T | I28: R | J28: U | K28: L | L28: T | M28: R | N28: U | O28: L | P28: T | Q28: R | S28: U | T28: L | U28: T | V28: R | W28: U | X28: L | Y28: T | Z28: R | AA28: U | AB28: L | AC28: T | AD28: R | AE28: U | AF28: L | AG28: T | AH28: R | AJ28: U | AK28: L | AL28: T | AM28: R | AN28: U | AO28: L | AP28: T | AQ28: R | AR28: U | AS28: L | AT28: T | AU28: R | AV28: U | AW28: L | AX28: T | AY28: R
A29: Volume | B29: =B45 -> 0 | C29: =C45 -> 30 | D29: 61 | E29: 31 | F29: =B46 -> 0 | G29: =C46 -> 60 | H29: 120 | I29: 54 | J29: =B48 -> 0 | K29: =C48 -> 49 | L29: 376 | M29: 47 | N29: =B47 -> 0 | O29: =C47 -> 48 | P29: 254 | Q29: 46 | S29: =H45 -> 0 | T29: =I45 -> 42 | U29: 73 | V29: 43 | W29: =H46 -> 0 | X29: =I46 -> 72 | Y29: 132 | Z29: 66 | AA29: =H48 -> 0 | AB29: =I48 -> 61 | AC29: 388 | AD29: 59 | AE29: =H47 -> 0 | AF29: =I47 -> 60 | AG29: 266 | AH29: 58 | AJ29: =N45 -> 0 | AK29: =O45 -> 0 | AL29: 0 | AM29: 0 | AN29: =N46 -> 0 | AO29: =O46 -> 0 | AP29: 0 | AQ29: 0 | AR29: =N48 -> 0 | AS29: =O48 -> 0 | AT29: 0 | AU29: 0 | AV29: =N47 -> 0 | AW29: =O47 -> 0 | AX29: 0 | AY29: 0
A30: Truck % | B30: =$F$45 -> 0.02 | C30: =$F$45 -> 0.02 | D30: 0.02 | E30: 0.02 | F30: =$F$46 -> 0.02 | G30: =$F$46 -> 0.02 | H30: 0.02 | I30: 0.02 | J30: =$F$48 -> 0.02 | K30: =$F$48 -> 0.02 | L30: 0.02 | M30: 0.02 | N30: =$F$47 -> 0.02 | O30: =$F$47 -> 0.02 | P30: 0.02 | Q30: 0.02 | S30: =$L$45 -> 0.02 | T30: =$L$45 -> 0.02 | U30: 0.02 | V30: 0.02 | W30: =$L$46 -> 0.02 | X30: =$L$46 -> 0.02 | Y30: 0.02 | Z30: 0.02 | AA30: =$L$48 -> 0.02 | AB30: =$L$48 -> 0.02 | AC30: 0.02 | AD30: 0.02 | AE30: =$L$47 -> 0.02 | AF30: =$L$47 -> 0.02 | AG30: 0.02 | AH30: 0.02 | AJ30: =$R$45 -> 0.02 | AK30: =$R$45 -> 0.02 | AL30: 0.02 | AM30: 0.02 | AN30: =$R$46 -> 0.02 | AO30: =$R$46 -> 0.02 | AP30: 0.02 | AQ30: 0.02 | AR30: =$R$48 -> 0.02 | AS30: =$R$48 -> 0.02 | AT30: 0.02 | AU30: 0.02 | AV30: =$R$47 -> 0.02 | AW30: =$R$47 -> 0.02 | AX30: 0.02 | AY30: 0.02
B33: Opening Year | T33: SPICE Volume Breakdown | AE33: Values in this table break down the AADTs into major and minor street values, which can be used with the SPICE tool.
B34: AM Peak Hour | H34: PM Peak Hour | N34: Weekend Peak Hour | T34: Profile Scale % | V34: =IF(AND(Y35<>0,AA35<>0)=TRUE,(MAX(DemandProfiles!$O$76:$O$87)+MAX(DemandProfiles!$O$88:$O$99)),IF(AND(Y35=0,AA35<>0)=TRUE,MAX(DemandProfiles!$O$88:$O$99),IF(AND(Y35<>0,AA35=0)=TRUE,MAX(DemandProfiles!$O$76:$O$87),"Enter Volumes"))) -> 0.1525423729 | Y34: AM | AA34: PM | AC34: Daily
B35: U | C35: L | D35: T | E35: R | F35: HV | H35: U | I35: L | J35: T | K35: R | L35: HV | N35: U | O35: L | P35: T | Q35: R | R35: HV | T35: Opening Year | V35: Major Street AADT | Y35: =IF($F$10=$AO$3,AVERAGE(B53,D53),AVERAGE(C53,E53)) -> 677 | AA35: =IF($F$10=$AO$3,AVERAGE(H53,J53),AVERAGE(I53,K53)) -> 737 | AC35: =IF(AND(Y35<>0,AA35<>0)=TRUE,(Y35+AA35)/(MAX(DemandProfiles!$O$76:$O$87)+MAX(DemandProfiles!$O$88:$O$99)),IF(AND(Y35=0,AA35<>0)=TRUE,AA35/MAX(DemandProfiles!$O$88:$O$99),IF(AND(Y35<>0,AA35=0)=TRUE,Y35/MAX(DemandProfiles!$O$76:$O$87),"Enter Volumes"))) -> 9269.555556
A36: Eastbound | B36: 0 | C36: 25 | D36: 51 | E36: 26 | F36: 0.02 | H36: 0 | I36: =C36+10 -> 35 | J36: =D36+10 -> 61 | K36: 36 | L36: 0.02 | N36: 0 | O36: 0 | P36: 0 | Q36: 0 | R36: 0.02 | V36: Minor Street AADT | Y36: =IF($F$10=$AO$3,IF(AND(C53<>0,E53<>0),AVERAGE(C53,E53),SUM(C53,E53)),IF(AND(B53<>0,D53<>0),AVERAGE(B53,D53),SUM(B53,D53))) -> 303 | AA36: =IF($F$10=$AO$3,IF(AND(I53<>0,K53<>0),AVERAGE(I53,K53),SUM(I53,K53)),IF(AND(H53<>0,J53<>0),AVERAGE(H53,J53),SUM(H53,J53))) -> 363 | AC36: =IF(AND(Y36<>0,AA36<>0)=TRUE,(Y36+AA36)/(MAX(DemandProfiles!$O$76:$O$87)+MAX(DemandProfiles!$O$88:$O$99)),IF(AND(Y36=0,AA36<>0)=TRUE,AA36/MAX(DemandProfiles!$O$88:$O$99),IF(AND(Y36<>0,AA36=0)=TRUE,Y36/MAX(DemandProfiles!$O$76:$O$87),"Enter Volumes"))) -> 4366
A37: Westbound | B37: 0 | C37: 50 | D37: 100 | E37: 45 | F37: 0.02 | H37: 0 | I37: =C37+10 -> 60 | J37: =D37+10 -> 110 | K37: =E37+10 -> 55 | L37: 0.02 | N37: 0 | O37: 0 | P37: 0 | Q37: 0 | R37: 0.02 | T37: Design Year | V37: Major Street AADT | Y37: =IF($F$10=$AO$3,AVERAGE(B62,D62),AVERAGE(C62,E62)) -> 812.5 | AA37: =IF($F$10=$AO$3,AVERAGE(H62,J62),AVERAGE(I62,K62)) -> 884.5 | AC37: =IF(AND(Y37<>0,AA37<>0)=TRUE,(Y37+AA37)/(MAX(DemandProfiles!$O$76:$O$87)+MAX(DemandProfiles!$O$88:$O$99)),IF(AND(Y37=0,AA37<>0)=TRUE,AA37/MAX(DemandProfiles!$O$88:$O$99),IF(AND(Y37<>0,AA37=0)=TRUE,Y37/MAX(DemandProfiles!$O$76:$O$87),"Enter Volumes"))) -> 11124.77778
A38: Southbound | B38: 0 | C38: 40 | D38: 212 | E38: 38 | F38: 0.02 | H38: 0 | I38: 50 | J38: 222 | K38: 48 | L38: 0.02 | N38: 0 | O38: 0 | P38: 0 | Q38: 0 | R38: 0.02 | V38: Minor Street AADT | Y38: =IF($F$10=$AO$3,IF(AND(C62<>0,E62<>0),AVERAGE(C62,E62),SUM(C62,E62)),IF(AND(B62<>0,D62<>0),AVERAGE(B62,D62),SUM(B62,D62))) -> 363.5 | AA38: =IF($F$10=$AO$3,IF(AND(I62<>0,K62<>0),AVERAGE(I62,K62),SUM(I62,K62)),IF(AND(H62<>0,J62<>0),AVERAGE(H62,J62),SUM(H62,J62))) -> 435.5 | AC38: =IF(AND(Y38<>0,AA38<>0)=TRUE,(Y38+AA38)/(MAX(DemandProfiles!$O$76:$O$87)+MAX(DemandProfiles!$O$88:$O$99)),IF(AND(Y38=0,AA38<>0)=TRUE,AA38/MAX(DemandProfiles!$O$88:$O$99),IF(AND(Y38<>0,AA38=0)=TRUE,Y38/MAX(DemandProfiles!$O$76:$O$87),"Enter Volumes"))) -> 5237.888889
A39: Northbound | B39: 0 | C39: 41 | D39: 313 | E39: 39 | F39: 0.02 | H39: 0 | I39: 51 | J39: 323 | K39: 49 | L39: 0.02 | N39: 0 | O39: 0 | P39: 0 | Q39: 0 | R39: 0.02
B42: Design Year
B43: AM Peak Hour | H43: PM Peak Hour | N43: Weekend Peak Hour
B44: U | C44: L | D44: T | E44: R | F44: HV | H44: U | I44: L | J44: T | K44: R | L44: HV | N44: U | O44: L | P44: T | Q44: R | R44: HV
A45: Eastbound | B45: 0 | C45: =ROUND(C36*1.2,0) -> 30 | D45: =ROUND(D36*1.2,0) -> 61 | E45: 31 | F45: 0.02 | H45: 0 | I45: =ROUND(I36*1.2,0) -> 42 | J45: =ROUND(J36*1.2,0) -> 73 | K45: 43 | L45: 0.02 | N45: 0 | O45: 0 | P45: 0 | Q45: 0 | R45: 0.02
A46: Westbound | B46: 0 | C46: =ROUND(C37*1.2,0) -> 60 | D46: 120 | E46: 54 | F46: 0.02 | H46: 0 | I46: =ROUND(I37*1.2,0) -> 72 | J46: 132 | K46: 66 | L46: 0.02 | N46: 0 | O46: 0 | P46: 0 | Q46: 0 | R46: 0.02
A47: Southbound | B47: 0 | C47: =ROUND(C38*1.2,0) -> 48 | D47: 254 | E47: 46 | F47: 0.02 | H47: 0 | I47: =ROUND(I38*1.2,0) -> 60 | J47: 266 | K47: 58 | L47: 0.02 | N47: 0 | O47: 0 | P47: 0 | Q47: 0 | R47: 0.02
A48: Northbound | B48: 0 | C48: =ROUND(C39*1.2,0) -> 49 | D48: 376 | E48: 47 | F48: 0.02 | H48: 0 | I48: =ROUND(I39*1.2,0) -> 61 | J48: 388 | K48: 59 | L48: 0.02 | N48: 0 | O48: 0 | P48: 0 | Q48: 0 | R48: 0.02
B50: Computations only beyond this point, do not alter
B51: West Leg | C51: South Leg | D51: East Leg | E51: North Leg | H51: West Leg | I51: South Leg | J51: East Leg | K51: North Leg | N51: West Leg | O51: South Leg | P51: East Leg | Q51: North Leg
B52: P1 | C52: P2 | D52: P3 | E52: P4 | H52: P1 | I52: P2 | J52: P3 | K52: P4 | N52: P1 | O52: P2 | P52: P3 | Q52: P4
B53: =SUM(B36:E36)+D37+E38+C39 -> 281 | C53: =SUM(B39:E39)+D38+E36+C37 -> 681 | D53: =SUM(B37:E37)+D36+C38+E39 -> 325 | E53: =SUM(B38:E38)+D39+C36+E37 -> 673 | H53: =SUM(H36:K36)+J37+K38+I39 -> 341 | I53: =SUM(H39:K39)+J38+K36+I37 -> 741 | J53: =SUM(H37:K37)+J36+I38+K39 -> 385 | K53: =SUM(H38:K38)+J39+I36+K37 -> 733 | N53: =SUM(N36:Q36)+P37+Q38+O39 -> 0 | O53: =SUM(N39:Q39)+P38+Q36+O37 -> 0 | P53: =SUM(N37:Q37)+P36+O38+Q39 -> 0 | Q53: =SUM(N38:Q38)+P39+O36+Q37 -> 0
B60: West Leg | C60: South Leg | D60: East Leg | E60: North Leg | H60: West Leg | I60: South Leg | J60: East Leg | K60: North Leg | N60: West Leg | O60: South Leg | P60: East Leg | Q60: North Leg
B61: P1 | C61: P2 | D61: P3 | E61: P4 | H61: P1 | I61: P2 | J61: P3 | K61: P4 | N61: P1 | O61: P2 | P61: P3 | Q61: P4
B62: =SUM(B45:E45)+D46+E47+C48 -> 337 | C62: =SUM(B48:E48)+D47+E45+C46 -> 817 | D62: =SUM(B46:E46)+D45+C47+E48 -> 390 | E62: =SUM(B47:E47)+D48+C45+E46 -> 808 | H62: =SUM(H45:K45)+J46+K47+I48 -> 409 | I62: =SUM(H48:K48)+J47+K45+I46 -> 889 | J62: =SUM(H46:K46)+J45+I47+K48 -> 462 | K62: =SUM(H47:K47)+J48+I45+K46 -> 880 | N62: =SUM(N45:Q45)+P46+Q47+O48 -> 0 | O62: =SUM(N48:Q48)+P47+Q45+O46 -> 0 | P62: =SUM(N46:Q46)+P45+O47+Q48 -> 0 | Q62: =SUM(N47:Q47)+P48+O45+Q46 -> 0

Sheet DemandProfiles (hidden)
A13: Facility Type | B13: =DemandParameters!B13 -> 7
A14: From demand parameters sheet
A31: Demand Volume Profiles | B31: This sheets contains the demand profile used for the ICE analysis. Default profiles can be overriden by the user if desired.
A33: Volume Adjustment Factor: | B33: Automated Adj. Factor | C33: Override Value | D33: Value Applied | F33: Demand Volume Summary | G33: Units | H33: Year
A34: Weekday Adjustment: | B34: =IF(DemandParameters!$B$11=1,1,IF(DemandParameters!$B$11=2,(1/INDEX(DemandProfiles!$B$47:$N$53,WEEKDAY(DemandParameters!$G$11,2),13))*(1/INDEX(DemandProfiles!$B$61:$N$72,MONTH(DemandParameters!$G$11),13)))) -> 1.018205399 | D34: =IF(C34="",B34,C34) -> 1.018205399 | H34: ="Opening Year" & IF(ISNUMBER(Alternatives_MasterList!D8), " (" &Alternatives_MasterList!D8 & ")","--") -> Opening Year (2020) | L34: ="Design Year" & IF(ISNUMBER(Alternatives_MasterList!F8), " (" &Alternatives_MasterList!F8 & ")","--") -> Design Year (2040)
A35: Weekend Adjustment: | B35: =IF(OR(DemandParameters!$B$11=1,DemandParameters!G12=""),1,(1/(INDEX(DemandProfiles!B47:N53,WEEKDAY(DemandParameters!G12,2),13))*(1/INDEX(DemandProfiles!B61:N72,MONTH(DemandParameters!G12),13)))) -> 1 | D35: =IF(C35="",B35,C35) -> 1 | H35: Input | I35: Adjusted | J35: Override | K35: Use Value | L35: Input | M35: Adjusted | N35: Override | O35: Use Value
F36: Average annual daily traffic (AADT) | G36: Avg veh/day | H36: -- | I36: =Input_Demand_Vol_AADT_Open -> 13635.55556 | K36: =IF(ISNUMBER(J36),J36,I36) -> 13635.55556 | L36: -- | M36: =Input_Demand_Vol_AADT_Design -> 16362.66667 | O36: =IF(ISNUMBER(N36),N36,M36) -> 16362.66667
F37: AM peak hour volume | G37: veh/hr | H37: =Input_Demand_Vol_AMPeak_Open -> 980 | I37: =IF(ISNUMBER(Input_Demand_Vol_AMPeak_Open),Input_Demand_Vol_AMPeak_Open*$D$34,"") -> 997.8412914 | K37: 997.8412914 | L37: =Input_Demand_Vol_AMPeak_Design -> 1176 | M37: =Input_Demand_Vol_AMPeak_Design*$B$34 -> 1197.40955 | O37: 1197.40955
F38: PM peak hour volume | G38: veh/hr | H38: =Input_Demand_Vol_PMPeak_Open -> 1100 | I38: =IF(ISNUMBER(Input_Demand_Vol_PMPeak_Open),Input_Demand_Vol_PMPeak_Open*$D$34,"") -> 1120.025939 | K38: 1120.025939 | L38: =Input_Demand_Vol_PMPeak_Design -> 1320 | M38: =Input_Demand_Vol_PMPeak_Design*$B$34 -> 1344.031127 | O38: 1344.031127
F39: Weekend peak hour volume: | G39: veh/hr | H39: =Input_Demand_Vol_Wknd_Open ->  | I39: =IF(ISNUMBER(Input_Demand_Vol_Wknd_Open),Input_Demand_Vol_Wknd_Open*$D$35,"") ->  | L39: =IF(ISNUMBER(Input_Demand_Vol_Wknd_Design),Input_Demand_Vol_Wknd_Design,"") ->  | M39: =IF(ISNUMBER(Input_Demand_Vol_Wknd_Design),Input_Demand_Vol_Wknd_Design*$D$35,"") -> 
F40: Average annual auto occupancy | G40: Passengers per vehicle | H40: =Input_Demand_PPV_Open -> 1 | I40: -- | K40: =IF(ISNUMBER(J40),J40,H40) -> 1 | L40: =Input_Demand_PPV_Design -> 1 | M40: -- | O40: =IF(ISNUMBER(N40),N40,L40) -> 1
F41: Average annual % trucks | G41: Average % | H41: =Input_Demand_PCTTruck_Open -> 0.02 | I41: -- | K41: =IF(ISNUMBER(J41),J41,H41) -> 0.02 | L41: =Input_Demand_PCTTruck_Design -> 0.02 | M41: -- | O41: =IF(ISNUMBER(N41),N41,L41) -> 0.02
A43: Passenger Vehicle Demand Profile Parameters
B45: Note: All charts illustrating volume profiles are shown to right of Column "R"
A46: Review Daily Profile or Override Values: | B46: Day of Week | C46: =C60 -> 04 - Rural Principal Arterial -- Other | D46: 06 - Rural Minor Arterial | E46: 07 - Rural Major Collector | F46: 08 - Rural Minor Collector | G46: 14 - Urban Principal Arterial -- Other | H46: 16 - Urban Minor Arterial | I46: 17 - Urban Major Collector | J46: -- | K46: -- | L46: Default Profile Value | M46: Override Value | N46: Applied Value | O46: Notes
A47: Chart shown at right | B47: Monday | C47: 0.8821971831 | D47: 0.8056691482 | E47: 0.9023162135 | F47: 0.7988304094 | G47: 0.7559085674 | H47: 0.7508835013 | I47: 0.7468807482 | L47: =IF(DemandParameters!$B$13=1,C47,IF(DemandParameters!$B$13=2,D47,IF(DemandParameters!$B$13=3,E47,IF(DemandParameters!$B$13=4,F47,IF(DemandParameters!$B$13=5,G47,IF(DemandParameters!$B$13=6,H47,IF(DemandParameters!$B$13=7,I47,IF(DemandParameters!$B$13=8,J47,IF(DemandParameters!$B$13=9,K47))))))))) -> 0.7468807482 | N47: =IF(M47="",L47,M47) -> 0.7468807482
B48: Tuesday | C48: 0.9793098592 | D48: 0.9828038167 | E48: 0.9631168177 | F48: 0.9777777778 | G48: 1.012636594 | H48: 1.010752983 | I48: 1.017197438 | L48: =IF(DemandParameters!$B$13=1,C48,IF(DemandParameters!$B$13=2,D48,IF(DemandParameters!$B$13=3,E48,IF(DemandParameters!$B$13=4,F48,IF(DemandParameters!$B$13=5,G48,IF(DemandParameters!$B$13=6,H48,IF(DemandParameters!$B$13=7,I48,IF(DemandParameters!$B$13=8,J48,IF(DemandParameters!$B$13=9,K48))))))))) -> 1.017197438 | N48: 1.017197438
B49: Wednesday | C49: 0.9761549296 | D49: 1.022438922 | E49: 0.9873489426 | F49: 1.061403509 | G49: 1.055203048 | H49: 1.067530382 | I49: 1.072036434 | L49: =IF(DemandParameters!$B$13=1,C49,IF(DemandParameters!$B$13=2,D49,IF(DemandParameters!$B$13=3,E49,IF(DemandParameters!$B$13=4,F49,IF(DemandParameters!$B$13=5,G49,IF(DemandParameters!$B$13=6,H49,IF(DemandParameters!$B$13=7,I49,IF(DemandParameters!$B$13=8,J49,IF(DemandParameters!$B$13=9,K49))))))))) -> 1.072036434 | N49: 1.072036434
B50: Thursday | C50: 0.9913380282 | D50: 1.031980707 | E50: 0.9952794562 | F50: 1.038011696 | G50: 1.067397919 | H50: 1.072526025 | I50: 1.083205904 | L50: =IF(DemandParameters!$B$13=1,C50,IF(DemandParameters!$B$13=2,D50,IF(DemandParameters!$B$13=3,E50,IF(DemandParameters!$B$13=4,F50,IF(DemandParameters!$B$13=5,G50,IF(DemandParameters!$B$13=6,H50,IF(DemandParameters!$B$13=7,I50,IF(DemandParameters!$B$13=8,J50,IF(DemandParameters!$B$13=9,K50))))))))) -> 1.083205904 | N50: 1.083205904
B51: Friday | C51: 1.026239437 | D51: 1.057425466 | E51: 1.024358006 | F51: 1.059064327 | G51: 1.073119682 | H51: 1.078386298 | I51: 1.080491102 | L51: =IF(DemandParameters!$B$13=1,C51,IF(DemandParameters!$B$13=2,D51,IF(DemandParameters!$B$13=3,E51,IF(DemandParameters!$B$13=4,F51,IF(DemandParameters!$B$13=5,G51,IF(DemandParameters!$B$13=6,H51,IF(DemandParameters!$B$13=7,I51,IF(DemandParameters!$B$13=8,J51,IF(DemandParameters!$B$13=9,K51))))))))) -> 1.080491102 | N51: 1.080491102
B52: Saturday | C52: 1.143464789 | D52: 1.134004404 | E52: 1.125692346 | F52: 1.108187135 | G52: 1.112016117 | H52: 1.118303403 | I52: 1.099262017 | L52: =IF(DemandParameters!$B$13=1,C52,IF(DemandParameters!$B$13=2,D52,IF(DemandParameters!$B$13=3,E52,IF(DemandParameters!$B$13=4,F52,IF(DemandParameters!$B$13=5,G52,IF(DemandParameters!$B$13=6,H52,IF(DemandParameters!$B$13=7,I52,IF(DemandParameters!$B$13=8,J52,IF(DemandParameters!$B$13=9,K52))))))))) -> 1.099262017 | N52: 1.099262017
B53: Sunday | C53: 1.001295775 | D53: 0.9656775366 | E53: 1.001888218 | F53: 0.9567251462 | G53: 0.9237180731 | H53: 0.9016174079 | I53: 0.9009263568 | L53: =IF(DemandParameters!$B$13=1,C53,IF(DemandParameters!$B$13=2,D53,IF(DemandParameters!$B$13=3,E53,IF(DemandParameters!$B$13=4,F53,IF(DemandParameters!$B$13=5,G53,IF(DemandParameters!$B$13=6,H53,IF(DemandParameters!$B$13=7,I53,IF(DemandParameters!$B$13=8,J53,IF(DemandParameters!$B$13=9,K53))))))))) -> 0.9009263568 | N53: 0.9009263568
A59: Review Monthly Profile or Override Values: | B59: Month | C59: Functional Class | L59: Default Profile Value | M59: Override Value | N59: Applied Value | O59: Notes
C60: =NumericValues!A21 -> 04 - Rural Principal Arterial -- Other | D60: =NumericValues!A22 -> 06 - Rural Minor Arterial | E60: =NumericValues!A23 -> 07 - Rural Major Collector | F60: =NumericValues!A24 -> 08 - Rural Minor Collector | G60: =NumericValues!A25 -> 14 - Urban Principal Arterial -- Other | H60: =NumericValues!A26 -> 16 - Urban Minor Arterial | I60: =NumericValues!A27 -> 17 - Urban Major Collector | J60: -- | K60: --
A61: Chart shown at right | B61: January | C61: 0.9254020348 | D61: 0.9317468726 | E61: 0.9570983697 | F61: 0.926848249 | G61: 0.983273441 | H61: 0.9403452813 | I61: 1.017060749 | L61: =IF(DemandParameters!$B$13=1,C61,IF(DemandParameters!$B$13=2,D61,IF(DemandParameters!$B$13=3,E61,IF(DemandParameters!$B$13=4,F61,IF(DemandParameters!$B$13=5,G61,IF(DemandParameters!$B$13=6,H61,IF(DemandParameters!$B$13=7,I61,IF(DemandParameters!$B$13=8,J61,IF(DemandParameters!$B$13=9,K61))))))))) -> 1.017060749 | N61: =IF(M61="",L61,M61) -> 1.017060749
B62: February | C62: 1.009977027 | D62: 1.025630577 | E62: 1.057336509 | F62: 1.023151751 | G62: 1.048245804 | H62: 1.031489972 | I62: 1.129843723 | L62: =IF(DemandParameters!$B$13=1,C62,IF(DemandParameters!$B$13=2,D62,IF(DemandParameters!$B$13=3,E62,IF(DemandParameters!$B$13=4,F62,IF(DemandParameters!$B$13=5,G62,IF(DemandParameters!$B$13=6,H62,IF(DemandParameters!$B$13=7,I62,IF(DemandParameters!$B$13=8,J62,IF(DemandParameters!$B$13=9,K62))))))))) -> 1.129843723 | N62: 1.129843723
B63: March | C63: 1.070725304 | D63: 1.059125545 | E63: 1.105697014 | F63: 1.099027237 | G63: 1.07136569 | H63: 1.075890116 | I63: 1.135498364 | L63: =IF(DemandParameters!$B$13=1,C63,IF(DemandParameters!$B$13=2,D63,IF(DemandParameters!$B$13=3,E63,IF(DemandParameters!$B$13=4,F63,IF(DemandParameters!$B$13=5,G63,IF(DemandParameters!$B$13=6,H63,IF(DemandParameters!$B$13=7,I63,IF(DemandParameters!$B$13=8,J63,IF(DemandParameters!$B$13=9,K63))))))))) -> 1.135498364 | N63: 1.135498364
B64: April | C64: 1.036363636 | D64: 1.037855018 | E64: 1.066568969 | F64: 1.05233463 | G64: 1.039442352 | H64: 1.005653682 | I64: 1.104591491 | L64: =IF(DemandParameters!$B$13=1,C64,IF(DemandParameters!$B$13=2,D64,IF(DemandParameters!$B$13=3,E64,IF(DemandParameters!$B$13=4,F64,IF(DemandParameters!$B$13=5,G64,IF(DemandParameters!$B$13=6,H64,IF(DemandParameters!$B$13=7,I64,IF(DemandParameters!$B$13=8,J64,IF(DemandParameters!$B$13=9,K64))))))))) -> 1.104591491 | N64: 1.104591491
B65: May | C65: 1.032129964 | D65: 1.035899108 | E65: 1.03051841 | F65: 1.017898833 | G65: 0.9801850168 | H65: 0.9874247438 | I65: 1.0274405 | L65: =IF(DemandParameters!$B$13=1,C65,IF(DemandParameters!$B$13=2,D65,IF(DemandParameters!$B$13=3,E65,IF(DemandParameters!$B$13=4,F65,IF(DemandParameters!$B$13=5,G65,IF(DemandParameters!$B$13=6,H65,IF(DemandParameters!$B$13=7,I65,IF(DemandParameters!$B$13=8,J65,IF(DemandParameters!$B$13=9,K65))))))))) -> 1.0274405 | N65: 1.0274405
B66: June | C66: 1.024942566 | D66: 1.009738804 | E66: 1.005458875 | F66: 0.9536964981 | G66: 0.975884314 | H66: 0.9503927276 | I66: 0.9066790604 | L66: =IF(DemandParameters!$B$13=1,C66,IF(DemandParameters!$B$13=2,D66,IF(DemandParameters!$B$13=3,E66,IF(DemandParameters!$B$13=4,F66,IF(DemandParameters!$B$13=5,G66,IF(DemandParameters!$B$13=6,H66,IF(DemandParameters!$B$13=7,I66,IF(DemandParameters!$B$13=8,J66,IF(DemandParameters!$B$13=9,K66))))))))) -> 0.9066790604 | N66: 0.9066790604
B67: July | C67: 1.002395799 | D67: 1.010227782 | E67: 0.9773218538 | F67: 0.9233463035 | G67: 0.9621740197 | H67: 0.9611100036 | I67: 0.8948275528 | L67: =IF(DemandParameters!$B$13=1,C67,IF(DemandParameters!$B$13=2,D67,IF(DemandParameters!$B$13=3,E67,IF(DemandParameters!$B$13=4,F67,IF(DemandParameters!$B$13=5,G67,IF(DemandParameters!$B$13=6,H67,IF(DemandParameters!$B$13=7,I67,IF(DemandParameters!$B$13=8,J67,IF(DemandParameters!$B$13=9,K67))))))))) -> 0.8948275528 | N67: 0.8948275528
B68: August | C68: 0.9470626846 | D68: 0.982600546 | E68: 0.909617146 | F68: 0.9455252918 | G68: 0.9662726761 | H68: 0.9689565807 | I68: 0.9389027673 | L68: =IF(DemandParameters!$B$13=1,C68,IF(DemandParameters!$B$13=2,D68,IF(DemandParameters!$B$13=3,E68,IF(DemandParameters!$B$13=4,F68,IF(DemandParameters!$B$13=5,G68,IF(DemandParameters!$B$13=6,H68,IF(DemandParameters!$B$13=7,I68,IF(DemandParameters!$B$13=8,J68,IF(DemandParameters!$B$13=9,K68))))))))) -> 0.9389027673 | N68: 0.9389027673
B69: September | C69: 0.9445027896 | D69: 0.9857789006 | E69: 0.8924711486 | F69: 0.9426070039 | G69: 0.9614812891 | H69: 0.9703919301 | I69: 0.9466488507 | L69: =IF(DemandParameters!$B$13=1,C69,IF(DemandParameters!$B$13=2,D69,IF(DemandParameters!$B$13=3,E69,IF(DemandParameters!$B$13=4,F69,IF(DemandParameters!$B$13=5,G69,IF(DemandParameters!$B$13=6,H69,IF(DemandParameters!$B$13=7,I69,IF(DemandParameters!$B$13=8,J69,IF(DemandParameters!$B$13=9,K69))))))))) -> 0.9466488507 | N69: 0.9466488507
B70: October | C70: 1.005251067 | D70: 1.005582495 | E70: 1.026561641 | F70: 1.005642023 | G70: 0.9961178219 | H70: 1.02493521 | I70: 0.9517612657 | L70: =IF(DemandParameters!$B$13=1,C70,IF(DemandParameters!$B$13=2,D70,IF(DemandParameters!$B$13=3,E70,IF(DemandParameters!$B$13=4,F70,IF(DemandParameters!$B$13=5,G70,IF(DemandParameters!$B$13=6,H70,IF(DemandParameters!$B$13=7,I70,IF(DemandParameters!$B$13=8,J70,IF(DemandParameters!$B$13=9,K70))))))))) -> 0.9517612657 | N70: 0.9517612657
B71: November | C71: 1.014702987 | D71: 0.9466606903 | E71: 0.9887525188 | F71: 1.045914397 | G71: 1.012425856 | H71: 1.047948646 | I71: 0.9691124925 | L71: =IF(DemandParameters!$B$13=1,C71,IF(DemandParameters!$B$13=2,D71,IF(DemandParameters!$B$13=3,E71,IF(DemandParameters!$B$13=4,F71,IF(DemandParameters!$B$13=5,G71,IF(DemandParameters!$B$13=6,H71,IF(DemandParameters!$B$13=7,I71,IF(DemandParameters!$B$13=8,J71,IF(DemandParameters!$B$13=9,K71))))))))) -> 0.9691124925 | N71: 0.9691124925
B72: December | C72: 0.9865441418 | D72: 0.9691536612 | E72: 0.9825975453 | F72: 1.064007782 | G72: 1.00313172 | H72: 1.035461106 | I72: 0.9776331842 | L72: =IF(DemandParameters!$B$13=1,C72,IF(DemandParameters!$B$13=2,D72,IF(DemandParameters!$B$13=3,E72,IF(DemandParameters!$B$13=4,F72,IF(DemandParameters!$B$13=5,G72,IF(DemandParameters!$B$13=6,H72,IF(DemandParameters!$B$13=7,I72,IF(DemandParameters!$B$13=8,J72,IF(DemandParameters!$B$13=9,K72))))))))) -> 0.9776331842 | N72: 0.9776331842
A74: Review Weekday Hourly Demand Profile or Override Values: | B74: Category | C74: Hour Starting | D74: Functional Class | M74: Calibrated Profile Value | N74: Override Value | O74: Applied Value | P74: Notes
A75: Chart shown at right | D75: =C60 -> 04 - Rural Principal Arterial -- Other | E75: 06 - Rural Minor Arterial | F75: 07 - Rural Major Collector | G75: 08 - Rural Minor Collector | H75: 14 - Urban Principal Arterial -- Other | I75: 16 - Urban Minor Arterial | J75: 17 - Urban Major Collector | K75: -- | L75: -- | R75: =IF(DemandParameters!$B$13=1,D75,IF(DemandParameters!$B$13=2,E75,IF(DemandParameters!$B$13=3,F75,IF(DemandParameters!$B$13=4,G75,IF(DemandParameters!$B$13=5,H75,IF(DemandParameters!$B$13=6,I75,IF(DemandParameters!$B$13=7,J75,IF(DemandParameters!$B$13=8,K75,IF(DemandParameters!$B$13=9,L75))))))))) -> 17 - Urban Major Collector
B76: Weekday | C76: 00:00:00 | D76: 0.006646758501 | E76: 0.004912280702 | F76: 0.004757785467 | G76: 0.00390625 | H76: 0.007739097377 | I76: 0.006193895871 | J76: 0.004925394756 | M76: =IF($B$13=1,D76,IF($B$13=2,E76,IF($B$13=3,F76,IF($B$13=4,G76,IF($B$13=5,H76,IF($B$13=6,I76,IF($B$13=7,J76,IF($B$13=8,K76,IF($B$13=9,L76))))))))) -> 0.004925394756 | O76: =IF(N76="",M76,N76) -> 0.004925394756 | R76: =IF(DemandParameters!$B$13=1,D76,IF(DemandParameters!$B$13=2,E76,IF(DemandParameters!$B$13=3,F76,IF(DemandParameters!$B$13=4,G76,IF(DemandParameters!$B$13=5,H76,IF(DemandParameters!$B$13=6,I76,IF(DemandParameters!$B$13=7,J76,IF(DemandParameters!$B$13=8,K76,IF(DemandParameters!$B$13=9,L76))))))))) -> 0.004925394756
C77: 01:00:00 | D77: 0.004720161834 | E77: 0.003274853801 | F77: 0.003027681661 | G77: 0.002232142857 | H77: 0.00483354152 | I77: 0.00381508079 | J77: 0.002897291033 | M77: 0.002897291033 | O77: 0.002897291033 | R77: =IF(DemandParameters!$B$13=1,D77,IF(DemandParameters!$B$13=2,E77,IF(DemandParameters!$B$13=3,F77,IF(DemandParameters!$B$13=4,G77,IF(DemandParameters!$B$13=5,H77,IF(DemandParameters!$B$13=6,I77,IF(DemandParameters!$B$13=7,J77,IF(DemandParameters!$B$13=8,K77,IF(DemandParameters!$B$13=9,L77))))))))) -> 0.002897291033
C78: 02:00:00 | D78: 0.004431172334 | E78: 0.003040935673 | F78: 0.002595155709 | G78: 0.001674107143 | H78: 0.003828816597 | I78: 0.002872531418 | J78: 0.002390265102 | M78: 0.002390265102 | O78: 0.002390265102 | R78: =IF(DemandParameters!$B$13=1,D78,IF(DemandParameters!$B$13=2,E78,IF(DemandParameters!$B$13=3,F78,IF(DemandParameters!$B$13=4,G78,IF(DemandParameters!$B$13=5,H78,IF(DemandParameters!$B$13=6,I78,IF(DemandParameters!$B$13=7,J78,IF(DemandParameters!$B$13=8,K78,IF(DemandParameters!$B$13=9,L78))))))))) -> 0.002390265102
C79: 03:00:00 | D79: 0.005587130334 | E79: 0.003742690058 | F79: 0.003460207612 | G79: 0.002232142857 | H79: 0.004100363873 | I79: 0.002827648115 | J79: 0.00224540055 | M79: 0.00224540055 | O79: 0.00224540055 | R79: =IF(DemandParameters!$B$13=1,D79,IF(DemandParameters!$B$13=2,E79,IF(DemandParameters!$B$13=3,F79,IF(DemandParameters!$B$13=4,G79,IF(DemandParameters!$B$13=5,H79,IF(DemandParameters!$B$13=6,I79,IF(DemandParameters!$B$13=7,J79,IF(DemandParameters!$B$13=8,K79,IF(DemandParameters!$B$13=9,L79))))))))) -> 0.00224540055
C80: 04:00:00 | D80: 0.01059628167 | E80: 0.00865497076 | F80: 0.007785467128 | G80: 0.006138392857 | H80: 0.007033074458 | I80: 0.005475763016 | J80: 0.004128639722 | M80: 0.004128639722 | O80: 0.004128639722 | R80: =IF(DemandParameters!$B$13=1,D80,IF(DemandParameters!$B$13=2,E80,IF(DemandParameters!$B$13=3,F80,IF(DemandParameters!$B$13=4,G80,IF(DemandParameters!$B$13=5,H80,IF(DemandParameters!$B$13=6,I80,IF(DemandParameters!$B$13=7,J80,IF(DemandParameters!$B$13=8,K80,IF(DemandParameters!$B$13=9,L80))))))))) -> 0.004128639722
C81: 05:00:00 | D81: 0.02466043734 | E81: 0.02269005848 | F81: 0.01989619377 | G81: 0.01841517857 | H81: 0.01721609732 | I81: 0.01458707361 | J81: 0.01086484137 | M81: 0.01086484137 | O81: 0.01086484137 | R81: =IF(DemandParameters!$B$13=1,D81,IF(DemandParameters!$B$13=2,E81,IF(DemandParameters!$B$13=3,F81,IF(DemandParameters!$B$13=4,G81,IF(DemandParameters!$B$13=5,H81,IF(DemandParameters!$B$13=6,I81,IF(DemandParameters!$B$13=7,J81,IF(DemandParameters!$B$13=8,K81,IF(DemandParameters!$B$13=9,L81))))))))) -> 0.01086484137
C82: 06:00:00 | D82: 0.04826124651 | E82: 0.04865497076 | F82: 0.0428200692 | G82: 0.05915178571 | H82: 0.04168250692 | I82: 0.03797127469 | J82: 0.03570911198 | M82: 0.03570911198 | O82: 0.03570911198 | R82: =IF(DemandParameters!$B$13=1,D82,IF(DemandParameters!$B$13=2,E82,IF(DemandParameters!$B$13=3,F82,IF(DemandParameters!$B$13=4,G82,IF(DemandParameters!$B$13=5,H82,IF(DemandParameters!$B$13=6,I82,IF(DemandParameters!$B$13=7,J82,IF(DemandParameters!$B$13=8,K82,IF(DemandParameters!$B$13=9,L82))))))))) -> 0.03570911198
C83: 07:00:00 | D83: 0.06174742318 | E83: 0.06877192982 | F83: 0.06185121107 | G83: 0.0859375 | H83: 0.06422093086 | I83: 0.06171454219 | J83: 0.06808633927 | M83: 0.06808633927 | O83: 0.06808633927 | R83: =IF(DemandParameters!$B$13=1,D83,IF(DemandParameters!$B$13=2,E83,IF(DemandParameters!$B$13=3,F83,IF(DemandParameters!$B$13=4,G83,IF(DemandParameters!$B$13=5,H83,IF(DemandParameters!$B$13=6,I83,IF(DemandParameters!$B$13=7,J83,IF(DemandParameters!$B$13=8,K83,IF(DemandParameters!$B$13=9,L83))))))))) -> 0.06808633927
C84: 08:00:00 | D84: 0.05664194201 | E84: 0.05824561404 | F84: 0.05709342561 | G84: 0.06975446429 | H84: 0.06316189649 | I84: 0.06198384201 | J84: 0.06721715196 | M84: 0.06721715196 | O84: 0.06721715196 | R84: =IF(DemandParameters!$B$13=1,D84,IF(DemandParameters!$B$13=2,E84,IF(DemandParameters!$B$13=3,F84,IF(DemandParameters!$B$13=4,G84,IF(DemandParameters!$B$13=5,H84,IF(DemandParameters!$B$13=6,I84,IF(DemandParameters!$B$13=7,J84,IF(DemandParameters!$B$13=8,K84,IF(DemandParameters!$B$13=9,L84))))))))) -> 0.06721715196
C85: 09:00:00 | D85: 0.05538965418 | E85: 0.05590643275 | F85: 0.05839100346 | G85: 0.05022321429 | H85: 0.05583012002 | I85: 0.05578994614 | J85: 0.05743879473 | M85: 0.05743879473 | O85: 0.05743879473 | R85: =IF(DemandParameters!$B$13=1,D85,IF(DemandParameters!$B$13=2,E85,IF(DemandParameters!$B$13=3,F85,IF(DemandParameters!$B$13=4,G85,IF(DemandParameters!$B$13=5,H85,IF(DemandParameters!$B$13=6,I85,IF(DemandParameters!$B$13=7,J85,IF(DemandParameters!$B$13=8,K85,IF(DemandParameters!$B$13=9,L85))))))))) -> 0.05743879473
C86: 10:00:00 | D86: 0.05789422984 | E86: 0.05801169591 | F86: 0.06185121107 | G86: 0.046875 | H86: 0.05577581057 | I86: 0.05686714542 | J86: 0.05570042011 | M86: 0.05570042011 | O86: 0.05570042011 | R86: =IF(DemandParameters!$B$13=1,D86,IF(DemandParameters!$B$13=2,E86,IF(DemandParameters!$B$13=3,F86,IF(DemandParameters!$B$13=4,G86,IF(DemandParameters!$B$13=5,H86,IF(DemandParameters!$B$13=6,I86,IF(DemandParameters!$B$13=7,J86,IF(DemandParameters!$B$13=8,K86,IF(DemandParameters!$B$13=9,L86))))))))) -> 0.05570042011
C87: 11:00:00 | D87: 0.06059146518 | E87: 0.06152046784 | F87: 0.06531141869 | G87: 0.04743303571 | H87: 0.05930592516 | I87: 0.06135547576 | J87: 0.059611763 | M87: 0.059611763 | O87: 0.059611763 | R87: =IF(DemandParameters!$B$13=1,D87,IF(DemandParameters!$B$13=2,E87,IF(DemandParameters!$B$13=3,F87,IF(DemandParameters!$B$13=4,G87,IF(DemandParameters!$B$13=5,H87,IF(DemandParameters!$B$13=6,I87,IF(DemandParameters!$B$13=7,J87,IF(DemandParameters!$B$13=8,K87,IF(DemandParameters!$B$13=9,L87))))))))) -> 0.059611763
C88: 12:00:00 | D88: 0.06232540218 | E88: 0.06432748538 | F88: 0.06704152249 | G88: 0.04799107143 | H88: 0.06302612285 | I88: 0.06543985637 | J88: 0.0641025641 | M88: 0.0641025641 | O88: 0.0641025641 | R88: =IF(DemandParameters!$B$13=1,D88,IF(DemandParameters!$B$13=2,E88,IF(DemandParameters!$B$13=3,F88,IF(DemandParameters!$B$13=4,G88,IF(DemandParameters!$B$13=5,H88,IF(DemandParameters!$B$13=6,I88,IF(DemandParameters!$B$13=7,J88,IF(DemandParameters!$B$13=8,K88,IF(DemandParameters!$B$13=9,L88))))))))) -> 0.0641025641
C89: 13:00:00 | D89: 0.06319237068 | E89: 0.06432748538 | F89: 0.06704152249 | G89: 0.05301339286 | H89: 0.06321620594 | I89: 0.06503590664 | J89: 0.06366797045 | M89: 0.06366797045 | O89: 0.06366797045 | R89: =IF(DemandParameters!$B$13=1,D89,IF(DemandParameters!$B$13=2,E89,IF(DemandParameters!$B$13=3,F89,IF(DemandParameters!$B$13=4,G89,IF(DemandParameters!$B$13=5,H89,IF(DemandParameters!$B$13=6,I89,IF(DemandParameters!$B$13=7,J89,IF(DemandParameters!$B$13=8,K89,IF(DemandParameters!$B$13=9,L89))))))))) -> 0.06366797045
C90: 14:00:00 | D90: 0.06646758501 | E90: 0.06923976608 | F90: 0.07006920415 | G90: 0.05803571429 | H90: 0.06585021452 | I90: 0.06763913824 | J90: 0.06765174562 | M90: 0.06765174562 | O90: 0.06765174562 | R90: =IF(DemandParameters!$B$13=1,D90,IF(DemandParameters!$B$13=2,E90,IF(DemandParameters!$B$13=3,F90,IF(DemandParameters!$B$13=4,G90,IF(DemandParameters!$B$13=5,H90,IF(DemandParameters!$B$13=6,I90,IF(DemandParameters!$B$13=7,J90,IF(DemandParameters!$B$13=8,K90,IF(DemandParameters!$B$13=9,L90))))))))) -> 0.06765174562
C91: 15:00:00 | D91: 0.07176572585 | E91: 0.0767251462 | F91: 0.07525951557 | G91: 0.0703125 | H91: 0.07076522022 | I91: 0.07351885099 | J91: 0.07395335361 | M91: 0.07395335361 | O91: 0.07395335361 | R91: =IF(DemandParameters!$B$13=1,D91,IF(DemandParameters!$B$13=2,E91,IF(DemandParameters!$B$13=3,F91,IF(DemandParameters!$B$13=4,G91,IF(DemandParameters!$B$13=5,H91,IF(DemandParameters!$B$13=6,I91,IF(DemandParameters!$B$13=7,J91,IF(DemandParameters!$B$13=8,K91,IF(DemandParameters!$B$13=9,L91))))))))) -> 0.07395335361
C92: 16:00:00 | D92: 0.07754551585 | E92: 0.08 | F92: 0.07828719723 | G92: 0.08928571429 | H92: 0.07478411992 | I92: 0.07778276481 | J92: 0.07996523251 | M92: 0.07996523251 | O92: 0.07996523251 | R92: =IF(DemandParameters!$B$13=1,D92,IF(DemandParameters!$B$13=2,E92,IF(DemandParameters!$B$13=3,F92,IF(DemandParameters!$B$13=4,G92,IF(DemandParameters!$B$13=5,H92,IF(DemandParameters!$B$13=6,I92,IF(DemandParameters!$B$13=7,J92,IF(DemandParameters!$B$13=8,K92,IF(DemandParameters!$B$13=9,L92))))))))) -> 0.07996523251
C93: 17:00:00 | D93: 0.07841248435 | E93: 0.07953216374 | F93: 0.07871972318 | G93: 0.1015625 | H93: 0.0759517732 | I93: 0.07872531418 | J93: 0.08445603361 | M93: 0.08445603361 | O93: 0.08445603361 | R93: =IF(DemandParameters!$B$13=1,D93,IF(DemandParameters!$B$13=2,E93,IF(DemandParameters!$B$13=3,F93,IF(DemandParameters!$B$13=4,G93,IF(DemandParameters!$B$13=5,H93,IF(DemandParameters!$B$13=6,I93,IF(DemandParameters!$B$13=7,J93,IF(DemandParameters!$B$13=8,K93,IF(DemandParameters!$B$13=9,L93))))))))) -> 0.08445603361
C94: 18:00:00 | D94: 0.05847220884 | E94: 0.05614035088 | F94: 0.05795847751 | G94: 0.07310267857 | H94: 0.05957747244 | I94: 0.06059245961 | J94: 0.06316094452 | M94: 0.06316094452 | O94: 0.06316094452 | R94: =IF(DemandParameters!$B$13=1,D94,IF(DemandParameters!$B$13=2,E94,IF(DemandParameters!$B$13=3,F94,IF(DemandParameters!$B$13=4,G94,IF(DemandParameters!$B$13=5,H94,IF(DemandParameters!$B$13=6,I94,IF(DemandParameters!$B$13=7,J94,IF(DemandParameters!$B$13=8,K94,IF(DemandParameters!$B$13=9,L94))))))))) -> 0.06316094452
C95: 19:00:00 | D95: 0.04094017917 | E95: 0.03859649123 | F95: 0.0410899654 | G95: 0.04185267857 | H95: 0.04431651551 | I95: 0.0447486535 | J95: 0.0440388237 | M95: 0.0440388237 | O95: 0.0440388237 | R95: =IF(DemandParameters!$B$13=1,D95,IF(DemandParameters!$B$13=2,E95,IF(DemandParameters!$B$13=3,F95,IF(DemandParameters!$B$13=4,G95,IF(DemandParameters!$B$13=5,H95,IF(DemandParameters!$B$13=6,I95,IF(DemandParameters!$B$13=7,J95,IF(DemandParameters!$B$13=8,K95,IF(DemandParameters!$B$13=9,L95))))))))) -> 0.0440388237
C96: 20:00:00 | D96: 0.03121086601 | E96: 0.02900584795 | F96: 0.02984429066 | G96: 0.02957589286 | H96: 0.03483951556 | I96: 0.03536804309 | J96: 0.03426046646 | M96: 0.03426046646 | O96: 0.03426046646 | R96: =IF(DemandParameters!$B$13=1,D96,IF(DemandParameters!$B$13=2,E96,IF(DemandParameters!$B$13=3,F96,IF(DemandParameters!$B$13=4,G96,IF(DemandParameters!$B$13=5,H96,IF(DemandParameters!$B$13=6,I96,IF(DemandParameters!$B$13=7,J96,IF(DemandParameters!$B$13=8,K96,IF(DemandParameters!$B$13=9,L96))))))))) -> 0.03426046646
C97: 21:00:00 | D97: 0.0239861285 | E97: 0.02105263158 | F97: 0.02119377163 | G97: 0.02008928571 | H97: 0.02805083365 | I97: 0.02791741472 | J97: 0.02585832247 | M97: 0.02585832247 | O97: 0.02585832247 | R97: =IF(DemandParameters!$B$13=1,D97,IF(DemandParameters!$B$13=2,E97,IF(DemandParameters!$B$13=3,F97,IF(DemandParameters!$B$13=4,G97,IF(DemandParameters!$B$13=5,H97,IF(DemandParameters!$B$13=6,I97,IF(DemandParameters!$B$13=7,J97,IF(DemandParameters!$B$13=8,K97,IF(DemandParameters!$B$13=9,L97))))))))) -> 0.02585832247
C98: 22:00:00 | D98: 0.0170503805 | E98: 0.01426900585 | F98: 0.01470588235 | G98: 0.01283482143 | H98: 0.02069190246 | I98: 0.01947935368 | J98: 0.01716644937 | M98: 0.01716644937 | O98: 0.01716644937 | R98: =IF(DemandParameters!$B$13=1,D98,IF(DemandParameters!$B$13=2,E98,IF(DemandParameters!$B$13=3,F98,IF(DemandParameters!$B$13=4,G98,IF(DemandParameters!$B$13=5,H98,IF(DemandParameters!$B$13=6,I98,IF(DemandParameters!$B$13=7,J98,IF(DemandParameters!$B$13=8,K98,IF(DemandParameters!$B$13=9,L98))))))))) -> 0.01716644937
C99: 23:00:00 | D99: 0.01146325017 | E99: 0.009356725146 | F99: 0.009948096886 | G99: 0.008370535714 | H99: 0.01420192255 | I99: 0.01229802513 | J99: 0.01050267999 | M99: 0.01050267999 | O99: 0.01050267999 | R99: =IF(DemandParameters!$B$13=1,D99,IF(DemandParameters!$B$13=2,E99,IF(DemandParameters!$B$13=3,F99,IF(DemandParameters!$B$13=4,G99,IF(DemandParameters!$B$13=5,H99,IF(DemandParameters!$B$13=6,I99,IF(DemandParameters!$B$13=7,J99,IF(DemandParameters!$B$13=8,K99,IF(DemandParameters!$B$13=9,L99))))))))) -> 0.01050267999
C100: Total | M100: =SUM(M76:M99) -> 1 | N100: =SUM(N76:N99) -> 0 | O100: =SUM(O76:O99) -> 1
A101: Review Weekend Hourly Demand Profile or Override Values: | B101: Weekend | C101: 00:00:00 | D101: 0.01160602258 | E101: 0.01049144119 | F101: 0.009250693802 | G101: 0.01264980027 | H101: 0.01718035941 | I101: 0.0136946556 | J101: 0.01164537941 | M101: =IF($B$13=1,D101,IF($B$13=2,E101,IF($B$13=3,F101,IF($B$13=4,G101,IF($B$13=5,H101,IF($B$13=6,I101,IF($B$13=7,J101,IF($B$13=8,K101,IF($B$13=9,L101))))))))) -> 0.01164537941 | O101: =IF(N101="",M101,N101) -> 0.01164537941 | R101: =IF(DemandParameters!$B$13=1,D101,IF(DemandParameters!$B$13=2,E101,IF(DemandParameters!$B$13=3,F101,IF(DemandParameters!$B$13=4,G101,IF(DemandParameters!$B$13=5,H101,IF(DemandParameters!$B$13=6,I101,IF(DemandParameters!$B$13=7,J101,IF(DemandParameters!$B$13=8,K101,IF(DemandParameters!$B$13=9,L101))))))))) -> 0.01164537941
A102: Chart shown at right | C102: 01:00:00 | D102: 0.00773734839 | E102: 0.006902263943 | F102: 0.005550416281 | G102: 0.006657789614 | H102: 0.01140775865 | I102: 0.008704230256 | J102: 0.007325319309 | M102: 0.007325319309 | O102: 0.007325319309 | R102: =IF(DemandParameters!$B$13=1,D102,IF(DemandParameters!$B$13=2,E102,IF(DemandParameters!$B$13=3,F102,IF(DemandParameters!$B$13=4,G102,IF(DemandParameters!$B$13=5,H102,IF(DemandParameters!$B$13=6,I102,IF(DemandParameters!$B$13=7,J102,IF(DemandParameters!$B$13=8,K102,IF(DemandParameters!$B$13=9,L102))))))))) -> 0.007325319309
C103: 02:00:00 | D103: 0.006168966959 | E103: 0.004969630039 | F103: 0.004162812211 | G103: 0.003994673768 | H103: 0.008624540425 | I103: 0.006383102188 | J103: 0.005916604057 | M103: 0.005916604057 | O103: 0.005916604057 | R103: =IF(DemandParameters!$B$13=1,D103,IF(DemandParameters!$B$13=2,E103,IF(DemandParameters!$B$13=3,F103,IF(DemandParameters!$B$13=4,G103,IF(DemandParameters!$B$13=5,H103,IF(DemandParameters!$B$13=6,I103,IF(DemandParameters!$B$13=7,J103,IF(DemandParameters!$B$13=8,K103,IF(DemandParameters!$B$13=9,L103))))))))) -> 0.005916604057
C104: 03:00:00 | D104: 0.005227938101 | E104: 0.004141358366 | F104: 0.003700277521 | G104: 0.003328894807 | H104: 0.006837783046 | I104: 0.004584227935 | J104: 0.003850488355 | M104: 0.003850488355 | O104: 0.003850488355 | R104: =IF(DemandParameters!$B$13=1,D104,IF(DemandParameters!$B$13=2,E104,IF(DemandParameters!$B$13=3,F104,IF(DemandParameters!$B$13=4,G104,IF(DemandParameters!$B$13=5,H104,IF(DemandParameters!$B$13=6,I104,IF(DemandParameters!$B$13=7,J104,IF(DemandParameters!$B$13=8,K104,IF(DemandParameters!$B$13=9,L104))))))))) -> 0.003850488355
C105: 04:00:00 | D105: 0.006587202008 | E105: 0.006073992269 | F105: 0.004625346901 | G105: 0.00466045273 | H105: 0.007078308078 | I105: 0.004932397145 | J105: 0.003850488355 | M105: 0.003850488355 | O105: 0.003850488355 | R105: =IF(DemandParameters!$B$13=1,D105,IF(DemandParameters!$B$13=2,E105,IF(DemandParameters!$B$13=3,F105,IF(DemandParameters!$B$13=4,G105,IF(DemandParameters!$B$13=5,H105,IF(DemandParameters!$B$13=6,I105,IF(DemandParameters!$B$13=7,J105,IF(DemandParameters!$B$13=8,K105,IF(DemandParameters!$B$13=9,L105))))))))) -> 0.003850488355
C106: 05:00:00 | D106: 0.01181514011 | E106: 0.01159580342 | F106: 0.009713228492 | G106: 0.009320905459 | H106: 0.0105831014 | I106: 0.008472117449 | J106: 0.006667918858 | M106: 0.006667918858 | O106: 0.006667918858 | R106: =IF(DemandParameters!$B$13=1,D106,IF(DemandParameters!$B$13=2,E106,IF(DemandParameters!$B$13=3,F106,IF(DemandParameters!$B$13=4,G106,IF(DemandParameters!$B$13=5,H106,IF(DemandParameters!$B$13=6,I106,IF(DemandParameters!$B$13=7,J106,IF(DemandParameters!$B$13=8,K106,IF(DemandParameters!$B$13=9,L106))))))))) -> 0.006667918858
C107: 06:00:00 | D107: 0.02049351736 | E107: 0.0215350635 | F107: 0.01896392229 | G107: 0.01930758988 | H107: 0.01903583823 | I107: 0.01653803749 | J107: 0.01568369647 | M107: 0.01568369647 | O107: 0.01568369647 | R107: =IF(DemandParameters!$B$13=1,D107,IF(DemandParameters!$B$13=2,E107,IF(DemandParameters!$B$13=3,F107,IF(DemandParameters!$B$13=4,G107,IF(DemandParameters!$B$13=5,H107,IF(DemandParameters!$B$13=6,I107,IF(DemandParameters!$B$13=7,J107,IF(DemandParameters!$B$13=8,K107,IF(DemandParameters!$B$13=9,L107))))))))) -> 0.01568369647
C108: 07:00:00 | D108: 0.02979924718 | E108: 0.03175041414 | F108: 0.03052728955 | G108: 0.03462050599 | H108: 0.0288286431 | I108: 0.02744733941 | J108: 0.03005259204 | M108: 0.03005259204 | O108: 0.03005259204 | R108: =IF(DemandParameters!$B$13=1,D108,IF(DemandParameters!$B$13=2,E108,IF(DemandParameters!$B$13=3,F108,IF(DemandParameters!$B$13=4,G108,IF(DemandParameters!$B$13=5,H108,IF(DemandParameters!$B$13=6,I108,IF(DemandParameters!$B$13=7,J108,IF(DemandParameters!$B$13=8,K108,IF(DemandParameters!$B$13=9,L108))))))))) -> 0.03005259204
C109: 08:00:00 | D109: 0.04286909243 | E109: 0.04389839867 | F109: 0.04440333025 | G109: 0.0499334221 | H109: 0.03992715528 | I109: 0.0407938258 | J109: 0.04592411721 | M109: 0.04592411721 | O109: 0.04592411721 | R109: =IF(DemandParameters!$B$13=1,D109,IF(DemandParameters!$B$13=2,E109,IF(DemandParameters!$B$13=3,F109,IF(DemandParameters!$B$13=4,G109,IF(DemandParameters!$B$13=5,H109,IF(DemandParameters!$B$13=6,I109,IF(DemandParameters!$B$13=7,J109,IF(DemandParameters!$B$13=8,K109,IF(DemandParameters!$B$13=9,L109))))))))) -> 0.04592411721
C110: 09:00:00 | D110: 0.05803011292 | E110: 0.05963556046 | F110: 0.06197964847 | G110: 0.06058588549 | H110: 0.05215957118 | I110: 0.05477862241 | J110: 0.05954169797 | M110: 0.05954169797 | O110: 0.05954169797 | R110: =IF(DemandParameters!$B$13=1,D110,IF(DemandParameters!$B$13=2,E110,IF(DemandParameters!$B$13=3,F110,IF(DemandParameters!$B$13=4,G110,IF(DemandParameters!$B$13=5,H110,IF(DemandParameters!$B$13=6,I110,IF(DemandParameters!$B$13=7,J110,IF(DemandParameters!$B$13=8,K110,IF(DemandParameters!$B$13=9,L110))))))))) -> 0.05954169797
C111: 10:00:00 | D111: 0.07015892932 | E111: 0.07012700166 | F111: 0.07215541166 | G111: 0.06924101198 | H111: 0.06301755833 | I111: 0.06609412174 | J111: 0.06883921863 | M111: 0.06883921863 | O111: 0.06883921863 | R111: =IF(DemandParameters!$B$13=1,D111,IF(DemandParameters!$B$13=2,E111,IF(DemandParameters!$B$13=3,F111,IF(DemandParameters!$B$13=4,G111,IF(DemandParameters!$B$13=5,H111,IF(DemandParameters!$B$13=6,I111,IF(DemandParameters!$B$13=7,J111,IF(DemandParameters!$B$13=8,K111,IF(DemandParameters!$B$13=9,L111))))))))) -> 0.06883921863
C112: 11:00:00 | D112: 0.07580510247 | E112: 0.07399226946 | F112: 0.07909343201 | G112: 0.07456724368 | H112: 0.06951173419 | I112: 0.07201299832 | J112: 0.07475582269 | M112: 0.07475582269 | O112: 0.07475582269 | R112: =IF(DemandParameters!$B$13=1,D112,IF(DemandParameters!$B$13=2,E112,IF(DemandParameters!$B$13=3,F112,IF(DemandParameters!$B$13=4,G112,IF(DemandParameters!$B$13=5,H112,IF(DemandParameters!$B$13=6,I112,IF(DemandParameters!$B$13=7,J112,IF(DemandParameters!$B$13=8,K112,IF(DemandParameters!$B$13=9,L112))))))))) -> 0.07475582269
C113: 12:00:00 | D113: 0.07831451276 | E113: 0.08061844285 | F113: 0.08186864015 | G113: 0.0758988016 | H113: 0.07518125279 | I113: 0.07717750827 | J113: 0.07954545455 | M113: 0.07954545455 | O113: 0.07954545455 | R113: =IF(DemandParameters!$B$13=1,D113,IF(DemandParameters!$B$13=2,E113,IF(DemandParameters!$B$13=3,F113,IF(DemandParameters!$B$13=4,G113,IF(DemandParameters!$B$13=5,H113,IF(DemandParameters!$B$13=6,I113,IF(DemandParameters!$B$13=7,J113,IF(DemandParameters!$B$13=8,K113,IF(DemandParameters!$B$13=9,L113))))))))) -> 0.07954545455
C114: 13:00:00 | D114: 0.07747804266 | E114: 0.0789618995 | F114: 0.08233117484 | G114: 0.07656458056 | H114: 0.07473456345 | I114: 0.07624905704 | J114: 0.07691585274 | M114: 0.07691585274 | O114: 0.07691585274 | R114: =IF(DemandParameters!$B$13=1,D114,IF(DemandParameters!$B$13=2,E114,IF(DemandParameters!$B$13=3,F114,IF(DemandParameters!$B$13=4,G114,IF(DemandParameters!$B$13=5,H114,IF(DemandParameters!$B$13=6,I114,IF(DemandParameters!$B$13=7,J114,IF(DemandParameters!$B$13=8,K114,IF(DemandParameters!$B$13=9,L114))))))))) -> 0.07691585274
C115: 14:00:00 | D115: 0.07632789628 | E115: 0.07785753727 | F115: 0.08094357077 | G115: 0.07256990679 | H115: 0.07325705254 | I115: 0.0749144084 | J115: 0.07447407964 | M115: 0.07447407964 | O115: 0.07447407964 | R115: =IF(DemandParameters!$B$13=1,D115,IF(DemandParameters!$B$13=2,E115,IF(DemandParameters!$B$13=3,F115,IF(DemandParameters!$B$13=4,G115,IF(DemandParameters!$B$13=5,H115,IF(DemandParameters!$B$13=6,I115,IF(DemandParameters!$B$13=7,J115,IF(DemandParameters!$B$13=8,K115,IF(DemandParameters!$B$13=9,L115))))))))) -> 0.07447407964
C116: 15:00:00 | D116: 0.07507319113 | E116: 0.07647708448 | F116: 0.08001850139 | G116: 0.07390146471 | H116: 0.0719169845 | I116: 0.07416004178 | J116: 0.07362885049 | M116: 0.07362885049 | O116: 0.07362885049 | R116: =IF(DemandParameters!$B$13=1,D116,IF(DemandParameters!$B$13=2,E116,IF(DemandParameters!$B$13=3,F116,IF(DemandParameters!$B$13=4,G116,IF(DemandParameters!$B$13=5,H116,IF(DemandParameters!$B$13=6,I116,IF(DemandParameters!$B$13=7,J116,IF(DemandParameters!$B$13=8,K116,IF(DemandParameters!$B$13=9,L116))))))))) -> 0.07362885049
C117: 16:00:00 | D117: 0.07245922208 | E117: 0.07371617891 | F117: 0.0749306198 | G117: 0.0758988016 | H117: 0.06937429131 | I117: 0.07207102652 | J117: 0.07222013524 | M117: 0.07222013524 | O117: 0.07222013524 | R117: =IF(DemandParameters!$B$13=1,D117,IF(DemandParameters!$B$13=2,E117,IF(DemandParameters!$B$13=3,F117,IF(DemandParameters!$B$13=4,G117,IF(DemandParameters!$B$13=5,H117,IF(DemandParameters!$B$13=6,I117,IF(DemandParameters!$B$13=7,J117,IF(DemandParameters!$B$13=8,K117,IF(DemandParameters!$B$13=9,L117))))))))) -> 0.07222013524
C118: 17:00:00 | D118: 0.06702216646 | E118: 0.06874654887 | F118: 0.06753006475 | G118: 0.06924101198 | H118: 0.06586949799 | I118: 0.06829919341 | J118: 0.06893313298 | M118: 0.06893313298 | O118: 0.06893313298 | R118: =IF(DemandParameters!$B$13=1,D118,IF(DemandParameters!$B$13=2,E118,IF(DemandParameters!$B$13=3,F118,IF(DemandParameters!$B$13=4,G118,IF(DemandParameters!$B$13=5,H118,IF(DemandParameters!$B$13=6,I118,IF(DemandParameters!$B$13=7,J118,IF(DemandParameters!$B$13=8,K118,IF(DemandParameters!$B$13=9,L118))))))))) -> 0.06893313298
C119: 18:00:00 | D119: 0.05813467169 | E119: 0.05770292656 | F119: 0.05550416281 | G119: 0.0585885486 | H119: 0.05954712573 | I119: 0.06156792201 | J119: 0.06048084147 | M119: 0.06048084147 | O119: 0.06048084147 | R119: =IF(DemandParameters!$B$13=1,D119,IF(DemandParameters!$B$13=2,E119,IF(DemandParameters!$B$13=3,F119,IF(DemandParameters!$B$13=4,G119,IF(DemandParameters!$B$13=5,H119,IF(DemandParameters!$B$13=6,I119,IF(DemandParameters!$B$13=7,J119,IF(DemandParameters!$B$13=8,K119,IF(DemandParameters!$B$13=9,L119))))))))) -> 0.06048084147
C120: 19:00:00 | D120: 0.04705144291 | E120: 0.04665930425 | F120: 0.04440333025 | G120: 0.04860186418 | H120: 0.05064769955 | I120: 0.05170312772 | J120: 0.04958677686 | M120: 0.04958677686 | O120: 0.04958677686 | R120: =IF(DemandParameters!$B$13=1,D120,IF(DemandParameters!$B$13=2,E120,IF(DemandParameters!$B$13=3,F120,IF(DemandParameters!$B$13=4,G120,IF(DemandParameters!$B$13=5,H120,IF(DemandParameters!$B$13=6,I120,IF(DemandParameters!$B$13=7,J120,IF(DemandParameters!$B$13=8,K120,IF(DemandParameters!$B$13=9,L120))))))))) -> 0.04958677686
C121: 20:00:00 | D121: 0.03722291928 | E121: 0.03561568194 | F121: 0.03330249769 | G121: 0.03728362184 | H121: 0.04178263409 | I121: 0.04189636163 | J121: 0.03981968445 | M121: 0.03981968445 | O121: 0.03981968445 | R121: =IF(DemandParameters!$B$13=1,D121,IF(DemandParameters!$B$13=2,E121,IF(DemandParameters!$B$13=3,F121,IF(DemandParameters!$B$13=4,G121,IF(DemandParameters!$B$13=5,H121,IF(DemandParameters!$B$13=6,I121,IF(DemandParameters!$B$13=7,J121,IF(DemandParameters!$B$13=8,K121,IF(DemandParameters!$B$13=9,L121))))))))) -> 0.03981968445
C122: 21:00:00 | D122: 0.02885821832 | E122: 0.02650469354 | F122: 0.02497687327 | G122: 0.02729693742 | H122: 0.03480740817 | I122: 0.0338884698 | J122: 0.03174305034 | M122: 0.03174305034 | O122: 0.03174305034 | R122: =IF(DemandParameters!$B$13=1,D122,IF(DemandParameters!$B$13=2,E122,IF(DemandParameters!$B$13=3,F122,IF(DemandParameters!$B$13=4,G122,IF(DemandParameters!$B$13=5,H122,IF(DemandParameters!$B$13=6,I122,IF(DemandParameters!$B$13=7,J122,IF(DemandParameters!$B$13=8,K122,IF(DemandParameters!$B$13=9,L122))))))))) -> 0.03174305034
C123: 22:00:00 | D123: 0.02122542869 | E123: 0.01905024848 | F123: 0.01757631822 | G123: 0.02130492676 | H123: 0.02807270728 | I123: 0.02617071897 | J123: 0.02329075883 | M123: 0.02329075883 | O123: 0.02329075883 | R123: =IF(DemandParameters!$B$13=1,D123,IF(DemandParameters!$B$13=2,E123,IF(DemandParameters!$B$13=3,F123,IF(DemandParameters!$B$13=4,G123,IF(DemandParameters!$B$13=5,H123,IF(DemandParameters!$B$13=6,I123,IF(DemandParameters!$B$13=7,J123,IF(DemandParameters!$B$13=8,K123,IF(DemandParameters!$B$13=9,L123))))))))) -> 0.02329075883
C124: 23:00:00 | D124: 0.01453366792 | E124: 0.01297625621 | F124: 0.01248843663 | G124: 0.01398135819 | H124: 0.0206164313 | I124: 0.01746648871 | J124: 0.01530803907 | M124: 0.01530803907 | O124: 0.01530803907 | R124: =IF(DemandParameters!$B$13=1,D124,IF(DemandParameters!$B$13=2,E124,IF(DemandParameters!$B$13=3,F124,IF(DemandParameters!$B$13=4,G124,IF(DemandParameters!$B$13=5,H124,IF(DemandParameters!$B$13=6,I124,IF(DemandParameters!$B$13=7,J124,IF(DemandParameters!$B$13=8,K124,IF(DemandParameters!$B$13=9,L124))))))))) -> 0.01530803907
C125: Total | M125: =SUM(M101:M124) -> 1 | N125: =SUM(N101:N124) -> 0 | O125: =SUM(O101:O124) -> 1
A126: Annual Transit Demand Profile
B128: Average Daily Transit Profile | F128: These inputs are used to convert annual transit ridership to daily values.
B129: Daily Transit Ratio | C129: Weekday | D129: Saturday | E129: Sunday
C130: 0.82 | D130: 0.14 | E130: 0.04 | F130: =IF(SUM(TransitSplit_DayType)<>1,"Error, values do not add to 100%","") -> 
B131: Hour Starting | C131: Average Hourly Transit Profile
C132: Weekday | D132: Saturday | E132: Sunday
B133: 00:00:00 | C133: 0.0025 | D133: 0 | E133: 0
B134: 01:00:00 | C134: 0.0005 | D134: 0 | E134: 0
B135: 02:00:00 | C135: 0.0002 | D135: 0 | E135: 0
B136: 03:00:00 | C136: 0.0002 | D136: 0 | E136: 0
B137: 04:00:00 | C137: 0.0005 | D137: 0 | E137: 0
B138: 05:00:00 | C138: 0.009 | D138: 0.007181328546 | E138: 0.007181328546
B139: 06:00:00 | C139: 0.0435 | D139: 0.007181328546 | E139: 0.007181328546
B140: 07:00:00 | C140: 0.1237 | D140: 0.02692998205 | E140: 0.02692998205
B141: 08:00:00 | C141: 0.0874 | D141: 0.03231597846 | E141: 0.03231597846
B142: 09:00:00 | C142: 0.052 | D142: 0.05206463196 | E142: 0.05206463196
B143: 10:00:00 | C143: 0.0448 | D143: 0.02872531418 | E143: 0.02872531418
B144: 11:00:00 | C144: 0.0442 | D144: 0.06463195691 | E144: 0.06463195691
B145: 12:00:00 | C145: 0.0497 | D145: 0.07181328546 | E145: 0.07181328546
B146: 13:00:00 | C146: 0.0464 | D146: 0.078994614 | E146: 0.078994614
B147: 14:00:00 | C147: 0.0628 | D147: 0.08976660682 | E147: 0.08976660682
B148: 15:00:00 | C148: 0.1323 | D148: 0.1005385996 | E148: 0.1005385996
B149: 16:00:00 | C149: 0.0914 | D149: 0.08976660682 | E149: 0.08976660682
B150: 17:00:00 | C150: 0.0741 | D150: 0.08617594255 | E150: 0.08617594255
B151: 18:00:00 | C151: 0.0474 | D151: 0.07360861759 | E151: 0.07360861759
B152: 19:00:00 | C152: 0.0284 | D152: 0.05206463196 | E152: 0.05206463196
B153: 20:00:00 | C153: 0.0218 | D153: 0.04488330341 | E153: 0.04488330341
B154: 21:00:00 | C154: 0.0193 | D154: 0.02872531418 | E154: 0.02872531418
B155: 22:00:00 | C155: 0.012 | D155: 0.04667863555 | E155: 0.04667863555
B156: 23:00:00 | C156: 0.0059 | D156: 0.01795332136 | E156: 0.01795332136
B157: Total | C157: =SUM(C133:C156) -> 1 | D157: =SUM(D133:D156) -> 1 | E157: =SUM(E133:E156) -> 1
A158: Calculations Section
B159: N hours/yr in time period
B160: N_AMpeak_Hours | C160: =SUM(D167:D8926) -> 261
B161: N_PMpeak_Hours | C161: =SUM(E167:E8926) -> 261
B162: N_Offpeak_Hours | C162: =SUM(F167:F8926) -> 8238
A164: No additional inputs below. This section illustrates the volume profiles on an annual calendar.
A165: Typical Annual Profile | B165: Weekday/ Holiday Code | C165: Time period (AM pk, PM pk, offpk) | D165: AM Peak | E165: PM Peak | F165: Off Peak | G165: =DemandParameters!C29 -> 2020 | K165: =DemandParameters!D29 -> 2040 | O165: =G165 -> 2020 | S165: =K165 -> 2040
G166: Total Entering Vehicles | H166: Auto Passengers | I166: Trucks | J166: Transit Passengers | K166: Total Entering Vehicles | L166: Auto Passengers | M166: Trucks | N166: Transit Passengers | O166: Total Entering Vehicles | P166: Auto Passengers | Q166: Trucks | R166: Transit Passengers | S166: Total Entering Vehicles | T166: Auto Passengers | U166: Trucks | V166: Transit Passengers
A167: 2014-01-01 | B167: =IF(ISNUMBER(VLOOKUP(INT($A167),HolidayTable,2,FALSE)),VLOOKUP(INT($A167),HolidayTable,2,FALSE),WEEKDAY($A167,2)) -> 3 | C167: =IF($B167<=5,IF(AND(HOUR($A167)>=HOUR(Time_AM_Peak_Begin),HOUR($A167)<HOUR(Time_AM_Peak_End)),Code_AM_Peak,IF(AND(HOUR($A167)>=HOUR(Time_PM_Peak_Begin),HOUR($A167)<HOUR(Time_PM_Peak_End)),Code_PM_Peak,Code_Offpeak)),Code_Offpeak) -> 3 | D167: =IF(C167=Code_AM_Peak,1,0) -> 0 | E167: =IF(C167=Code_PM_Peak,1,0) -> 0 | F167: =IF(C167=Code_Offpeak,1,0) -> 1 | G167: =DemandParameters!$C$30*INDEX($N$47:$N$53,$B167,1)*INDEX($N$61:$N$72,MONTH($A167),1)*IF($B167<=5,INDEX($O$76:$O$99,HOUR($A167)+1,1),INDEX($O$101:$O$124,HOUR($A167)+1,1)) -> 73.22684454 | K167: =DemandParameters!$D$30*INDEX($N$47:$N$53,$B167,1)*INDEX($N$61:$N$72,MONTH($A167),1)*IF($B167<=5,INDEX($O$76:$O$99,HOUR($A167)+1,1),INDEX($O$101:$O$124,HOUR($A167)+1,1)) -> 87.87221345 | O167: =DemandParameters!$E$30*INDEX($N$47:$N$53,$B167,1)*INDEX($N$61:$N$72,MONTH($A167),1)*IF($B167<=5,INDEX($O$76:$O$99,HOUR($A167)+1,1),INDEX($O$101:$O$124,HOUR($A167)+1,1)) -> 109.1361625 | S167: =DemandParameters!$F$30*INDEX($N$47:$N$53,$B167,1)*INDEX($N$61:$N$72,MONTH($A167),1)*IF($B167<=5,INDEX($O$76:$O$99,HOUR($A167)+1,1),INDEX($O$101:$O$124,HOUR($A167)+1,1)) -> 218.2723251
A168: 2014-01-01T01:00:00 | B168: 3 | C168: 3 | D168: 0 | E168: 0 | F168: 1 | G168: =DemandParameters!$C$30*INDEX($N$47:$N$53,$B168,1)*INDEX($N$61:$N$72,MONTH($A168),1)*IF($B168<=5,INDEX($O$76:$O$99,HOUR($A168)+1,1),INDEX($O$101:$O$124,HOUR($A168)+1,1)) -> 43.07461444 | K168: =DemandParameters!$D$30*INDEX($N$47:$N$53,$B168,1)*INDEX($N$61:$N$72,MONTH($A168),1)*IF($B168<=5,INDEX($O$76:$O$99,HOUR($A168)+1,1),INDEX($O$101:$O$124,HOUR($A168)+1,1)) -> 51.68953732 | O168: =DemandParameters!$E$30*INDEX($N$47:$N$53,$B168,1)*INDEX($N$61:$N$72,MONTH($A168),1)*IF($B168<=5,INDEX($O$76:$O$99,HOUR($A168)+1,1),INDEX($O$101:$O$124,HOUR($A168)+1,1)) -> 64.19774267 | S168: =DemandParameters!$F$30*INDEX($N$47:$N$53,$B168,1)*INDEX($N$61:$N$72,MONTH($A168),1)*IF($B168<=5,INDEX($O$76:$O$99,HOUR($A168)+1,1),INDEX($O$101:$O$124,HOUR($A168)+1,1)) -> 128.3954853
A169: 2014-01-01T02:00:00 | B169: 3 | C169: 3 | D169: 0 | E169: 0 | F169: 1 | G169: =DemandParameters!$C$30*INDEX($N$47:$N$53,$B169,1)*INDEX($N$61:$N$72,MONTH($A169),1)*IF($B169<=5,INDEX($O$76:$O$99,HOUR($A169)+1,1),INDEX($O$101:$O$124,HOUR($A169)+1,1)) -> 35.53655691 | K169: =DemandParameters!$D$30*INDEX($N$47:$N$53,$B169,1)*INDEX($N$61:$N$72,MONTH($A169),1)*IF($B169<=5,INDEX($O$76:$O$99,HOUR($A169)+1,1),INDEX($O$101:$O$124,HOUR($A169)+1,1)) -> 42.64386829 | O169: =DemandParameters!$E$30*INDEX($N$47:$N$53,$B169,1)*INDEX($N$61:$N$72,MONTH($A169),1)*IF($B169<=5,INDEX($O$76:$O$99,HOUR($A169)+1,1),INDEX($O$101:$O$124,HOUR($A169)+1,1)) -> 52.9631377 | S169: =DemandParameters!$F$30*INDEX($N$47:$N$53,$B169,1)*INDEX($N$61:$N$72,MONTH($A169),1)*IF($B169<=5,INDEX($O$76:$O$99,HOUR($A169)+1,1),INDEX($O$101:$O$124,HOUR($A169)+1,1)) -> 105.9262754
A170: 2014-01-01T03:00:00 | B170: 3 | C170: 3 | D170: 0 | E170: 0 | F170: 1 | G170: =DemandParameters!$C$30*INDEX($N$47:$N$53,$B170,1)*INDEX($N$61:$N$72,MONTH($A170),1)*IF($B170<=5,INDEX($O$76:$O$99,HOUR($A170)+1,1),INDEX($O$101:$O$124,HOUR($A170)+1,1)) -> 33.38282619 | K170: =DemandParameters!$D$30*INDEX($N$47:$N$53,$B170,1)*INDEX($N$61:$N$72,MONTH($A170),1)*IF($B170<=5,INDEX($O$76:$O$99,HOUR($A170)+1,1),INDEX($O$101:$O$124,HOUR($A170)+1,1)) -> 40.05939142 | O170: =DemandParameters!$E$30*INDEX($N$47:$N$53,$B170,1)*INDEX($N$61:$N$72,MONTH($A170),1)*IF($B170<=5,INDEX($O$76:$O$99,HOUR($A170)+1,1),INDEX($O$101:$O$124,HOUR($A170)+1,1)) -> 49.75325057 | S170: =DemandParameters!$F$30*INDEX($N$47:$N$53,$B170,1)*INDEX($N$61:$N$72,MONTH($A170),1)*IF($B170<=5,INDEX($O$76:$O$99,HOUR($A170)+1,1),INDEX($O$101:$O$124,HOUR($A170)+1,1)) -> 99.50650114
A171: 2014-01-01T04:00:00 | B171: 3 | C171: 3 | D171: 0 | E171: 0 | F171: 1 | G171: =DemandParameters!$C$30*INDEX($N$47:$N$53,$B171,1)*INDEX($N$61:$N$72,MONTH($A171),1)*IF($B171<=5,INDEX($O$76:$O$99,HOUR($A171)+1,1),INDEX($O$101:$O$124,HOUR($A171)+1,1)) -> 61.38132557 | K171: =DemandParameters!$D$30*INDEX($N$47:$N$53,$B171,1)*INDEX($N$61:$N$72,MONTH($A171),1)*IF($B171<=5,INDEX($O$76:$O$99,HOUR($A171)+1,1),INDEX($O$101:$O$124,HOUR($A171)+1,1)) -> 73.65759068 | O171: =DemandParameters!$E$30*INDEX($N$47:$N$53,$B171,1)*INDEX($N$61:$N$72,MONTH($A171),1)*IF($B171<=5,INDEX($O$76:$O$99,HOUR($A171)+1,1),INDEX($O$101:$O$124,HOUR($A171)+1,1)) -> 91.4817833 | S171: =DemandParameters!$F$30*INDEX($N$47:$N$53,$B171,1)*INDEX($N$61:$N$72,MONTH($A171),1)*IF($B171<=5,INDEX($O$76:$O$99,HOUR($A171)+1,1),INDEX($O$101:$O$124,HOUR($A171)+1,1)) -> 182.9635666
A172: 2014-01-01T05:00:00 | B172: 3 | C172: 3 | D172: 0 | E172: 0 | F172: 1 | G172: =DemandParameters!$C$30*INDEX($N$47:$N$53,$B172,1)*INDEX($N$61:$N$72,MONTH($A172),1)*IF($B172<=5,INDEX($O$76:$O$99,HOUR($A172)+1,1),INDEX($O$101:$O$124,HOUR($A172)+1,1)) -> 161.5298041 | K172: =DemandParameters!$D$30*INDEX($N$47:$N$53,$B172,1)*INDEX($N$61:$N$72,MONTH($A172),1)*IF($B172<=5,INDEX($O$76:$O$99,HOUR($A172)+1,1),INDEX($O$101:$O$124,HOUR($A172)+1,1)) -> 193.835765 | O172: =DemandParameters!$E$30*INDEX($N$47:$N$53,$B172,1)*INDEX($N$61:$N$72,MONTH($A172),1)*IF($B172<=5,INDEX($O$76:$O$99,HOUR($A172)+1,1),INDEX($O$101:$O$124,HOUR($A172)+1,1)) -> 240.741535 | S172: =DemandParameters!$F$30*INDEX($N$47:$N$53,$B172,1)*INDEX($N$61:$N$72,MONTH($A172),1)*IF($B172<=5,INDEX($O$76:$O$99,HOUR($A172)+1,1),INDEX($O$101:$O$124,HOUR($A172)+1,1)) -> 481.48307
A173: 2014-01-01T06:00:00 | B173: 3 | C173: 3 | D173: 0 | E173: 0 | F173: 1 | G173: =DemandParameters!$C$30*INDEX($N$47:$N$53,$B173,1)*INDEX($N$61:$N$72,MONTH($A173),1)*IF($B173<=5,INDEX($O$76:$O$99,HOUR($A173)+1,1),INDEX($O$101:$O$124,HOUR($A173)+1,1)) -> 530.8946229 | K173: =DemandParameters!$D$30*INDEX($N$47:$N$53,$B173,1)*INDEX($N$61:$N$72,MONTH($A173),1)*IF($B173<=5,INDEX($O$76:$O$99,HOUR($A173)+1,1),INDEX($O$101:$O$124,HOUR($A173)+1,1)) -> 637.0735475 | O173: =DemandParameters!$E$30*INDEX($N$47:$N$53,$B173,1)*INDEX($N$61:$N$72,MONTH($A173),1)*IF($B173<=5,INDEX($O$76:$O$99,HOUR($A173)+1,1),INDEX($O$101:$O$124,HOUR($A173)+1,1)) -> 791.2371784 | S173: =DemandParameters!$F$30*INDEX($N$47:$N$53,$B173,1)*INDEX($N$61:$N$72,MONTH($A173),1)*IF($B173<=5,INDEX($O$76:$O$99,HOUR($A173)+1,1),INDEX($O$101:$O$124,HOUR($A173)+1,1)) -> 1582.474357
A174: 2014-01-01T07:00:00 | B174: 3 | C174: 1 | D174: 1 | E174: 0 | F174: 0 | G174: =DemandParameters!$C$30*INDEX($N$47:$N$53,$B174,1)*INDEX($N$61:$N$72,MONTH($A174),1)*IF($B174<=5,INDEX($O$76:$O$99,HOUR($A174)+1,1),INDEX($O$101:$O$124,HOUR($A174)+1,1)) -> 1012.253439 | K174: =DemandParameters!$D$30*INDEX($N$47:$N$53,$B174,1)*INDEX($N$61:$N$72,MONTH($A174),1)*IF($B174<=5,INDEX($O$76:$O$99,HOUR($A174)+1,1),INDEX($O$101:$O$124,HOUR($A174)+1,1)) -> 1214.704127 | O174: =DemandParameters!$E$30*INDEX($N$47:$N$53,$B174,1)*INDEX($N$61:$N$72,MONTH($A174),1)*IF($B174<=5,INDEX($O$76:$O$99,HOUR($A174)+1,1),INDEX($O$101:$O$124,HOUR($A174)+1,1)) -> 1508.646953 | S174: =DemandParameters!$F$30*INDEX($N$47:$N$53,$B174,1)*INDEX($N$61:$N$72,MONTH($A174),1)*IF($B174<=5,INDEX($O$76:$O$99,HOUR($A174)+1,1),INDEX($O$101:$O$124,HOUR($A174)+1,1)) -> 3017.293905
A175: 2014-01-01T08:00:00 | B175: 3 | C175: 3 | D175: 0 | E175: 0 | F175: 1 | G175: =DemandParameters!$C$30*INDEX($N$47:$N$53,$B175,1)*INDEX($N$61:$N$72,MONTH($A175),1)*IF($B175<=5,INDEX($O$76:$O$99,HOUR($A175)+1,1),INDEX($O$101:$O$124,HOUR($A175)+1,1)) -> 999.3310549 | K175: =DemandParameters!$D$30*INDEX($N$47:$N$53,$B175,1)*INDEX($N$61:$N$72,MONTH($A175),1)*IF($B175<=5,INDEX($O$76:$O$99,HOUR($A175)+1,1),INDEX($O$101:$O$124,HOUR($A175)+1,1)) -> 1199.197266 | O175: =DemandParameters!$E$30*INDEX($N$47:$N$53,$B175,1)*INDEX($N$61:$N$72,MONTH($A175),1)*IF($B175<=5,INDEX($O$76:$O$99,HOUR($A175)+1,1),INDEX($O$101:$O$124,HOUR($A175)+1,1)) -> 1489.38763 | S175: =DemandParameters!$F$30*INDEX($N$47:$N$53,$B175,1)*INDEX($N$61:$N$72,MONTH($A175),1)*IF($B175<=5,INDEX($O$76:$O$99,HOUR($A175)+1,1),INDEX($O$101:$O$124,HOUR($A175)+1,1)) -> 2978.77526
A176: 2014-01-01T09:00:00 | B176: 3 | C176: 3 | D176: 0 | E176: 0 | F176: 1 | G176: =DemandParameters!$C$30*INDEX($N$47:$N$53,$B176,1)*INDEX($N$61:$N$72,MONTH($A176),1)*IF($B176<=5,INDEX($O$76:$O$99,HOUR($A176)+1,1),INDEX($O$101:$O$124,HOUR($A176)+1,1)) -> 853.9542312 | K176: =DemandParameters!$D$30*INDEX($N$47:$N$53,$B176,1)*INDEX($N$61:$N$72,MONTH($A176),1)*IF($B176<=5,INDEX($O$76:$O$99,HOUR($A176)+1,1),INDEX($O$101:$O$124,HOUR($A176)+1,1)) -> 1024.745077 | O176: =DemandParameters!$E$30*INDEX($N$47:$N$53,$B176,1)*INDEX($N$61:$N$72,MONTH($A176),1)*IF($B176<=5,INDEX($O$76:$O$99,HOUR($A176)+1,1),INDEX($O$101:$O$124,HOUR($A176)+1,1)) -> 1272.720248 | S176: =DemandParameters!$F$30*INDEX($N$47:$N$53,$B176,1)*INDEX($N$61:$N$72,MONTH($A176),1)*IF($B176<=5,INDEX($O$76:$O$99,HOUR($A176)+1,1),INDEX($O$101:$O$124,HOUR($A176)+1,1)) -> 2545.440497
A177: 2014-01-01T10:00:00 | B177: 3 | C177: 3 | D177: 0 | E177: 0 | F177: 1 | G177: =DemandParameters!$C$30*INDEX($N$47:$N$53,$B177,1)*INDEX($N$61:$N$72,MONTH($A177),1)*IF($B177<=5,INDEX($O$76:$O$99,HOUR($A177)+1,1),INDEX($O$101:$O$124,HOUR($A177)+1,1)) -> 828.1094625 | K177: =DemandParameters!$D$30*INDEX($N$47:$N$53,$B177,1)*INDEX($N$61:$N$72,MONTH($A177),1)*IF($B177<=5,INDEX($O$76:$O$99,HOUR($A177)+1,1),INDEX($O$101:$O$124,HOUR($A177)+1,1)) -> 993.731355 | O177: =DemandParameters!$E$30*INDEX($N$47:$N$53,$B177,1)*INDEX($N$61:$N$72,MONTH($A177),1)*IF($B177<=5,INDEX($O$76:$O$99,HOUR($A177)+1,1),INDEX($O$101:$O$124,HOUR($A177)+1,1)) -> 1234.201603 | S177: =DemandParameters!$F$30*INDEX($N$47:$N$53,$B177,1)*INDEX($N$61:$N$72,MONTH($A177),1)*IF($B177<=5,INDEX($O$76:$O$99,HOUR($A177)+1,1),INDEX($O$101:$O$124,HOUR($A177)+1,1)) -> 2468.403206
A178: 2014-01-01T11:00:00 | B178: 3 | C178: 3 | D178: 0 | E178: 0 | F178: 1 | G178: =DemandParameters!$C$30*INDEX($N$47:$N$53,$B178,1)*INDEX($N$61:$N$72,MONTH($A178),1)*IF($B178<=5,INDEX($O$76:$O$99,HOUR($A178)+1,1),INDEX($O$101:$O$124,HOUR($A178)+1,1)) -> 886.260192 | K178: =DemandParameters!$D$30*INDEX($N$47:$N$53,$B178,1)*INDEX($N$61:$N$72,MONTH($A178),1)*IF($B178<=5,INDEX($O$76:$O$99,HOUR($A178)+1,1),INDEX($O$101:$O$124,HOUR($A178)+1,1)) -> 1063.51223 | O178: =DemandParameters!$E$30*INDEX($N$47:$N$53,$B178,1)*INDEX($N$61:$N$72,MONTH($A178),1)*IF($B178<=5,INDEX($O$76:$O$99,HOUR($A178)+1,1),INDEX($O$101:$O$124,HOUR($A178)+1,1)) -> 1320.868555 | S178: =DemandParameters!$F$30*INDEX($N$47:$N$53,$B178,1)*INDEX($N$61:$N$72,MONTH($A178),1)*IF($B178<=5,INDEX($O$76:$O$99,HOUR($A178)+1,1),INDEX($O$101:$O$124,HOUR($A178)+1,1)) -> 2641.737111
A179: 2014-01-01T12:00:00 | B179: 3 | C179: 3 | D179: 0 | E179: 0 | F179: 1 | G179: =DemandParameters!$C$30*INDEX($N$47:$N$53,$B179,1)*INDEX($N$61:$N$72,MONTH($A179),1)*IF($B179<=5,INDEX($O$76:$O$99,HOUR($A179)+1,1),INDEX($O$101:$O$124,HOUR($A179)+1,1)) -> 953.0258444 | K179: =DemandParameters!$D$30*INDEX($N$47:$N$53,$B179,1)*INDEX($N$61:$N$72,MONTH($A179),1)*IF($B179<=5,INDEX($O$76:$O$99,HOUR($A179)+1,1),INDEX($O$101:$O$124,HOUR($A179)+1,1)) -> 1143.631013 | O179: =DemandParameters!$E$30*INDEX($N$47:$N$53,$B179,1)*INDEX($N$61:$N$72,MONTH($A179),1)*IF($B179<=5,INDEX($O$76:$O$99,HOUR($A179)+1,1),INDEX($O$101:$O$124,HOUR($A179)+1,1)) -> 1420.375057 | S179: =DemandParameters!$F$30*INDEX($N$47:$N$53,$B179,1)*INDEX($N$61:$N$72,MONTH($A179),1)*IF($B179<=5,INDEX($O$76:$O$99,HOUR($A179)+1,1),INDEX($O$101:$O$124,HOUR($A179)+1,1)) -> 2840.750113
A180: 2014-01-01T13:00:00 | B180: 3 | C180: 3 | D180: 0 | E180: 0 | F180: 1 | G180: =DemandParameters!$C$30*INDEX($N$47:$N$53,$B180,1)*INDEX($N$61:$N$72,MONTH($A180),1)*IF($B180<=5,INDEX($O$76:$O$99,HOUR($A180)+1,1),INDEX($O$101:$O$124,HOUR($A180)+1,1)) -> 946.5646522 | K180: =DemandParameters!$D$30*INDEX($N$47:$N$53,$B180,1)*INDEX($N$61:$N$72,MONTH($A180),1)*IF($B180<=5,INDEX($O$76:$O$99,HOUR($A180)+1,1),INDEX($O$101:$O$124,HOUR($A180)+1,1)) -> 1135.877583 | O180: =DemandParameters!$E$30*INDEX($N$47:$N$53,$B180,1)*INDEX($N$61:$N$72,MONTH($A180),1)*IF($B180<=5,INDEX($O$76:$O$99,HOUR($A180)+1,1),INDEX($O$101:$O$124,HOUR($A180)+1,1)) -> 1410.745395 | S180: =DemandParameters!$F$30*INDEX($N$47:$N$53,$B180,1)*INDEX($N$61:$N$72,MONTH($A180),1)*IF($B180<=5,INDEX($O$76:$O$99,HOUR($A180)+1,1),INDEX($O$101:$O$124,HOUR($A180)+1,1)) -> 2821.49079
A181: 2014-01-01T14:00:00 | B181: 3 | C181: 3 | D181: 0 | E181: 0 | F181: 1 | G181: =DemandParameters!$C$30*INDEX($N$47:$N$53,$B181,1)*INDEX($N$61:$N$72,MONTH($A181),1)*IF($B181<=5,INDEX($O$76:$O$99,HOUR($A181)+1,1),INDEX($O$101:$O$124,HOUR($A181)+1,1)) -> 1005.792247 | K181: =DemandParameters!$D$30*INDEX($N$47:$N$53,$B181,1)*INDEX($N$61:$N$72,MONTH($A181),1)*IF($B181<=5,INDEX($O$76:$O$99,HOUR($A181)+1,1),INDEX($O$101:$O$124,HOUR($A181)+1,1)) -> 1206.950696 | O181: =DemandParameters!$E$30*INDEX($N$47:$N$53,$B181,1)*INDEX($N$61:$N$72,MONTH($A181),1)*IF($B181<=5,INDEX($O$76:$O$99,HOUR($A181)+1,1),INDEX($O$101:$O$124,HOUR($A181)+1,1)) -> 1499.017291 | S181: =DemandParameters!$F$30*INDEX($N$47:$N$53,$B181,1)*INDEX($N$61:$N$72,MONTH($A181),1)*IF($B181<=5,INDEX($O$76:$O$99,HOUR($A181)+1,1),INDEX($O$101:$O$124,HOUR($A181)+1,1)) -> 2998.034583
A182: 2014-01-01T15:00:00 | B182: 3 | C182: 3 | D182: 0 | E182: 0 | F182: 1 | G182: =DemandParameters!$C$30*INDEX($N$47:$N$53,$B182,1)*INDEX($N$61:$N$72,MONTH($A182),1)*IF($B182<=5,INDEX($O$76:$O$99,HOUR($A182)+1,1),INDEX($O$101:$O$124,HOUR($A182)+1,1)) -> 1099.479533 | K182: =DemandParameters!$D$30*INDEX($N$47:$N$53,$B182,1)*INDEX($N$61:$N$72,MONTH($A182),1)*IF($B182<=5,INDEX($O$76:$O$99,HOUR($A182)+1,1),INDEX($O$101:$O$124,HOUR($A182)+1,1)) -> 1319.37544 | O182: =DemandParameters!$E$30*INDEX($N$47:$N$53,$B182,1)*INDEX($N$61:$N$72,MONTH($A182),1)*IF($B182<=5,INDEX($O$76:$O$99,HOUR($A182)+1,1),INDEX($O$101:$O$124,HOUR($A182)+1,1)) -> 1638.647382 | S182: =DemandParameters!$F$30*INDEX($N$47:$N$53,$B182,1)*INDEX($N$61:$N$72,MONTH($A182),1)*IF($B182<=5,INDEX($O$76:$O$99,HOUR($A182)+1,1),INDEX($O$101:$O$124,HOUR($A182)+1,1)) -> 3277.294763
A183: 2014-01-01T16:00:00 | B183: 3 | C183: 2 | D183: 0 | E183: 1 | F183: 0 | G183: =DemandParameters!$C$30*INDEX($N$47:$N$53,$B183,1)*INDEX($N$61:$N$72,MONTH($A183),1)*IF($B183<=5,INDEX($O$76:$O$99,HOUR($A183)+1,1),INDEX($O$101:$O$124,HOUR($A183)+1,1)) -> 1188.859358 | K183: =DemandParameters!$D$30*INDEX($N$47:$N$53,$B183,1)*INDEX($N$61:$N$72,MONTH($A183),1)*IF($B183<=5,INDEX($O$76:$O$99,HOUR($A183)+1,1),INDEX($O$101:$O$124,HOUR($A183)+1,1)) -> 1426.63123 | O183: =DemandParameters!$E$30*INDEX($N$47:$N$53,$B183,1)*INDEX($N$61:$N$72,MONTH($A183),1)*IF($B183<=5,INDEX($O$76:$O$99,HOUR($A183)+1,1),INDEX($O$101:$O$124,HOUR($A183)+1,1)) -> 1771.857698 | S183: =DemandParameters!$F$30*INDEX($N$47:$N$53,$B183,1)*INDEX($N$61:$N$72,MONTH($A183),1)*IF($B183<=5,INDEX($O$76:$O$99,HOUR($A183)+1,1),INDEX($O$101:$O$124,HOUR($A183)+1,1)) -> 3543.715395
A184: 2014-01-01T17:00:00 | B184: 3 | C184: 3 | D184: 0 | E184: 0 | F184: 1 | G184: =DemandParameters!$C$30*INDEX($N$47:$N$53,$B184,1)*INDEX($N$61:$N$72,MONTH($A184),1)*IF($B184<=5,INDEX($O$76:$O$99,HOUR($A184)+1,1),INDEX($O$101:$O$124,HOUR($A184)+1,1)) -> 1255.625011 | K184: =DemandParameters!$D$30*INDEX($N$47:$N$53,$B184,1)*INDEX($N$61:$N$72,MONTH($A184),1)*IF($B184<=5,INDEX($O$76:$O$99,HOUR($A184)+1,1),INDEX($O$101:$O$124,HOUR($A184)+1,1)) -> 1506.750013 | O184: =DemandParameters!$E$30*INDEX($N$47:$N$53,$B184,1)*INDEX($N$61:$N$72,MONTH($A184),1)*IF($B184<=5,INDEX($O$76:$O$99,HOUR($A184)+1,1),INDEX($O$101:$O$124,HOUR($A184)+1,1)) -> 1871.364199 | S184: =DemandParameters!$F$30*INDEX($N$47:$N$53,$B184,1)*INDEX($N$61:$N$72,MONTH($A184),1)*IF($B184<=5,INDEX($O$76:$O$99,HOUR($A184)+1,1),INDEX($O$101:$O$124,HOUR($A184)+1,1)) -> 3742.728398
A185: 2014-01-01T18:00:00 | B185: 3 | C185: 3 | D185: 0 | E185: 0 | F185: 1 | G185: =DemandParameters!$C$30*INDEX($N$47:$N$53,$B185,1)*INDEX($N$61:$N$72,MONTH($A185),1)*IF($B185<=5,INDEX($O$76:$O$99,HOUR($A185)+1,1),INDEX($O$101:$O$124,HOUR($A185)+1,1)) -> 939.0265947 | K185: =DemandParameters!$D$30*INDEX($N$47:$N$53,$B185,1)*INDEX($N$61:$N$72,MONTH($A185),1)*IF($B185<=5,INDEX($O$76:$O$99,HOUR($A185)+1,1),INDEX($O$101:$O$124,HOUR($A185)+1,1)) -> 1126.831914 | O185: =DemandParameters!$E$30*INDEX($N$47:$N$53,$B185,1)*INDEX($N$61:$N$72,MONTH($A185),1)*IF($B185<=5,INDEX($O$76:$O$99,HOUR($A185)+1,1),INDEX($O$101:$O$124,HOUR($A185)+1,1)) -> 1399.51079 | S185: =DemandParameters!$F$30*INDEX($N$47:$N$53,$B185,1)*INDEX($N$61:$N$72,MONTH($A185),1)*IF($B185<=5,INDEX($O$76:$O$99,HOUR($A185)+1,1),INDEX($O$101:$O$124,HOUR($A185)+1,1)) -> 2799.02158
A186: 2014-01-01T19:00:00 | B186: 3 | C186: 3 | D186: 0 | E186: 0 | F186: 1 | G186: =DemandParameters!$C$30*INDEX($N$47:$N$53,$B186,1)*INDEX($N$61:$N$72,MONTH($A186),1)*IF($B186<=5,INDEX($O$76:$O$99,HOUR($A186)+1,1),INDEX($O$101:$O$124,HOUR($A186)+1,1)) -> 654.7341394 | K186: =DemandParameters!$D$30*INDEX($N$47:$N$53,$B186,1)*INDEX($N$61:$N$72,MONTH($A186),1)*IF($B186<=5,INDEX($O$76:$O$99,HOUR($A186)+1,1),INDEX($O$101:$O$124,HOUR($A186)+1,1)) -> 785.6809673 | O186: =DemandParameters!$E$30*INDEX($N$47:$N$53,$B186,1)*INDEX($N$61:$N$72,MONTH($A186),1)*IF($B186<=5,INDEX($O$76:$O$99,HOUR($A186)+1,1),INDEX($O$101:$O$124,HOUR($A186)+1,1)) -> 975.8056886 | S186: =DemandParameters!$F$30*INDEX($N$47:$N$53,$B186,1)*INDEX($N$61:$N$72,MONTH($A186),1)*IF($B186<=5,INDEX($O$76:$O$99,HOUR($A186)+1,1),INDEX($O$101:$O$124,HOUR($A186)+1,1)) -> 1951.611377
A187: 2014-01-01T20:00:00 | B187: 3 | C187: 3 | D187: 0 | E187: 0 | F187: 1 | G187: =DemandParameters!$C$30*INDEX($N$47:$N$53,$B187,1)*INDEX($N$61:$N$72,MONTH($A187),1)*IF($B187<=5,INDEX($O$76:$O$99,HOUR($A187)+1,1),INDEX($O$101:$O$124,HOUR($A187)+1,1)) -> 509.3573157 | K187: =DemandParameters!$D$30*INDEX($N$47:$N$53,$B187,1)*INDEX($N$61:$N$72,MONTH($A187),1)*IF($B187<=5,INDEX($O$76:$O$99,HOUR($A187)+1,1),INDEX($O$101:$O$124,HOUR($A187)+1,1)) -> 611.2287788 | O187: =DemandParameters!$E$30*INDEX($N$47:$N$53,$B187,1)*INDEX($N$61:$N$72,MONTH($A187),1)*IF($B187<=5,INDEX($O$76:$O$99,HOUR($A187)+1,1),INDEX($O$101:$O$124,HOUR($A187)+1,1)) -> 759.1383071 | S187: =DemandParameters!$F$30*INDEX($N$47:$N$53,$B187,1)*INDEX($N$61:$N$72,MONTH($A187),1)*IF($B187<=5,INDEX($O$76:$O$99,HOUR($A187)+1,1),INDEX($O$101:$O$124,HOUR($A187)+1,1)) -> 1518.276614
A188: 2014-01-01T21:00:00 | B188: 3 | C188: 3 | D188: 0 | E188: 0 | F188: 1 | G188: =DemandParameters!$C$30*INDEX($N$47:$N$53,$B188,1)*INDEX($N$61:$N$72,MONTH($A188),1)*IF($B188<=5,INDEX($O$76:$O$99,HOUR($A188)+1,1),INDEX($O$101:$O$124,HOUR($A188)+1,1)) -> 384.4409338 | K188: =DemandParameters!$D$30*INDEX($N$47:$N$53,$B188,1)*INDEX($N$61:$N$72,MONTH($A188),1)*IF($B188<=5,INDEX($O$76:$O$99,HOUR($A188)+1,1),INDEX($O$101:$O$124,HOUR($A188)+1,1)) -> 461.3291206 | O188: =DemandParameters!$E$30*INDEX($N$47:$N$53,$B188,1)*INDEX($N$61:$N$72,MONTH($A188),1)*IF($B188<=5,INDEX($O$76:$O$99,HOUR($A188)+1,1),INDEX($O$101:$O$124,HOUR($A188)+1,1)) -> 572.9648533 | S188: =DemandParameters!$F$30*INDEX($N$47:$N$53,$B188,1)*INDEX($N$61:$N$72,MONTH($A188),1)*IF($B188<=5,INDEX($O$76:$O$99,HOUR($A188)+1,1),INDEX($O$101:$O$124,HOUR($A188)+1,1)) -> 1145.929707
A189: 2014-01-01T22:00:00 | B189: 3 | C189: 3 | D189: 0 | E189: 0 | F189: 1 | G189: =DemandParameters!$C$30*INDEX($N$47:$N$53,$B189,1)*INDEX($N$61:$N$72,MONTH($A189),1)*IF($B189<=5,INDEX($O$76:$O$99,HOUR($A189)+1,1),INDEX($O$101:$O$124,HOUR($A189)+1,1)) -> 255.2170905 | K189: =DemandParameters!$D$30*INDEX($N$47:$N$53,$B189,1)*INDEX($N$61:$N$72,MONTH($A189),1)*IF($B189<=5,INDEX($O$76:$O$99,HOUR($A189)+1,1),INDEX($O$101:$O$124,HOUR($A189)+1,1)) -> 306.2605086 | O189: =DemandParameters!$E$30*INDEX($N$47:$N$53,$B189,1)*INDEX($N$61:$N$72,MONTH($A189),1)*IF($B189<=5,INDEX($O$76:$O$99,HOUR($A189)+1,1),INDEX($O$101:$O$124,HOUR($A189)+1,1)) -> 380.3716253 | S189: =DemandParameters!$F$30*INDEX($N$47:$N$53,$B189,1)*INDEX($N$61:$N$72,MONTH($A189),1)*IF($B189<=5,INDEX($O$76:$O$99,HOUR($A189)+1,1),INDEX($O$101:$O$124,HOUR($A189)+1,1)) -> 760.7432506
A190: 2014-01-01T23:00:00 | B190: 3 | C190: 3 | D190: 0 | E190: 0 | F190: 1 | G190: =DemandParameters!$C$30*INDEX($N$47:$N$53,$B190,1)*INDEX($N$61:$N$72,MONTH($A190),1)*IF($B190<=5,INDEX($O$76:$O$99,HOUR($A190)+1,1),INDEX($O$101:$O$124,HOUR($A190)+1,1)) -> 156.1454773 | K190: =DemandParameters!$D$30*INDEX($N$47:$N$53,$B190,1)*INDEX($N$61:$N$72,MONTH($A190),1)*IF($B190<=5,INDEX($O$76:$O$99,HOUR($A190)+1,1),INDEX($O$101:$O$124,HOUR($A190)+1,1)) -> 187.3745728 | O190: =DemandParameters!$E$30*INDEX($N$47:$N$53,$B190,1)*INDEX($N$61:$N$72,MONTH($A190),1)*IF($B190<=5,INDEX($O$76:$O$99,HOUR($A190)+1,1),INDEX($O$101:$O$124,HOUR($A190)+1,1)) -> 232.7168172 | S190: =DemandParameters!$F$30*INDEX($N$47:$N$53,$B190,1)*INDEX($N$61:$N$72,MONTH($A190),1)*IF($B190<=5,INDEX($O$76:$O$99,HOUR($A190)+1,1),INDEX($O$101:$O$124,HOUR($A190)+1,1)) -> 465.4336343
A191: 2014-01-02 | B191: 4 | C191: 3 | D191: 0 | E191: 0 | F191: 1 | G191: =DemandParameters!$C$30*INDEX($N$47:$N$53,$B191,1)*INDEX($N$61:$N$72,MONTH($A191),1)*IF($B191<=5,INDEX($O$76:$O$99,HOUR($A191)+1,1),INDEX($O$101:$O$124,HOUR($A191)+1,1)) -> 73.98978974 | K191: =DemandParameters!$D$30*INDEX($N$47:$N$53,$B191,1)*INDEX($N$61:$N$72,MONTH($A191),1)*IF($B191<=5,INDEX($O$76:$O$99,HOUR($A191)+1,1),INDEX($O$101:$O$124,HOUR($A191)+1,1)) -> 88.78774769 | O191: =DemandParameters!$E$30*INDEX($N$47:$N$53,$B191,1)*INDEX($N$61:$N$72,MONTH($A191),1)*IF($B191<=5,INDEX($O$76:$O$99,HOUR($A191)+1,1),INDEX($O$101:$O$124,HOUR($A191)+1,1)) -> 110.2732443 | S191: =DemandParameters!$F$30*INDEX($N$47:$N$53,$B191,1)*INDEX($N$61:$N$72,MONTH($A191),1)*IF($B191<=5,INDEX($O$76:$O$99,HOUR($A191)+1,1),INDEX($O$101:$O$124,HOUR($A191)+1,1)) -> 220.5464886
A192: 2014-01-02T01:00:00 | B192: 4 | C192: 3 | D192: 0 | E192: 0 | F192: 1 | G192: =DemandParameters!$C$30*INDEX($N$47:$N$53,$B192,1)*INDEX($N$61:$N$72,MONTH($A192),1)*IF($B192<=5,INDEX($O$76:$O$99,HOUR($A192)+1,1),INDEX($O$101:$O$124,HOUR($A192)+1,1)) -> 43.52340573 | K192: =DemandParameters!$D$30*INDEX($N$47:$N$53,$B192,1)*INDEX($N$61:$N$72,MONTH($A192),1)*IF($B192<=5,INDEX($O$76:$O$99,HOUR($A192)+1,1),INDEX($O$101:$O$124,HOUR($A192)+1,1)) -> 52.22808688 | O192: =DemandParameters!$E$30*INDEX($N$47:$N$53,$B192,1)*INDEX($N$61:$N$72,MONTH($A192),1)*IF($B192<=5,INDEX($O$76:$O$99,HOUR($A192)+1,1),INDEX($O$101:$O$124,HOUR($A192)+1,1)) -> 64.86661431 | S192: =DemandParameters!$F$30*INDEX($N$47:$N$53,$B192,1)*INDEX($N$61:$N$72,MONTH($A192),1)*IF($B192<=5,INDEX($O$76:$O$99,HOUR($A192)+1,1),INDEX($O$101:$O$124,HOUR($A192)+1,1)) -> 129.7332286
A193: 2014-01-02T02:00:00 | B193: 4 | C193: 3 | D193: 0 | E193: 0 | F193: 1 | G193: =DemandParameters!$C$30*INDEX($N$47:$N$53,$B193,1)*INDEX($N$61:$N$72,MONTH($A193),1)*IF($B193<=5,INDEX($O$76:$O$99,HOUR($A193)+1,1),INDEX($O$101:$O$124,HOUR($A193)+1,1)) -> 35.90680973 | K193: =DemandParameters!$D$30*INDEX($N$47:$N$53,$B193,1)*INDEX($N$61:$N$72,MONTH($A193),1)*IF($B193<=5,INDEX($O$76:$O$99,HOUR($A193)+1,1),INDEX($O$101:$O$124,HOUR($A193)+1,1)) -> 43.08817167 | O193: =DemandParameters!$E$30*INDEX($N$47:$N$53,$B193,1)*INDEX($N$61:$N$72,MONTH($A193),1)*IF($B193<=5,INDEX($O$76:$O$99,HOUR($A193)+1,1),INDEX($O$101:$O$124,HOUR($A193)+1,1)) -> 53.5149568 | S193: =DemandParameters!$F$30*INDEX($N$47:$N$53,$B193,1)*INDEX($N$61:$N$72,MONTH($A193),1)*IF($B193<=5,INDEX($O$76:$O$99,HOUR($A193)+1,1),INDEX($O$101:$O$124,HOUR($A193)+1,1)) -> 107.0299136
A194: 2014-01-02T03:00:00 | B194: 4 | C194: 3 | D194: 0 | E194: 0 | F194: 1 | G194: =DemandParameters!$C$30*INDEX($N$47:$N$53,$B194,1)*INDEX($N$61:$N$72,MONTH($A194),1)*IF($B194<=5,INDEX($O$76:$O$99,HOUR($A194)+1,1),INDEX($O$101:$O$124,HOUR($A194)+1,1)) -> 33.73063944 | K194: =DemandParameters!$D$30*INDEX($N$47:$N$53,$B194,1)*INDEX($N$61:$N$72,MONTH($A194),1)*IF($B194<=5,INDEX($O$76:$O$99,HOUR($A194)+1,1),INDEX($O$101:$O$124,HOUR($A194)+1,1)) -> 40.47676733 | O194: =DemandParameters!$E$30*INDEX($N$47:$N$53,$B194,1)*INDEX($N$61:$N$72,MONTH($A194),1)*IF($B194<=5,INDEX($O$76:$O$99,HOUR($A194)+1,1),INDEX($O$101:$O$124,HOUR($A194)+1,1)) -> 50.27162609 | S194: =DemandParameters!$F$30*INDEX($N$47:$N$53,$B194,1)*INDEX($N$61:$N$72,MONTH($A194),1)*IF($B194<=5,INDEX($O$76:$O$99,HOUR($A194)+1,1),INDEX($O$101:$O$124,HOUR($A194)+1,1)) -> 100.5432522
A195: 2014-01-02T04:00:00 | B195: 4 | C195: 3 | D195: 0 | E195: 0 | F195: 1 | G195: =DemandParameters!$C$30*INDEX($N$47:$N$53,$B195,1)*INDEX($N$61:$N$72,MONTH($A195),1)*IF($B195<=5,INDEX($O$76:$O$99,HOUR($A195)+1,1),INDEX($O$101:$O$124,HOUR($A195)+1,1)) -> 62.02085316 | K195: =DemandParameters!$D$30*INDEX($N$47:$N$53,$B195,1)*INDEX($N$61:$N$72,MONTH($A195),1)*IF($B195<=5,INDEX($O$76:$O$99,HOUR($A195)+1,1),INDEX($O$101:$O$124,HOUR($A195)+1,1)) -> 74.4250238 | O195: =DemandParameters!$E$30*INDEX($N$47:$N$53,$B195,1)*INDEX($N$61:$N$72,MONTH($A195),1)*IF($B195<=5,INDEX($O$76:$O$99,HOUR($A195)+1,1),INDEX($O$101:$O$124,HOUR($A195)+1,1)) -> 92.43492539 | S195: =DemandParameters!$F$30*INDEX($N$47:$N$53,$B195,1)*INDEX($N$61:$N$72,MONTH($A195),1)*IF($B195<=5,INDEX($O$76:$O$99,HOUR($A195)+1,1),INDEX($O$101:$O$124,HOUR($A195)+1,1)) -> 184.8698508
A196: 2014-01-02T05:00:00 | B196: 4 | C196: 3 | D196: 0 | E196: 0 | F196: 1 | G196: =DemandParameters!$C$30*INDEX($N$47:$N$53,$B196,1)*INDEX($N$61:$N$72,MONTH($A196),1)*IF($B196<=5,INDEX($O$76:$O$99,HOUR($A196)+1,1),INDEX($O$101:$O$124,HOUR($A196)+1,1)) -> 163.2127715 | K196: =DemandParameters!$D$30*INDEX($N$47:$N$53,$B196,1)*INDEX($N$61:$N$72,MONTH($A196),1)*IF($B196<=5,INDEX($O$76:$O$99,HOUR($A196)+1,1),INDEX($O$101:$O$124,HOUR($A196)+1,1)) -> 195.8553258 | O196: =DemandParameters!$E$30*INDEX($N$47:$N$53,$B196,1)*INDEX($N$61:$N$72,MONTH($A196),1)*IF($B196<=5,INDEX($O$76:$O$99,HOUR($A196)+1,1),INDEX($O$101:$O$124,HOUR($A196)+1,1)) -> 243.2498037 | S196: =DemandParameters!$F$30*INDEX($N$47:$N$53,$B196,1)*INDEX($N$61:$N$72,MONTH($A196),1)*IF($B196<=5,INDEX($O$76:$O$99,HOUR($A196)+1,1),INDEX($O$101:$O$124,HOUR($A196)+1,1)) -> 486.4996073
A197: 2014-01-02T06:00:00 | B197: 4 | C197: 3 | D197: 0 | E197: 0 | F197: 1 | G197: =DemandParameters!$C$30*INDEX($N$47:$N$53,$B197,1)*INDEX($N$61:$N$72,MONTH($A197),1)*IF($B197<=5,INDEX($O$76:$O$99,HOUR($A197)+1,1),INDEX($O$101:$O$124,HOUR($A197)+1,1)) -> 536.4259756 | K197: =DemandParameters!$D$30*INDEX($N$47:$N$53,$B197,1)*INDEX($N$61:$N$72,MONTH($A197),1)*IF($B197<=5,INDEX($O$76:$O$99,HOUR($A197)+1,1),INDEX($O$101:$O$124,HOUR($A197)+1,1)) -> 643.7111707 | O197: =DemandParameters!$E$30*INDEX($N$47:$N$53,$B197,1)*INDEX($N$61:$N$72,MONTH($A197),1)*IF($B197<=5,INDEX($O$76:$O$99,HOUR($A197)+1,1),INDEX($O$101:$O$124,HOUR($A197)+1,1)) -> 799.4810214 | S197: =DemandParameters!$F$30*INDEX($N$47:$N$53,$B197,1)*INDEX($N$61:$N$72,MONTH($A197),1)*IF($B197<=5,INDEX($O$76:$O$99,HOUR($A197)+1,1),INDEX($O$101:$O$124,HOUR($A197)+1,1)) -> 1598.962043
A198: 2014-01-02T07:00:00 | B198: 4 | C198: 1 | D198: 1 | E198: 0 | F198: 0 | G198: =DemandParameters!$C$30*INDEX($N$47:$N$53,$B198,1)*INDEX($N$61:$N$72,MONTH($A198),1)*IF($B198<=5,INDEX($O$76:$O$99,HOUR($A198)+1,1),INDEX($O$101:$O$124,HOUR($A198)+1,1)) -> 1022.800035 | K198: =DemandParameters!$D$30*INDEX($N$47:$N$53,$B198,1)*INDEX($N$61:$N$72,MONTH($A198),1)*IF($B198<=5,INDEX($O$76:$O$99,HOUR($A198)+1,1),INDEX($O$101:$O$124,HOUR($A198)+1,1)) -> 1227.360042 | O198: =DemandParameters!$E$30*INDEX($N$47:$N$53,$B198,1)*INDEX($N$61:$N$72,MONTH($A198),1)*IF($B198<=5,INDEX($O$76:$O$99,HOUR($A198)+1,1),INDEX($O$101:$O$124,HOUR($A198)+1,1)) -> 1524.365436 | S198: =DemandParameters!$F$30*INDEX($N$47:$N$53,$B198,1)*INDEX($N$61:$N$72,MONTH($A198),1)*IF($B198<=5,INDEX($O$76:$O$99,HOUR($A198)+1,1),INDEX($O$101:$O$124,HOUR($A198)+1,1)) -> 3048.730873
A199: 2014-01-02T08:00:00 | B199: 4 | C199: 3 | D199: 0 | E199: 0 | F199: 1 | G199: =DemandParameters!$C$30*INDEX($N$47:$N$53,$B199,1)*INDEX($N$61:$N$72,MONTH($A199),1)*IF($B199<=5,INDEX($O$76:$O$99,HOUR($A199)+1,1),INDEX($O$101:$O$124,HOUR($A199)+1,1)) -> 1009.743013 | K199: =DemandParameters!$D$30*INDEX($N$47:$N$53,$B199,1)*INDEX($N$61:$N$72,MONTH($A199),1)*IF($B199<=5,INDEX($O$76:$O$99,HOUR($A199)+1,1),INDEX($O$101:$O$124,HOUR($A199)+1,1)) -> 1211.691616 | O199: =DemandParameters!$E$30*INDEX($N$47:$N$53,$B199,1)*INDEX($N$61:$N$72,MONTH($A199),1)*IF($B199<=5,INDEX($O$76:$O$99,HOUR($A199)+1,1),INDEX($O$101:$O$124,HOUR($A199)+1,1)) -> 1504.905452 | S199: =DemandParameters!$F$30*INDEX($N$47:$N$53,$B199,1)*INDEX($N$61:$N$72,MONTH($A199),1)*IF($B199<=5,INDEX($O$76:$O$99,HOUR($A199)+1,1),INDEX($O$101:$O$124,HOUR($A199)+1,1)) -> 3009.810904
A200: 2014-01-02T09:00:00 | B200: 4 | C200: 3 | D200: 0 | E200: 0 | F200: 1 | G200: =DemandParameters!$C$30*INDEX($N$47:$N$53,$B200,1)*INDEX($N$61:$N$72,MONTH($A200),1)*IF($B200<=5,INDEX($O$76:$O$99,HOUR($A200)+1,1),INDEX($O$101:$O$124,HOUR($A200)+1,1)) -> 862.8515186 | K200: =DemandParameters!$D$30*INDEX($N$47:$N$53,$B200,1)*INDEX($N$61:$N$72,MONTH($A200),1)*IF($B200<=5,INDEX($O$76:$O$99,HOUR($A200)+1,1),INDEX($O$101:$O$124,HOUR($A200)+1,1)) -> 1035.421822 | O200: =DemandParameters!$E$30*INDEX($N$47:$N$53,$B200,1)*INDEX($N$61:$N$72,MONTH($A200),1)*IF($B200<=5,INDEX($O$76:$O$99,HOUR($A200)+1,1),INDEX($O$101:$O$124,HOUR($A200)+1,1)) -> 1285.980629 | S200: =DemandParameters!$F$30*INDEX($N$47:$N$53,$B200,1)*INDEX($N$61:$N$72,MONTH($A200),1)*IF($B200<=5,INDEX($O$76:$O$99,HOUR($A200)+1,1),INDEX($O$101:$O$124,HOUR($A200)+1,1)) -> 2571.961257
A201: 2014-01-02T10:00:00 | B201: 4 | C201: 3 | D201: 0 | E201: 0 | F201: 1 | G201: =DemandParameters!$C$30*INDEX($N$47:$N$53,$B201,1)*INDEX($N$61:$N$72,MONTH($A201),1)*IF($B201<=5,INDEX($O$76:$O$99,HOUR($A201)+1,1),INDEX($O$101:$O$124,HOUR($A201)+1,1)) -> 836.7374752 | K201: =DemandParameters!$D$30*INDEX($N$47:$N$53,$B201,1)*INDEX($N$61:$N$72,MONTH($A201),1)*IF($B201<=5,INDEX($O$76:$O$99,HOUR($A201)+1,1),INDEX($O$101:$O$124,HOUR($A201)+1,1)) -> 1004.08497 | O201: =DemandParameters!$E$30*INDEX($N$47:$N$53,$B201,1)*INDEX($N$61:$N$72,MONTH($A201),1)*IF($B201<=5,INDEX($O$76:$O$99,HOUR($A201)+1,1),INDEX($O$101:$O$124,HOUR($A201)+1,1)) -> 1247.06066 | S201: =DemandParameters!$F$30*INDEX($N$47:$N$53,$B201,1)*INDEX($N$61:$N$72,MONTH($A201),1)*IF($B201<=5,INDEX($O$76:$O$99,HOUR($A201)+1,1),INDEX($O$101:$O$124,HOUR($A201)+1,1)) -> 2494.12132
A202: 2014-01-02T11:00:00 | B202: 4 | C202: 3 | D202: 0 | E202: 0 | F202: 1 | G202: =DemandParameters!$C$30*INDEX($N$47:$N$53,$B202,1)*INDEX($N$61:$N$72,MONTH($A202),1)*IF($B202<=5,INDEX($O$76:$O$99,HOUR($A202)+1,1),INDEX($O$101:$O$124,HOUR($A202)+1,1)) -> 895.4940729 | K202: =DemandParameters!$D$30*INDEX($N$47:$N$53,$B202,1)*INDEX($N$61:$N$72,MONTH($A202),1)*IF($B202<=5,INDEX($O$76:$O$99,HOUR($A202)+1,1),INDEX($O$101:$O$124,HOUR($A202)+1,1)) -> 1074.592887 | O202: =DemandParameters!$E$30*INDEX($N$47:$N$53,$B202,1)*INDEX($N$61:$N$72,MONTH($A202),1)*IF($B202<=5,INDEX($O$76:$O$99,HOUR($A202)+1,1),INDEX($O$101:$O$124,HOUR($A202)+1,1)) -> 1334.630589 | S202: =DemandParameters!$F$30*INDEX($N$47:$N$53,$B202,1)*INDEX($N$61:$N$72,MONTH($A202),1)*IF($B202<=5,INDEX($O$76:$O$99,HOUR($A202)+1,1),INDEX($O$101:$O$124,HOUR($A202)+1,1)) -> 2669.261179
A203: 2014-01-02T12:00:00 | B203: 4 | C203: 3 | D203: 0 | E203: 0 | F203: 1 | G203: =DemandParameters!$C$30*INDEX($N$47:$N$53,$B203,1)*INDEX($N$61:$N$72,MONTH($A203),1)*IF($B203<=5,INDEX($O$76:$O$99,HOUR($A203)+1,1),INDEX($O$101:$O$124,HOUR($A203)+1,1)) -> 962.9553518 | K203: =DemandParameters!$D$30*INDEX($N$47:$N$53,$B203,1)*INDEX($N$61:$N$72,MONTH($A203),1)*IF($B203<=5,INDEX($O$76:$O$99,HOUR($A203)+1,1),INDEX($O$101:$O$124,HOUR($A203)+1,1)) -> 1155.546422 | O203: =DemandParameters!$E$30*INDEX($N$47:$N$53,$B203,1)*INDEX($N$61:$N$72,MONTH($A203),1)*IF($B203<=5,INDEX($O$76:$O$99,HOUR($A203)+1,1),INDEX($O$101:$O$124,HOUR($A203)+1,1)) -> 1435.173842 | S203: =DemandParameters!$F$30*INDEX($N$47:$N$53,$B203,1)*INDEX($N$61:$N$72,MONTH($A203),1)*IF($B203<=5,INDEX($O$76:$O$99,HOUR($A203)+1,1),INDEX($O$101:$O$124,HOUR($A203)+1,1)) -> 2870.347683
A204: 2014-01-02T13:00:00 | B204: 4 | C204: 3 | D204: 0 | E204: 0 | F204: 1 | G204: =DemandParameters!$C$30*INDEX($N$47:$N$53,$B204,1)*INDEX($N$61:$N$72,MONTH($A204),1)*IF($B204<=5,INDEX($O$76:$O$99,HOUR($A204)+1,1),INDEX($O$101:$O$124,HOUR($A204)+1,1)) -> 956.4268409 | K204: =DemandParameters!$D$30*INDEX($N$47:$N$53,$B204,1)*INDEX($N$61:$N$72,MONTH($A204),1)*IF($B204<=5,INDEX($O$76:$O$99,HOUR($A204)+1,1),INDEX($O$101:$O$124,HOUR($A204)+1,1)) -> 1147.712209 | O204: =DemandParameters!$E$30*INDEX($N$47:$N$53,$B204,1)*INDEX($N$61:$N$72,MONTH($A204),1)*IF($B204<=5,INDEX($O$76:$O$99,HOUR($A204)+1,1),INDEX($O$101:$O$124,HOUR($A204)+1,1)) -> 1425.443849 | S204: =DemandParameters!$F$30*INDEX($N$47:$N$53,$B204,1)*INDEX($N$61:$N$72,MONTH($A204),1)*IF($B204<=5,INDEX($O$76:$O$99,HOUR($A204)+1,1),INDEX($O$101:$O$124,HOUR($A204)+1,1)) -> 2850.887699
A205: 2014-01-02T14:00:00 | B205: 4 | C205: 3 | D205: 0 | E205: 0 | F205: 1 | G205: =DemandParameters!$C$30*INDEX($N$47:$N$53,$B205,1)*INDEX($N$61:$N$72,MONTH($A205),1)*IF($B205<=5,INDEX($O$76:$O$99,HOUR($A205)+1,1),INDEX($O$101:$O$124,HOUR($A205)+1,1)) -> 1016.271524 | K205: =DemandParameters!$D$30*INDEX($N$47:$N$53,$B205,1)*INDEX($N$61:$N$72,MONTH($A205),1)*IF($B205<=5,INDEX($O$76:$O$99,HOUR($A205)+1,1),INDEX($O$101:$O$124,HOUR($A205)+1,1)) -> 1219.525829 | O205: =DemandParameters!$E$30*INDEX($N$47:$N$53,$B205,1)*INDEX($N$61:$N$72,MONTH($A205),1)*IF($B205<=5,INDEX($O$76:$O$99,HOUR($A205)+1,1),INDEX($O$101:$O$124,HOUR($A205)+1,1)) -> 1514.635444 | S205: =DemandParameters!$F$30*INDEX($N$47:$N$53,$B205,1)*INDEX($N$61:$N$72,MONTH($A205),1)*IF($B205<=5,INDEX($O$76:$O$99,HOUR($A205)+1,1),INDEX($O$101:$O$124,HOUR($A205)+1,1)) -> 3029.270888
A206: 2014-01-02T15:00:00 | B206: 4 | C206: 3 | D206: 0 | E206: 0 | F206: 1 | G206: =DemandParameters!$C$30*INDEX($N$47:$N$53,$B206,1)*INDEX($N$61:$N$72,MONTH($A206),1)*IF($B206<=5,INDEX($O$76:$O$99,HOUR($A206)+1,1),INDEX($O$101:$O$124,HOUR($A206)+1,1)) -> 1110.934931 | K206: =DemandParameters!$D$30*INDEX($N$47:$N$53,$B206,1)*INDEX($N$61:$N$72,MONTH($A206),1)*IF($B206<=5,INDEX($O$76:$O$99,HOUR($A206)+1,1),INDEX($O$101:$O$124,HOUR($A206)+1,1)) -> 1333.121918 | O206: =DemandParameters!$E$30*INDEX($N$47:$N$53,$B206,1)*INDEX($N$61:$N$72,MONTH($A206),1)*IF($B206<=5,INDEX($O$76:$O$99,HOUR($A206)+1,1),INDEX($O$101:$O$124,HOUR($A206)+1,1)) -> 1655.72033 | S206: =DemandParameters!$F$30*INDEX($N$47:$N$53,$B206,1)*INDEX($N$61:$N$72,MONTH($A206),1)*IF($B206<=5,INDEX($O$76:$O$99,HOUR($A206)+1,1),INDEX($O$101:$O$124,HOUR($A206)+1,1)) -> 3311.44066
A207: 2014-01-02T16:00:00 | B207: 4 | C207: 2 | D207: 0 | E207: 1 | F207: 0 | G207: =DemandParameters!$C$30*INDEX($N$47:$N$53,$B207,1)*INDEX($N$61:$N$72,MONTH($A207),1)*IF($B207<=5,INDEX($O$76:$O$99,HOUR($A207)+1,1),INDEX($O$101:$O$124,HOUR($A207)+1,1)) -> 1201.245998 | K207: =DemandParameters!$D$30*INDEX($N$47:$N$53,$B207,1)*INDEX($N$61:$N$72,MONTH($A207),1)*IF($B207<=5,INDEX($O$76:$O$99,HOUR($A207)+1,1),INDEX($O$101:$O$124,HOUR($A207)+1,1)) -> 1441.495198 | O207: =DemandParameters!$E$30*INDEX($N$47:$N$53,$B207,1)*INDEX($N$61:$N$72,MONTH($A207),1)*IF($B207<=5,INDEX($O$76:$O$99,HOUR($A207)+1,1),INDEX($O$101:$O$124,HOUR($A207)+1,1)) -> 1790.318555 | S207: =DemandParameters!$F$30*INDEX($N$47:$N$53,$B207,1)*INDEX($N$61:$N$72,MONTH($A207),1)*IF($B207<=5,INDEX($O$76:$O$99,HOUR($A207)+1,1),INDEX($O$101:$O$124,HOUR($A207)+1,1)) -> 3580.63711
A208: 2014-01-02T17:00:00 | B208: 4 | C208: 3 | D208: 0 | E208: 0 | F208: 1 | G208: =DemandParameters!$C$30*INDEX($N$47:$N$53,$B208,1)*INDEX($N$61:$N$72,MONTH($A208),1)*IF($B208<=5,INDEX($O$76:$O$99,HOUR($A208)+1,1),INDEX($O$101:$O$124,HOUR($A208)+1,1)) -> 1268.707277 | K208: =DemandParameters!$D$30*INDEX($N$47:$N$53,$B208,1)*INDEX($N$61:$N$72,MONTH($A208),1)*IF($B208<=5,INDEX($O$76:$O$99,HOUR($A208)+1,1),INDEX($O$101:$O$124,HOUR($A208)+1,1)) -> 1522.448732 | O208: =DemandParameters!$E$30*INDEX($N$47:$N$53,$B208,1)*INDEX($N$61:$N$72,MONTH($A208),1)*IF($B208<=5,INDEX($O$76:$O$99,HOUR($A208)+1,1),INDEX($O$101:$O$124,HOUR($A208)+1,1)) -> 1890.861807 | S208: =DemandParameters!$F$30*INDEX($N$47:$N$53,$B208,1)*INDEX($N$61:$N$72,MONTH($A208),1)*IF($B208<=5,INDEX($O$76:$O$99,HOUR($A208)+1,1),INDEX($O$101:$O$124,HOUR($A208)+1,1)) -> 3781.723614
A209: 2014-01-02T18:00:00 | B209: 4 | C209: 3 | D209: 0 | E209: 0 | F209: 1 | G209: =DemandParameters!$C$30*INDEX($N$47:$N$53,$B209,1)*INDEX($N$61:$N$72,MONTH($A209),1)*IF($B209<=5,INDEX($O$76:$O$99,HOUR($A209)+1,1),INDEX($O$101:$O$124,HOUR($A209)+1,1)) -> 948.8102449 | K209: =DemandParameters!$D$30*INDEX($N$47:$N$53,$B209,1)*INDEX($N$61:$N$72,MONTH($A209),1)*IF($B209<=5,INDEX($O$76:$O$99,HOUR($A209)+1,1),INDEX($O$101:$O$124,HOUR($A209)+1,1)) -> 1138.572294 | O209: =DemandParameters!$E$30*INDEX($N$47:$N$53,$B209,1)*INDEX($N$61:$N$72,MONTH($A209),1)*IF($B209<=5,INDEX($O$76:$O$99,HOUR($A209)+1,1),INDEX($O$101:$O$124,HOUR($A209)+1,1)) -> 1414.092192 | S209: =DemandParameters!$F$30*INDEX($N$47:$N$53,$B209,1)*INDEX($N$61:$N$72,MONTH($A209),1)*IF($B209<=5,INDEX($O$76:$O$99,HOUR($A209)+1,1),INDEX($O$101:$O$124,HOUR($A209)+1,1)) -> 2828.184384
A210: 2014-01-02T19:00:00 | B210: 4 | C210: 3 | D210: 0 | E210: 0 | F210: 1 | G210: =DemandParameters!$C$30*INDEX($N$47:$N$53,$B210,1)*INDEX($N$61:$N$72,MONTH($A210),1)*IF($B210<=5,INDEX($O$76:$O$99,HOUR($A210)+1,1),INDEX($O$101:$O$124,HOUR($A210)+1,1)) -> 661.5557671 | K210: =DemandParameters!$D$30*INDEX($N$47:$N$53,$B210,1)*INDEX($N$61:$N$72,MONTH($A210),1)*IF($B210<=5,INDEX($O$76:$O$99,HOUR($A210)+1,1),INDEX($O$101:$O$124,HOUR($A210)+1,1)) -> 793.8669205 | O210: =DemandParameters!$E$30*INDEX($N$47:$N$53,$B210,1)*INDEX($N$61:$N$72,MONTH($A210),1)*IF($B210<=5,INDEX($O$76:$O$99,HOUR($A210)+1,1),INDEX($O$101:$O$124,HOUR($A210)+1,1)) -> 985.9725375 | S210: =DemandParameters!$F$30*INDEX($N$47:$N$53,$B210,1)*INDEX($N$61:$N$72,MONTH($A210),1)*IF($B210<=5,INDEX($O$76:$O$99,HOUR($A210)+1,1),INDEX($O$101:$O$124,HOUR($A210)+1,1)) -> 1971.945075
A211: 2014-01-02T20:00:00 | B211: 4 | C211: 3 | D211: 0 | E211: 0 | F211: 1 | G211: =DemandParameters!$C$30*INDEX($N$47:$N$53,$B211,1)*INDEX($N$61:$N$72,MONTH($A211),1)*IF($B211<=5,INDEX($O$76:$O$99,HOUR($A211)+1,1),INDEX($O$101:$O$124,HOUR($A211)+1,1)) -> 514.6642728 | K211: =DemandParameters!$D$30*INDEX($N$47:$N$53,$B211,1)*INDEX($N$61:$N$72,MONTH($A211),1)*IF($B211<=5,INDEX($O$76:$O$99,HOUR($A211)+1,1),INDEX($O$101:$O$124,HOUR($A211)+1,1)) -> 617.5971273 | O211: =DemandParameters!$E$30*INDEX($N$47:$N$53,$B211,1)*INDEX($N$61:$N$72,MONTH($A211),1)*IF($B211<=5,INDEX($O$76:$O$99,HOUR($A211)+1,1),INDEX($O$101:$O$124,HOUR($A211)+1,1)) -> 767.0477142 | S211: =DemandParameters!$F$30*INDEX($N$47:$N$53,$B211,1)*INDEX($N$61:$N$72,MONTH($A211),1)*IF($B211<=5,INDEX($O$76:$O$99,HOUR($A211)+1,1),INDEX($O$101:$O$124,HOUR($A211)+1,1)) -> 1534.095428
A212: 2014-01-02T21:00:00 | B212: 4 | C212: 3 | D212: 0 | E212: 0 | F212: 1 | G212: =DemandParameters!$C$30*INDEX($N$47:$N$53,$B212,1)*INDEX($N$61:$N$72,MONTH($A212),1)*IF($B212<=5,INDEX($O$76:$O$99,HOUR($A212)+1,1),INDEX($O$101:$O$124,HOUR($A212)+1,1)) -> 388.4463961 | K212: =DemandParameters!$D$30*INDEX($N$47:$N$53,$B212,1)*INDEX($N$61:$N$72,MONTH($A212),1)*IF($B212<=5,INDEX($O$76:$O$99,HOUR($A212)+1,1),INDEX($O$101:$O$124,HOUR($A212)+1,1)) -> 466.1356754 | O212: =DemandParameters!$E$30*INDEX($N$47:$N$53,$B212,1)*INDEX($N$61:$N$72,MONTH($A212),1)*IF($B212<=5,INDEX($O$76:$O$99,HOUR($A212)+1,1),INDEX($O$101:$O$124,HOUR($A212)+1,1)) -> 578.9345327 | S212: =DemandParameters!$F$30*INDEX($N$47:$N$53,$B212,1)*INDEX($N$61:$N$72,MONTH($A212),1)*IF($B212<=5,INDEX($O$76:$O$99,HOUR($A212)+1,1),INDEX($O$101:$O$124,HOUR($A212)+1,1)) -> 1157.869065
A213: 2014-01-02T22:00:00 | B213: 4 | C213: 3 | D213: 0 | E213: 0 | F213: 1 | G213: =DemandParameters!$C$30*INDEX($N$47:$N$53,$B213,1)*INDEX($N$61:$N$72,MONTH($A213),1)*IF($B213<=5,INDEX($O$76:$O$99,HOUR($A213)+1,1),INDEX($O$101:$O$124,HOUR($A213)+1,1)) -> 257.8761789 | K213: =DemandParameters!$D$30*INDEX($N$47:$N$53,$B213,1)*INDEX($N$61:$N$72,MONTH($A213),1)*IF($B213<=5,INDEX($O$76:$O$99,HOUR($A213)+1,1),INDEX($O$101:$O$124,HOUR($A213)+1,1)) -> 309.4514147 | O213: =DemandParameters!$E$30*INDEX($N$47:$N$53,$B213,1)*INDEX($N$61:$N$72,MONTH($A213),1)*IF($B213<=5,INDEX($O$76:$O$99,HOUR($A213)+1,1),INDEX($O$101:$O$124,HOUR($A213)+1,1)) -> 384.3346898 | S213: =DemandParameters!$F$30*INDEX($N$47:$N$53,$B213,1)*INDEX($N$61:$N$72,MONTH($A213),1)*IF($B213<=5,INDEX($O$76:$O$99,HOUR($A213)+1,1),INDEX($O$101:$O$124,HOUR($A213)+1,1)) -> 768.6693796
A214: 2014-01-02T23:00:00 | B214: 4 | C214: 3 | D214: 0 | E214: 0 | F214: 1 | G214: =DemandParameters!$C$30*INDEX($N$47:$N$53,$B214,1)*INDEX($N$61:$N$72,MONTH($A214),1)*IF($B214<=5,INDEX($O$76:$O$99,HOUR($A214)+1,1),INDEX($O$101:$O$124,HOUR($A214)+1,1)) -> 157.7723458 | K214: =DemandParameters!$D$30*INDEX($N$47:$N$53,$B214,1)*INDEX($N$61:$N$72,MONTH($A214),1)*IF($B214<=5,INDEX($O$76:$O$99,HOUR($A214)+1,1),INDEX($O$101:$O$124,HOUR($A214)+1,1)) -> 189.3268149 | O214: =DemandParameters!$E$30*INDEX($N$47:$N$53,$B214,1)*INDEX($N$61:$N$72,MONTH($A214),1)*IF($B214<=5,INDEX($O$76:$O$99,HOUR($A214)+1,1),INDEX($O$101:$O$124,HOUR($A214)+1,1)) -> 235.1414769 | S214: =DemandParameters!$F$30*INDEX($N$47:$N$53,$B214,1)*INDEX($N$61:$N$72,MONTH($A214),1)*IF($B214<=5,INDEX($O$76:$O$99,HOUR($A214)+1,1),INDEX($O$101:$O$124,HOUR($A214)+1,1)) -> 470.2829537
A215: 2014-01-03 | B215: 5 | C215: 3 | D215: 0 | E215: 0 | F215: 1 | G215: =DemandParameters!$C$30*INDEX($N$47:$N$53,$B215,1)*INDEX($N$61:$N$72,MONTH($A215),1)*IF($B215<=5,INDEX($O$76:$O$99,HOUR($A215)+1,1),INDEX($O$101:$O$124,HOUR($A215)+1,1)) -> 73.80435167 | K215: =DemandParameters!$D$30*INDEX($N$47:$N$53,$B215,1)*INDEX($N$61:$N$72,MONTH($A215),1)*IF($B215<=5,INDEX($O$76:$O$99,HOUR($A215)+1,1),INDEX($O$101:$O$124,HOUR($A215)+1,1)) -> 88.56522201 | O215: =DemandParameters!$E$30*INDEX($N$47:$N$53,$B215,1)*INDEX($N$61:$N$72,MONTH($A215),1)*IF($B215<=5,INDEX($O$76:$O$99,HOUR($A215)+1,1),INDEX($O$101:$O$124,HOUR($A215)+1,1)) -> 109.9968703 | S215: =DemandParameters!$F$30*INDEX($N$47:$N$53,$B215,1)*INDEX($N$61:$N$72,MONTH($A215),1)*IF($B215<=5,INDEX($O$76:$O$99,HOUR($A215)+1,1),INDEX($O$101:$O$124,HOUR($A215)+1,1)) -> 219.9937406
A216: 2014-01-03T01:00:00 | B216: 5 | C216: 3 | D216: 0 | E216: 0 | F216: 1 | G216: =DemandParameters!$C$30*INDEX($N$47:$N$53,$B216,1)*INDEX($N$61:$N$72,MONTH($A216),1)*IF($B216<=5,INDEX($O$76:$O$99,HOUR($A216)+1,1),INDEX($O$101:$O$124,HOUR($A216)+1,1)) -> 43.41432451 | K216: =DemandParameters!$D$30*INDEX($N$47:$N$53,$B216,1)*INDEX($N$61:$N$72,MONTH($A216),1)*IF($B216<=5,INDEX($O$76:$O$99,HOUR($A216)+1,1),INDEX($O$101:$O$124,HOUR($A216)+1,1)) -> 52.09718941 | O216: =DemandParameters!$E$30*INDEX($N$47:$N$53,$B216,1)*INDEX($N$61:$N$72,MONTH($A216),1)*IF($B216<=5,INDEX($O$76:$O$99,HOUR($A216)+1,1),INDEX($O$101:$O$124,HOUR($A216)+1,1)) -> 64.70404134 | S216: =DemandParameters!$F$30*INDEX($N$47:$N$53,$B216,1)*INDEX($N$61:$N$72,MONTH($A216),1)*IF($B216<=5,INDEX($O$76:$O$99,HOUR($A216)+1,1),INDEX($O$101:$O$124,HOUR($A216)+1,1)) -> 129.4080827
A217: 2014-01-03T02:00:00 | B217: 5 | C217: 3 | D217: 0 | E217: 0 | F217: 1 | G217: =DemandParameters!$C$30*INDEX($N$47:$N$53,$B217,1)*INDEX($N$61:$N$72,MONTH($A217),1)*IF($B217<=5,INDEX($O$76:$O$99,HOUR($A217)+1,1),INDEX($O$101:$O$124,HOUR($A217)+1,1)) -> 35.81681772 | K217: =DemandParameters!$D$30*INDEX($N$47:$N$53,$B217,1)*INDEX($N$61:$N$72,MONTH($A217),1)*IF($B217<=5,INDEX($O$76:$O$99,HOUR($A217)+1,1),INDEX($O$101:$O$124,HOUR($A217)+1,1)) -> 42.98018127 | O217: =DemandParameters!$E$30*INDEX($N$47:$N$53,$B217,1)*INDEX($N$61:$N$72,MONTH($A217),1)*IF($B217<=5,INDEX($O$76:$O$99,HOUR($A217)+1,1),INDEX($O$101:$O$124,HOUR($A217)+1,1)) -> 53.38083411 | S217: =DemandParameters!$F$30*INDEX($N$47:$N$53,$B217,1)*INDEX($N$61:$N$72,MONTH($A217),1)*IF($B217<=5,INDEX($O$76:$O$99,HOUR($A217)+1,1),INDEX($O$101:$O$124,HOUR($A217)+1,1)) -> 106.7616682
A218: 2014-01-03T03:00:00 | B218: 5 | C218: 3 | D218: 0 | E218: 0 | F218: 1 | G218: =DemandParameters!$C$30*INDEX($N$47:$N$53,$B218,1)*INDEX($N$61:$N$72,MONTH($A218),1)*IF($B218<=5,INDEX($O$76:$O$99,HOUR($A218)+1,1),INDEX($O$101:$O$124,HOUR($A218)+1,1)) -> 33.6461015 | K218: =DemandParameters!$D$30*INDEX($N$47:$N$53,$B218,1)*INDEX($N$61:$N$72,MONTH($A218),1)*IF($B218<=5,INDEX($O$76:$O$99,HOUR($A218)+1,1),INDEX($O$101:$O$124,HOUR($A218)+1,1)) -> 40.3753218 | O218: =DemandParameters!$E$30*INDEX($N$47:$N$53,$B218,1)*INDEX($N$61:$N$72,MONTH($A218),1)*IF($B218<=5,INDEX($O$76:$O$99,HOUR($A218)+1,1),INDEX($O$101:$O$124,HOUR($A218)+1,1)) -> 50.14563204 | S218: =DemandParameters!$F$30*INDEX($N$47:$N$53,$B218,1)*INDEX($N$61:$N$72,MONTH($A218),1)*IF($B218<=5,INDEX($O$76:$O$99,HOUR($A218)+1,1),INDEX($O$101:$O$124,HOUR($A218)+1,1)) -> 100.2912641
A219: 2014-01-03T04:00:00 | B219: 5 | C219: 3 | D219: 0 | E219: 0 | F219: 1 | G219: =DemandParameters!$C$30*INDEX($N$47:$N$53,$B219,1)*INDEX($N$61:$N$72,MONTH($A219),1)*IF($B219<=5,INDEX($O$76:$O$99,HOUR($A219)+1,1),INDEX($O$101:$O$124,HOUR($A219)+1,1)) -> 61.86541243 | K219: =DemandParameters!$D$30*INDEX($N$47:$N$53,$B219,1)*INDEX($N$61:$N$72,MONTH($A219),1)*IF($B219<=5,INDEX($O$76:$O$99,HOUR($A219)+1,1),INDEX($O$101:$O$124,HOUR($A219)+1,1)) -> 74.23849492 | O219: =DemandParameters!$E$30*INDEX($N$47:$N$53,$B219,1)*INDEX($N$61:$N$72,MONTH($A219),1)*IF($B219<=5,INDEX($O$76:$O$99,HOUR($A219)+1,1),INDEX($O$101:$O$124,HOUR($A219)+1,1)) -> 92.20325891 | S219: =DemandParameters!$F$30*INDEX($N$47:$N$53,$B219,1)*INDEX($N$61:$N$72,MONTH($A219),1)*IF($B219<=5,INDEX($O$76:$O$99,HOUR($A219)+1,1),INDEX($O$101:$O$124,HOUR($A219)+1,1)) -> 184.4065178
A220: 2014-01-03T05:00:00 | B220: 5 | C220: 3 | D220: 0 | E220: 0 | F220: 1 | G220: =DemandParameters!$C$30*INDEX($N$47:$N$53,$B220,1)*INDEX($N$61:$N$72,MONTH($A220),1)*IF($B220<=5,INDEX($O$76:$O$99,HOUR($A220)+1,1),INDEX($O$101:$O$124,HOUR($A220)+1,1)) -> 162.8037169 | K220: =DemandParameters!$D$30*INDEX($N$47:$N$53,$B220,1)*INDEX($N$61:$N$72,MONTH($A220),1)*IF($B220<=5,INDEX($O$76:$O$99,HOUR($A220)+1,1),INDEX($O$101:$O$124,HOUR($A220)+1,1)) -> 195.3644603 | O220: =DemandParameters!$E$30*INDEX($N$47:$N$53,$B220,1)*INDEX($N$61:$N$72,MONTH($A220),1)*IF($B220<=5,INDEX($O$76:$O$99,HOUR($A220)+1,1),INDEX($O$101:$O$124,HOUR($A220)+1,1)) -> 242.640155 | S220: =DemandParameters!$F$30*INDEX($N$47:$N$53,$B220,1)*INDEX($N$61:$N$72,MONTH($A220),1)*IF($B220<=5,INDEX($O$76:$O$99,HOUR($A220)+1,1),INDEX($O$101:$O$124,HOUR($A220)+1,1)) -> 485.2803101
A221: 2014-01-03T06:00:00 | B221: 5 | C221: 3 | D221: 0 | E221: 0 | F221: 1 | G221: =DemandParameters!$C$30*INDEX($N$47:$N$53,$B221,1)*INDEX($N$61:$N$72,MONTH($A221),1)*IF($B221<=5,INDEX($O$76:$O$99,HOUR($A221)+1,1),INDEX($O$101:$O$124,HOUR($A221)+1,1)) -> 535.0815496 | K221: =DemandParameters!$D$30*INDEX($N$47:$N$53,$B221,1)*INDEX($N$61:$N$72,MONTH($A221),1)*IF($B221<=5,INDEX($O$76:$O$99,HOUR($A221)+1,1),INDEX($O$101:$O$124,HOUR($A221)+1,1)) -> 642.0978595 | O221: =DemandParameters!$E$30*INDEX($N$47:$N$53,$B221,1)*INDEX($N$61:$N$72,MONTH($A221),1)*IF($B221<=5,INDEX($O$76:$O$99,HOUR($A221)+1,1),INDEX($O$101:$O$124,HOUR($A221)+1,1)) -> 797.4773095 | S221: =DemandParameters!$F$30*INDEX($N$47:$N$53,$B221,1)*INDEX($N$61:$N$72,MONTH($A221),1)*IF($B221<=5,INDEX($O$76:$O$99,HOUR($A221)+1,1),INDEX($O$101:$O$124,HOUR($A221)+1,1)) -> 1594.954619
A222: 2014-01-03T07:00:00 | B222: 5 | C222: 1 | D222: 1 | E222: 0 | F222: 0 | G222: =DemandParameters!$C$30*INDEX($N$47:$N$53,$B222,1)*INDEX($N$61:$N$72,MONTH($A222),1)*IF($B222<=5,INDEX($O$76:$O$99,HOUR($A222)+1,1),INDEX($O$101:$O$124,HOUR($A222)+1,1)) -> 1020.236626 | K222: =DemandParameters!$D$30*INDEX($N$47:$N$53,$B222,1)*INDEX($N$61:$N$72,MONTH($A222),1)*IF($B222<=5,INDEX($O$76:$O$99,HOUR($A222)+1,1),INDEX($O$101:$O$124,HOUR($A222)+1,1)) -> 1224.283951 | O222: =DemandParameters!$E$30*INDEX($N$47:$N$53,$B222,1)*INDEX($N$61:$N$72,MONTH($A222),1)*IF($B222<=5,INDEX($O$76:$O$99,HOUR($A222)+1,1),INDEX($O$101:$O$124,HOUR($A222)+1,1)) -> 1520.544972 | S222: =DemandParameters!$F$30*INDEX($N$47:$N$53,$B222,1)*INDEX($N$61:$N$72,MONTH($A222),1)*IF($B222<=5,INDEX($O$76:$O$99,HOUR($A222)+1,1),INDEX($O$101:$O$124,HOUR($A222)+1,1)) -> 3041.089943
A223: 2014-01-03T08:00:00 | B223: 5 | C223: 3 | D223: 0 | E223: 0 | F223: 1 | G223: =DemandParameters!$C$30*INDEX($N$47:$N$53,$B223,1)*INDEX($N$61:$N$72,MONTH($A223),1)*IF($B223<=5,INDEX($O$76:$O$99,HOUR($A223)+1,1),INDEX($O$101:$O$124,HOUR($A223)+1,1)) -> 1007.212329 | K223: =DemandParameters!$D$30*INDEX($N$47:$N$53,$B223,1)*INDEX($N$61:$N$72,MONTH($A223),1)*IF($B223<=5,INDEX($O$76:$O$99,HOUR($A223)+1,1),INDEX($O$101:$O$124,HOUR($A223)+1,1)) -> 1208.654794 | O223: =DemandParameters!$E$30*INDEX($N$47:$N$53,$B223,1)*INDEX($N$61:$N$72,MONTH($A223),1)*IF($B223<=5,INDEX($O$76:$O$99,HOUR($A223)+1,1),INDEX($O$101:$O$124,HOUR($A223)+1,1)) -> 1501.133759 | S223: =DemandParameters!$F$30*INDEX($N$47:$N$53,$B223,1)*INDEX($N$61:$N$72,MONTH($A223),1)*IF($B223<=5,INDEX($O$76:$O$99,HOUR($A223)+1,1),INDEX($O$101:$O$124,HOUR($A223)+1,1)) -> 3002.267518
A224: 2014-01-03T09:00:00 | B224: 5 | C224: 3 | D224: 0 | E224: 0 | F224: 1 | G224: =DemandParameters!$C$30*INDEX($N$47:$N$53,$B224,1)*INDEX($N$61:$N$72,MONTH($A224),1)*IF($B224<=5,INDEX($O$76:$O$99,HOUR($A224)+1,1),INDEX($O$101:$O$124,HOUR($A224)+1,1)) -> 860.6889835 | K224: =DemandParameters!$D$30*INDEX($N$47:$N$53,$B224,1)*INDEX($N$61:$N$72,MONTH($A224),1)*IF($B224<=5,INDEX($O$76:$O$99,HOUR($A224)+1,1),INDEX($O$101:$O$124,HOUR($A224)+1,1)) -> 1032.82678 | O224: =DemandParameters!$E$30*INDEX($N$47:$N$53,$B224,1)*INDEX($N$61:$N$72,MONTH($A224),1)*IF($B224<=5,INDEX($O$76:$O$99,HOUR($A224)+1,1),INDEX($O$101:$O$124,HOUR($A224)+1,1)) -> 1282.75762 | S224: =DemandParameters!$F$30*INDEX($N$47:$N$53,$B224,1)*INDEX($N$61:$N$72,MONTH($A224),1)*IF($B224<=5,INDEX($O$76:$O$99,HOUR($A224)+1,1),INDEX($O$101:$O$124,HOUR($A224)+1,1)) -> 2565.515239
A225: 2014-01-03T10:00:00 | B225: 5 | C225: 3 | D225: 0 | E225: 0 | F225: 1 | G225: =DemandParameters!$C$30*INDEX($N$47:$N$53,$B225,1)*INDEX($N$61:$N$72,MONTH($A225),1)*IF($B225<=5,INDEX($O$76:$O$99,HOUR($A225)+1,1),INDEX($O$101:$O$124,HOUR($A225)+1,1)) -> 834.6403888 | K225: =DemandParameters!$D$30*INDEX($N$47:$N$53,$B225,1)*INDEX($N$61:$N$72,MONTH($A225),1)*IF($B225<=5,INDEX($O$76:$O$99,HOUR($A225)+1,1),INDEX($O$101:$O$124,HOUR($A225)+1,1)) -> 1001.568467 | O225: =DemandParameters!$E$30*INDEX($N$47:$N$53,$B225,1)*INDEX($N$61:$N$72,MONTH($A225),1)*IF($B225<=5,INDEX($O$76:$O$99,HOUR($A225)+1,1),INDEX($O$101:$O$124,HOUR($A225)+1,1)) -> 1243.935195 | S225: =DemandParameters!$F$30*INDEX($N$47:$N$53,$B225,1)*INDEX($N$61:$N$72,MONTH($A225),1)*IF($B225<=5,INDEX($O$76:$O$99,HOUR($A225)+1,1),INDEX($O$101:$O$124,HOUR($A225)+1,1)) -> 2487.87039
A226: 2014-01-03T11:00:00 | B226: 5 | C226: 3 | D226: 0 | E226: 0 | F226: 1 | G226: =DemandParameters!$C$30*INDEX($N$47:$N$53,$B226,1)*INDEX($N$61:$N$72,MONTH($A226),1)*IF($B226<=5,INDEX($O$76:$O$99,HOUR($A226)+1,1),INDEX($O$101:$O$124,HOUR($A226)+1,1)) -> 893.2497268 | K226: =DemandParameters!$D$30*INDEX($N$47:$N$53,$B226,1)*INDEX($N$61:$N$72,MONTH($A226),1)*IF($B226<=5,INDEX($O$76:$O$99,HOUR($A226)+1,1),INDEX($O$101:$O$124,HOUR($A226)+1,1)) -> 1071.899672 | O226: =DemandParameters!$E$30*INDEX($N$47:$N$53,$B226,1)*INDEX($N$61:$N$72,MONTH($A226),1)*IF($B226<=5,INDEX($O$76:$O$99,HOUR($A226)+1,1),INDEX($O$101:$O$124,HOUR($A226)+1,1)) -> 1331.285651 | S226: =DemandParameters!$F$30*INDEX($N$47:$N$53,$B226,1)*INDEX($N$61:$N$72,MONTH($A226),1)*IF($B226<=5,INDEX($O$76:$O$99,HOUR($A226)+1,1),INDEX($O$101:$O$124,HOUR($A226)+1,1)) -> 2662.571301
A227: 2014-01-03T12:00:00 | B227: 5 | C227: 3 | D227: 0 | E227: 0 | F227: 1 | G227: =DemandParameters!$C$30*INDEX($N$47:$N$53,$B227,1)*INDEX($N$61:$N$72,MONTH($A227),1)*IF($B227<=5,INDEX($O$76:$O$99,HOUR($A227)+1,1),INDEX($O$101:$O$124,HOUR($A227)+1,1)) -> 960.5419298 | K227: =DemandParameters!$D$30*INDEX($N$47:$N$53,$B227,1)*INDEX($N$61:$N$72,MONTH($A227),1)*IF($B227<=5,INDEX($O$76:$O$99,HOUR($A227)+1,1),INDEX($O$101:$O$124,HOUR($A227)+1,1)) -> 1152.650316 | O227: =DemandParameters!$E$30*INDEX($N$47:$N$53,$B227,1)*INDEX($N$61:$N$72,MONTH($A227),1)*IF($B227<=5,INDEX($O$76:$O$99,HOUR($A227)+1,1),INDEX($O$101:$O$124,HOUR($A227)+1,1)) -> 1431.576915 | S227: =DemandParameters!$F$30*INDEX($N$47:$N$53,$B227,1)*INDEX($N$61:$N$72,MONTH($A227),1)*IF($B227<=5,INDEX($O$76:$O$99,HOUR($A227)+1,1),INDEX($O$101:$O$124,HOUR($A227)+1,1)) -> 2863.153829
A228: 2014-01-03T13:00:00 | B228: 5 | C228: 3 | D228: 0 | E228: 0 | F228: 1 | G228: =DemandParameters!$C$30*INDEX($N$47:$N$53,$B228,1)*INDEX($N$61:$N$72,MONTH($A228),1)*IF($B228<=5,INDEX($O$76:$O$99,HOUR($A228)+1,1),INDEX($O$101:$O$124,HOUR($A228)+1,1)) -> 954.0297812 | K228: =DemandParameters!$D$30*INDEX($N$47:$N$53,$B228,1)*INDEX($N$61:$N$72,MONTH($A228),1)*IF($B228<=5,INDEX($O$76:$O$99,HOUR($A228)+1,1),INDEX($O$101:$O$124,HOUR($A228)+1,1)) -> 1144.835737 | O228: =DemandParameters!$E$30*INDEX($N$47:$N$53,$B228,1)*INDEX($N$61:$N$72,MONTH($A228),1)*IF($B228<=5,INDEX($O$76:$O$99,HOUR($A228)+1,1),INDEX($O$101:$O$124,HOUR($A228)+1,1)) -> 1421.871308 | S228: =DemandParameters!$F$30*INDEX($N$47:$N$53,$B228,1)*INDEX($N$61:$N$72,MONTH($A228),1)*IF($B228<=5,INDEX($O$76:$O$99,HOUR($A228)+1,1),INDEX($O$101:$O$124,HOUR($A228)+1,1)) -> 2843.742617
A229: 2014-01-03T14:00:00 | B229: 5 | C229: 3 | D229: 0 | E229: 0 | F229: 1 | G229: =DemandParameters!$C$30*INDEX($N$47:$N$53,$B229,1)*INDEX($N$61:$N$72,MONTH($A229),1)*IF($B229<=5,INDEX($O$76:$O$99,HOUR($A229)+1,1),INDEX($O$101:$O$124,HOUR($A229)+1,1)) -> 1013.724477 | K229: =DemandParameters!$D$30*INDEX($N$47:$N$53,$B229,1)*INDEX($N$61:$N$72,MONTH($A229),1)*IF($B229<=5,INDEX($O$76:$O$99,HOUR($A229)+1,1),INDEX($O$101:$O$124,HOUR($A229)+1,1)) -> 1216.469373 | O229: =DemandParameters!$E$30*INDEX($N$47:$N$53,$B229,1)*INDEX($N$61:$N$72,MONTH($A229),1)*IF($B229<=5,INDEX($O$76:$O$99,HOUR($A229)+1,1),INDEX($O$101:$O$124,HOUR($A229)+1,1)) -> 1510.839365 | S229: =DemandParameters!$F$30*INDEX($N$47:$N$53,$B229,1)*INDEX($N$61:$N$72,MONTH($A229),1)*IF($B229<=5,INDEX($O$76:$O$99,HOUR($A229)+1,1),INDEX($O$101:$O$124,HOUR($A229)+1,1)) -> 3021.678731
A230: 2014-01-03T15:00:00 | B230: 5 | C230: 3 | D230: 0 | E230: 0 | F230: 1 | G230: =DemandParameters!$C$30*INDEX($N$47:$N$53,$B230,1)*INDEX($N$61:$N$72,MONTH($A230),1)*IF($B230<=5,INDEX($O$76:$O$99,HOUR($A230)+1,1),INDEX($O$101:$O$124,HOUR($A230)+1,1)) -> 1108.150633 | K230: =DemandParameters!$D$30*INDEX($N$47:$N$53,$B230,1)*INDEX($N$61:$N$72,MONTH($A230),1)*IF($B230<=5,INDEX($O$76:$O$99,HOUR($A230)+1,1),INDEX($O$101:$O$124,HOUR($A230)+1,1)) -> 1329.78076 | O230: =DemandParameters!$E$30*INDEX($N$47:$N$53,$B230,1)*INDEX($N$61:$N$72,MONTH($A230),1)*IF($B230<=5,INDEX($O$76:$O$99,HOUR($A230)+1,1),INDEX($O$101:$O$124,HOUR($A230)+1,1)) -> 1651.570655 | S230: =DemandParameters!$F$30*INDEX($N$47:$N$53,$B230,1)*INDEX($N$61:$N$72,MONTH($A230),1)*IF($B230<=5,INDEX($O$76:$O$99,HOUR($A230)+1,1),INDEX($O$101:$O$124,HOUR($A230)+1,1)) -> 3303.14131
A231: 2014-01-03T16:00:00 | B231: =IF(ISNUMBER(VLOOKUP(INT($A231),HolidayTable,2,FALSE)),VLOOKUP(INT($A231),HolidayTable,2,FALSE),WEEKDAY($A231,2)) -> 5 | C231: =IF($B231<=5,IF(AND(HOUR($A231)>=HOUR(Time_AM_Peak_Begin),HOUR($A231)<HOUR(Time_AM_Peak_End)),Code_AM_Peak,IF(AND(HOUR($A231)>=HOUR(Time_PM_Peak_Begin),HOUR($A231)<HOUR(Time_PM_Peak_End)),Code_PM_Peak,Code_Offpeak)),Code_Offpeak) -> 2 | D231: =IF(C231=Code_AM_Peak,1,0) -> 0 | E231: =IF(C231=Code_PM_Peak,1,0) -> 1 | F231: =IF(C231=Code_Offpeak,1,0) -> 0 | G231: =DemandParameters!$C$30*INDEX($N$47:$N$53,$B231,1)*INDEX($N$61:$N$72,MONTH($A231),1)*IF($B231<=5,INDEX($O$76:$O$99,HOUR($A231)+1,1),INDEX($O$101:$O$124,HOUR($A231)+1,1)) -> 1198.235357 | K231: =DemandParameters!$D$30*INDEX($N$47:$N$53,$B231,1)*INDEX($N$61:$N$72,MONTH($A231),1)*IF($B231<=5,INDEX($O$76:$O$99,HOUR($A231)+1,1),INDEX($O$101:$O$124,HOUR($A231)+1,1)) -> 1437.882428 | O231: =DemandParameters!$E$30*INDEX($N$47:$N$53,$B231,1)*INDEX($N$61:$N$72,MONTH($A231),1)*IF($B231<=5,INDEX($O$76:$O$99,HOUR($A231)+1,1),INDEX($O$101:$O$124,HOUR($A231)+1,1)) -> 1785.831541 | S231: =DemandParameters!$F$30*INDEX($N$47:$N$53,$B231,1)*INDEX($N$61:$N$72,MONTH($A231),1)*IF($B231<=5,INDEX($O$76:$O$99,HOUR($A231)+1,1),INDEX($O$101:$O$124,HOUR($A231)+1,1)) -> 3571.663082
A232: 2014-01-03T17:00:00 | B232: 5 | C232: 3 | D232: 0 | E232: 0 | F232: 1 | G232: =DemandParameters!$C$30*INDEX($N$47:$N$53,$B232,1)*INDEX($N$61:$N$72,MONTH($A232),1)*IF($B232<=5,INDEX($O$76:$O$99,HOUR($A232)+1,1),INDEX($O$101:$O$124,HOUR($A232)+1,1)) -> 1265.52756 | K232: =DemandParameters!$D$30*INDEX($N$47:$N$53,$B232,1)*INDEX($N$61:$N$72,MONTH($A232),1)*IF($B232<=5,INDEX($O$76:$O$99,HOUR($A232)+1,1),INDEX($O$101:$O$124,HOUR($A232)+1,1)) -> 1518.633071 | O232: =DemandParameters!$E$30*INDEX($N$47:$N$53,$B232,1)*INDEX($N$61:$N$72,MONTH($A232),1)*IF($B232<=5,INDEX($O$76:$O$99,HOUR($A232)+1,1),INDEX($O$101:$O$124,HOUR($A232)+1,1)) -> 1886.122805 | S232: =DemandParameters!$F$30*INDEX($N$47:$N$53,$B232,1)*INDEX($N$61:$N$72,MONTH($A232),1)*IF($B232<=5,INDEX($O$76:$O$99,HOUR($A232)+1,1),INDEX($O$101:$O$124,HOUR($A232)+1,1)) -> 3772.24561
A233: 2014-01-03T18:00:00 | B233: 5 | C233: 3 | D233: 0 | E233: 0 | F233: 1 | G233: =DemandParameters!$C$30*INDEX($N$47:$N$53,$B233,1)*INDEX($N$61:$N$72,MONTH($A233),1)*IF($B233<=5,INDEX($O$76:$O$99,HOUR($A233)+1,1),INDEX($O$101:$O$124,HOUR($A233)+1,1)) -> 946.4322744 | K233: =DemandParameters!$D$30*INDEX($N$47:$N$53,$B233,1)*INDEX($N$61:$N$72,MONTH($A233),1)*IF($B233<=5,INDEX($O$76:$O$99,HOUR($A233)+1,1),INDEX($O$101:$O$124,HOUR($A233)+1,1)) -> 1135.718729 | O233: =DemandParameters!$E$30*INDEX($N$47:$N$53,$B233,1)*INDEX($N$61:$N$72,MONTH($A233),1)*IF($B233<=5,INDEX($O$76:$O$99,HOUR($A233)+1,1),INDEX($O$101:$O$124,HOUR($A233)+1,1)) -> 1410.548101 | S233: =DemandParameters!$F$30*INDEX($N$47:$N$53,$B233,1)*INDEX($N$61:$N$72,MONTH($A233),1)*IF($B233<=5,INDEX($O$76:$O$99,HOUR($A233)+1,1),INDEX($O$101:$O$124,HOUR($A233)+1,1)) -> 2821.096202
A234: 2014-01-03T19:00:00 | B234: 5 | C234: 3 | D234: 0 | E234: 0 | F234: 1 | G234: =DemandParameters!$C$30*INDEX($N$47:$N$53,$B234,1)*INDEX($N$61:$N$72,MONTH($A234),1)*IF($B234<=5,INDEX($O$76:$O$99,HOUR($A234)+1,1),INDEX($O$101:$O$124,HOUR($A234)+1,1)) -> 659.8977326 | K234: =DemandParameters!$D$30*INDEX($N$47:$N$53,$B234,1)*INDEX($N$61:$N$72,MONTH($A234),1)*IF($B234<=5,INDEX($O$76:$O$99,HOUR($A234)+1,1),INDEX($O$101:$O$124,HOUR($A234)+1,1)) -> 791.8772791 | O234: =DemandParameters!$E$30*INDEX($N$47:$N$53,$B234,1)*INDEX($N$61:$N$72,MONTH($A234),1)*IF($B234<=5,INDEX($O$76:$O$99,HOUR($A234)+1,1),INDEX($O$101:$O$124,HOUR($A234)+1,1)) -> 983.5014284 | S234: =DemandParameters!$F$30*INDEX($N$47:$N$53,$B234,1)*INDEX($N$61:$N$72,MONTH($A234),1)*IF($B234<=5,INDEX($O$76:$O$99,HOUR($A234)+1,1),INDEX($O$101:$O$124,HOUR($A234)+1,1)) -> 1967.002857
A235: 2014-01-03T20:00:00 | B235: 5 | C235: 3 | D235: 0 | E235: 0 | F235: 1 | G235: =DemandParameters!$C$30*INDEX($N$47:$N$53,$B235,1)*INDEX($N$61:$N$72,MONTH($A235),1)*IF($B235<=5,INDEX($O$76:$O$99,HOUR($A235)+1,1),INDEX($O$101:$O$124,HOUR($A235)+1,1)) -> 513.3743874 | K235: =DemandParameters!$D$30*INDEX($N$47:$N$53,$B235,1)*INDEX($N$61:$N$72,MONTH($A235),1)*IF($B235<=5,INDEX($O$76:$O$99,HOUR($A235)+1,1),INDEX($O$101:$O$124,HOUR($A235)+1,1)) -> 616.0492648 | O235: =DemandParameters!$E$30*INDEX($N$47:$N$53,$B235,1)*INDEX($N$61:$N$72,MONTH($A235),1)*IF($B235<=5,INDEX($O$76:$O$99,HOUR($A235)+1,1),INDEX($O$101:$O$124,HOUR($A235)+1,1)) -> 765.1252889 | S235: =DemandParameters!$F$30*INDEX($N$47:$N$53,$B235,1)*INDEX($N$61:$N$72,MONTH($A235),1)*IF($B235<=5,INDEX($O$76:$O$99,HOUR($A235)+1,1),INDEX($O$101:$O$124,HOUR($A235)+1,1)) -> 1530.250578
A236: 2014-01-03T21:00:00 | B236: 5 | C236: 3 | D236: 0 | E236: 0 | F236: 1 | G236: =DemandParameters!$C$30*INDEX($N$47:$N$53,$B236,1)*INDEX($N$61:$N$72,MONTH($A236),1)*IF($B236<=5,INDEX($O$76:$O$99,HOUR($A236)+1,1),INDEX($O$101:$O$124,HOUR($A236)+1,1)) -> 387.4728463 | K236: =DemandParameters!$D$30*INDEX($N$47:$N$53,$B236,1)*INDEX($N$61:$N$72,MONTH($A236),1)*IF($B236<=5,INDEX($O$76:$O$99,HOUR($A236)+1,1),INDEX($O$101:$O$124,HOUR($A236)+1,1)) -> 464.9674155 | O236: =DemandParameters!$E$30*INDEX($N$47:$N$53,$B236,1)*INDEX($N$61:$N$72,MONTH($A236),1)*IF($B236<=5,INDEX($O$76:$O$99,HOUR($A236)+1,1),INDEX($O$101:$O$124,HOUR($A236)+1,1)) -> 577.483569 | S236: =DemandParameters!$F$30*INDEX($N$47:$N$53,$B236,1)*INDEX($N$61:$N$72,MONTH($A236),1)*IF($B236<=5,INDEX($O$76:$O$99,HOUR($A236)+1,1),INDEX($O$101:$O$124,HOUR($A236)+1,1)) -> 1154.967138
A237: 2014-01-03T22:00:00 | B237: 5 | C237: 3 | D237: 0 | E237: 0 | F237: 1 | G237: =DemandParameters!$C$30*INDEX($N$47:$N$53,$B237,1)*INDEX($N$61:$N$72,MONTH($A237),1)*IF($B237<=5,INDEX($O$76:$O$99,HOUR($A237)+1,1),INDEX($O$101:$O$124,HOUR($A237)+1,1)) -> 257.2298727 | K237: =DemandParameters!$D$30*INDEX($N$47:$N$53,$B237,1)*INDEX($N$61:$N$72,MONTH($A237),1)*IF($B237<=5,INDEX($O$76:$O$99,HOUR($A237)+1,1),INDEX($O$101:$O$124,HOUR($A237)+1,1)) -> 308.6758473 | O237: =DemandParameters!$E$30*INDEX($N$47:$N$53,$B237,1)*INDEX($N$61:$N$72,MONTH($A237),1)*IF($B237<=5,INDEX($O$76:$O$99,HOUR($A237)+1,1),INDEX($O$101:$O$124,HOUR($A237)+1,1)) -> 383.3714449 | S237: =DemandParameters!$F$30*INDEX($N$47:$N$53,$B237,1)*INDEX($N$61:$N$72,MONTH($A237),1)*IF($B237<=5,INDEX($O$76:$O$99,HOUR($A237)+1,1),INDEX($O$101:$O$124,HOUR($A237)+1,1)) -> 766.7428899
A238: 2014-01-03T23:00:00 | B238: 5 | C238: 3 | D238: 0 | E238: 0 | F238: 1 | G238: =DemandParameters!$C$30*INDEX($N$47:$N$53,$B238,1)*INDEX($N$61:$N$72,MONTH($A238),1)*IF($B238<=5,INDEX($O$76:$O$99,HOUR($A238)+1,1),INDEX($O$101:$O$124,HOUR($A238)+1,1)) -> 157.3769264 | K238: =DemandParameters!$D$30*INDEX($N$47:$N$53,$B238,1)*INDEX($N$61:$N$72,MONTH($A238),1)*IF($B238<=5,INDEX($O$76:$O$99,HOUR($A238)+1,1),INDEX($O$101:$O$124,HOUR($A238)+1,1)) -> 188.8523116 | O238: =DemandParameters!$E$30*INDEX($N$47:$N$53,$B238,1)*INDEX($N$61:$N$72,MONTH($A238),1)*IF($B238<=5,INDEX($O$76:$O$99,HOUR($A238)+1,1),INDEX($O$101:$O$124,HOUR($A238)+1,1)) -> 234.5521499 | S238: =DemandParameters!$F$30*INDEX($N$47:$N$53,$B238,1)*INDEX($N$61:$N$72,MONTH($A238),1)*IF($B238<=5,INDEX($O$76:$O$99,HOUR($A238)+1,1),INDEX($O$101:$O$124,HOUR($A238)+1,1)) -> 469.1042997
A239: 2014-01-04 | B239: 6 | C239: 3 | D239: 0 | E239: 0 | F239: 1 | G239: =DemandParameters!$C$30*INDEX($N$47:$N$53,$B239,1)*INDEX($N$61:$N$72,MONTH($A239),1)*IF($B239<=5,INDEX($O$76:$O$99,HOUR($A239)+1,1),INDEX($O$101:$O$124,HOUR($A239)+1,1)) -> 177.5311621 | K239: =DemandParameters!$D$30*INDEX($N$47:$N$53,$B239,1)*INDEX($N$61:$N$72,MONTH($A239),1)*IF($B239<=5,INDEX($O$76:$O$99,HOUR($A239)+1,1),INDEX($O$101:$O$124,HOUR($A239)+1,1)) -> 213.0373945 | O239: =DemandParameters!$E$30*INDEX($N$47:$N$53,$B239,1)*INDEX($N$61:$N$72,MONTH($A239),1)*IF($B239<=5,INDEX($O$76:$O$99,HOUR($A239)+1,1),INDEX($O$101:$O$124,HOUR($A239)+1,1)) -> 264.5897127 | S239: =DemandParameters!$F$30*INDEX($N$47:$N$53,$B239,1)*INDEX($N$61:$N$72,MONTH($A239),1)*IF($B239<=5,INDEX($O$76:$O$99,HOUR($A239)+1,1),INDEX($O$101:$O$124,HOUR($A239)+1,1)) -> 529.1794254
... 4261 more rows

Sheet CostParameters
A1: Cost Parameters | C1: This sheet defines the basic cost parameters used in the benefit-cost analysis. You may either use the default values or override the defaults with your own values. Note that all costs must be in the same year dollars, preferably in base year dollars. Consult the Bureau of Labor Statistics web site for latest information on the consumer price index to adjust values to current year: http://www.bls.gov/cpi/
A3: Type | C3: Category | D3: Unit valuation | E3: Default value | F3: Override value | G3: Use value | H3: Override date | I3: Notes/References
A4: Existing (Base) year for discounting | C4: N/A | D4: N/A | E4: N/A | F4: =IF(ISNUMBER(DemandParameters!$C$29),DemandParameters!$C$29,"--") -> 2020 | G4: =F4 -> 2020 | I4: All costs will be discounted to the Base Year for Discounting. Enter the year in the "Override Value" column.
A5: Opening Year | C5: N/A | D5: N/A | E5: N/A | F5: =IF(ISNUMBER(DemandParameters!$C$29),DemandParameters!$C$29,"--") -> 2020 | G5: =F5 -> 2020
A6: Design Year | C6: N/A | D6: N/A | E6: N/A | F6: =IF(ISNUMBER(DemandParameters!$D$29),DemandParameters!$D$29,"--") -> 2040 | G6: =F6 -> 2040
A7: Discount rate | C7: N/A | D7: Percent | E7: 0.04 | G7: =IF(ISBLANK(F7),E7,F7) -> 0.04 | I7: FDOT
A8: Value of time | C8: Person (weekday) | D8: $ per person hour | E8: 20.17 | G8: =IF(ISBLANK(F8),E8,F8) -> 20.17 | I8: 2021 TTI Urban Mobility Report
C9: Person (weekend) | D9: $ per person hour | E9: 20.17 | G9: =IF(ISBLANK(F9),E9,F9) -> 20.17
C10: Trucks | D10: $ per truck hour | E10: 55.24 | G10: =IF(ISBLANK(F10),E10,F10) -> 55.24
A11: Crashes | C11: =CrashTypeLabel_KABC -> Fatal & Injury Crashes | D11: $ per crash | E11: 313236.15 | G11: =IF(IsChecked_CrashCategories_KABCO,IF(ISBLANK(F11),E11,F11),"") -> 313236.15 | I11: FDOT CAR System, 2011-2014 (weighted average of KABC at intersections)
C12: =CrashTypeLabel_PDO -> Property damage only crashes | D12: $ per crash | E12: 7700 | G12: =IF(IsChecked_CrashCategories_KABCO,IF(ISBLANK(F12),E12,F12),"") -> 7700 | I12: FDOT
A16: Planning & construction costs | B16: Units | D16: =AGI_Label_MinorStop -> Minor Road Stop | E16: =AGI_Label_AllStop -> All Way Stop | F16: =AGI_Label_TrafficSignal -> Traffic Signal | G16: =AGI_Label_Rdbt -> Roundabout | H16: =AGI_Label_DLT -> Displaced Left Turn (DLT) | I16: =AGI_Label_MUT -> Median U-Turn (MUT) | J16: Signalized RCUT | K16: Unsignalized RCUT | L16: =AGI_Label_GreenT -> Continuous Green-T Intersection | M16: =AGI_Label_Jughandle -> Jughandle | N16: =AGI_Label_Quadrant -> Quadrant Roadway Intersection
A18: Total | B18: Dollars | D18: 0 | E18: 0 | F18: 0 | G18: 0 | H18: 0 | I18: 0 | J18: 0 | K18: 0 | L18: 0 | M18: 0 | N18: 0
A19: Survey | B19: Dollars | D19: 0 | E19: 0 | F19: 0 | G19: 0 | H19: 0 | I19: 0 | J19: 0 | K19: 0 | L19: 0 | M19: 0 | N19: 0
A20: Right of way | B20: Dollars | D20: 0 | E20: 0 | F20: 0 | G20: 0 | H20: 0 | I20: 0 | J20: 0 | K20: 0 | L20: 0 | M20: 0 | N20: 0
A21: Equipment, signs | B21: Dollars | D21: 0 | E21: 0 | F21: 0 | G21: 0 | H21: 0 | I21: 0 | J21: 0 | K21: 0 | L21: 0 | M21: 0 | N21: 0
A22: Utilities | B22: Dollars | D22: 0 | E22: 0 | F22: 0 | G22: 0 | H22: 0 | I22: 0 | J22: 0 | K22: 0 | L22: 0 | M22: 0 | N22: 0
A23: Construction | B23: Dollars | D23: 0 | E23: 0 | F23: 0 | G23: 0 | H23: 0 | I23: 0 | J23: 0 | K23: 0 | L23: 0 | M23: 0 | N23: 0
A24: Landscaping | B24: Dollars | D24: 0 | E24: 0 | F24: 0 | G24: 0 | H24: 0 | I24: 0 | J24: 0 | K24: 0 | L24: 0 | M24: 0 | N24: 0
A25: =DefinedAlternative_OtherPlanningConstructionCosts_Prompt -> (Other planning & construction costs) | B25: Dollars
A26: (Other planning & construction costs) | B26: Dollars
A27: (Other planning & construction costs) | B27: Dollars
A28: (Other planning & construction costs) | B28: Dollars
A29: (Other planning & construction costs) | B29: Dollars
A30: (Other planning & construction costs) | B30: Dollars
A31: (Other planning & construction costs) | B31: Dollars
A32: (Other planning & construction costs) | B32: Dollars
A33: (Other planning & construction costs) | B33: Dollars
A34: (Other planning & construction costs) | B34: Dollars
A35: Operating & maintenance costs | B35: Units
A36: Power | B36: Dollars | D36: 0 | E36: 0 | F36: 0 | G36: 0 | H36: 0 | I36: 0 | J36: 0 | K36: 0 | L36: 0 | M36: 0 | N36: 0
A37: Inspection | B37: Dollars | D37: 0 | E37: 0 | F37: 0 | G37: 0 | H37: 0 | I37: 0 | J37: 0 | K37: 0 | L37: 0 | M37: 0 | N37: 0
A38: Repaving | B38: Dollars | D38: 0 | E38: 0 | F38: 0 | G38: 0 | H38: 0 | I38: 0 | J38: 0 | K38: 0 | L38: 0 | M38: 0 | N38: 0
A39: Signing, striping | B39: Dollars | D39: 0 | E39: 0 | F39: 0 | G39: 0 | H39: 0 | I39: 0 | J39: 0 | K39: 0 | L39: 0 | M39: 0 | N39: 0
A40: =DefinedAlternative_OtherOMCosts_Prompt -> (Other O&M costs) | B40: Dollars | D40: 0 | E40: 0 | F40: 0 | G40: 0 | H40: 0 | I40: 0 | J40: 0 | K40: 0 | L40: 0 | M40: 0 | N40: 0
A41: (Other O&M costs) | B41: Dollars | D41: 0 | E41: 0 | F41: 0 | G41: 0 | H41: 0 | I41: 0 | J41: 0 | K41: 0 | L41: 0 | M41: 0 | N41: 0
A42: (Other O&M costs) | B42: Dollars | D42: 0 | E42: 0 | F42: 0 | G42: 0 | H42: 0 | I42: 0 | J42: 0 | K42: 0 | L42: 0 | M42: 0 | N42: 0
A43: (Other O&M costs) | B43: Dollars | D43: 0 | E43: 0 | F43: 0 | G43: 0 | H43: 0 | I43: 0 | J43: 0 | K43: 0 | L43: 0 | M43: 0 | N43: 0
C44: These following values define the planning & construction and the operating & maintenance costs of the control strategy alternatives. A single total cost is required for planning and construction. Default values are provided for all operating & maintenance cost, but can be overridden by the user.
A45: At-Grade Intersections | B45: Total Design & Construction | C45: Total Right of Way Costs | D45: Operating & Maintenance | E45: Signal Retiming | F45: Lighting | G45: Signal Maintenance | H45: Roundabout Landscaping | I45: Other | J45: Other 2 | K45: Other 3 | L45: Other 4 | M45: Other 5 | N45: Other 6
A47: =Alternatives_MasterList!D36 -> Two-Way Stop Control | B47: 0 | C47: 0 | D47: Cost | E47: 0 | F47: 1000 | G47: 0 | H47: 0 | I47: 0 | J47: 0 | K47: 0 | L47: 0 | M47: 0 | N47: 0
D48: Period | E48: 1 | F48: 1 | G48: 1 | H48: 1 | I48: 1 | J48: 1 | K48: 1 | L48: 1 | M48: 1 | N48: 1
A49: =Alternatives_MasterList!D37 -> All Way Stop | B49: 0 | C49: 0 | D49: Cost | E49: 0 | F49: 1000 | G49: 0 | H49: 0 | I49: 0 | J49: 0 | K49: 0 | L49: 0 | M49: 0 | N49: 0
D50: Period | E50: 1 | F50: 1 | G50: 1 | H50: 1 | I50: 1 | J50: 1 | K50: 1 | L50: 1 | M50: 1 | N50: 1
A51: =Alternatives_MasterList!D38 -> Traffic Signal | B51: 0 | C51: 0 | D51: Cost | E51: 5000 | F51: 1000 | G51: 4000 | H51: 0 | I51: 0 | J51: 0 | K51: 0 | L51: 0 | M51: 0 | N51: 0
D52: Period | E52: 3 | F52: 1 | G52: 1 | H52: 1 | I52: 1 | J52: 1 | K52: 1 | L52: 1 | M52: 1 | N52: 1
A53: =Alternatives_MasterList!D39 -> Traffic Signal (Alt.) | B53: 0 | C53: 0 | D53: Cost | E53: 5000 | F53: 1000 | G53: 4000 | H53: 0 | I53: 0 | J53: 0 | K53: 0 | L53: 0 | M53: 0 | N53: 0
D54: Period | E54: 3 | F54: 1 | G54: 1 | H54: 1 | I54: 1 | J54: 1 | K54: 1 | L54: 1 | M54: 1 | N54: 1
A55: =Alternatives_MasterList!D40 -> Roundabout | B55: 0 | C55: 0 | D55: Cost | E55: 0 | F55: 3000 | G55: 0 | H55: 2000 | I55: 0 | J55: 0 | K55: 0 | L55: 0 | M55: 0 | N55: 0
D56: Period | E56: 1 | F56: 1 | G56: 1 | H56: 1 | I56: 1 | J56: 1 | K56: 1 | L56: 1 | M56: 1 | N56: 1
A57: =Alternatives_MasterList!D41 -> Displaced Left Turn (DLT) | B57: 0 | C57: 0 | D57: Cost | E57: =E51+0.75*E51+0.75*E51 -> 12500 | F57: 2000 | G57: =G$51+0.75*G$51+0.75*G$51 -> 10000 | H57: 0 | I57: 0 | J57: 0 | K57: 0 | L57: 0 | M57: 0 | N57: 0
D58: Period | E58: 3 | F58: 1 | G58: 1 | H58: 1 | I58: 1 | J58: 1 | K58: 1 | L58: 1 | M58: 1 | N58: 1
A59: =Alternatives_MasterList!D42 -> Median U-Turn (MUT) | B59: 0 | C59: 0 | D59: Cost | E59: =E51+0.75*E51+0.75*E51 -> 12500 | F59: 2000 | G59: =G$51+0.75*G$51+0.75*G$51 -> 10000 | H59: 0 | I59: 0 | J59: 0 | K59: 0 | L59: 0 | M59: 0 | N59: 0
D60: Period | E60: 3 | F60: 1 | G60: 1 | H60: 1 | I60: 1 | J60: 1 | K60: 1 | L60: 1 | M60: 1 | N60: 1
A61: =Alternatives_MasterList!D43 -> Signalized Restricted Crossing U-Turn (RCUT) | B61: 0 | C61: 0 | D61: Cost | E61: =E51+0.75*E51+0.75*E51 -> 12500 | F61: 2000 | G61: =G$51+0.75*G$51+0.75*G$51 -> 10000 | H61: 0 | I61: 0 | J61: 0 | K61: 0 | L61: 0 | M61: 0 | N61: 0
D62: Period | E62: 3 | F62: 1 | G62: 1 | H62: 1 | I62: 1 | J62: 1 | K62: 1 | L62: 1 | M62: 1 | N62: 1
A63: =Alternatives_MasterList!D44 -> Unsignalized Restricted Crossing U-Turn (RCUT) | B63: 0 | C63: 0 | D63: Cost | E63: 0 | F63: 2000 | G63: 0 | H63: 0 | I63: 0 | J63: 0 | K63: 0 | L63: 0 | M63: 0 | N63: 0
D64: Period | E64: 1 | F64: 1 | G64: 1 | H64: 1 | I64: 1 | J64: 1 | K64: 1 | L64: 1 | M64: 1 | N64: 1
A65: =Alternatives_MasterList!D45 -> Continuous Green-T Intersection | B65: 0 | C65: 0 | D65: Cost | E65: =E51 -> 5000 | F65: 1000 | G65: =G51 -> 4000 | H65: 0 | I65: 0 | J65: 0 | K65: 0 | L65: 0 | M65: 0 | N65: 0
D66: Period | E66: 3 | F66: 1 | G66: 1 | H66: 1 | I66: 1 | J66: 1 | K66: 1 | L66: 1 | M66: 1 | N66: 1
A67: =Alternatives_MasterList!D46 -> Jughandle | B67: 0 | C67: 0 | D67: Cost | E67: =E51 -> 5000 | F67: 750 | G67: =G51 -> 4000 | H67: 0 | I67: 0 | J67: 0 | K67: 0 | L67: 0 | M67: 0 | N67: 0
D68: Period | E68: 3 | F68: 1 | G68: 1 | H68: 1 | I68: 1 | J68: 1 | K68: 1 | L68: 1 | M68: 1 | N68: 1
A69: =Alternatives_MasterList!D47 -> Quadrant Roadway Intersection | B69: 0 | C69: 0 | D69: Cost | E69: 15000 | F69: 3000 | G69: 12000 | H69: 0 | I69: 0 | J69: 0 | K69: 0 | L69: 0 | M69: 0 | N69: 0
D70: Period | E70: 3 | F70: 1 | G70: 1 | H70: 1 | I70: 0 | J70: 0 | K70: 0 | L70: 0 | M70: 0 | N70: 0
A71: =Alternatives_MasterList!D48 -> Other 1 | B71: 0 | C71: 0 | D71: Cost | E71: 0 | F71: 0 | G71: 0 | H71: 0 | I71: 0 | J71: 0 | K71: 0 | L71: 0 | M71: 0 | N71: 0
D72: Period | E72: 3 | F72: 1 | G72: 1 | H72: 1 | I72: 0 | J72: 0 | K72: 0 | L72: 0 | M72: 0 | N72: 0
A73: =Alternatives_MasterList!D49 -> Other 2 | B73: 0 | C73: 0 | D73: Cost | E73: 0 | F73: 0 | G73: 0 | H73: 0 | I73: 0 | J73: 0 | K73: 0 | L73: 0 | M73: 0 | N73: 0
D74: Period | E74: 3 | F74: 1 | G74: 1 | H74: 1 | I74: 0 | J74: 0 | K74: 0 | L74: 0 | M74: 0 | N74: 0
A76: Ramp Terminal Intersections | B76: Total Design & Construction | C76: Total Right of Way Costs | D76: Operating & Maintenance | E76: Signal Retiming | F76: Power | G76: Lighting | H76: Signal Maintenance | I76: Roundabout Landscaping | J76: Other | K76: Other 2 | L76: Other 3 | M76: Other 4 | N76: Other 5
A78: =Alternatives_MasterList!D56 -> Conventional Traffic Signal | B78: 0 | C78: 0 | D78: Cost | E78: 7500 | F78: 0 | G78: 2000 | H78: 6000 | I78: 0 | J78: 0 | K78: 0 | L78: 0 | M78: 0 | N78: 0
D79: Period | E79: 3 | F79: 1 | G79: 1 | H79: 1 | I79: 1 | J79: 1 | K79: 1 | L79: 1 | M79: 1 | N79: 1
A80: =Alternatives_MasterList!D57 -> Conventional Traffic Signal (Alt.) | B80: 0 | C80: 0 | D80: Cost | E80: 7500 | F80: 0 | G80: 2000 | H80: 6000 | I80: 0 | J80: 0 | K80: 0 | L80: 0 | M80: 0 | N80: 0
D81: Period | E81: 3 | F81: 1 | G81: 1 | H81: 1 | I81: 1 | J81: 1 | K81: 1 | L81: 1 | M81: 1 | N81: 1
A82: =Alternatives_MasterList!D58 -> Minor Road (ramp) Stop | B82: 0 | C82: 0 | D82: Cost | E82: 0 | F82: 0 | G82: 2000 | H82: 0 | I82: 0 | J82: 0 | K82: 0 | L82: 0 | M82: 0 | N82: 0
D83: Period | E83: 1 | F83: 1 | G83: 1 | H83: 1 | I83: 1 | J83: 1 | K83: 1 | L83: 1 | M83: 1 | N83: 1
A84: =Alternatives_MasterList!D59 -> Crossover Traffic Signal (of DDI) | B84: 0 | C84: 0 | D84: Cost | E84: 10000 | F84: 0 | G84: 2000 | H84: 6000 | I84: 0 | J84: 0 | K84: 0 | L84: 0 | M84: 0 | N84: 0
D85: Period | E85: 3 | F85: 1 | G85: 1 | H85: 1 | I85: 1 | J85: 1 | K85: 1 | L85: 1 | M85: 1 | N85: 1
A86: =Alternatives_MasterList!D60 -> Single-Point Diamond Traffic Signal | B86: 0 | C86: 0 | D86: Cost | E86: 5000 | F86: 0 | G86: 2000 | H86: 4000 | I86: 0 | J86: 0 | K86: 0 | L86: 0 | M86: 0 | N86: 0
D87: Period | E87: 3 | F87: 1 | G87: 1 | H87: 1 | I87: 1 | J87: 1 | K87: 1 | L87: 1 | M87: 1 | N87: 1
A88: =Alternatives_MasterList!D61 -> 1-lane Roundabout | B88: 0 | C88: 0 | D88: Cost | E88: 0 | F88: 0 | G88: 4000 | H88: 0 | I88: 4000 | J88: 0 | K88: 0 | L88: 0 | M88: 0 | N88: 0
D89: Period | E89: 1 | F89: 1 | G89: 1 | H89: 1 | I89: 1 | J89: 1 | K89: 1 | L89: 1 | M89: 1 | N89: 1
A90: =Alternatives_MasterList!D62 -> 2-lane Roundabout | B90: 0 | C90: 0 | D90: Cost | E90: 0 | F90: 0 | G90: 4000 | H90: 0 | I90: 4000 | J90: 0 | K90: 0 | L90: 0 | M90: 0 | N90: 0
D91: Period | E91: 1 | F91: 1 | G91: 1 | H91: 1 | I91: 1 | J91: 1 | K91: 1 | L91: 1 | M91: 1 | N91: 1
A92: =Alternatives_MasterList!D63 -> Other 1 | B92: 0 | C92: 0 | D92: Cost | F92: 0 | G92: 2000 | H92: =H82+0.75*H82+0.75*H82 -> 0 | I92: 0 | J92: 0 | K92: 0 | L92: 0 | M92: 0 | N92: 0
D93: Period | E93: 3 | F93: 1 | G93: 1 | H93: 1 | I93: 1 | J93: 1 | K93: 1 | L93: 1 | M93: 1 | N93: 1
A94: =Alternatives_MasterList!D64 -> Other 2 | B94: 0 | C94: 0 | D94: Cost | F94: 0 | G94: 2000 | H94: 3750 | I94: 0 | J94: 0 | K94: 0 | L94: 0 | M94: 0 | N94: 0
D95: Period | E95: 3 | F95: 1 | G95: 1 | H95: 1 | I95: 1 | J95: 1 | K95: 1 | L95: 1 | M95: 1 | N95: 1
B96: 0 | C96: 0 | D96: Cost | E96: =E82 -> 0 | F96: =F82 -> 0 | G96: 750 | H96: =H82 -> 0 | I96: 0 | J96: 0 | K96: 0 | L96: 0 | M96: 0 | N96: 0
D97: Period | E97: 3 | F97: 1 | G97: 1 | H97: 1 | I97: 1 | J97: 1 | K97: 1 | L97: 1 | M97: 1 | N97: 1
A100: Safety Information
A101: Enter safety information from the SPICE tool for Minor Road Stop, All Way Stop, and Traffic Signal. All-way stop and roundabout SPFs will be available by the end of 2017. For ease of data entry, this tool contains the same alternative intersection CMFs as the SPICE tool.
A103: At-Grade Intersection | B103: Crash Type | C103: Opening Year | D103: Design Year
A105: =A47 -> Two-Way Stop Control | B105: Total
B106: Fatal & Injury
A107: =A49 -> All Way Stop | B107: Total
B108: Fatal & Injury
A109: =A51 -> Traffic Signal | B109: Total
B110: Fatal & Injury
A111: =A53 -> Traffic Signal (Alt.) | B111: Total
B112: Fatal & Injury
A113: =A55 -> Roundabout | B113: Total | M113: =IF(F114=NumericValues!A70,200,100)+IF(G114=NumericValues!A73,30,IF(G114=NumericValues!A74,20,10))+H114 -> 110
B114: Fatal & Injury
A115: =A57 -> Displaced Left Turn (DLT) | B115: Total | C115: =IF(ISNUMBER(Safety_Total_Open_A3),Safety_Total_Open_A3*Safety_CMF_Total_A6, "") ->  | D115: =IF(ISNUMBER(Safety_Total_Design_A3),Safety_Total_Design_A3*Safety_CMF_Total_A6, "") ->  | I115: CMFs | J115: =A115 -> Displaced Left Turn (DLT) | K115: Total | L115: 0.88 | M115: This table contains the same CMFs as the FDOT SPICE tool. The CMFs are automatically applied to the user inputs for Traffic Signal or Minor Road Stop, an can be overridden at the user's discretion.
B116: Fatal & Injury | C116: =IF(ISNUMBER(Safety_FI_Open_A3),Safety_FI_Open_A3*Safety_CMF_FI_A6, "") ->  | D116: =IF(ISNUMBER(Safety_FI_Design_A3),Safety_FI_Design_A3*Safety_CMF_FI_A6, "") ->  | K116: Fatal & Injury | L116: 0.88
A117: =A59 -> Median U-Turn (MUT) | B117: Total | C117: =IF(ISNUMBER(Safety_Total_Open_A3),Safety_Total_Open_A3*Safety_CMF_Total_A7, "") ->  | D117: =IF(ISNUMBER(Safety_Total_Design_A3),Safety_Total_Design_A3*Safety_CMF_Total_A7, "") ->  | J117: =A117 -> Median U-Turn (MUT) | K117: Total | L117: 0.85
B118: Fatal & Injury | C118: =IF(ISNUMBER(Safety_FI_Open_A3),Safety_FI_Open_A3*Safety_CMF_FI_A7, "") ->  | D118: =IF(ISNUMBER(Safety_FI_Design_A3),Safety_FI_Design_A3*Safety_CMF_FI_A7, "") ->  | K118: Fatal & Injury | L118: 0.7
A119: =A61 -> Signalized Restricted Crossing U-Turn (RCUT) | B119: Total | J119: =A119 -> Signalized Restricted Crossing U-Turn (RCUT) | K119: Total | L119: 0.85
B120: Fatal & Injury | K120: Fatal & Injury | L120: 0.78
A121: =A63 -> Unsignalized Restricted Crossing U-Turn (RCUT) | B121: Total | J121: =A121 -> Unsignalized Restricted Crossing U-Turn (RCUT) | K121: Total | L121: 0.65
B122: Fatal & Injury | K122: Fatal & Injury | L122: 0.46
A123: =A65 -> Continuous Green-T Intersection | B123: Total | C123: =IF(ISNUMBER(Safety_Total_Open_A3),Safety_Total_Open_A3*Safety_CMF_Total_A10, "") ->  | D123: =IF(ISNUMBER(Safety_Total_Design_A3),Safety_Total_Design_A3*Safety_CMF_Total_A10, "") ->  | J123: =A123 -> Continuous Green-T Intersection | K123: Total | L123: 0.96
B124: Fatal & Injury | C124: =IF(ISNUMBER(Safety_FI_Open_A3),Safety_FI_Open_A3*Safety_CMF_FI_A10, "") ->  | D124: =IF(ISNUMBER(Safety_FI_Design_A3),Safety_FI_Design_A3*Safety_CMF_FI_A10, "") ->  | K124: Fatal & Injury | L124: 0.85
A125: =A67 -> Jughandle | B125: Total | C125: =IF(ISNUMBER(Safety_Total_Open_A3),Safety_Total_Open_A3*Safety_CMF_Total_A11, "") ->  | D125: =IF(ISNUMBER(Safety_Total_Design_A3),Safety_Total_Design_A3*Safety_CMF_Total_A11, "") ->  | J125: =A125 -> Jughandle | K125: Total | L125: 0.74
B126: Fatal & Injury | C126: =IF(ISNUMBER(Safety_FI_Open_A3),Safety_FI_Open_A3*Safety_CMF_FI_A11, "") ->  | D126: =IF(ISNUMBER(Safety_FI_Design_A3),Safety_FI_Design_A3*Safety_CMF_FI_A11, "") ->  | K126: Fatal & Injury | L126: 0.74
A127: =A69 -> Quadrant Roadway Intersection | B127: Total | J127: =A127 -> Quadrant Roadway Intersection | K127: Total | L127: --
B128: Fatal & Injury | K128: Fatal & Injury | L128: --
A129: =A71 -> Other 1 | B129: Total | J129: =A129 -> Other 1 | K129: Total | L129: --
B130: Fatal & Injury | K130: Fatal & Injury | L130: --
A131: =A73 -> Other 2 | B131: Total | J131: =A131 -> Other 2 | K131: Total | L131: --
B132: Fatal & Injury | K132: Fatal & Injury | L132: --
A135: Ramp Terminal Intersection | B135: Crash Type | C135: Opening Year | D135: Design Year
A137: =A78 -> Conventional Traffic Signal | B137: Total
B138: Fatal & Injury
A139: =A80 -> Conventional Traffic Signal (Alt.) | B139: Total
B140: Fatal & Injury
A141: =A82 -> Minor Road (ramp) Stop | B141: Total
B142: Fatal & Injury
A143: =A84 -> Crossover Traffic Signal (of DDI) | B143: Total
B144: Fatal & Injury
A145: =A86 -> Single-Point Diamond Traffic Signal | B145: Total | C145: =IF(ISNUMBER(Safety_RTI_Total_Open_A1),Safety_RTI_Total_Open_A1*Safety_RTI_CMF_Total_A5, "") ->  | D145: =IF(ISNUMBER(Safety_RTI_Total_Design_A1),Safety_RTI_Total_Design_A1*Safety_RTI_CMF_Total_A5, "") ->  | I145: CMFs | J145: =A145 -> Single-Point Diamond Traffic Signal | K145: Total | L145: --
B146: Fatal & Injury | C146: =IF(ISNUMBER(Safety_RTI_FI_Open_A1),Safety_RTI_FI_Open_A1*Safety_RTI_CMF_FI_A5, "") ->  | D146: =IF(ISNUMBER(Safety_RTI_FI_Design_A1),Safety_RTI_FI_Design_A1*Safety_RTI_CMF_FI_A5, "") ->  | K146: Fatal & Injury | L146: --
A147: =A88 -> 1-lane Roundabout | B147: Total | J147: =A147 -> 1-lane Roundabout | K147: Total | L147: --
B148: Fatal & Injury | K148: Fatal & Injury | L148: --
A149: =A90 -> 2-lane Roundabout | B149: Total | J149: =A149 -> 2-lane Roundabout | K149: Total | L149: --
B150: Fatal & Injury | K150: Fatal & Injury | L150: --
A151: =A92 -> Other 1 | B151: Total | C151: =IF(ISNUMBER(Safety_RTI_Total_Open_A1),Safety_RTI_Total_Open_A1*Safety_RTI_CMF_Total_A8, "") ->  | D151: =IF(ISNUMBER(Safety_RTI_Total_Design_A1),Safety_RTI_Total_Design_A1*Safety_RTI_CMF_Total_A8, "") ->  | J151: =A151 -> Other 1 | K151: Total | L151: --
B152: Fatal & Injury | C152: =IF(ISNUMBER(Safety_RTI_FI_Open_A1),Safety_RTI_FI_Open_A1*Safety_RTI_CMF_FI_A8, "") ->  | D152: =IF(ISNUMBER(Safety_RTI_FI_Design_A1),Safety_RTI_FI_Design_A1*Safety_RTI_CMF_FI_A8, "") ->  | K152: Fatal & Injury | L152: --
A153: =A94 -> Other 2 | B153: Total | C153: =IF(ISNUMBER(Safety_RTI_Total_Open_A3),Safety_RTI_Total_Open_A3*Safety_RTI_CMF_Total_A9, "") ->  | D153: =IF(ISNUMBER(Safety_RTI_Total_Design_A3),Safety_RTI_Total_Design_A3*Safety_RTI_CMF_Total_A9, "") ->  | J153: =A153 -> Other 2 | K153: Total | L153: --
B154: Fatal & Injury | C154: =IF(ISNUMBER(Safety_RTI_FI_Open_A3),Safety_RTI_FI_Open_A3*Safety_RTI_CMF_FI_A9, "") ->  | D154: =IF(ISNUMBER(Safety_RTI_FI_Design_A3),Safety_RTI_FI_Design_A3*Safety_RTI_CMF_FI_A9, "") ->  | K154: Fatal & Injury | L154: --
B155: Total | C155: =IF(ISNUMBER(Safety_RTI_Total_Open_A3),Safety_RTI_Total_Open_A3*Safety_RTI_CMF_Total_A10, "") ->  | D155: =IF(ISNUMBER(Safety_RTI_Total_Design_A3),Safety_RTI_Total_Design_A3*Safety_RTI_CMF_Total_A10, "") ->  | K155: Total | L155: --
B156: Fatal & Injury | C156: =IF(ISNUMBER(Safety_RTI_FI_Open_A3),Safety_RTI_FI_Open_A3*Safety_RTI_CMF_FI_A10, "") ->  | D156: =IF(ISNUMBER(Safety_RTI_FI_Design_A3),Safety_RTI_FI_Design_A3*Safety_RTI_CMF_FI_A10, "") ->  | K156: Fatal & Injury | L156: --

Sheet Delay
A1: Delay Information | C1: Use this sheet to enter the delay information for each of the included control strategies.
E5: Opening Year | M5: Design Year
A7: At-Grade Intersections | E7: Average vehicle delay | H7: Standard deviation of vehicle travel time or delay | K7: Average bicycle delay | L7: Average pedestrian delay | M7: Average vehicle delay | P7: Standard deviation of vehicle travel time or delay | S7: Average bicycle delay | T7: Average pedestrian delay
A8: Control Strategy | C8: Delay Type | D8: Units | E8: AM peak | F8: PM peak | G8: Weekend peak | H8: AM peak | I8: PM peak | J8: Weekend peak | K8: All time periods | L8: All time periods | M8: AM peak | N8: PM peak | O8: Weekend peak | P8: AM peak | Q8: PM peak | R8: Weekend peak | S8: All time periods | T8: All time periods
A10: =Alternatives_MasterList!D36 -> Two-Way Stop Control | B10: Single Input | C10: Single Input | D10: sec/veh | AA10: =IF(OR(AND(ISNUMBER(O10),NOT(ISNUMBER(G10))),AND(ISNUMBER(G10),NOT(ISNUMBER(O10)))),"Weekend delays must be specified for both open and design years","") -> 
D11: sec/veh
D12: sec/veh
D13: sec/veh
D14: sec/veh
D15: sec/veh
A17: =Alternatives_MasterList!C37 -> AllStop | B17: Single Input | C17: Single Input | D17: sec/veh | AA17: =IF(OR(AND(ISNUMBER(O17),NOT(ISNUMBER(G17))),AND(ISNUMBER(G17),NOT(ISNUMBER(O17)))),"Weekend delays must be specified for both open and design years","") -> 
D18: sec/veh
D19: sec/veh
D20: sec/veh
D21: sec/veh
D22: sec/veh
A24: =Alternatives_MasterList!D38 -> Traffic Signal | B24: Single Input | C24: Single Input | D24: sec/veh | AA24: =IF(OR(AND(ISNUMBER(O24),NOT(ISNUMBER(G24))),AND(ISNUMBER(G24),NOT(ISNUMBER(O24)))),"Weekend delays must be specified for both open and design years","") -> 
D25: sec/veh
A27: =Alternatives_MasterList!D39 -> Traffic Signal (Alt.) | B27: Single Input | C27: Single Input | D27: sec/veh | AA27: =IF(OR(AND(ISNUMBER(O27),NOT(ISNUMBER(G27))),AND(ISNUMBER(G27),NOT(ISNUMBER(O27)))),"Weekend delays must be specified for both open and design years","") -> 
D28: sec/veh
A31: =Alternatives_MasterList!D40 -> Roundabout | B31: Single Input | C31: Single Input | D31: sec/veh | AA31: =IF(OR(AND(ISNUMBER(O31),NOT(ISNUMBER(G31))),AND(ISNUMBER(G31),NOT(ISNUMBER(O31)))),"Weekend delays must be specified for both open and design years","") -> 
D32: sec/veh
D33: sec/veh
D34: sec/veh
D35: sec/veh
D36: sec/veh
A38: =Alternatives_MasterList!D41 -> Displaced Left Turn (DLT) | C38: Signal 1 | D38: sec/veh
C39: Signal 2 | D39: sec/veh
C40: Signal 3 | D40: sec/veh
C41: Signal 4 | D41: sec/veh
B42: Single Input | C42: Single Input | D42: sec/veh | AA42: =IF(OR(AND(ISNUMBER(O42),NOT(ISNUMBER(G42))),AND(ISNUMBER(G42),NOT(ISNUMBER(O42)))),"Weekend delays must be specified for both open and design years","") -> 
A45: =Alternatives_MasterList!D42 -> Median U-Turn (MUT) | C45: Signal 1 | D45: sec/veh
C46: Signal 2 | D46: sec/veh
C47: Signal 3 | D47: sec/veh
C48: Signal 4 | D48: sec/veh
B49: Select | C49: Single Input | D49: sec/veh | E49: 20.11294669 | F49: 20.16954504 | M49: 20.1097255 | N49: 20.16667526 | AA49: =IF(OR(AND(ISNUMBER(O49),NOT(ISNUMBER(G49))),AND(ISNUMBER(G49),NOT(ISNUMBER(O49)))),"Weekend delays must be specified for both open and design years","") -> 
B50: Input Type
A52: =Alternatives_MasterList!D43 -> Signalized Restricted Crossing U-Turn (RCUT) | C52: Signal 1 | D52: sec/veh
C53: Signal 2 | D53: sec/veh
C54: Signal 3 | D54: sec/veh
C55: Signal 4 | D55: sec/veh
B56: Select | C56: Single Input | D56: sec/veh | E56: 23.72313596 | F56: 24.61754257 | M56: 58.84481273 | N56: 59.31049096 | AA56: =IF(OR(AND(ISNUMBER(O56),NOT(ISNUMBER(G56))),AND(ISNUMBER(G56),NOT(ISNUMBER(O56)))),"Weekend delays must be specified for both open and design years","") -> 
B57: Input Type
A59: =Alternatives_MasterList!D44 -> Unsignalized Restricted Crossing U-Turn (RCUT) | C59: Delay 1 | D59: sec/veh
C60: Delay 2 | D60: sec/veh
C61: Delay 3 | D61: sec/veh
C62: Delay 4 | D62: sec/veh
B63: Single Input | C63: Single Input | D63: sec/veh | AA63: =IF(OR(AND(ISNUMBER(O63),NOT(ISNUMBER(G63))),AND(ISNUMBER(G63),NOT(ISNUMBER(O63)))),"Weekend delays must be specified for both open and design years","") -> 
A66: =Alternatives_MasterList!D45 -> Continuous Green-T Intersection | B66: Single Input | C66: Single Input | D66: sec/veh | AA66: =IF(OR(AND(ISNUMBER(O66),NOT(ISNUMBER(G66))),AND(ISNUMBER(G66),NOT(ISNUMBER(O66)))),"Weekend delays must be specified for both open and design years","") -> 
A74: =Alternatives_MasterList!D46 -> Jughandle | B74: Single Input | C74: Single Input | D74: sec/veh | AA74: =IF(OR(AND(ISNUMBER(O74),NOT(ISNUMBER(G74))),AND(ISNUMBER(G74),NOT(ISNUMBER(O74)))),"Weekend delays must be specified for both open and design years","") -> 
H80: FALSE | I80: FALSE | J80: FALSE | P80: FALSE | Q80: FALSE | R80: FALSE
A81: =Alternatives_MasterList!D47 -> Quadrant Roadway Intersection | B81: Single Input | C81: Single Input | D81: sec/veh
A88: =Alternatives_MasterList!$D$48 -> Other 1 | B88: Single Input | C88: Single Input | D88: sec/veh
A95: =Alternatives_MasterList!$D$49 -> Other 2 | B95: Single Input | C95: Single Input | D95: sec/veh

Sheet Safety (hidden)

Sheet BaseCase (hidden)
A1: =AlternativeNumber_0&" - "&IF(OR(AlternativeShortName_0="",AlternativeShortName_0=Alternatives_DefaultAlternativeShortName),DefinedAlternative_Prompt_AlternativeShortName,AlternativeShortName_0) -> Base Case - 1 | E1: * Create these sheets but hide them
A3: Description: | B3: Base Case
A4: A summary of the net present value for this alternative is shown to the right in Column "J"
A5: Planning & construction period | B5: Begin planning & construction | D5: First year of planning & construction
A6: Operating period | B6: Opening year | C6: =IF(ISNUMBER(Alternatives_MasterList!D8),Alternatives_MasterList!D8,"") -> 2020 | D6: Travel time/delay and demand forecasts for the opening year must be provided. | J6: Net Present Value Summary
J8: Planning & Construction Costs | K8: =B127 -> 0
J9: Operating & Maintenance Costs | K9: =L146 -> 0
B10: End year | C10: =IF(ISNUMBER(Alternatives_MasterList!F8),Alternatives_MasterList!F8,"") -> 2040 | D10: Travel time/delay and demand forecasts for the end (horizon) year must be provided. | J10: Auto Passenger Time | K10: =IF(ISNUMBER(K162),IF(K162>0,K162,"--"),"--") -> 404435.0563 | L10: =IF(AND(ISNUMBER(K10),ISNUMBER(K11),ISNUMBER(K12),ISNUMBER(K13),ISNUMBER(K14),ISNUMBER(K15),ISNUMBER(K16),ISNUMBER(K17),ISNUMBER(K18),ISNUMBER(K19),ISNUMBER(K20)),"","Warning: A zero entry for a cost category indicates that the data needed to calculate that cost have either not been entered or have been entered incorrectly. If you believe this is an error please review your entries in this sheet.") -> Warning: A zero entry for a cost category indicates that the data needed to calculate that cost have either not been entered or have been entered incorrectly. If you believe this is an error please review your entries in this sheet.
A11: Worksheet setup | D11: Once you have entered begin planning & construction, opening, and end years, click this button to set up the worksheet. You may enter other inputs at any time. | J11: Auto Passenger Reliability | K11: --
A12: Planning & construction costs | B12: Units | F12: Notes | J12: Truck Time | K12: 22604.79042
J13: Truck Reliability | K13: --
A14: Planning, design | B14: Dollars | C14: 0 | J14: Transit Passenger Time | K14: --
A15: Survey | B15: Dollars | C15: 0 | J15: Transit Passenger Reliability | K15: --
A16: Right of way | B16: Dollars | C16: 0 | J16: Bicyclist Time | K16: --
A17: Equipment, signs | B17: Dollars | C17: 0 | J17: Pedestrian Time | K17: --
A18: Utilities | B18: Dollars | C18: 0 | J18: Safety | K18: --
A19: Construction | B19: Dollars | C19: 0 | J19: Greenhouse Gases | K19: --
A20: Landscaping | B20: Dollars | C20: 0 | J20: Criteria Pollutants | K20: --
A21: =DefinedAlternative_OtherPlanningConstructionCosts_Prompt -> (Other planning & construction costs) | B21: Dollars | J21: Total Net Present Value | K21: =SUM(K8:K20) -> 427039.8467
A22: (Other planning & construction costs) | B22: Dollars | J22: =IF(NOT(ISNUMBER(K21)),"If the total NPV seems wrong some entries may be missing, inconsistent, or wrong","") -> 
A23: (Other planning & construction costs) | B23: Dollars
A24: (Other planning & construction costs) | B24: Dollars
A25: (Other planning & construction costs) | B25: Dollars
A26: (Other planning & construction costs) | B26: Dollars
A27: (Other planning & construction costs) | B27: Dollars
A28: (Other planning & construction costs) | B28: Dollars
A29: (Other planning & construction costs) | B29: Dollars
A30: (Other planning & construction costs) | B30: Dollars
A32: Operating & maintenance costs | B32: Units | C32: Begin year | D32: Period (years) | E32: Cost | F32: Notes
A33: Power | B33: Dollars | I33: Calculations can be reviewed within table beginning in cell K133.
A34: Inspection | B34: Dollars
A35: Repaving | B35: Dollars
A36: Signing, striping | B36: Dollars
A37: =DefinedAlternative_OtherOMCosts_Prompt -> (Other O&M costs) | B37: Dollars
A38: (Other O&M costs) | B38: Dollars
A39: (Other O&M costs) | B39: Dollars
A40: (Other O&M costs) | B40: Dollars
A41: (Other O&M costs) | B41: Dollars
A42: (Other O&M costs) | B42: Dollars
A43: (Other O&M costs) | B43: Dollars
A44: (Other O&M costs) | B44: Dollars
A45: (Other O&M costs) | B45: Dollars
A46: (Other O&M costs) | B46: Dollars
A48: Demand & travel time / delay | B48: Average travel time / delay | D48: Opening year | E48: Additional Inputs | H48: End year | I48: Notes | K48: 1 value vs multiple choice (via dropdown)
B49: Time Period | C49: Units | D49: =$C$6 -> 2020 | E49: =IF($C$7="","",$C$7) ->  | F49: =IF($C$8="","",$C$8) ->  | G49: =IF($C$9="","",$C$9) ->  | H49: =$C$10 -> 2040
A50: Average vehicle travel time or delay | B50: AM peak | C50: seconds/veh | K50: =IF(OR(COUNT(D50:D52)=0,COUNT(H50:H52)=0,AND(E49<>"",COUNT(E50:E52)=0),AND(F49<>"",COUNT(F50:F52)=0),AND(G49<>"",COUNT(G50:G52)=0)),"NOTE: At least one travel time/delay value must be entered for each year specified",IF(COUNT(D50:H52)<>COUNT(D84:H86),"Number of travel time/delay entries is different from the number of peak/offpeak hourly volumes entered in the DemandParameters sheet. Please correct the discrepancy and re-run Setup for this sheet.","")) -> NOTE: At least one travel time/delay value must be entered for each year specified
B51: PM peak | C51: seconds/veh
B52: Weekend peak | C52: seconds/veh
A53: Standard deviation of vehicle travel time or delay | B53: AM peak | C53: seconds/veh | D53: 0 | H53: 0 | K53: =IF(AND(COUNT(D53:H55)>0,OR(AND(D50<>"",D53=""),AND(D51<>"",D54=""),AND(E49<>"",OR(AND(E50<>"",E53=""),AND(E51<>"",E54=""))),AND(F49<>"",OR(AND(F50<>"",F53=""),AND(F51<>"",F54=""))),AND(G49<>"",OR(AND(G50<>"",G53=""),AND(G51<>"",G54=""))),AND(H50<>"",H53=""),AND(H51<>"",H54=""))),"NOTE: If reliability )standard deviations) are entered, there must be a corresponding standard deviation entry for each peak period travel time/delay entry","") -> 
B54: PM peak | C54: seconds/veh | D54: 0 | H54: 0
B55: Weekend peak | C55: seconds/veh | D55: 0 | H55: 0
A56: Average bicycle travel time or delay | B56: All time periods | C56: seconds/bike
A57: Average pedestrian travel time or delay | B57: All time periods | C57: seconds/ped
A59: Safety | B59: Crash type | C59: Units
A60: Fatal-Injury, PDO Crashes | B60: =IF(IsChecked_CrashCategories_KABCO,INDEX(CostParameters!$C$11:$C$15,CELL("row",J60)-CELL("row",$J$59)),IF(IsChecked_CrashCategories_FatalityInjuryPDO,IF(ISERROR(INDEX(CostParameters!$C$16:$C$18,CELL("row",J60)-CELL("row",$J$59))),"",INDEX(CostParameters!$C$16:$C$18,CELL("row",J60)-CELL("row",$J$59))),IF(IsChecked_CrashCategories_TotalCrashes,IF(ISERROR(INDEX(CostParameters!$C$19,CELL("row",J60)-CELL("row",$J$59))),"",INDEX(CostParameters!$C$19,CELL("row",J60)-CELL("row",$J$59))),IF(IsChecked_CrashCategories_UserDefined,IF(INDEX(CostParameters!$C$20:$C$24,CELL("row",J60)-CELL("row",$J$59))="","",INDEX(CostParameters!$C$20:$C$24,CELL("row",J60)-CELL("row",$J$59))),"Error!")))) -> Fatal & Injury Crashes | C60: crashes/year
B61: =IF(IsChecked_CrashCategories_KABCO,INDEX(CostParameters!$C$11:$C$15,CELL("row",J61)-CELL("row",$J$59)),IF(IsChecked_CrashCategories_FatalityInjuryPDO,IF(ISERROR(INDEX(CostParameters!$C$16:$C$18,CELL("row",J61)-CELL("row",$J$59))),"",INDEX(CostParameters!$C$16:$C$18,CELL("row",J61)-CELL("row",$J$59))),IF(IsChecked_CrashCategories_TotalCrashes,IF(ISERROR(INDEX(CostParameters!$C$19,CELL("row",J61)-CELL("row",$J$59))),"",INDEX(CostParameters!$C$19,CELL("row",J61)-CELL("row",$J$59))),IF(IsChecked_CrashCategories_UserDefined,IF(INDEX(CostParameters!$C$20:$C$24,CELL("row",J61)-CELL("row",$J$59))="","",INDEX(CostParameters!$C$20:$C$24,CELL("row",J61)-CELL("row",$J$59))),"Error!")))) -> Property damage only crashes | C61: =IF(LEN(TRIM(B61))>0,"crashes/year","") -> crashes/year
B62: =IF(IsChecked_CrashCategories_KABCO,INDEX(CostParameters!$C$11:$C$15,CELL("row",J62)-CELL("row",$J$59)),IF(IsChecked_CrashCategories_FatalityInjuryPDO,IF(ISERROR(INDEX(CostParameters!$C$16:$C$18,CELL("row",J62)-CELL("row",$J$59))),"",INDEX(CostParameters!$C$16:$C$18,CELL("row",J62)-CELL("row",$J$59))),IF(IsChecked_CrashCategories_TotalCrashes,IF(ISERROR(INDEX(CostParameters!$C$19,CELL("row",J62)-CELL("row",$J$59))),"",INDEX(CostParameters!$C$19,CELL("row",J62)-CELL("row",$J$59))),IF(IsChecked_CrashCategories_UserDefined,IF(INDEX(CostParameters!$C$20:$C$24,CELL("row",J62)-CELL("row",$J$59))="","",INDEX(CostParameters!$C$20:$C$24,CELL("row",J62)-CELL("row",$J$59))),"Error!")))) -> 0 | C62: =IF(LEN(TRIM(B62))>0,"crashes/year","") -> crashes/year
B63: =IF(IsChecked_CrashCategories_KABCO,INDEX(CostParameters!$C$11:$C$15,CELL("row",J63)-CELL("row",$J$59)),IF(IsChecked_CrashCategories_FatalityInjuryPDO,IF(ISERROR(INDEX(CostParameters!$C$16:$C$18,CELL("row",J63)-CELL("row",$J$59))),"",INDEX(CostParameters!$C$16:$C$18,CELL("row",J63)-CELL("row",$J$59))),IF(IsChecked_CrashCategories_TotalCrashes,IF(ISERROR(INDEX(CostParameters!$C$19,CELL("row",J63)-CELL("row",$J$59))),"",INDEX(CostParameters!$C$19,CELL("row",J63)-CELL("row",$J$59))),IF(IsChecked_CrashCategories_UserDefined,IF(INDEX(CostParameters!$C$20:$C$24,CELL("row",J63)-CELL("row",$J$59))="","",INDEX(CostParameters!$C$20:$C$24,CELL("row",J63)-CELL("row",$J$59))),"Error!")))) -> 0 | C63: =IF(LEN(TRIM(B63))>0,"crashes/year","") -> crashes/year
B64: =IF(IsChecked_CrashCategories_KABCO,INDEX(CostParameters!$C$11:$C$15,CELL("row",J64)-CELL("row",$J$59)),IF(IsChecked_CrashCategories_FatalityInjuryPDO,IF(ISERROR(INDEX(CostParameters!$C$16:$C$18,CELL("row",J64)-CELL("row",$J$59))),"",INDEX(CostParameters!$C$16:$C$18,CELL("row",J64)-CELL("row",$J$59))),IF(IsChecked_CrashCategories_TotalCrashes,IF(ISERROR(INDEX(CostParameters!$C$19,CELL("row",J64)-CELL("row",$J$59))),"",INDEX(CostParameters!$C$19,CELL("row",J64)-CELL("row",$J$59))),IF(IsChecked_CrashCategories_UserDefined,IF(INDEX(CostParameters!$C$20:$C$24,CELL("row",J64)-CELL("row",$J$59))="","",INDEX(CostParameters!$C$20:$C$24,CELL("row",J64)-CELL("row",$J$59))),"Error!")))) -> 0 | C64: =IF(LEN(TRIM(B64))>0,"crashes/year","") -> crashes/year
A66: Emissions | B66: Type | C66: Units
A67: ="Greenhouse gases -- "&IF(IsChecked_GHG_Values_FederalMethod,"Federal method (Exec. Order 12866)","user defined costs") -> Greenhouse gases -- user defined costs | B67: CO2 equivalent | C67: =IF(LEN(TRIM(B67))>0,"metric tons/year","") -> metric tons/year
A68: ="Criteria pollutants -- " & IF(IsChecked_CriteriaPollutantCategories_ByType,"by type","user defined categories") -> Criteria pollutants -- by type | B68: =IF(IsChecked_CriteriaPollutantCategories_ByType,CostParameters!C27,IF(CostParameters!C31="","",CostParameters!C31)) -> 0 | C68: metric tons/year
B69: =IF(IsChecked_CriteriaPollutantCategories_ByType,CostParameters!C28,IF(CostParameters!C32="","",CostParameters!C32)) -> 0 | C69: metric tons/year
B70: =IF(IsChecked_CriteriaPollutantCategories_ByType,CostParameters!C29,IF(CostParameters!C33="","",CostParameters!C33)) -> 0 | C70: metric tons/year
B71: =IF(IsChecked_CriteriaPollutantCategories_ByType,CostParameters!C30,IF(CostParameters!C34="","",CostParameters!C34)) -> 0 | C71: metric tons/year
A74: Calculations
A77: This section contains the formulas that carry out the detailed cost calculations. Modifications to this section will affect the program code.
A80: Delay model
D81: logs of vehicle volumes and travel times/delays
A82: Travel time/delay | B82: Average travel time/delay | D82: Opening Year | E82: Interim Year(s) | H82: End year
B83: Time period | C83: Units | D83: =$C$6 -> 2020 | E83: =IF($C$7="","",$C$7) ->  | F83: =IF($C$8="","",$C$8) ->  | G83: =IF($C$9="","",$C$9) ->  | H83: =$C$10 -> 2040
A84: Log total entering vehicles | B84: AM peak hour | C84: log(vehicles/hr) | D84: 7.356279877 | H84: 7.843848638
B85: PM peak hour | C85: log(vehicles/hr) | D85: 7.543802868 | H85: 7.673223121
B86: Average offpeak hourly | C86: log(vehicles/hr)
A87: Log average vehicle travel time / delay | B87: =B84 -> AM peak hour | C87: log(seconds/veh) | D87: =IF(D50="","",IF(ISNUMBER(D50),IF(D50>0,LN(D50),""),"")) ->  | E87: =IF(E50="","",IF(ISNUMBER(E50),IF(E50>0,LN(E50),""),"")) -> 
B88: =B85 -> PM peak hour | C88: log(seconds/veh) | D88: =IF(D51="","",IF(ISNUMBER(D51),IF(D51>0,LN(D51),""),"")) -> 
B89: Average offpeak hourly | C89: log(seconds/veh) | D89: =IF(D52="","",IF(ISNUMBER(D52),IF(D52>0,LN(D52),""),"")) -> 
A91: Travel time / delay mode; | G91: predicted delay
A92: X'X | C92: (X'X)^-1 | E92: Delay model coeff | G92: =$C$6 -> 2020 | H92: =IF($C$7="","",$C$7) ->  | I92: =IF($C$8="","",$C$8) ->  | J92: =IF($C$9="","",$C$9) ->  | K92: =$C$10 -> 2040
A93: =COUNT(D84:H86) -> 4 | B93: =A94 -> 30.4171545 | C93: =MINVERSE(A93:B94) -> 454.4656215 | D93: -59.7315073 | E93: const | F93: =F96 -> 0 | G93: =IF(D84="","",EXP($F$93+$F$94*D84)) -> 1 | K93: 1
A94: =SUM(D84:H86) -> 30.4171545 | B94: =SUMSQ(D84:H86) -> 231.4281299 | C94: -59.7315073 | D94: 7.854976348 | E94: exp | F94: =F97 -> 0 | G94: 1 | K94: 1
A95: X'y | B95: =SUM(D87:H89) -> 0 | C95: std err estimate | D95: =IF(COUNT(D84:H86)<2,"NA",SQRT(SUMXMY2(G93:K95,D50:H52)/(COUNT(D84:H86)-2))) ->  | E95: seconds
B96: =SUMPRODUCT(D84:H86,D87:H89) -> 0 | E96: =MMULT(C93:D94,B95:B96) -> 0 | F96: =IF(E97>=0,E96,AVERAGE(G96:K98)) -> 0 | G96: =IF(D50>0,LN(D50) - 1.66*D84,"") ->  | K96: =IF(H50>0,LN(H50) - 1.66*H84,"") -> 
E97: 0 | F97: =IF(E97>=0,E97,1.66) -> 0 | G97: =IF(D51>0,LN(D51) - 1.66*D85,"") ->  | K97: =IF(H51>0,LN(H51) - 1.66*H85,"") -> 
G98: =IF(ISNUMBER(D52),IF(D52>0,LN(D52) - 1.66*D86,""),"") ->  | K98: =IF(ISNUMBER(H52),IF(H52>0,LN(H52) - 1.66*H86,""),"") -> 
B99: Base year | C99: Planning and construction years
C100: Year 1 | D100: Year 2 | E100: Year 3 | F100: Year 4 | G100: Year 5
B101: =IF(BaseYear="",DefaultYearPrompt,BaseYear) -> 2020 | C101: =IF(ISNUMBER($C$6),$C$6,"") -> 2020 | D101: =IF(ISNUMBER(C101),C101+1,"") -> 2021 | E101: =IF(ISNUMBER(D101),D101+1,"") -> 2022 | F101: =IF(ISNUMBER(E101),E101+1,"") -> 2023 | G101: =IF(ISNUMBER(F101),F101+1,"") -> 2024
A104: Discount factor | B104: =1/((1+Discount_Rate)^(B$101-BaseYear)) -> 1 | C104: =IF(ISNUMBER(C101),1/((1+Discount_Rate)^(C$101-BaseYear)),0) -> 1 | D104: =IF(ISNUMBER(D101),1/((1+Discount_Rate)^(D$101-BaseYear)),0) -> 0.9615384615 | E104: =IF(ISNUMBER(E101),1/((1+Discount_Rate)^(E$101-BaseYear)),0) -> 0.924556213 | F104: =IF(ISNUMBER(F101),1/((1+Discount_Rate)^(F$101-BaseYear)),0) -> 0.8889963587 | G104: =IF(ISNUMBER(G101),1/((1+Discount_Rate)^(G$101-BaseYear)),0) -> 0.854804191
A106: Planning & Construction Costs
A109: =A14 -> Planning, design | C109: =C14 -> 0 | D109: 0 | E109: 0 | F109: 0 | G109: 0
A110: Survey | C110: 0 | D110: 0 | E110: 0 | F110: 0 | G110: 0
A111: Right of way | C111: 0 | D111: 0 | E111: 0 | F111: 0 | G111: 0
A112: Equipment, signs | C112: 0 | D112: 0 | E112: 0 | F112: 0 | G112: 0
A113: Utilities | C113: 0 | D113: 0 | E113: 0 | F113: 0 | G113: 0
A114: Construction | C114: 0 | D114: 0 | E114: 0 | F114: 0 | G114: 0
A115: Landscaping | C115: 0 | D115: 0 | E115: 0 | F115: 0 | G115: 0
A116: (Other planning & construction costs) | C116: 0 | D116: 0 | E116: 0 | F116: 0 | G116: 0
A117: (Other planning & construction costs) | C117: 0 | D117: 0 | E117: 0 | F117: 0 | G117: 0
A118: (Other planning & construction costs) | C118: 0 | D118: 0 | E118: 0 | F118: 0 | G118: 0
A119: (Other planning & construction costs) | C119: =C24 -> 0 | D119: 0 | E119: 0 | F119: 0 | G119: 0
A120: (Other planning & construction costs) | C120: 0 | D120: 0 | E120: 0 | F120: 0 | G120: 0
A121: (Other planning & construction costs) | C121: 0 | D121: 0 | E121: 0 | F121: 0 | G121: 0
A122: (Other planning & construction costs) | C122: 0 | D122: 0 | E122: 0 | F122: 0 | G122: 0
A123: (Other planning & construction costs) | C123: 0 | D123: 0 | E123: 0 | F123: 0 | G123: 0
A124: (Other planning & construction costs) | C124: 0 | D124: 0 | E124: 0 | F124: 0 | G124: 0
A125: (Other planning & construction costs) | C125: 0 | D125: 0 | E125: 0 | F125: 0 | G125: 0
A126: Sum - planning & construction | C126: =SUM(C109:C125) -> 0 | D126: =SUM(D109:D125) -> 0 | E126: =SUM(E109:E125) -> 0 | F126: =SUM(F109:F125) -> 0 | G126: =SUM(G109:G125) -> 0
A127: NPV - planning & construction | B127: =SUMPRODUCT($C$104:$G$104,C126:G126) -> 0
K128: Year ---> | L128: =$C$6 -> 2020 | M128: =IF(AND(L128+1<=$C$10,L128+1>$C$6),L128+1,0) -> 2021 | N128: =IF(AND(M128+1<=$C$10,M128+1>$C$6),M128+1,0) -> 2022 | O128: 2023 | P128: 2024 | Q128: 2025 | R128: 2026 | S128: 2027 | T128: 2028 | U128: 2029 | V128: 2030 | W128: 2031 | X128: 2032 | Y128: 2033 | Z128: 2034 | AA128: 2035 | AB128: 2036 | AC128: 2037 | AD128: 2038 | AE128: 2039 | AF128: 2040 | AG128: 0 | AH128: 0 | AI128: 0 | AJ128: 0 | AK128: 0 | AL128: 0 | AM128: 0 | AN128: 0 | AO128: 0 | AP128: 0 | AQ128: 0 | AR128: 0 | AS128: 0 | AT128: 0 | AU128: 0 | AV128: 0 | AW128: 0 | AX128: 0 | AY128: 0 | AZ128: 0 | BA128: 0 | BB128: 0 | BC128: 0 | BD128: 0 | BE128: 0 | BF128: 0 | BG128: 0 | BH128: 0 | BI128: 0 | BJ128: 0 | BK128: 0 | BL128: 0 | BM128: 0 | BN128: 0 | BO128: 0 | BP128: 0 | BQ128: 0 | BR128: 0 | BS128: 0 | BT128: 0 | BU128: 0 | BV128: 0 | BW128: 0 | BX128: 0 | BY128: 0 | BZ128: =IF(AND(BY128+1<=$C$10,BY128+1>$C$6),BY128+1,0) -> 0 | CA128: 0 | CB128: 0 | CC128: 0 | CD128: 0 | CE128: 0 | CF128: 0 | CG128: 0 | CH128: 0 | CI128: 0 | CJ128: 0 | CK128: 0 | CL128: 0 | CM128: 0 | CN128: 0 | CO128: 0 | CP128: 0 | CQ128: 0 | CR128: 0 | CS128: 0 | CT128: 0 | CU128: 0 | CV128: 0 | CW128: 0 | CX128: 0 | CY128: 0 | CZ128: 0 | DA128: 0 | DB128: 0 | DC128: 0 | DD128: 0 | DE128: 0 | DF128: 0 | DG128: 0
K129: Discount factor ---> | L129: =IF(L$128>0,(1+Discount_Rate)^(-(L$128-BaseYear)),0) -> 1 | M129: 0.9615384615 | N129: 0.924556213 | O129: 0.8889963587 | P129: 0.854804191 | Q129: 0.8219271068 | R129: 0.7903145257 | S129: 0.7599178132 | T129: 0.730690205 | U129: 0.7025867356 | V129: 0.6755641688 | W129: 0.6495809316 | X129: 0.6245970496 | Y129: 0.6005740861 | Z129: 0.5774750828 | AA129: 0.5552645027 | AB129: 0.5339081757 | AC129: 0.5133732459 | AD129: 0.493628121 | AE129: 0.474642424 | AF129: 0.4563869462 | AG129: 0 | AH129: 0 | AI129: 0 | AJ129: 0 | AK129: 0 | AL129: 0 | AM129: 0 | AN129: 0 | AO129: 0 | AP129: 0 | AQ129: 0 | AR129: =IF(AR$128>0,(1+Discount_Rate)^(-(AR$128-BaseYear)),0) -> 0 | AS129: 0 | AT129: 0 | AU129: 0 | AV129: 0 | AW129: 0 | AX129: 0 | AY129: 0 | AZ129: 0 | BA129: 0 | BB129: 0 | BC129: 0 | BD129: 0 | BE129: 0 | BF129: 0 | BG129: 0 | BH129: 0 | BI129: 0 | BJ129: 0 | BK129: 0 | BL129: 0 | BM129: 0 | BN129: 0 | BO129: 0 | BP129: 0 | BQ129: 0 | BR129: 0 | BS129: 0 | BT129: 0 | BU129: 0 | BV129: 0 | BW129: 0 | BX129: =IF(BX$128>0,(1+Discount_Rate)^(-(BX$128-BaseYear)),0) -> 0 | BY129: 0 | BZ129: 0 | CA129: 0 | CB129: 0 | CC129: 0 | CD129: 0 | CE129: 0 | CF129: 0 | CG129: 0 | CH129: 0 | CI129: 0 | CJ129: 0 | CK129: 0 | CL129: 0 | CM129: 0 | CN129: 0 | CO129: 0 | CP129: 0 | CQ129: 0 | CR129: 0 | CS129: 0 | CT129: 0 | CU129: 0 | CV129: 0 | CW129: 0 | CX129: 0 | CY129: 0 | CZ129: 0 | DA129: 0 | DB129: 0 | DC129: 0 | DD129: 0 | DE129: 0 | DF129: 0 | DG129: 0
A130: Post-Opening Costs | B130: Units | C130: Begin year | D130: Period (years) | E130: Cost | K130: Post-opening O&M
A131: Power | B131: Dollars | C131: =IF(C33="","",C33) ->  | K131: =A131 -> Power | L131: =IF(OR($C131="",$E131="",$C131<$C$6,L$128<$C131),0,IF(MOD(L$128-$C131,IF(OR($D131="",$D131=0),1000,$D131))=0,$E131,0)) -> 0 | M131: 0 | N131: 0 | O131: 0 | P131: 0 | Q131: 0 | R131: 0 | S131: 0 | T131: 0 | U131: 0 | V131: =IF(OR($C131="",$E131="",$C131<$C$6,V$128<$C131),0,IF(MOD(V$128-$C131,IF(OR($D131="",$D131=0),1000,$D131))=0,$E131,0)) -> 0 | W131: 0 | X131: 0 | Y131: 0 | Z131: 0 | AA131: 0 | AB131: 0 | AC131: 0 | AD131: 0 | AE131: 0 | AF131: =IF(OR($C131="",$E131="",$C131<$C$6,AF$128<$C131),0,IF(MOD(AF$128-$C131,IF(OR($D131="",$D131=0),1000,$D131))=0,$E131,0)) -> 0 | AG131: 0 | AH131: 0 | AI131: 0 | AJ131: 0 | AK131: 0 | AL131: 0 | AM131: 0 | AN131: 0 | AO131: 0 | AP131: =IF(OR($C131="",$E131="",$C131<$C$6,AP$128<$C131),0,IF(MOD(AP$128-$C131,IF(OR($D131="",$D131=0),1000,$D131))=0,$E131,0)) -> 0 | AQ131: 0 | AR131: 0 | AS131: 0 | AT131: 0 | AU131: 0 | AV131: 0 | AW131: 0 | AX131: 0 | AY131: 0 | AZ131: =IF(OR($C131="",$E131="",$C131<$C$6,AZ$128<$C131),0,IF(MOD(AZ$128-$C131,IF(OR($D131="",$D131=0),1000,$D131))=0,$E131,0)) -> 0 | BA131: 0 | BB131: 0 | BC131: 0 | BD131: 0 | BE131: 0 | BF131: 0 | BG131: 0 | BH131: 0 | BI131: 0 | BJ131: =IF(OR($C131="",$E131="",$C131<$C$6,BJ$128<$C131),0,IF(MOD(BJ$128-$C131,IF(OR($D131="",$D131=0),1000,$D131))=0,$E131,0)) -> 0 | BK131: 0 | BL131: 0 | BM131: 0 | BN131: 0 | BO131: 0 | BP131: 0 | BQ131: 0 | BR131: 0 | BS131: 0 | BT131: =IF(OR($C131="",$E131="",$C131<$C$6,BT$128<$C131),0,IF(MOD(BT$128-$C131,IF(OR($D131="",$D131=0),1000,$D131))=0,$E131,0)) -> 0 | BU131: 0 | BV131: 0 | BW131: 0 | BX131: 0 | BY131: 0 | BZ131: 0 | CA131: 0 | CB131: 0 | CC131: 0 | CD131: =IF(OR($C131="",$E131="",$C131<$C$6,CD$128<$C131),0,IF(MOD(CD$128-$C131,IF(OR($D131="",$D131=0),1000,$D131))=0,$E131,0)) -> 0 | CE131: 0 | CF131: 0 | CG131: 0 | CH131: 0 | CI131: 0 | CJ131: 0 | CK131: 0 | CL131: 0 | CM131: 0 | CN131: =IF(OR($C131="",$E131="",$C131<$C$6,CN$128<$C131),0,IF(MOD(CN$128-$C131,IF(OR($D131="",$D131=0),1000,$D131))=0,$E131,0)) -> 0 | CO131: 0 | CP131: 0 | CQ131: 0 | CR131: 0 | CS131: 0 | CT131: 0 | CU131: 0 | CV131: 0 | CW131: 0 | CX131: =IF(OR($C131="",$E131="",$C131<$C$6,CX$128<$C131),0,IF(MOD(CX$128-$C131,IF(OR($D131="",$D131=0),1000,$D131))=0,$E131,0)) -> 0 | CY131: 0 | CZ131: 0 | DA131: 0 | DB131: 0 | DC131: 0 | DD131: 0 | DE131: 0 | DF131: 0 | DG131: 0
A132: Inspection | B132: Dollars | K132: Inspection | L132: 0 | M132: 0 | N132: 0 | O132: 0 | P132: 0 | Q132: 0 | R132: 0 | S132: 0 | T132: 0 | U132: 0 | V132: 0 | W132: 0 | X132: 0 | Y132: 0 | Z132: 0 | AA132: 0 | AB132: 0 | AC132: 0 | AD132: 0 | AE132: 0 | AF132: 0 | AG132: 0 | AH132: 0 | AI132: 0 | AJ132: 0 | AK132: 0 | AL132: 0 | AM132: 0 | AN132: 0 | AO132: 0 | AP132: 0 | AQ132: 0 | AR132: 0 | AS132: 0 | AT132: 0 | AU132: 0 | AV132: 0 | AW132: 0 | AX132: 0 | AY132: 0 | AZ132: 0 | BA132: 0 | BB132: 0 | BC132: 0 | BD132: 0 | BE132: 0 | BF132: 0 | BG132: 0 | BH132: 0 | BI132: 0 | BJ132: 0 | BK132: 0 | BL132: 0 | BM132: 0 | BN132: 0 | BO132: 0 | BP132: 0 | BQ132: 0 | BR132: 0 | BS132: 0 | BT132: 0 | BU132: 0 | BV132: 0 | BW132: 0 | BX132: 0 | BY132: 0 | BZ132: 0 | CA132: 0 | CB132: 0 | CC132: 0 | CD132: 0 | CE132: 0 | CF132: 0 | CG132: 0 | CH132: 0 | CI132: 0 | CJ132: 0 | CK132: 0 | CL132: 0 | CM132: 0 | CN132: 0 | CO132: 0 | CP132: 0 | CQ132: 0 | CR132: 0 | CS132: 0 | CT132: 0 | CU132: 0 | CV132: 0 | CW132: 0 | CX132: 0 | CY132: 0 | CZ132: 0 | DA132: 0 | DB132: 0 | DC132: 0 | DD132: 0 | DE132: 0 | DF132: 0 | DG132: 0
A133: Repaving | B133: Dollars | K133: Repaving | L133: 0 | M133: 0 | N133: 0 | O133: 0 | P133: 0 | Q133: 0 | R133: 0 | S133: 0 | T133: 0 | U133: 0 | V133: 0 | W133: 0 | X133: 0 | Y133: 0 | Z133: 0 | AA133: 0 | AB133: 0 | AC133: 0 | AD133: 0 | AE133: 0 | AF133: 0 | AG133: 0 | AH133: 0 | AI133: 0 | AJ133: 0 | AK133: 0 | AL133: 0 | AM133: 0 | AN133: 0 | AO133: 0 | AP133: 0 | AQ133: 0 | AR133: 0 | AS133: 0 | AT133: 0 | AU133: 0 | AV133: 0 | AW133: 0 | AX133: 0 | AY133: 0 | AZ133: 0 | BA133: 0 | BB133: 0 | BC133: 0 | BD133: 0 | BE133: 0 | BF133: 0 | BG133: 0 | BH133: 0 | BI133: 0 | BJ133: 0 | BK133: 0 | BL133: 0 | BM133: 0 | BN133: 0 | BO133: 0 | BP133: 0 | BQ133: 0 | BR133: 0 | BS133: 0 | BT133: 0 | BU133: 0 | BV133: 0 | BW133: 0 | BX133: 0 | BY133: 0 | BZ133: 0 | CA133: 0 | CB133: 0 | CC133: 0 | CD133: 0 | CE133: 0 | CF133: 0 | CG133: 0 | CH133: 0 | CI133: 0 | CJ133: 0 | CK133: 0 | CL133: 0 | CM133: 0 | CN133: 0 | CO133: 0 | CP133: 0 | CQ133: 0 | CR133: 0 | CS133: 0 | CT133: 0 | CU133: 0 | CV133: 0 | CW133: 0 | CX133: 0 | CY133: 0 | CZ133: 0 | DA133: 0 | DB133: 0 | DC133: 0 | DD133: 0 | DE133: 0 | DF133: 0 | DG133: 0
A134: Signing, striping | B134: Dollars | K134: Signing, striping | L134: 0 | M134: 0 | N134: 0 | O134: 0 | P134: 0 | Q134: 0 | R134: 0 | S134: 0 | T134: 0 | U134: 0 | V134: 0 | W134: 0 | X134: 0 | Y134: 0 | Z134: 0 | AA134: 0 | AB134: 0 | AC134: 0 | AD134: 0 | AE134: 0 | AF134: 0 | AG134: 0 | AH134: 0 | AI134: 0 | AJ134: 0 | AK134: 0 | AL134: 0 | AM134: 0 | AN134: 0 | AO134: 0 | AP134: 0 | AQ134: 0 | AR134: 0 | AS134: 0 | AT134: 0 | AU134: 0 | AV134: 0 | AW134: 0 | AX134: 0 | AY134: 0 | AZ134: 0 | BA134: 0 | BB134: 0 | BC134: 0 | BD134: 0 | BE134: 0 | BF134: 0 | BG134: 0 | BH134: 0 | BI134: 0 | BJ134: 0 | BK134: 0 | BL134: 0 | BM134: 0 | BN134: 0 | BO134: 0 | BP134: 0 | BQ134: 0 | BR134: 0 | BS134: 0 | BT134: 0 | BU134: 0 | BV134: 0 | BW134: 0 | BX134: 0 | BY134: 0 | BZ134: 0 | CA134: 0 | CB134: 0 | CC134: 0 | CD134: 0 | CE134: 0 | CF134: 0 | CG134: 0 | CH134: 0 | CI134: 0 | CJ134: 0 | CK134: 0 | CL134: 0 | CM134: 0 | CN134: 0 | CO134: 0 | CP134: 0 | CQ134: 0 | CR134: 0 | CS134: 0 | CT134: 0 | CU134: 0 | CV134: 0 | CW134: 0 | CX134: 0 | CY134: 0 | CZ134: 0 | DA134: 0 | DB134: 0 | DC134: 0 | DD134: 0 | DE134: 0 | DF134: 0 | DG134: 0
A135: [Other O&M costs] | B135: Dollars | K135: [Other O&M costs] | L135: 0 | M135: 0 | N135: 0 | O135: 0 | P135: 0 | Q135: 0 | R135: 0 | S135: 0 | T135: 0 | U135: 0 | V135: 0 | W135: 0 | X135: 0 | Y135: 0 | Z135: 0 | AA135: 0 | AB135: 0 | AC135: 0 | AD135: 0 | AE135: 0 | AF135: 0 | AG135: 0 | AH135: 0 | AI135: 0 | AJ135: 0 | AK135: 0 | AL135: 0 | AM135: 0 | AN135: 0 | AO135: 0 | AP135: 0 | AQ135: 0 | AR135: 0 | AS135: 0 | AT135: 0 | AU135: 0 | AV135: 0 | AW135: 0 | AX135: 0 | AY135: 0 | AZ135: 0 | BA135: 0 | BB135: 0 | BC135: 0 | BD135: 0 | BE135: 0 | BF135: 0 | BG135: 0 | BH135: 0 | BI135: 0 | BJ135: 0 | BK135: 0 | BL135: 0 | BM135: 0 | BN135: 0 | BO135: 0 | BP135: 0 | BQ135: 0 | BR135: 0 | BS135: 0 | BT135: 0 | BU135: 0 | BV135: 0 | BW135: 0 | BX135: 0 | BY135: 0 | BZ135: 0 | CA135: 0 | CB135: 0 | CC135: 0 | CD135: 0 | CE135: 0 | CF135: 0 | CG135: 0 | CH135: 0 | CI135: 0 | CJ135: 0 | CK135: 0 | CL135: 0 | CM135: 0 | CN135: 0 | CO135: 0 | CP135: 0 | CQ135: 0 | CR135: 0 | CS135: 0 | CT135: 0 | CU135: 0 | CV135: 0 | CW135: 0 | CX135: 0 | CY135: 0 | CZ135: 0 | DA135: 0 | DB135: 0 | DC135: 0 | DD135: 0 | DE135: 0 | DF135: 0 | DG135: 0
A136: [Other O&M costs] | B136: Dollars | K136: [Other O&M costs] | L136: 0 | M136: 0 | N136: 0 | O136: 0 | P136: 0 | Q136: 0 | R136: 0 | S136: 0 | T136: 0 | U136: 0 | V136: 0 | W136: 0 | X136: 0 | Y136: 0 | Z136: 0 | AA136: 0 | AB136: 0 | AC136: 0 | AD136: 0 | AE136: 0 | AF136: 0 | AG136: 0 | AH136: 0 | AI136: 0 | AJ136: 0 | AK136: 0 | AL136: 0 | AM136: 0 | AN136: 0 | AO136: 0 | AP136: 0 | AQ136: 0 | AR136: 0 | AS136: 0 | AT136: 0 | AU136: 0 | AV136: 0 | AW136: 0 | AX136: 0 | AY136: 0 | AZ136: 0 | BA136: 0 | BB136: 0 | BC136: 0 | BD136: 0 | BE136: 0 | BF136: 0 | BG136: 0 | BH136: 0 | BI136: 0 | BJ136: 0 | BK136: 0 | BL136: 0 | BM136: 0 | BN136: 0 | BO136: 0 | BP136: 0 | BQ136: 0 | BR136: 0 | BS136: 0 | BT136: 0 | BU136: 0 | BV136: 0 | BW136: 0 | BX136: 0 | BY136: 0 | BZ136: 0 | CA136: 0 | CB136: 0 | CC136: 0 | CD136: 0 | CE136: 0 | CF136: 0 | CG136: 0 | CH136: 0 | CI136: 0 | CJ136: 0 | CK136: 0 | CL136: 0 | CM136: 0 | CN136: 0 | CO136: 0 | CP136: 0 | CQ136: 0 | CR136: 0 | CS136: 0 | CT136: 0 | CU136: 0 | CV136: 0 | CW136: 0 | CX136: 0 | CY136: 0 | CZ136: 0 | DA136: 0 | DB136: 0 | DC136: 0 | DD136: 0 | DE136: 0 | DF136: 0 | DG136: 0
A137: [Other O&M costs] | B137: Dollars | K137: [Other O&M costs] | L137: 0 | M137: 0 | N137: 0 | O137: 0 | P137: 0 | Q137: 0 | R137: 0 | S137: 0 | T137: 0 | U137: 0 | V137: 0 | W137: 0 | X137: 0 | Y137: 0 | Z137: 0 | AA137: 0 | AB137: 0 | AC137: 0 | AD137: 0 | AE137: 0 | AF137: 0 | AG137: 0 | AH137: 0 | AI137: 0 | AJ137: 0 | AK137: 0 | AL137: 0 | AM137: 0 | AN137: 0 | AO137: 0 | AP137: 0 | AQ137: 0 | AR137: 0 | AS137: 0 | AT137: 0 | AU137: 0 | AV137: 0 | AW137: 0 | AX137: 0 | AY137: 0 | AZ137: 0 | BA137: 0 | BB137: 0 | BC137: 0 | BD137: 0 | BE137: 0 | BF137: 0 | BG137: 0 | BH137: 0 | BI137: 0 | BJ137: 0 | BK137: 0 | BL137: 0 | BM137: 0 | BN137: 0 | BO137: 0 | BP137: 0 | BQ137: 0 | BR137: 0 | BS137: 0 | BT137: 0 | BU137: 0 | BV137: 0 | BW137: 0 | BX137: 0 | BY137: 0 | BZ137: 0 | CA137: 0 | CB137: 0 | CC137: 0 | CD137: 0 | CE137: 0 | CF137: 0 | CG137: 0 | CH137: 0 | CI137: 0 | CJ137: 0 | CK137: 0 | CL137: 0 | CM137: 0 | CN137: 0 | CO137: 0 | CP137: 0 | CQ137: 0 | CR137: 0 | CS137: 0 | CT137: 0 | CU137: 0 | CV137: 0 | CW137: 0 | CX137: 0 | CY137: 0 | CZ137: 0 | DA137: 0 | DB137: 0 | DC137: 0 | DD137: 0 | DE137: 0 | DF137: 0 | DG137: 0
A138: [Other O&M costs] | B138: Dollars | K138: [Other O&M costs] | L138: 0 | M138: 0 | N138: 0 | O138: 0 | P138: 0 | Q138: 0 | R138: 0 | S138: 0 | T138: 0 | U138: 0 | V138: 0 | W138: 0 | X138: 0 | Y138: 0 | Z138: 0 | AA138: 0 | AB138: 0 | AC138: 0 | AD138: 0 | AE138: 0 | AF138: 0 | AG138: 0 | AH138: 0 | AI138: 0 | AJ138: 0 | AK138: 0 | AL138: 0 | AM138: 0 | AN138: 0 | AO138: 0 | AP138: 0 | AQ138: 0 | AR138: 0 | AS138: 0 | AT138: 0 | AU138: 0 | AV138: 0 | AW138: 0 | AX138: 0 | AY138: 0 | AZ138: 0 | BA138: 0 | BB138: 0 | BC138: 0 | BD138: 0 | BE138: 0 | BF138: 0 | BG138: 0 | BH138: 0 | BI138: 0 | BJ138: 0 | BK138: 0 | BL138: 0 | BM138: 0 | BN138: 0 | BO138: 0 | BP138: 0 | BQ138: 0 | BR138: 0 | BS138: 0 | BT138: 0 | BU138: 0 | BV138: 0 | BW138: 0 | BX138: 0 | BY138: 0 | BZ138: 0 | CA138: 0 | CB138: 0 | CC138: 0 | CD138: 0 | CE138: 0 | CF138: 0 | CG138: 0 | CH138: 0 | CI138: 0 | CJ138: 0 | CK138: 0 | CL138: 0 | CM138: 0 | CN138: 0 | CO138: 0 | CP138: 0 | CQ138: 0 | CR138: 0 | CS138: 0 | CT138: 0 | CU138: 0 | CV138: 0 | CW138: 0 | CX138: 0 | CY138: 0 | CZ138: 0 | DA138: 0 | DB138: 0 | DC138: 0 | DD138: 0 | DE138: 0 | DF138: 0 | DG138: 0
A139: [Other O&M costs] | B139: Dollars | K139: [Other O&M costs] | L139: 0 | M139: 0 | N139: 0 | O139: 0 | P139: 0 | Q139: 0 | R139: 0 | S139: 0 | T139: 0 | U139: 0 | V139: 0 | W139: 0 | X139: 0 | Y139: 0 | Z139: 0 | AA139: 0 | AB139: 0 | AC139: 0 | AD139: 0 | AE139: 0 | AF139: 0 | AG139: 0 | AH139: 0 | AI139: 0 | AJ139: 0 | AK139: 0 | AL139: 0 | AM139: 0 | AN139: 0 | AO139: 0 | AP139: 0 | AQ139: 0 | AR139: 0 | AS139: 0 | AT139: 0 | AU139: 0 | AV139: 0 | AW139: 0 | AX139: 0 | AY139: 0 | AZ139: 0 | BA139: 0 | BB139: 0 | BC139: 0 | BD139: 0 | BE139: 0 | BF139: 0 | BG139: 0 | BH139: 0 | BI139: 0 | BJ139: 0 | BK139: 0 | BL139: 0 | BM139: 0 | BN139: 0 | BO139: 0 | BP139: 0 | BQ139: 0 | BR139: 0 | BS139: 0 | BT139: 0 | BU139: 0 | BV139: 0 | BW139: 0 | BX139: 0 | BY139: 0 | BZ139: 0 | CA139: 0 | CB139: 0 | CC139: 0 | CD139: 0 | CE139: 0 | CF139: 0 | CG139: 0 | CH139: 0 | CI139: 0 | CJ139: 0 | CK139: 0 | CL139: 0 | CM139: 0 | CN139: 0 | CO139: 0 | CP139: 0 | CQ139: 0 | CR139: 0 | CS139: 0 | CT139: 0 | CU139: 0 | CV139: 0 | CW139: 0 | CX139: 0 | CY139: 0 | CZ139: 0 | DA139: 0 | DB139: 0 | DC139: 0 | DD139: 0 | DE139: 0 | DF139: 0 | DG139: 0
A140: [Other O&M costs] | B140: Dollars | K140: [Other O&M costs] | L140: 0 | M140: 0 | N140: 0 | O140: 0 | P140: 0 | Q140: 0 | R140: 0 | S140: 0 | T140: 0 | U140: 0 | V140: 0 | W140: 0 | X140: 0 | Y140: 0 | Z140: 0 | AA140: 0 | AB140: 0 | AC140: 0 | AD140: 0 | AE140: 0 | AF140: 0 | AG140: 0 | AH140: 0 | AI140: 0 | AJ140: 0 | AK140: 0 | AL140: 0 | AM140: 0 | AN140: 0 | AO140: 0 | AP140: 0 | AQ140: 0 | AR140: 0 | AS140: 0 | AT140: 0 | AU140: 0 | AV140: 0 | AW140: 0 | AX140: 0 | AY140: 0 | AZ140: 0 | BA140: 0 | BB140: 0 | BC140: 0 | BD140: 0 | BE140: 0 | BF140: 0 | BG140: 0 | BH140: 0 | BI140: 0 | BJ140: 0 | BK140: 0 | BL140: 0 | BM140: 0 | BN140: 0 | BO140: 0 | BP140: 0 | BQ140: 0 | BR140: 0 | BS140: 0 | BT140: 0 | BU140: 0 | BV140: 0 | BW140: 0 | BX140: 0 | BY140: 0 | BZ140: 0 | CA140: 0 | CB140: 0 | CC140: 0 | CD140: 0 | CE140: 0 | CF140: 0 | CG140: 0 | CH140: 0 | CI140: 0 | CJ140: 0 | CK140: 0 | CL140: 0 | CM140: 0 | CN140: 0 | CO140: 0 | CP140: 0 | CQ140: 0 | CR140: 0 | CS140: 0 | CT140: 0 | CU140: 0 | CV140: 0 | CW140: 0 | CX140: 0 | CY140: 0 | CZ140: 0 | DA140: 0 | DB140: 0 | DC140: 0 | DD140: 0 | DE140: 0 | DF140: 0 | DG140: 0
A141: [Other O&M costs] | B141: Dollars | K141: [Other O&M costs] | L141: 0 | M141: 0 | N141: 0 | O141: 0 | P141: 0 | Q141: 0 | R141: 0 | S141: 0 | T141: 0 | U141: 0 | V141: 0 | W141: 0 | X141: 0 | Y141: 0 | Z141: 0 | AA141: 0 | AB141: 0 | AC141: 0 | AD141: 0 | AE141: 0 | AF141: 0 | AG141: 0 | AH141: 0 | AI141: 0 | AJ141: 0 | AK141: 0 | AL141: 0 | AM141: 0 | AN141: 0 | AO141: 0 | AP141: 0 | AQ141: 0 | AR141: 0 | AS141: 0 | AT141: 0 | AU141: 0 | AV141: 0 | AW141: 0 | AX141: 0 | AY141: 0 | AZ141: 0 | BA141: 0 | BB141: 0 | BC141: 0 | BD141: 0 | BE141: 0 | BF141: 0 | BG141: 0 | BH141: 0 | BI141: 0 | BJ141: 0 | BK141: 0 | BL141: 0 | BM141: 0 | BN141: 0 | BO141: 0 | BP141: 0 | BQ141: 0 | BR141: 0 | BS141: 0 | BT141: 0 | BU141: 0 | BV141: 0 | BW141: 0 | BX141: 0 | BY141: 0 | BZ141: 0 | CA141: 0 | CB141: 0 | CC141: 0 | CD141: 0 | CE141: 0 | CF141: 0 | CG141: 0 | CH141: 0 | CI141: 0 | CJ141: 0 | CK141: 0 | CL141: 0 | CM141: 0 | CN141: 0 | CO141: 0 | CP141: 0 | CQ141: 0 | CR141: 0 | CS141: 0 | CT141: 0 | CU141: 0 | CV141: 0 | CW141: 0 | CX141: 0 | CY141: 0 | CZ141: 0 | DA141: 0 | DB141: 0 | DC141: 0 | DD141: 0 | DE141: 0 | DF141: 0 | DG141: 0
A142: [Other O&M costs] | B142: Dollars | K142: [Other O&M costs] | L142: 0 | M142: 0 | N142: 0 | O142: 0 | P142: 0 | Q142: 0 | R142: 0 | S142: 0 | T142: 0 | U142: 0 | V142: 0 | W142: 0 | X142: 0 | Y142: 0 | Z142: 0 | AA142: 0 | AB142: 0 | AC142: 0 | AD142: 0 | AE142: 0 | AF142: 0 | AG142: 0 | AH142: 0 | AI142: 0 | AJ142: 0 | AK142: 0 | AL142: 0 | AM142: 0 | AN142: 0 | AO142: 0 | AP142: 0 | AQ142: 0 | AR142: 0 | AS142: 0 | AT142: 0 | AU142: 0 | AV142: 0 | AW142: 0 | AX142: 0 | AY142: 0 | AZ142: 0 | BA142: 0 | BB142: 0 | BC142: 0 | BD142: 0 | BE142: 0 | BF142: 0 | BG142: 0 | BH142: 0 | BI142: 0 | BJ142: 0 | BK142: 0 | BL142: 0 | BM142: 0 | BN142: 0 | BO142: 0 | BP142: 0 | BQ142: 0 | BR142: 0 | BS142: 0 | BT142: 0 | BU142: 0 | BV142: 0 | BW142: 0 | BX142: 0 | BY142: 0 | BZ142: 0 | CA142: 0 | CB142: 0 | CC142: 0 | CD142: 0 | CE142: 0 | CF142: 0 | CG142: 0 | CH142: 0 | CI142: 0 | CJ142: 0 | CK142: 0 | CL142: 0 | CM142: 0 | CN142: 0 | CO142: 0 | CP142: 0 | CQ142: 0 | CR142: 0 | CS142: 0 | CT142: 0 | CU142: 0 | CV142: 0 | CW142: 0 | CX142: 0 | CY142: 0 | CZ142: 0 | DA142: 0 | DB142: 0 | DC142: 0 | DD142: 0 | DE142: 0 | DF142: 0 | DG142: 0
A143: [Other O&M costs] | B143: Dollars | K143: [Other O&M costs] | L143: 0 | M143: 0 | N143: 0 | O143: 0 | P143: 0 | Q143: 0 | R143: 0 | S143: 0 | T143: 0 | U143: 0 | V143: 0 | W143: 0 | X143: 0 | Y143: 0 | Z143: 0 | AA143: 0 | AB143: 0 | AC143: 0 | AD143: 0 | AE143: 0 | AF143: 0 | AG143: 0 | AH143: 0 | AI143: 0 | AJ143: 0 | AK143: 0 | AL143: 0 | AM143: 0 | AN143: 0 | AO143: 0 | AP143: 0 | AQ143: 0 | AR143: 0 | AS143: 0 | AT143: 0 | AU143: 0 | AV143: 0 | AW143: 0 | AX143: 0 | AY143: 0 | AZ143: 0 | BA143: 0 | BB143: 0 | BC143: 0 | BD143: 0 | BE143: 0 | BF143: 0 | BG143: 0 | BH143: 0 | BI143: 0 | BJ143: 0 | BK143: 0 | BL143: 0 | BM143: 0 | BN143: 0 | BO143: 0 | BP143: 0 | BQ143: 0 | BR143: 0 | BS143: 0 | BT143: 0 | BU143: 0 | BV143: 0 | BW143: 0 | BX143: 0 | BY143: 0 | BZ143: 0 | CA143: 0 | CB143: 0 | CC143: 0 | CD143: 0 | CE143: 0 | CF143: 0 | CG143: 0 | CH143: 0 | CI143: 0 | CJ143: 0 | CK143: 0 | CL143: 0 | CM143: 0 | CN143: 0 | CO143: 0 | CP143: 0 | CQ143: 0 | CR143: 0 | CS143: 0 | CT143: 0 | CU143: 0 | CV143: 0 | CW143: 0 | CX143: 0 | CY143: 0 | CZ143: 0 | DA143: 0 | DB143: 0 | DC143: 0 | DD143: 0 | DE143: 0 | DF143: 0 | DG143: 0
A144: [Other O&M costs] | B144: Dollars | K144: [Other O&M costs] | L144: 0 | M144: 0 | N144: 0 | O144: 0 | P144: 0 | Q144: 0 | R144: 0 | S144: 0 | T144: 0 | U144: 0 | V144: 0 | W144: 0 | X144: 0 | Y144: 0 | Z144: 0 | AA144: 0 | AB144: 0 | AC144: 0 | AD144: 0 | AE144: 0 | AF144: 0 | AG144: 0 | AH144: 0 | AI144: 0 | AJ144: 0 | AK144: 0 | AL144: 0 | AM144: 0 | AN144: 0 | AO144: 0 | AP144: 0 | AQ144: 0 | AR144: 0 | AS144: 0 | AT144: 0 | AU144: 0 | AV144: 0 | AW144: 0 | AX144: 0 | AY144: 0 | AZ144: 0 | BA144: 0 | BB144: 0 | BC144: 0 | BD144: 0 | BE144: 0 | BF144: 0 | BG144: 0 | BH144: 0 | BI144: 0 | BJ144: 0 | BK144: 0 | BL144: 0 | BM144: 0 | BN144: 0 | BO144: 0 | BP144: 0 | BQ144: 0 | BR144: 0 | BS144: 0 | BT144: 0 | BU144: 0 | BV144: 0 | BW144: 0 | BX144: 0 | BY144: 0 | BZ144: 0 | CA144: 0 | CB144: 0 | CC144: 0 | CD144: 0 | CE144: 0 | CF144: 0 | CG144: 0 | CH144: 0 | CI144: 0 | CJ144: 0 | CK144: 0 | CL144: 0 | CM144: 0 | CN144: 0 | CO144: 0 | CP144: 0 | CQ144: 0 | CR144: 0 | CS144: 0 | CT144: 0 | CU144: 0 | CV144: 0 | CW144: 0 | CX144: 0 | CY144: 0 | CZ144: 0 | DA144: 0 | DB144: 0 | DC144: 0 | DD144: 0 | DE144: 0 | DF144: 0 | DG144: 0
K145: Sum O&M (year) | L145: =SUM(L131:L144) -> 0 | M145: =SUM(M131:M144) -> 0 | N145: 0 | O145: 0 | P145: 0 | Q145: 0 | R145: 0 | S145: 0 | T145: 0 | U145: 0 | V145: 0 | W145: 0 | X145: 0 | Y145: 0 | Z145: 0 | AA145: 0 | AB145: 0 | AC145: 0 | AD145: 0 | AE145: 0 | AF145: 0 | AG145: 0 | AH145: 0 | AI145: 0 | AJ145: 0 | AK145: 0 | AL145: 0 | AM145: 0 | AN145: 0 | AO145: 0 | AP145: 0 | AQ145: 0 | AR145: 0 | AS145: 0 | AT145: 0 | AU145: 0 | AV145: 0 | AW145: 0 | AX145: 0 | AY145: 0 | AZ145: 0 | BA145: 0 | BB145: 0 | BC145: 0 | BD145: 0 | BE145: 0 | BF145: 0 | BG145: 0 | BH145: 0 | BI145: 0 | BJ145: 0 | BK145: 0 | BL145: 0 | BM145: 0 | BN145: 0 | BO145: 0 | BP145: 0 | BQ145: 0 | BR145: 0 | BS145: 0 | BT145: 0 | BU145: 0 | BV145: 0 | BW145: 0 | BX145: 0 | BY145: =SUM(BY131:BY144) -> 0 | BZ145: 0 | CA145: 0 | CB145: 0 | CC145: 0 | CD145: 0 | CE145: 0 | CF145: 0 | CG145: 0 | CH145: 0 | CI145: 0 | CJ145: 0 | CK145: 0 | CL145: 0 | CM145: 0 | CN145: 0 | CO145: 0 | CP145: 0 | CQ145: 0 | CR145: 0 | CS145: 0 | CT145: 0 | CU145: 0 | CV145: 0 | CW145: 0 | CX145: 0 | CY145: 0 | CZ145: 0 | DA145: 0 | DB145: 0 | DC145: 0 | DD145: 0 | DE145: 0 | DF145: 0 | DG145: 0
K146: NPV O&M | L146: =SUMPRODUCT($L$129:$DG$129,L145:DG145) -> 0
A149: Demand & travel time/delay | B149: Average travel time/delay | D149: Opening Year | E149: Interim Year(s) | H149: End year
B150: Time period | C150: Units | D150: =$C$6 -> 2020 | E150: =IF($C$7="","",$C$7) ->  | F150: =IF($C$8="","",$C$8) ->  | G150: =IF($C$9="","",$C$9) ->  | H150: =$C$10 -> 2040
A151: Standard deviation of vehicle travel time / delay | B151: AM peak | C151: seconds/veh | D151: =IF(ISNUMBER(D53),D53/SecondsPerHour,IF(ISNUMBER(D54),D54/SecondsPerHour,IF(ISNUMBER(D55),D55/SecondsPerHour,0))) -> 0 | E151: =IF(ISNUMBER(E53),E53/SecondsPerHour,IF(ISNUMBER(E54),E54/SecondsPerHour,IF(ISNUMBER(E55),E55/SecondsPerHour,0))) -> 0 | F151: =IF(ISNUMBER(F53),F53/SecondsPerHour,IF(ISNUMBER(F54),F54/SecondsPerHour,IF(ISNUMBER(F55),F55/SecondsPerHour,0))) -> 0 | G151: =IF(ISNUMBER(G53),G53/SecondsPerHour,IF(ISNUMBER(G54),G54/SecondsPerHour,IF(ISNUMBER(G55),G55/SecondsPerHour,0))) -> 0 | H151: =IF(ISNUMBER(H53),H53/SecondsPerHour,IF(ISNUMBER(H54),H54/SecondsPerHour,IF(ISNUMBER(H55),H55/SecondsPerHour,0))) -> 0
B152: PM peak | C152: seconds/veh | D152: =IF(ISNUMBER(D54),D54/SecondsPerHour,IF(ISNUMBER(D53/SecondsPerHour),D53,IF(ISNUMBER(D55),D55/SecondsPerHour,0))) -> 0 | E152: =IF(ISNUMBER(E54),E54/SecondsPerHour,IF(ISNUMBER(E53/SecondsPerHour),E53,IF(ISNUMBER(E55),E55/SecondsPerHour,0))) -> 0 | F152: =IF(ISNUMBER(F54),F54/SecondsPerHour,IF(ISNUMBER(F53/SecondsPerHour),F53,IF(ISNUMBER(F55),F55/SecondsPerHour,0))) -> 0 | G152: =IF(ISNUMBER(G54),G54/SecondsPerHour,IF(ISNUMBER(G53/SecondsPerHour),G53,IF(ISNUMBER(G55),G55/SecondsPerHour,0))) -> 0 | H152: =IF(ISNUMBER(H54),H54/SecondsPerHour,IF(ISNUMBER(H53/SecondsPerHour),H53,IF(ISNUMBER(H55),H55/SecondsPerHour,0))) -> 0
B153: Offpeak | C153: seconds/veh | D153: =IF(ISNUMBER(D55),D55/SecondsPerHour,0) -> 0 | E153: =IF(ISNUMBER(E55),E55/SecondsPerHour,0) -> 0 | F153: =IF(ISNUMBER(F55),F55/SecondsPerHour,0) -> 0 | G153: =IF(ISNUMBER(G55),G55/SecondsPerHour,0) -> 0 | H153: =IF(ISNUMBER(H55),H55/SecondsPerHour,0) -> 0
A154: Average bike travel time / delay | B154: All | C154: seconds/bike | D154: =D56 -> 0 | E154: 0 | F154: 0 | G154: 0 | H154: 0
A155: Average ped travel time / delay | B155: All | C155: seconds/ped | D155: 0 | E155: 0 | F155: 0 | G155: 0 | H155: 0
A157: User & nonuser costs | J157: DefinedAlternative_InterpolationFormulaTemplate | K157: =IF(NOT(AND(ISNUMBER(DummyCellReference_1),ISNUMBER(DummyCellReference_2))),0,IF(AND(DummyCellReference_1>0,DummyCellReference_2>0),DummyCellReference_1*(DummyCellReference_2/DummyCellReference_1)^((DummyCellReference_4-DummyCellReference_3)/(DummyCellReference_5-DummyCellReference_3)),0)) -> 0
D159: Summary costs for user specified years
A160: Cost category | D160: Opening Year | E160: Interim Year(s) | H160: End year | J160: NPV calculations | K160: Total NPV | L160: Spot values
D161: =$C$6 -> 2020 | E161: =IF($C$7="","",$C$7) ->  | F161: =IF($C$8="","",$C$8) ->  | G161: =IF($C$9="","",$C$9) ->  | H161: =$C$10 -> 2040
A162: Auto passenger time cost | D162: =IF(ISNUMBER(D$150),SUMPRODUCT(DemandProfiles!G167:G8926*(1-DemandParameters!$C$35)*DemandParameters!$C$34,EXP(AverageTravelTimeModel_Constant+AverageTravelTimeModel_LogVolumeParameter*LN(DemandProfiles!G167:G8926))/SecondsPerHour,--(DemandProfiles!C167:C8926=Code_Offpeak),--(DemandProfiles!G167:G8926<>0))*TimeValue_Person_Offpeak+SUMPRODUCT(DemandProfiles!G167:G8926*(1-DemandParameters!$C$35),EXP(AverageTravelTimeModel_Constant+AverageTravelTimeModel_LogVolumeParameter*LN(DemandProfiles!G167:G8926))/SecondsPerHour,--(DemandProfiles!C167:C8926<>Code_Offpeak),--(DemandProfiles!G167:G8926<>0))*TimeValue_Person_Peak,"") -> 27308.96805 | E162: =IF(ISNUMBER(E$150),SUM(L$203:L$8962),0) -> 0 | F162: =IF(ISNUMBER(F$150),SUM(T$203:T$8962),0) -> 0 | G162: =IF(ISNUMBER(G$150),SUM(AB$203:AB$8962),"") ->  | H162: =IF(ISNUMBER(D$150),SUMPRODUCT(DemandProfiles!K167:K8926*(1-DemandParameters!$D$35)*DemandParameters!$D$34,EXP(AverageTravelTimeModel_Constant+AverageTravelTimeModel_LogVolumeParameter*LN(DemandProfiles!K167:K8926))/SecondsPerHour,--(DemandProfiles!C167:C8926=Code_Offpeak),--(DemandProfiles!K167:K8926<>0))*TimeValue_Person_Offpeak+SUMPRODUCT(DemandProfiles!K167:K8926*(1-DemandParameters!$D$35)*DemandParameters!$D$34,EXP(AverageTravelTimeModel_Constant+AverageTravelTimeModel_LogVolumeParameter*LN(DemandProfiles!K167:K8926))/SecondsPerHour,--(DemandProfiles!C167:C8926<>Code_Offpeak),--(DemandProfiles!K167:K8926<>0))*TimeValue_Person_Peak,"") -> 32770.76167 | J162: =A162 -> Auto passenger time cost | K162: =SUMPRODUCT(L162:DG162,$L$129:$DG$129) -> 404435.0563 | L162: =D162 -> 27308.96805 | M162: =IF(NOT(AND(ISNUMBER(L162),ISNUMBER(AD162))),0,IF(AND(L162>0,AD162>0),L162*(AD162/L162)^((M$128-L$128)/(AD$128-L$128)),0)) -> 27586.98556 | N162: =IF(NOT(AND(ISNUMBER(L162),ISNUMBER(AD162))),0,IF(AND(L162>0,AD162>0),L162*(AD162/L162)^((N$128-L$128)/(AD$128-L$128)),0)) -> 27867.83341 | O162: =IF(NOT(AND(ISNUMBER(L162),ISNUMBER(AD162))),0,IF(AND(L162>0,AD162>0),L162*(AD162/L162)^((O$128-L$128)/(AD$128-L$128)),0)) -> 28151.54041 | P162: =IF(NOT(AND(ISNUMBER(L162),ISNUMBER(AD162))),0,IF(AND(L162>0,AD162>0),L162*(AD162/L162)^((P$128-L$128)/(AD$128-L$128)),0)) -> 28438.13568 | Q162: =IF(NOT(AND(ISNUMBER(L162),ISNUMBER(AD162))),0,IF(AND(L162>0,AD162>0),L162*(AD162/L162)^((Q$128-L$128)/(AD$128-L$128)),0)) -> 28727.64861 | R162: =IF(NOT(AND(ISNUMBER(L162),ISNUMBER(AD162))),0,IF(AND(L162>0,AD162>0),L162*(AD162/L162)^((R$128-L$128)/(AD$128-L$128)),0)) -> 29020.10892 | S162: =IF(NOT(AND(ISNUMBER(L162),ISNUMBER(AD162))),0,IF(AND(L162>0,AD162>0),L162*(AD162/L162)^((S$128-L$128)/(AD$128-L$128)),0)) -> 29315.5466 | T162: =IF(NOT(AND(ISNUMBER(L162),ISNUMBER(AD162))),0,IF(AND(L162>0,AD162>0),L162*(AD162/L162)^((T$128-L$128)/(AD$128-L$128)),0)) -> 29613.99197 | U162: =IF(NOT(AND(ISNUMBER(L162),ISNUMBER(AD162))),0,IF(AND(L162>0,AD162>0),L162*(AD162/L162)^((U$128-L$128)/(AD$128-L$128)),0)) -> 29915.47565 | V162: =IF(NOT(AND(ISNUMBER(L162),ISNUMBER(AD162))),0,IF(AND(L162>0,AD162>0),L162*(AD162/L162)^((V$128-L$128)/(AD$128-L$128)),0)) -> 30220.02857 | W162: =IF(NOT(AND(ISNUMBER(L162),ISNUMBER(AD162))),0,IF(AND(L162>0,AD162>0),L162*(AD162/L162)^((W$128-L$128)/(AD$128-L$128)),0)) -> 30527.68197 | X162: =IF(NOT(AND(ISNUMBER(L162),ISNUMBER(AD162))),0,IF(AND(L162>0,AD162>0),L162*(AD162/L162)^((X$128-L$128)/(AD$128-L$128)),0)) -> 30838.46742 | Y162: =IF(NOT(AND(ISNUMBER(L162),ISNUMBER(AD162))),0,IF(AND(L162>0,AD162>0),L162*(AD162/L162)^((Y$128-L$128)/(AD$128-L$128)),0)) -> 31152.41681 | Z162: =IF(NOT(AND(ISNUMBER(L162),ISNUMBER(AD162))),0,IF(AND(L162>0,AD162>0),L162*(AD162/L162)^((Z$128-L$128)/(AD$128-L$128)),0)) -> 31469.56234 | AA162: =IF(NOT(AND(ISNUMBER(L162),ISNUMBER(AD162))),0,IF(AND(L162>0,AD162>0),L162*(AD162/L162)^((AA$128-L$128)/(AD$128-L$128)),0)) -> 31789.93655 | AB162: =IF(NOT(AND(ISNUMBER(L162),ISNUMBER(AD162))),0,IF(AND(L162>0,AD162>0),L162*(AD162/L162)^((AB$128-L$128)/(AD$128-L$128)),0)) -> 32113.57232 | AC162: =IF(NOT(AND(ISNUMBER(L162),ISNUMBER(AD162))),0,IF(AND(L162>0,AD162>0),L162*(AD162/L162)^((AC$128-L$128)/(AD$128-L$128)),0)) -> 32440.50284 | AD162: =H162 -> 32770.76167
A163: Auto passenger reliability cost | D163: =IF(ISNUMBER(D$150),SUM(E$203:E$8962),"") -> 0 | E163: =IF(ISNUMBER(E$150),SUM(M$203:M$8962),"") ->  | F163: =IF(ISNUMBER(F$150),SUM(U$203:U$8962),0) -> 0 | G163: =IF(ISNUMBER(G$150),SUM(AC$203:AC$8962),"") ->  | H163: =IF(ISNUMBER(H$150),SUM(AK$203:AK$8962),"") -> 0 | J163: =A163 -> Auto passenger reliability cost | K163: =SUMPRODUCT(L163:DG163,$L$129:$DG$129) -> 0 | L163: =D163 -> 0 | M163: =IF(NOT(AND(ISNUMBER(L163),ISNUMBER(AD163))),0,IF(AND(L163>0,AD163>0),L163*(AD163/L163)^((M$128-L$128)/(AD$128-L$128)),0)) -> 0 | N163: =IF(NOT(AND(ISNUMBER(L163),ISNUMBER(AD163))),0,IF(AND(L163>0,AD163>0),L163*(AD163/L163)^((N$128-L$128)/(AD$128-L$128)),0)) -> 0 | O163: =IF(NOT(AND(ISNUMBER(L163),ISNUMBER(AD163))),0,IF(AND(L163>0,AD163>0),L163*(AD163/L163)^((O$128-L$128)/(AD$128-L$128)),0)) -> 0 | P163: =IF(NOT(AND(ISNUMBER(L163),ISNUMBER(AD163))),0,IF(AND(L163>0,AD163>0),L163*(AD163/L163)^((P$128-L$128)/(AD$128-L$128)),0)) -> 0 | Q163: =IF(NOT(AND(ISNUMBER(L163),ISNUMBER(AD163))),0,IF(AND(L163>0,AD163>0),L163*(AD163/L163)^((Q$128-L$128)/(AD$128-L$128)),0)) -> 0 | R163: =IF(NOT(AND(ISNUMBER(L163),ISNUMBER(AD163))),0,IF(AND(L163>0,AD163>0),L163*(AD163/L163)^((R$128-L$128)/(AD$128-L$128)),0)) -> 0 | S163: =IF(NOT(AND(ISNUMBER(L163),ISNUMBER(AD163))),0,IF(AND(L163>0,AD163>0),L163*(AD163/L163)^((S$128-L$128)/(AD$128-L$128)),0)) -> 0 | T163: =IF(NOT(AND(ISNUMBER(L163),ISNUMBER(AD163))),0,IF(AND(L163>0,AD163>0),L163*(AD163/L163)^((T$128-L$128)/(AD$128-L$128)),0)) -> 0 | U163: =IF(NOT(AND(ISNUMBER(L163),ISNUMBER(AD163))),0,IF(AND(L163>0,AD163>0),L163*(AD163/L163)^((U$128-L$128)/(AD$128-L$128)),0)) -> 0 | V163: =IF(NOT(AND(ISNUMBER(L163),ISNUMBER(AD163))),0,IF(AND(L163>0,AD163>0),L163*(AD163/L163)^((V$128-L$128)/(AD$128-L$128)),0)) -> 0 | W163: =IF(NOT(AND(ISNUMBER(L163),ISNUMBER(AD163))),0,IF(AND(L163>0,AD163>0),L163*(AD163/L163)^((W$128-L$128)/(AD$128-L$128)),0)) -> 0 | X163: =IF(NOT(AND(ISNUMBER(L163),ISNUMBER(AD163))),0,IF(AND(L163>0,AD163>0),L163*(AD163/L163)^((X$128-L$128)/(AD$128-L$128)),0)) -> 0 | Y163: =IF(NOT(AND(ISNUMBER(L163),ISNUMBER(AD163))),0,IF(AND(L163>0,AD163>0),L163*(AD163/L163)^((Y$128-L$128)/(AD$128-L$128)),0)) -> 0 | Z163: =IF(NOT(AND(ISNUMBER(L163),ISNUMBER(AD163))),0,IF(AND(L163>0,AD163>0),L163*(AD163/L163)^((Z$128-L$128)/(AD$128-L$128)),0)) -> 0 | AA163: =IF(NOT(AND(ISNUMBER(L163),ISNUMBER(AD163))),0,IF(AND(L163>0,AD163>0),L163*(AD163/L163)^((AA$128-L$128)/(AD$128-L$128)),0)) -> 0 | AB163: =IF(NOT(AND(ISNUMBER(L163),ISNUMBER(AD163))),0,IF(AND(L163>0,AD163>0),L163*(AD163/L163)^((AB$128-L$128)/(AD$128-L$128)),0)) -> 0 | AC163: =IF(NOT(AND(ISNUMBER(L163),ISNUMBER(AD163))),0,IF(AND(L163>0,AD163>0),L163*(AD163/L163)^((AC$128-L$128)/(AD$128-L$128)),0)) -> 0 | AD163: =H163 -> 0
A164: Truck time cost | D164: =IF(ISNUMBER(D$150),SUMPRODUCT(DemandProfiles!G167:G8926*DemandParameters!$C$35,EXP(AverageTravelTimeModel_Constant+AverageTravelTimeModel_LogVolumeParameter*LN(DemandProfiles!G167:G8926))/SecondsPerHour,--(DemandProfiles!G167:G8926<>0))*TimeValue_Truck,"") -> 1526.360017 | E164: =IF(ISNUMBER(E$150),SUM(N$203:N$8962),"") ->  | F164: =IF(ISNUMBER(F$150),SUM(V$203:V$8962),0) -> 0 | G164: =IF(ISNUMBER(G$150),SUM(AD$203:AD$8962),"") ->  | H164: =IF(ISNUMBER(D$150),SUMPRODUCT(DemandProfiles!K167:K8926*DemandParameters!$D$35,EXP(AverageTravelTimeModel_Constant+AverageTravelTimeModel_LogVolumeParameter*LN(DemandProfiles!K167:K8926))/SecondsPerHour,--(DemandProfiles!K167:K8926<>0))*TimeValue_Truck,"") -> 1831.63202 | J164: Truck time cost | K164: 22604.79042 | L164: 1526.360017 | M164: 1541.899044 | N164: 1557.596266 | O164: 1573.453292 | P164: 1589.47175 | Q164: 1605.653283 | R164: 1621.999551 | S164: 1638.512232 | T164: 1655.193019 | U164: 1672.043624 | V164: 1689.065776 | W164: 1706.26122 | X164: 1723.631723 | Y164: 1741.179064 | Z164: 1758.905045 | AA164: 1776.811485 | AB164: 1794.90022 | AC164: 1813.173107 | AD164: 1831.63202
A165: Truck reliability cost | D165: =IF(ISNUMBER(D$150),SUM(G$203:G$8962),"") -> 0 | E165: =IF(ISNUMBER(E$150),SUM(O$203:O$8962),"") ->  | F165: =IF(ISNUMBER(F$150),SUM(W$203:W$8962),0) -> 0 | G165: =IF(ISNUMBER(G$150),SUM(AE$203:AE$8962),"") ->  | H165: =IF(ISNUMBER(H$150),SUM(AM$203:AM$8962),"") -> 0 | J165: Truck reliability cost | K165: 0 | L165: 0 | M165: 0 | N165: 0 | O165: 0 | P165: 0 | Q165: 0 | R165: 0 | S165: 0 | T165: 0 | U165: 0 | V165: 0 | W165: 0 | X165: 0 | Y165: 0 | Z165: 0 | AA165: 0 | AB165: 0 | AC165: 0 | AD165: 0
A166: Transit passenger time cost | D166: =IF(ISNUMBER(D$150),SUM(H$203:H$8962),"") -> 0 | E166: =IF(ISNUMBER(E$150),SUM(P$203:P$8962),"") ->  | F166: =IF(ISNUMBER(F$150),SUM(X$203:X$8962),0) -> 0 | G166: =IF(ISNUMBER(G$150),SUM(AF$203:AF$8962),"") ->  | H166: =IF(ISNUMBER(H$150),SUM(AN$203:AN$8962),"") -> 0 | J166: Transit passenger time cost | K166: 0 | L166: 0 | M166: 0 | N166: 0 | O166: 0 | P166: 0 | Q166: 0 | R166: 0 | S166: 0 | T166: 0 | U166: 0 | V166: 0 | W166: 0 | X166: 0 | Y166: 0 | Z166: 0 | AA166: 0 | AB166: 0 | AC166: 0 | AD166: 0
A167: Transit passenger reliability cost | D167: =IF(ISNUMBER(D$150),SUM(I$203:I$8962),"") -> 0 | E167: =IF(ISNUMBER(E$150),SUM(Q$203:Q$8962),"") ->  | F167: =IF(ISNUMBER(F$150),SUM(Y$203:Y$8962),0) -> 0 | G167: =IF(ISNUMBER(G$150),SUM(AG$203:AG$203),"") ->  | H167: =IF(ISNUMBER(H$150),SUM(AO$203:AO$8962),"") -> 0 | J167: Transit passenger reliability cost | K167: 0 | L167: 0 | M167: 0 | N167: 0 | O167: 0 | P167: 0 | Q167: 0 | R167: 0 | S167: 0 | T167: 0 | U167: 0 | V167: 0 | W167: 0 | X167: 0 | Y167: 0 | Z167: 0 | AA167: 0 | AB167: 0 | AC167: 0 | AD167: 0
A168: Bicycle time cost | D168: =DemandParameters!C37*(D56/SecondsPerHour)*DaysPerYear*TimeValue_Person_Offpeak -> 0 | F168: =DemandParameters!C37*F56*DaysPerYear*TimeValue_Person_Offpeak -> 0 | H168: =DemandParameters!D37*(H56/SecondsPerHour)*DaysPerYear*TimeValue_Person_Offpeak -> 0 | J168: Bicycle time cost | K168: 0 | L168: 0 | M168: 0 | N168: 0 | O168: 0 | P168: 0 | Q168: 0 | R168: 0 | S168: 0 | T168: 0 | U168: 0 | V168: 0 | W168: 0 | X168: 0 | Y168: 0 | Z168: 0 | AA168: 0 | AB168: 0 | AC168: 0 | AD168: 0
A169: Pedestrian time cost | D169: =DemandParameters!C38*(D57/SecondsPerHour)*DaysPerYear*TimeValue_Person_Offpeak -> 0 | F169: =DemandParameters!C38*F57*DaysPerYear*TimeValue_Person_Offpeak -> 0 | H169: =DemandParameters!D38*(H57/SecondsPerHour)*DaysPerYear*TimeValue_Person_Offpeak -> 0 | J169: =A169 -> Pedestrian time cost | K169: 0 | L169: 0 | M169: 0 | N169: 0 | O169: 0 | P169: 0 | Q169: 0 | R169: 0 | S169: 0 | T169: 0 | U169: 0 | V169: 0 | W169: 0 | X169: 0 | Y169: 0 | Z169: 0 | AA169: 0 | AB169: 0 | AC169: 0 | AD169: 0
A170: Crash cost | D170: =IF(OR(NOT(ISNUMBER($C$177)),NOT(ISNUMBER(D$60))),0,SUMPRODUCT($C$177:$C$181,D$60:D$64)) -> 0 | E170: =IF(OR(NOT(ISNUMBER($C$177)),NOT(ISNUMBER(E$60))),0,SUMPRODUCT($C$177:$C$181,E$60:E$64)) -> 0 | F170: =IF(OR(NOT(ISNUMBER($C$177)),NOT(ISNUMBER(F$60))),0,SUMPRODUCT($C$177:$C$181,F$60:F$64)) -> 0 | G170: =IF(OR(NOT(ISNUMBER($C$177)),NOT(ISNUMBER(G$60))),0,SUMPRODUCT($C$177:$C$181,G$60:G$64)) -> 0 | H170: =IF(OR(NOT(ISNUMBER($C$177)),NOT(ISNUMBER(H$60))),0,SUMPRODUCT($C$177:$C$181,H$60:H$64)) -> 0 | J170: Crash cost | K170: =SUMPRODUCT(L170:DG170,$L$129:$DG$129) -> 0 | L170: 0 | M170: 0 | N170: 0 | O170: 0 | P170: 0 | Q170: 0 | R170: 0 | S170: 0 | T170: 0 | U170: 0 | V170: 0 | W170: 0 | X170: 0 | Y170: 0 | Z170: 0 | AA170: 0 | AB170: 0 | AC170: 0 | AD170: 0
A171: GHG cost | D171: =IF(D67="","",D67*IF(IsChecked_GHG_Values_FederalMethod,VLOOKUP(D49,GHG.Costs!$A$20:$G$156,6,7))) ->  | E171: =IF(E67="","",E67*IF(IsChecked_GHG_Values_FederalMethod,VLOOKUP(E49,GHG.Costs!$A$20:$G$156,6,7))) ->  | F171: =IF(F67="","",F67*IF(IsChecked_GHG_Values_FederalMethod,VLOOKUP(F49,GHG.Costs!$A$20:$G$156,6,7))) ->  | G171: =IF(G67="","",G67*IF(IsChecked_GHG_Values_FederalMethod,VLOOKUP(G49,GHG.Costs!$A$20:$G$156,6,7))) ->  | H171: =IF(H67="","",H67*IF(IsChecked_GHG_Values_FederalMethod,VLOOKUP(H49,GHG.Costs!$A$20:$G$156,6,7))) ->  | J171: GHG cost | K171: =SUM(L171:DG171) -> 0 | M171: 0 | N171: 0 | O171: 0 | P171: 0 | Q171: 0 | R171: 0 | S171: 0 | T171: 0 | U171: 0 | V171: 0 | W171: 0 | X171: 0 | Y171: 0 | Z171: 0 | AA171: 0 | AB171: 0 | AC171: 0
A172: Criteria pollutant cost | D172: =IF(IsChecked_CriteriaPollutantCategories_ByType,SUMPRODUCT(D68:D71,CostParameters!$G$27:$G$30),SUMPRODUCT(D68:D71,CostParameters!$G$31:$G$34)) -> 0 | E172: =IF(IsChecked_CriteriaPollutantCategories_ByType,SUMPRODUCT(E68:E71,CostParameters!$G$27:$G$30),SUMPRODUCT(E68:E71,CostParameters!$G$31:$G$34)) -> 0 | F172: =IF(IsChecked_CriteriaPollutantCategories_ByType,SUMPRODUCT(F68:F71,CostParameters!$G$27:$G$30),SUMPRODUCT(F68:F71,CostParameters!$G$31:$G$34)) -> 0 | G172: =IF(IsChecked_CriteriaPollutantCategories_ByType,SUMPRODUCT(G68:G71,CostParameters!$G$27:$G$30),SUMPRODUCT(G68:G71,CostParameters!$G$31:$G$34)) -> 0 | H172: =IF(IsChecked_CriteriaPollutantCategories_ByType,SUMPRODUCT(H68:H71,CostParameters!$G$27:$G$30),SUMPRODUCT(H68:H71,CostParameters!$G$31:$G$34)) -> 0 | J172: Criteria pollutant cost | K172: =SUMPRODUCT(L172:DG172,$L$129:$DG$129) -> 0 | L172: 0 | M172: 0 | N172: 0 | O172: 0 | P172: 0 | Q172: 0 | R172: 0 | S172: 0 | T172: 0 | U172: 0 | V172: 0 | W172: 0 | X172: 0 | Y172: 0 | Z172: 0 | AA172: 0 | AB172: 0 | AC172: 0 | AD172: 0
I174: index
A175: Safety | B175: Crash type | C175: Valuation | D175: Opening Year | E175: Interim Year(s) | H175: End year
D176: =$C$6 -> 2020 | E176: =IF($C$7="","",$C$7) ->  | F176: =IF($C$8="","",$C$8) ->  | G176: =IF($C$9="","",$C$9) ->  | H176: =$C$10 -> 2040
A177: =IF(IsChecked_CrashCategories_KABCO,CrashCategoryLabel_KABCO,IF(IsChecked_CrashCategories_FatalityInjuryPDO,CrashCategoryLabel_FatalInjuryPDO,IF(IsChecked_CrashCategories_TotalCrashes,CrashCategoryLabel_TotalCrashes,CrashCategoryLabel_UserDefined))) -> KABCO | B177: =IF(B60="","",B60) -> Fatal & Injury Crashes | C177: =IF(IsChecked_CrashCategories_KABCO,IF(ISERROR(INDEX(CrashValuations_KABCO,$I177)),"",INDEX(CrashValuations_KABCO,$I177)),IF(IsChecked_CrashCategories_FatalityInjuryPDO,IF(ISERROR(INDEX(CrashValuations_FatalityInjuryPDO,$I177)),"",INDEX(CrashValuations_FatalityInjuryPDO,$I177)),IF(IsChecked_CrashCategories_TotalCrashes,IF(ISERROR(INDEX(CrashValuations_TotalCrashes,$I177)),"",INDEX(CrashValuations_TotalCrashes,$I177)),IF(IsChecked_CrashCategories_UserDefined,IF(ISERROR(INDEX(CrashValuations_UserDefined,$I177)),"",IF(INDEX(CrashValuations_UserDefined,$I177)="","",INDEX(CrashValuations_UserDefined,$I177))),#N/A)))) -> 313236.15 | I177: 1
B178: =IF(B61="","",B61) -> Property damage only crashes | C178: =IF(IsChecked_CrashCategories_KABCO,IF(ISERROR(INDEX(CrashValuations_KABCO,$I178)),"",INDEX(CrashValuations_KABCO,$I178)),IF(IsChecked_CrashCategories_FatalityInjuryPDO,IF(ISERROR(INDEX(CrashValuations_FatalityInjuryPDO,$I178)),"",INDEX(CrashValuations_FatalityInjuryPDO,$I178)),IF(IsChecked_CrashCategories_TotalCrashes,IF(ISERROR(INDEX(CrashValuations_TotalCrashes,$I178)),"",INDEX(CrashValuations_TotalCrashes,$I178)),IF(IsChecked_CrashCategories_UserDefined,IF(ISERROR(INDEX(CrashValuations_UserDefined,$I178)),"",IF(INDEX(CrashValuations_UserDefined,$I178)="","",INDEX(CrashValuations_UserDefined,$I178))),#N/A)))) -> 7700 | I178: 2
B179: =IF(B62="","",B62) -> 0 | C179: =IF(IsChecked_CrashCategories_KABCO,IF(ISERROR(INDEX(CrashValuations_KABCO,$I179)),"",INDEX(CrashValuations_KABCO,$I179)),IF(IsChecked_CrashCategories_FatalityInjuryPDO,IF(ISERROR(INDEX(CrashValuations_FatalityInjuryPDO,$I179)),"",INDEX(CrashValuations_FatalityInjuryPDO,$I179)),IF(IsChecked_CrashCategories_TotalCrashes,IF(ISERROR(INDEX(CrashValuations_TotalCrashes,$I179)),"",INDEX(CrashValuations_TotalCrashes,$I179)),IF(IsChecked_CrashCategories_UserDefined,IF(ISERROR(INDEX(CrashValuations_UserDefined,$I179)),"",IF(INDEX(CrashValuations_UserDefined,$I179)="","",INDEX(CrashValuations_UserDefined,$I179))),#N/A)))) -> 0 | I179: 3
B180: =IF(B63="","",B63) -> 0 | C180: =IF(IsChecked_CrashCategories_KABCO,IF(ISERROR(INDEX(CrashValuations_KABCO,$I180)),"",INDEX(CrashValuations_KABCO,$I180)),IF(IsChecked_CrashCategories_FatalityInjuryPDO,IF(ISERROR(INDEX(CrashValuations_FatalityInjuryPDO,$I180)),"",INDEX(CrashValuations_FatalityInjuryPDO,$I180)),IF(IsChecked_CrashCategories_TotalCrashes,IF(ISERROR(INDEX(CrashValuations_TotalCrashes,$I180)),"",INDEX(CrashValuations_TotalCrashes,$I180)),IF(IsChecked_CrashCategories_UserDefined,IF(ISERROR(INDEX(CrashValuations_UserDefined,$I180)),"",IF(INDEX(CrashValuations_UserDefined,$I180)="","",INDEX(CrashValuations_UserDefined,$I180))),#N/A)))) -> 0 | I180: 4
B181: =IF(B64="","",B64) -> 0 | C181: =IF(IsChecked_CrashCategories_KABCO,IF(ISERROR(INDEX(CrashValuations_KABCO,$I181)),"",INDEX(CrashValuations_KABCO,$I181)),IF(IsChecked_CrashCategories_FatalityInjuryPDO,IF(ISERROR(INDEX(CrashValuations_FatalityInjuryPDO,$I181)),"",INDEX(CrashValuations_FatalityInjuryPDO,$I181)),IF(IsChecked_CrashCategories_TotalCrashes,IF(ISERROR(INDEX(CrashValuations_TotalCrashes,$I181)),"",INDEX(CrashValuations_TotalCrashes,$I181)),IF(IsChecked_CrashCategories_UserDefined,IF(ISERROR(INDEX(CrashValuations_UserDefined,$I181)),"",IF(INDEX(CrashValuations_UserDefined,$I181)="","",INDEX(CrashValuations_UserDefined,$I181))),#N/A)))) -> 0 | I181: 5
A184: Emissions | B184: Type
A186: =A67 -> Greenhouse gases -- user defined costs | B186: =IF(B67="","",B67) -> CO2 equivalent | C186: (see next row)
A190: =A68 -> Criteria pollutants -- by type | B190: =IF(B68="","",B68) -> 0 | C190: =IF(IsChecked_CriteriaPollutantCategories_ByType,CostParameters!G27,CostParameters!G31) -> 0 | I190: 1
B191: =IF(B69="","",B69) -> 0 | C191: =IF(IsChecked_CriteriaPollutantCategories_ByType,CostParameters!G28,CostParameters!G32) -> 0 | I191: 2
B192: 0 | C192: =IF(IsChecked_CriteriaPollutantCategories_ByType,CostParameters!G29,CostParameters!G33) -> 0 | I192: 3
B193: 0 | C193: =IF(IsChecked_CriteriaPollutantCategories_ByType,CostParameters!G30,CostParameters!G34) -> 0 | I193: 6
A196: Year | C196: time per | D196: std dev | K196: time per | L196: std dev | S196: time per | T196: std dev | AA196: time per | AB196: std dev | AI196: time per | AJ196: std dev
A197: Year type ---> | B197: Opening year | C197: AM | D197: =D151 -> 0 | J197: Int yr 1 | K197: AM | L197: =E151 -> 0 | R197: Int yr 2 | S197: AM | T197: =F151 -> 0 | Z197: Int yr 3 | AA197: AM | AB197: =G151 -> 0 | AH197: End year | AI197: AM | AJ197: =H151 -> 0
A198: Year ------> | B198: =$C$6 -> 2020 | C198: PM | D198: =D152 -> 0 | J198: =IF($C$7="","",$C$7) ->  | K198: PM | L198: =E152 -> 0 | R198: =IF($C$8="","",$C$8) ->  | S198: PM | T198: =F152 -> 0 | Z198: =IF($C$9="","",$C$9) ->  | AA198: PM | AB198: =G152 -> 0 | AH198: =IF($C$10="","",$C$10) -> 2040 | AI198: PM | AJ198: =H152 -> 0
A199: Year col in demand sheet ---> | B199: 0 | C199: Offpk | D199: =D153 -> 0 | J199: 0 | K199: Offpk | L199: =E153 -> 0 | R199: 0 | S199: Offpk | T199: =F153 -> 0 | Z199: 0 | AA199: Offpk | AB199: =G153 -> 0 | AH199: 0 | AI199: Offpk | AJ199: =H153 -> 0
A200: Year number (1 = opening, 5 = end, etc) | B200: 1 | C200: 1 | D200: 1 | E200: 1 | F200: 1 | G200: 1 | H200: 1 | I200: 1 | J200: 2 | K200: 2 | L200: 2 | M200: 2 | N200: 2 | O200: 2 | P200: 2 | Q200: 2 | R200: 3 | S200: 3 | T200: 3 | U200: 3 | V200: 3 | W200: 3 | X200: 3 | Y200: 3 | Z200: 4 | AA200: 4 | AB200: 4 | AC200: 4 | AD200: 4 | AE200: 4 | AF200: 4 | AG200: 4 | AH200: 5 | AI200: 5 | AJ200: 5 | AK200: 5 | AL200: 5 | AM200: 5 | AN200: 5
A202: Date/time | B202: average travel time or delay per vehicle (hr) | C202: reliability "insurance" time | D202: auto passenger time cost | E202: auto passenger reliability cost | F202: truck time cost | G202: truck reliability cost | H202: transit passenger time cost | I202: transit passenger reliability cost | J202: average travel time or delay per vehicle (hr) | K202: reliability "insurance" time | L202: auto passenger time cost | M202: auto passenger reliability cost | N202: truck time cost | O202: truck reliability cost | P202: transit passenger time cost | Q202: transit passenger reliability cost | R202: average travel time or delay per vehicle (hr) | S202: reliability "insurance" time | T202: auto passenger time cost | U202: auto passenger reliability cost | V202: truck time cost | W202: truck reliability cost | X202: transit passenger time cost | Y202: transit passenger reliability cost | Z202: average travel time or delay per vehicle (hr) | AA202: reliability "insurance" time | AB202: auto passenger time cost | AC202: auto passenger reliability cost | AD202: truck time cost | AE202: truck reliability cost | AF202: transit passenger time cost | AG202: transit passenger reliability cost | AH202: average travel time or delay per vehicle (hr) | AI202: reliability "insurance" time | AJ202: auto passenger time cost | AK202: auto passenger reliability cost | AL202: truck time cost | AM202: truck reliability cost | AN202: transit passenger time cost | AO202: transit passenger reliability cost
A203: 2014-01-01

Sheet RCUT EW (hidden)
A1: RCUT E-W | C1: Use this sheet to enter the delay information for a Signalized RCUT with the major street running East-West. (Requires turning movement count demand inputs)
C4: User must enter value on this sheet
E5: Eastern Crossover | F5: Western Crossover
A6: Distance from main intersection to: | E6: 600 | F6: 600
A7: Free-flow speed on major street | E7: 45
B9: *Volumes are computed based on values entered in DemandCounts and Exhibit 6-2 of FHWA RCUT Guide
B10: Opening Year AM Peak | G10: Opening Year PM Peak | L10: Opening Year Weekend Peak
B11: Intersection 1 | C11: EB Thru | D11: WB U-Turn | G11: Intersection 1 | H11: EB Thru | I11: WB U-Turn | L11: Intersection 1 | M11: EB Thru | N11: WB U-Turn
B12: Volume | C12: =SUM(T14:V14) -> 102 | D12: =SUM(T16:U16) -> 252 | G12: Volume | H12: =SUM(X14:Z14) -> 132 | I12: =SUM(X16:Y16) -> 272 | L12: Volume | M12: =SUM(AB14:AD14) -> 0 | N12: =SUM(AB16:AC16) -> 0 | S12: AM Peak Hour | W12: PM Peak Hour | AA12: Weekend Peak Hour
B13: Delay | C13: 3.4 | D13: 21.9 | G13: Delay | H13: 3.4 | I13: 21.9 | L13: Delay | M13: 3.4 | N13: 21.9 | S13: U | T13: L | U13: T | V13: R | W13: U | X13: L | Y13: T | Z13: R | AA13: U | AB13: L | AC13: T | AD13: R
R14: Eastbound | S14: =DemandCounts!B36 -> 0 | T14: =DemandCounts!C36 -> 25 | U14: =DemandCounts!D36 -> 51 | V14: =DemandCounts!E36 -> 26 | W14: =DemandCounts!H36 -> 0 | X14: =DemandCounts!I36 -> 35 | Y14: =DemandCounts!J36 -> 61 | Z14: =DemandCounts!K36 -> 36 | AA14: =DemandCounts!N36 -> 0 | AB14: =DemandCounts!O36 -> 0 | AC14: =DemandCounts!P36 -> 0 | AD14: =DemandCounts!Q36 -> 0
B15: Intersection 2 | C15: WB Left | D15: WB Thru | E15: WB Right | F15: SB Right | G15: Intersection 2 | H15: WB Left | I15: WB Thru | J15: WB Right | K15: SB Right | L15: Intersection 2 | M15: WB Left | N15: WB Thru | O15: WB Right | P15: SB Right | R15: Westbound | S15: =DemandCounts!B37 -> 0 | T15: =DemandCounts!C37 -> 50 | U15: =DemandCounts!D37 -> 100 | V15: =DemandCounts!E37 -> 45 | W15: =DemandCounts!H37 -> 0 | X15: =DemandCounts!I37 -> 60 | Y15: =DemandCounts!J37 -> 110 | Z15: =DemandCounts!K37 -> 55 | AA15: =DemandCounts!N37 -> 0 | AB15: =DemandCounts!O37 -> 0 | AC15: =DemandCounts!P37 -> 0 | AD15: =DemandCounts!Q37 -> 0
B16: Volume | C16: =T15 -> 50 | D16: =U15+T17 -> 141 | E16: =V15+U17 -> 358 | F16: =SUM(T16:V16) -> 290 | G16: Volume | H16: =X15 -> 60 | I16: =Y15+X17 -> 161 | J16: =Z15+Y17 -> 378 | K16: =SUM(X16:Z16) -> 320 | L16: Volume | M16: =AB15 -> 0 | N16: =AC15+AB17 -> 0 | O16: =AD15+AC17 -> 0 | P16: =SUM(AB16:AD16) -> 0 | R16: Southbound | S16: =DemandCounts!B38 -> 0 | T16: =DemandCounts!C38 -> 40 | U16: =DemandCounts!D38 -> 212 | V16: =DemandCounts!E38 -> 38 | W16: =DemandCounts!H38 -> 0 | X16: =DemandCounts!I38 -> 50 | Y16: =DemandCounts!J38 -> 222 | Z16: =DemandCounts!K38 -> 48 | AA16: =DemandCounts!N38 -> 0 | AB16: =DemandCounts!O38 -> 0 | AC16: =DemandCounts!P38 -> 0 | AD16: =DemandCounts!Q38 -> 0
B17: Delay | C17: 18.2 | D17: 4.8 | E17: 2.7 | F17: 21.5 | G17: Delay | H17: 18.2 | I17: 4.8 | J17: 2.7 | K17: 21.5 | L17: Delay | M17: 18.2 | N17: 4.8 | O17: 2.7 | P17: 21.5 | R17: Northbound | S17: =DemandCounts!B39 -> 0 | T17: =DemandCounts!C39 -> 41 | U17: =DemandCounts!D39 -> 313 | V17: =DemandCounts!E39 -> 39 | W17: =DemandCounts!H39 -> 0 | X17: =DemandCounts!I39 -> 51 | Y17: =DemandCounts!J39 -> 323 | Z17: =DemandCounts!K39 -> 49 | AA17: =DemandCounts!N39 -> 0 | AB17: =DemandCounts!O39 -> 0 | AC17: =DemandCounts!P39 -> 0 | AD17: =DemandCounts!Q39 -> 0
B19: Intersection 3 | C19: EB Left | D19: EB Thru | E19: EB Right | F19: NB Right | G19: Intersection 3 | H19: EB Left | I19: EB Thru | J19: EB Right | K19: NB Right | L19: Intersection 3 | M19: EB Left | N19: EB Thru | O19: EB Right | P19: NB Right
B20: Volume | C20: =T14 -> 25 | D20: =U14+T16 -> 91 | E20: =V14+U16 -> 238 | F20: =SUM(T17:V17) -> 393 | G20: Volume | H20: =X14 -> 35 | I20: =Y14+X16 -> 111 | J20: =Z14+Y16 -> 258 | K20: =SUM(X17:Z17) -> 423 | L20: Volume | M20: =AB14 -> 0 | N20: =AC14+AB16 -> 0 | O20: =AD14+AC16 -> 0 | P20: =SUM(AB17:AD17) -> 0
B21: Delay | C21: 19.1 | D21: 4.4 | E21: 4.3 | F21: 21.3 | G21: Delay | H21: 19.1 | I21: 4.4 | J21: 4.3 | K21: 21.3 | L21: Delay | M21: 19.1 | N21: 4.4 | O21: 4.3 | P21: 21.3
B23: Intersection 4 | C23: WB Thru | D23: EB U-Turn | G23: Intersection 4 | H23: WB Thru | I23: EB U-Turn | L23: Intersection 4 | M23: WB Thru | N23: EB U-Turn
B24: Volume | C24: =SUM(T15:V15) -> 195 | D24: =U17+T17 -> 354 | G24: Volume | H24: =SUM(X15:Z15) -> 225 | I24: =Y17+X17 -> 374 | L24: Volume | M24: =SUM(AB15:AD15) -> 0 | N24: =AC17+AB17 -> 0
B25: Delay | C25: 4.2 | D25: 22.9 | G25: Delay | H25: 4.2 | I25: 22.9 | L25: Delay | M25: 4.2 | N25: 22.9
B28: Design Year AM Peak | G28: Design Year PM Peak | L28: Design Year WeekendPeak
B29: Intersection 1 | C29: EB Thru | D29: WB U-Turn | G29: Intersection 1 | H29: EB Thru | I29: WB U-Turn | L29: Intersection 1 | M29: EB Thru | N29: WB U-Turn
B30: Volume | C30: =SUM(T32:V32) -> 122 | D30: =SUM(T34:U34) -> 302 | G30: Volume | H30: =SUM(X32:Z32) -> 158 | I30: =SUM(X34:Y34) -> 326 | L30: Volume | M30: =SUM(AB32:AD32) -> 0 | N30: =SUM(AB34:AC34) -> 0 | S30: AM Peak Hour | W30: PM Peak Hour | AA30: Weekend Peak Hour
B31: Delay | C31: 7.7 | D31: 41.7 | G31: Delay | H31: 7.7 | I31: 41.7 | L31: Delay | M31: 7.7 | N31: 41.7 | S31: U | T31: L | U31: T | V31: R | W31: U | X31: L | Y31: T | Z31: R | AA31: U | AB31: L | AC31: T | AD31: R
R32: Eastbound | S32: =DemandCounts!B45 -> 0 | T32: =DemandCounts!C45 -> 30 | U32: =DemandCounts!D45 -> 61 | V32: =DemandCounts!E45 -> 31 | W32: =DemandCounts!H45 -> 0 | X32: =DemandCounts!I45 -> 42 | Y32: =DemandCounts!J45 -> 73 | Z32: =DemandCounts!K45 -> 43 | AA32: =DemandCounts!N45 -> 0 | AB32: =DemandCounts!O45 -> 0 | AC32: =DemandCounts!P45 -> 0 | AD32: =DemandCounts!Q45 -> 0
B33: Intersection 2 | C33: WB Left | D33: WB Thru | E33: WB Right | F33: SB Right | G33: Intersection 2 | H33: WB Left | I33: WB Thru | J33: WB Right | K33: SB Right | L33: Intersection 2 | M33: WB Left | N33: WB Thru | O33: WB Right | P33: SB Right | R33: Westbound | S33: =DemandCounts!B46 -> 0 | T33: =DemandCounts!C46 -> 60 | U33: =DemandCounts!D46 -> 120 | V33: =DemandCounts!E46 -> 54 | W33: =DemandCounts!H46 -> 0 | X33: =DemandCounts!I46 -> 72 | Y33: =DemandCounts!J46 -> 132 | Z33: =DemandCounts!K46 -> 66 | AA33: =DemandCounts!N46 -> 0 | AB33: =DemandCounts!O46 -> 0 | AC33: =DemandCounts!P46 -> 0 | AD33: =DemandCounts!Q46 -> 0
B34: Volume | C34: =T33 -> 60 | D34: =U33+T35 -> 169 | E34: =V33+U35 -> 430 | F34: =SUM(T34:V34) -> 348 | G34: Volume | H34: =X33 -> 72 | I34: =Y33+X35 -> 193 | J34: =Z33+Y35 -> 454 | K34: =SUM(X34:Z34) -> 384 | L34: Volume | M34: =AB33 -> 0 | N34: =AC33+AB35 -> 0 | O34: =AD33+AC35 -> 0 | P34: =SUM(AB34:AD34) -> 0 | R34: Southbound | S34: =DemandCounts!B47 -> 0 | T34: =DemandCounts!C47 -> 48 | U34: =DemandCounts!D47 -> 254 | V34: =DemandCounts!E47 -> 46 | W34: =DemandCounts!H47 -> 0 | X34: =DemandCounts!I47 -> 60 | Y34: =DemandCounts!J47 -> 266 | Z34: =DemandCounts!K47 -> 58 | AA34: =DemandCounts!N47 -> 0 | AB34: =DemandCounts!O47 -> 0 | AC34: =DemandCounts!P47 -> 0 | AD34: =DemandCounts!Q47 -> 0
B35: Delay | C35: 27.9 | D35: 37.2 | E35: 8.2 | F35: 42.2 | G35: Delay | H35: 27.9 | I35: 37.2 | J35: 8.2 | K35: 42.2 | L35: Delay | M35: 27.9 | N35: 37.2 | O35: 8.2 | P35: 42.2 | R35: Northbound | S35: =DemandCounts!B48 -> 0 | T35: =DemandCounts!C48 -> 49 | U35: =DemandCounts!D48 -> 376 | V35: =DemandCounts!E48 -> 47 | W35: =DemandCounts!H48 -> 0 | X35: =DemandCounts!I48 -> 61 | Y35: =DemandCounts!J48 -> 388 | Z35: =DemandCounts!K48 -> 59 | AA35: =DemandCounts!N48 -> 0 | AB35: =DemandCounts!O48 -> 0 | AC35: =DemandCounts!P48 -> 0 | AD35: =DemandCounts!Q48 -> 0
B37: Intersection 3 | C37: EB Left | D37: EB Thru | E37: EB Right | F37: NB Right | G37: Intersection 3 | H37: EB Left | I37: EB Thru | J37: EB Right | K37: NB Right | L37: Intersection 3 | M37: EB Left | N37: EB Thru | O37: EB Right | P37: NB Right
B38: Volume | C38: =T32 -> 30 | D38: =U32+T34 -> 109 | E38: =V32+U34 -> 285 | F38: =SUM(T35:V35) -> 472 | G38: Volume | H38: =X32 -> 42 | I38: =Y32+X34 -> 133 | J38: =Z32+Y34 -> 309 | K38: =SUM(X35:Z35) -> 508 | L38: Volume | M38: =AB32 -> 0 | N38: =AC32+AB34 -> 0 | O38: =AD32+AC34 -> 0 | P38: =SUM(AB35:AD35) -> 0
B39: Delay | C39: 23.7 | D39: 10 | E39: 8.1 | F39: 34.9 | G39: Delay | H39: 23.7 | I39: 10 | J39: 8.1 | K39: 34.9 | L39: Delay | M39: 23.7 | N39: 10 | O39: 8.1 | P39: 34.9
B41: Intersection 4 | C41: WB Thru | D41: EB U-Turn | G41: Intersection 4 | H41: WB Thru | I41: EB U-Turn | L41: Intersection 4 | M41: WB Thru | N41: EB U-Turn
B42: Volume | C42: =SUM(T33:V33) -> 234 | D42: =U35+T35 -> 425 | G42: Volume | H42: =SUM(X33:Z33) -> 270 | I42: =Y35+X35 -> 449 | L42: Volume | M42: =SUM(AB33:AD33) -> 0 | N42: =AC35+AB35 -> 0
B43: Delay | C43: 27.8 | D43: 42.5 | G43: Delay | H43: 27.8 | I43: 42.5 | L43: Delay | M43: 27.8 | N43: 42.5
A50: Above this line, "EB Left", WB U", etc refer to movements at each small intersection within the RCUT
A52: Below this line "EB Left", "WB U" etc refer to movements at the main intersection
B54: Opening Year AM Peak | G54: Opening Year PM Peak | L54: Opening Year Weekend Peak
B55: Computation of Control Delay for entire RCUT | G55: Computation of Control Delay for entire RCUT | L55: Computation of Control Delay for entire RCUT
C56: Computed based on formulas I have here | H56: Computed based on formulas I have here | M56: Computed based on formulas I have here
C59: Delay for each movement | D59: Extra distance travel time (EDTT) for each movement | E59: Experienced Travel Time (ETT) | F59: Average ETT | H59: Delay for each movement | I59: Extra distance travel time (EDTT) for each movement | J59: Experienced Travel Time (ETT) | K59: Average ETT | M59: Delay for each movement | N59: Extra distance travel time (EDTT) for each movement | O59: Experienced Travel Time (ETT) | P59: Average ETT
B60: EB Left | C60: =C13+C21 -> 22.5 | D60: 0 | E60: =C60+D60 -> 22.5 | G60: EB Left | H60: =H13+H21 -> 22.5 | I60: 0 | J60: =H60+I60 -> 22.5 | L60: EB Left | M60: =M13+M21 -> 22.5 | N60: 0 | O60: =M60+N60 -> 22.5
B61: EB Through | C61: =D21+C13 -> 7.8 | D61: 0 | E61: =C61+D61 -> 7.8 | G61: EB Through | H61: =I21+H13 -> 7.8 | I61: 0 | J61: =H61+I61 -> 7.8 | L61: EB Through | M61: =N21+M13 -> 7.8 | N61: 0 | O61: =M61+N61 -> 7.8
B62: EB Right | C62: =E21+C13 -> 7.7 | D62: 0 | E62: 7.7 | G62: EB Right | H62: =J21+H13 -> 7.7 | I62: 0 | J62: 7.7 | L62: EB Right | M62: =O21+M13 -> 7.7 | N62: 0 | O62: 7.7
B63: NB Left | C63: =F21+D25+D17 -> 49 | D63: =(2*$E$6)/(1.47*$E$7) -> 18.14058957 | E63: 67.14058957 | G63: NB Left | H63: =K21+I25+I17 -> 49 | I63: =(2*$E$6)/(1.47*$E$7) -> 18.14058957 | J63: 67.14058957 | L63: NB Left | M63: =P21+N25+N17 -> 49 | N63: =(2*$E$6)/(1.47*$E$7) -> 18.14058957 | O63: 67.14058957
B64: NB Through | C64: =F21+D25+E17 -> 46.9 | D64: =(2*$E$6)/(1.47*$E$7) -> 18.14058957 | E64: 65.04058957 | G64: NB Through | H64: =K21+I25+J17 -> 46.9 | I64: =(2*$E$6)/(1.47*$E$7) -> 18.14058957 | J64: 65.04058957 | L64: NB Through | M64: =P21+N25+O17 -> 46.9 | N64: =(2*$E$6)/(1.47*$E$7) -> 18.14058957 | O64: 65.04058957
B65: NB Right | C65: =F21 -> 21.3 | D65: 0 | E65: 21.3 | G65: NB Right | H65: =K21 -> 21.3 | I65: 0 | J65: 21.3 | L65: NB Right | M65: =P21 -> 21.3 | N65: 0 | O65: 21.3
B66: WB Left | C66: =C25+C17 -> 22.4 | D66: 0 | E66: 22.4 | G66: WB Left | H66: =H25+H17 -> 22.4 | I66: 0 | J66: 22.4 | L66: WB Left | M66: =M25+M17 -> 22.4 | N66: 0 | O66: 22.4
B67: WB Through | C67: =C25+D17 -> 9 | D67: 0 | E67: 9 | G67: WB Through | H67: =H25+I17 -> 9 | I67: 0 | J67: 9 | L67: WB Through | M67: =M25+N17 -> 9 | N67: 0 | O67: 9
B68: WB Right | C68: =C25+E17 -> 6.9 | D68: 0 | E68: 6.9 | G68: WB Right | H68: =H25+J17 -> 6.9 | I68: 0 | J68: 6.9 | L68: WB Right | M68: =M25+O17 -> 6.9 | N68: 0 | O68: 6.9
B69: SB Left | C69: =F17+D13+D21 -> 47.8 | D69: =2*$F$6/(1.47*$E$7) -> 18.14058957 | E69: 65.94058957 | G69: SB Left | H69: =K17+I13+I21 -> 47.8 | I69: =2*$F$6/(1.47*$E$7) -> 18.14058957 | J69: 65.94058957 | L69: SB Left | M69: =P17+N13+N21 -> 47.8 | N69: =2*$F$6/(1.47*$E$7) -> 18.14058957 | O69: 65.94058957
B70: SB Through | C70: =F17+D13+E21 -> 47.7 | D70: =2*$F$6/(1.47*$E$7) -> 18.14058957 | E70: 65.84058957 | G70: SB Through | H70: =K17+I13+J21 -> 47.7 | I70: =2*$F$6/(1.47*$E$7) -> 18.14058957 | J70: 65.84058957 | L70: SB Through | M70: =P17+N13+O21 -> 47.7 | N70: =2*$F$6/(1.47*$E$7) -> 18.14058957 | O70: 65.84058957
B71: SB Right | C71: =F17 -> 21.5 | D71: 0 | E71: 21.5 | G71: SB Right | H71: =K17 -> 21.5 | I71: 0 | J71: 21.5 | L71: SB Right | M71: =P17 -> 21.5 | N71: 0 | O71: 21.5
F72: =(E60*T14+E61*U14+E62*V14+E63*T17+E64*U17+E65*V17+E66*T15+E67*U15+E68*V15+E69*T16+E70*U16+E71*V16)/(T14+U14+V14+T15+U15+V15+T17+U17+V17+T16+U16+V16) -> 45.76020131 | K72: =(J60*X14+J61*Y14+J62*Z14+J63*X17+J64*Y17+J65*Z17+J66*X15+J67*Y15+J68*Z15+J69*X16+J70*Y16+J71*Z16)/(X14+Y14+Z14+X15+Y15+Z15+X17+Y17+Z17+X16+Y16+Z16) -> 44.25056442 | P72: =(O60*AB14+O61*AC14+O62*AD14+O63*AB17+O64*AC17+O65*AD17+O66*AB15+O67*AC15+O68*AD15+O69*AB16+O70*AC16+O71*AD16)/(AB14+AC14+AD14+AB15+AC15+AD15+AB17+AC17+AD17+AB16+AC16+AD16) -> 
B75: Design Year AM Peak | G75: Design Year PM Peak | L75: Design Year Weekend Peak
B76: Computation of Control Delay for entire RCUT | G76: Computation of Control Delay for entire RCUT | L76: Computation of Control Delay for entire RCUT
C77: Computed based on formulas I have here | H77: Computed based on formulas I have here | M77: Computed based on formulas I have here
C80: Delay for each movement | D80: Extra distance travel time (EDTT) for each movement | E80: Experienced Travel Time (ETT) | F80: Average ETT | H80: Delay for each movement | I80: Extra distance travel time (EDTT) for each movement | J80: Experienced Travel Time (ETT) | K80: Average ETT | M80: Delay for each movement | N80: Extra distance travel time (EDTT) for each movement | O80: Experienced Travel Time (ETT) | P80: Average ETT
B81: EB Left | C81: =C31+C39 -> 31.4 | D81: 0 | E81: =C81+D81 -> 31.4 | G81: EB Left | H81: =H31+H39 -> 31.4 | I81: 0 | J81: =H81+I81 -> 31.4 | L81: EB Left | M81: =M31+M39 -> 31.4 | N81: 0 | O81: =M81+N81 -> 31.4
B82: EB Through | C82: =D39+C31 -> 17.7 | D82: 0 | E82: =C82+D82 -> 17.7 | G82: EB Through | H82: =I39+H31 -> 17.7 | I82: 0 | J82: =H82+I82 -> 17.7 | L82: EB Through | M82: =N39+M31 -> 17.7 | N82: 0 | O82: =M82+N82 -> 17.7
B83: EB Right | C83: =E39+C31 -> 15.8 | D83: 0 | E83: 15.8 | G83: EB Right | H83: =J39+H31 -> 15.8 | I83: 0 | J83: 15.8 | L83: EB Right | M83: =O39+M31 -> 15.8 | N83: 0 | O83: 15.8
B84: NB Left | C84: =F39+D43+D35 -> 114.6 | D84: =(2*$E$6)/(1.47*$E$7) -> 18.14058957 | E84: 132.7405896 | G84: NB Left | H84: =K39+I43+I35 -> 114.6 | I84: =(2*$E$6)/(1.47*$E$7) -> 18.14058957 | J84: 132.7405896 | L84: NB Left | M84: =P39+N43+N35 -> 114.6 | N84: =(2*$E$6)/(1.47*$E$7) -> 18.14058957 | O84: 132.7405896
B85: NB Through | C85: =F39+D43+E35 -> 85.6 | D85: =(2*$E$6)/(1.47*$E$7) -> 18.14058957 | E85: 103.7405896 | G85: NB Through | H85: =K39+I43+J35 -> 85.6 | I85: =(2*$E$6)/(1.47*$E$7) -> 18.14058957 | J85: 103.7405896 | L85: NB Through | M85: =P39+N43+O35 -> 85.6 | N85: =(2*$E$6)/(1.47*$E$7) -> 18.14058957 | O85: 103.7405896
B86: NB Right | C86: =F39 -> 34.9 | D86: 0 | E86: 34.9 | G86: NB Right | H86: =K39 -> 34.9 | I86: 0 | J86: 34.9 | L86: NB Right | M86: =P39 -> 34.9 | N86: 0 | O86: 34.9
B87: WB Left | C87: =C43+C35 -> 55.7 | D87: 0 | E87: 55.7 | G87: WB Left | H87: =H43+H35 -> 55.7 | I87: 0 | J87: 55.7 | L87: WB Left | M87: =M43+M35 -> 55.7 | N87: 0 | O87: 55.7
B88: WB Through | C88: =C43+D35 -> 65 | D88: 0 | E88: 65 | G88: WB Through | H88: =H43+I35 -> 65 | I88: 0 | J88: 65 | L88: WB Through | M88: =M43+N35 -> 65 | N88: 0 | O88: 65
B89: WB Right | C89: =C43+E35 -> 36 | D89: 0 | E89: 36 | G89: WB Right | H89: =H43+J35 -> 36 | I89: 0 | J89: 36 | L89: WB Right | M89: =M43+O35 -> 36 | N89: 0 | O89: 36
B90: SB Left | C90: =F35+D31+D39 -> 93.9 | D90: =2*$F$6/(1.47*$E$7) -> 18.14058957 | E90: 112.0405896 | G90: SB Left | H90: =K35+I31+I39 -> 93.9 | I90: =2*$F$6/(1.47*$E$7) -> 18.14058957 | J90: 112.0405896 | L90: SB Left | M90: =P35+N31+N39 -> 93.9 | N90: =2*$F$6/(1.47*$E$7) -> 18.14058957 | O90: 112.0405896
B91: SB Through | C91: =F35+D31+E39 -> 92 | D91: =2*$F$6/(1.47*$E$7) -> 18.14058957 | E91: 110.1405896 | G91: SB Through | H91: =K35+I31+J39 -> 92 | I91: =2*$F$6/(1.47*$E$7) -> 18.14058957 | J91: 110.1405896 | L91: SB Through | M91: =P35+N31+O39 -> 92 | N91: =2*$F$6/(1.47*$E$7) -> 18.14058957 | O91: 110.1405896
B92: SB Right | C92: =F35 -> 42.2 | D92: 0 | E92: 42.2 | G92: SB Right | H92: =K35 -> 42.2 | I92: 0 | J92: 42.2 | L92: SB Right | M92: =P35 -> 42.2 | N92: 0 | O92: 42.2
F93: =(E81*T32+E82*U32+E83*V32+E84*T35+E85*U35+E86*V35+E87*T33+E88*U33+E89*V33+E90*T34+E91*U34+E92*V34)/(T32+U32+V32+T33+U33+V33+T35+U35+V35+T34+U34+V34) -> 83.37024542 | K93: =(J81*X32+J82*Y32+J83*Z32+J84*X35+J85*Y35+J86*Z35+J87*X33+J88*Y33+J89*Z33+J90*X34+J91*Y34+J92*Z34)/(X32+Y32+Z32+X33+Y33+Z33+X35+Y35+Z35+X34+Y34+Z34) -> 81.16042191 | P93: =(O81*AB32+O82*AC32+O83*AD32+O84*AB35+O85*AC35+O86*AD35+O87*AB33+O88*AC33+O89*AD33+O90*AB34+O91*AC34+O92*AD34)/(AB32+AC32+AD32+AB33+AC33+AD33+AB35+AC35+AD35+AB34+AC34+AD34) -> 

Sheet RCUT NS (hidden)
A1: RCUT N-S | C1: Use this sheet to enter the delay information for a Signalized RCUT with the major street running North-South. (Requires turning movement count demand inputs)
C4: User must enter value on this sheet
E5: Southern Crossover | F5: Northern Crossover
A6: Distance from main intersection to: | E6: 600 | F6: 600
A7: Free-flow speed on major street: | E7: 45
B9: *Volumes are computed based on values entered in DemandCounts and Exhibit 6-2 of FHWA RCUT Guide
B10: Opening Year AM Peak | G10: Opening Year PM Peak | L10: Opening Year Weekend Peak
B11: Intersection 1 | C11: SB Thru | D11: NB U-Turn | G11: Intersection 1 | H11: SB Thru | I11: NB U-Turn | L11: Intersection 1 | M11: SB Thru | N11: NB U-Turn
B12: Volume | C12: =SUM(T14:V14) -> 290 | D12: =SUM(T16:U16) -> 150 | G12: Volume | H12: =SUM(X14:Z14) -> 320 | I12: =SUM(X16:Y16) -> 170 | L12: Volume | M12: =SUM(AB14:AD14) -> 0 | N12: =SUM(AB16:AC16) -> 0 | S12: AM Peak Hour | W12: PM Peak Hour | AA12: Weekend Peak Hour
B13: Delay | C13: 3.4 | D13: 21.9 | G13: Delay | H13: 3.4 | I13: 21.9 | L13: Delay | M13: 3.4 | N13: 21.9 | S13: U | T13: L | U13: T | V13: R | W13: U | X13: L | Y13: T | Z13: R | AA13: U | AB13: L | AC13: T | AD13: R
R14: Southbound | S14: =DemandCounts!B38 -> 0 | T14: =DemandCounts!C38 -> 40 | U14: =DemandCounts!D38 -> 212 | V14: =DemandCounts!E38 -> 38 | W14: =DemandCounts!H38 -> 0 | X14: =DemandCounts!I38 -> 50 | Y14: =DemandCounts!J38 -> 222 | Z14: =DemandCounts!K38 -> 48 | AA14: =DemandCounts!N38 -> 0 | AB14: =DemandCounts!O38 -> 0 | AC14: =DemandCounts!P38 -> 0 | AD14: =DemandCounts!Q38 -> 0
B15: Intersection 2 | C15: NB Left | D15: NB Thru | E15: NB Right | F15: WB Right | G15: Intersection 2 | H15: NB Left | I15: NB Thru | J15: NB Right | K15: WB Right | L15: Intersection 2 | M15: NB Left | N15: NB Thru | O15: NB Right | P15: WB Right | R15: Northbound | S15: =DemandCounts!B39 -> 0 | T15: =DemandCounts!C39 -> 41 | U15: =DemandCounts!D39 -> 313 | V15: =DemandCounts!E39 -> 39 | W15: =DemandCounts!H39 -> 0 | X15: =DemandCounts!I39 -> 51 | Y15: =DemandCounts!J39 -> 323 | Z15: =DemandCounts!K39 -> 49 | AA15: =DemandCounts!N39 -> 0 | AB15: =DemandCounts!O39 -> 0 | AC15: =DemandCounts!P39 -> 0 | AD15: =DemandCounts!Q39 -> 0
B16: Volume | C16: =T15 -> 41 | D16: =U15+T17 -> 338 | E16: =V15+U17 -> 90 | F16: =SUM(T16:V16) -> 195 | G16: Volume | H16: =X15 -> 51 | I16: =Y15+X17 -> 358 | J16: =Z15+Y17 -> 110 | K16: =SUM(X16:Z16) -> 225 | L16: Volume | M16: =AB15 -> 0 | N16: =AC15+AB17 -> 0 | O16: =AD15+AC17 -> 0 | P16: =SUM(AB16:AD16) -> 0 | R16: Westbound | S16: =DemandCounts!B37 -> 0 | T16: =DemandCounts!C37 -> 50 | U16: =DemandCounts!D37 -> 100 | V16: =DemandCounts!E37 -> 45 | W16: =DemandCounts!H37 -> 0 | X16: =DemandCounts!I37 -> 60 | Y16: =DemandCounts!J37 -> 110 | Z16: =DemandCounts!K37 -> 55 | AA16: =DemandCounts!N37 -> 0 | AB16: =DemandCounts!O37 -> 0 | AC16: =DemandCounts!P37 -> 0 | AD16: =DemandCounts!Q37 -> 0
B17: Delay | C17: 18.2 | D17: 4.8 | E17: 2.7 | F17: 21.5 | G17: Delay | H17: 18.2 | I17: 4.8 | J17: 2.7 | K17: 21.5 | L17: Delay | M17: 18.2 | N17: 4.8 | O17: 2.7 | P17: 21.5 | R17: Eastbound | S17: =DemandCounts!B36 -> 0 | T17: =DemandCounts!C36 -> 25 | U17: =DemandCounts!D36 -> 51 | V17: =DemandCounts!E36 -> 26 | W17: =DemandCounts!H36 -> 0 | X17: =DemandCounts!I36 -> 35 | Y17: =DemandCounts!J36 -> 61 | Z17: =DemandCounts!K36 -> 36 | AA17: =DemandCounts!N36 -> 0 | AB17: =DemandCounts!O36 -> 0 | AC17: =DemandCounts!P36 -> 0 | AD17: =DemandCounts!Q36 -> 0
B19: Intersection 3 | C19: SB Left | D19: SB Thru | E19: SB Right | F19: EB Right | G19: Intersection 3 | H19: SB Left | I19: SB Thru | J19: SB Right | K19: EB Right | L19: Intersection 3 | M19: SB Left | N19: SB Thru | O19: SB Right | P19: EB Right
B20: Volume | C20: =T14 -> 40 | D20: =U14+T16 -> 262 | E20: =V14+U16 -> 138 | F20: =SUM(T17:V17) -> 102 | G20: Volume | H20: =X14 -> 50 | I20: =Y14+X16 -> 282 | J20: =Z14+Y16 -> 158 | K20: =SUM(X17:Z17) -> 132 | L20: Volume | M20: =AB14 -> 0 | N20: =AC14+AB16 -> 0 | O20: =AD14+AC16 -> 0 | P20: =SUM(AB17:AD17) -> 0
B21: Delay | C21: 19.1 | D21: 4.4 | E21: 4.3 | F21: 21.3 | G21: Delay | H21: 19.1 | I21: 4.4 | J21: 4.3 | K21: 21.3 | L21: Delay | M21: 19.1 | N21: 4.4 | O21: 4.3 | P21: 21.3
B23: Intersection 4 | C23: NB Thru | D23: SB U-Turn | G23: Intersection 4 | H23: NB Thru | I23: SB U-Turn | L23: Intersection 4 | M23: NB Thru | N23: SB U-Turn
B24: Volume | C24: =SUM(T15:V15) -> 393 | D24: =U17+T17 -> 76 | G24: Volume | H24: =SUM(X15:Z15) -> 423 | I24: =Y17+X17 -> 96 | L24: Volume | M24: =SUM(AB15:AD15) -> 0 | N24: =AC17+AB17 -> 0
B25: Delay | C25: 4.2 | D25: 22.9 | G25: Delay | H25: 4.2 | I25: 22.9 | L25: Delay | M25: 4.2 | N25: 22.9
B28: Design Year AM Peak | G28: Design Year PM Peak | L28: Design Year WeekendPeak
B29: Intersection 1 | C29: SB Thru | D29: NB U-Turn | G29: Intersection 1 | H29: SB Thru | I29: NB U-Turn | L29: Intersection 1 | M29: SB Thru | N29: NB U-Turn
B30: Volume | C30: =SUM(T32:V32) -> 348 | D30: =SUM(T34:U34) -> 180 | G30: Volume | H30: =SUM(X32:Z32) -> 384 | I30: =SUM(X34:Y34) -> 204 | L30: Volume | M30: =SUM(AB32:AD32) -> 0 | N30: =SUM(AB34:AC34) -> 0 | S30: AM Peak Hour | W30: PM Peak Hour | AA30: Weekend Peak Hour
B31: Delay | C31: 7.7 | D31: 41.7 | G31: Delay | H31: 7.7 | I31: 41.7 | L31: Delay | M31: 7.7 | N31: 41.7 | S31: U | T31: L | U31: T | V31: R | W31: U | X31: L | Y31: T | Z31: R | AA31: U | AB31: L | AC31: T | AD31: R
R32: Southbound | S32: =DemandCounts!B47 -> 0 | T32: =DemandCounts!C47 -> 48 | U32: =DemandCounts!D47 -> 254 | V32: =DemandCounts!E47 -> 46 | W32: =DemandCounts!H47 -> 0 | X32: =DemandCounts!I47 -> 60 | Y32: =DemandCounts!J47 -> 266 | Z32: =DemandCounts!K47 -> 58 | AA32: =DemandCounts!N47 -> 0 | AB32: =DemandCounts!O47 -> 0 | AC32: =DemandCounts!P47 -> 0 | AD32: =DemandCounts!Q47 -> 0
B33: Intersection 2 | C33: NB Left | D33: NB Thru | E33: NB Right | F33: WB Right | G33: Intersection 2 | H33: NB Left | I33: NB Thru | J33: NB Right | K33: WB Right | L33: Intersection 2 | M33: NB Left | N33: NB Thru | O33: NB Right | P33: WB Right | R33: Northbound | S33: =DemandCounts!B48 -> 0 | T33: =DemandCounts!C48 -> 49 | U33: =DemandCounts!D48 -> 376 | V33: =DemandCounts!E48 -> 47 | W33: =DemandCounts!H48 -> 0 | X33: =DemandCounts!I48 -> 61 | Y33: =DemandCounts!J48 -> 388 | Z33: =DemandCounts!K48 -> 59 | AA33: =DemandCounts!N48 -> 0 | AB33: =DemandCounts!O48 -> 0 | AC33: =DemandCounts!P48 -> 0 | AD33: =DemandCounts!Q48 -> 0
B34: Volume | C34: =T33 -> 49 | D34: =U33+T35 -> 406 | E34: =V33+U35 -> 108 | F34: =SUM(T34:V34) -> 234 | G34: Volume | H34: =X33 -> 61 | I34: =Y33+X35 -> 430 | J34: =Z33+Y35 -> 132 | K34: =SUM(X34:Z34) -> 270 | L34: Volume | M34: =AB33 -> 0 | N34: =AC33+AB35 -> 0 | O34: =AD33+AC35 -> 0 | P34: =SUM(AB34:AD34) -> 0 | R34: Westbound | S34: =DemandCounts!B46 -> 0 | T34: =DemandCounts!C46 -> 60 | U34: =DemandCounts!D46 -> 120 | V34: =DemandCounts!E46 -> 54 | W34: =DemandCounts!H46 -> 0 | X34: =DemandCounts!I46 -> 72 | Y34: =DemandCounts!J46 -> 132 | Z34: =DemandCounts!K46 -> 66 | AA34: =DemandCounts!N46 -> 0 | AB34: =DemandCounts!O46 -> 0 | AC34: =DemandCounts!P46 -> 0 | AD34: =DemandCounts!Q46 -> 0
B35: Delay | C35: 27.9 | D35: 37.2 | E35: 8.2 | F35: 42.2 | G35: Delay | H35: 27.9 | I35: 37.2 | J35: 8.2 | K35: 42.2 | L35: Delay | M35: 27.9 | N35: 37.2 | O35: 8.2 | P35: 42.2 | R35: Eastbound | S35: =DemandCounts!B45 -> 0 | T35: =DemandCounts!C45 -> 30 | U35: =DemandCounts!D45 -> 61 | V35: =DemandCounts!E45 -> 31 | W35: =DemandCounts!H45 -> 0 | X35: =DemandCounts!I45 -> 42 | Y35: =DemandCounts!J45 -> 73 | Z35: =DemandCounts!K45 -> 43 | AA35: =DemandCounts!N45 -> 0 | AB35: =DemandCounts!O45 -> 0 | AC35: =DemandCounts!P45 -> 0 | AD35: =DemandCounts!Q45 -> 0
B37: Intersection 3 | C37: SB Left | D37: SB Thru | E37: SB Right | F37: EB Right | G37: Intersection 3 | H37: SB Left | I37: SB Thru | J37: SB Right | K37: EB Right | L37: Intersection 3 | M37: SB Left | N37: SB Thru | O37: SB Right | P37: EB Right
B38: Volume | C38: =T32 -> 48 | D38: =U32+T34 -> 314 | E38: =V32+U34 -> 166 | F38: =SUM(T35:V35) -> 122 | G38: Volume | H38: =X32 -> 60 | I38: =Y32+X34 -> 338 | J38: =Z32+Y34 -> 190 | K38: =SUM(X35:Z35) -> 158 | L38: Volume | M38: =AB32 -> 0 | N38: =AC32+AB34 -> 0 | O38: =AD32+AC34 -> 0 | P38: =SUM(AB35:AD35) -> 0
B39: Delay | C39: 23.7 | D39: 10 | E39: 8.1 | F39: 34.9 | G39: Delay | H39: 23.7 | I39: 10 | J39: 8.1 | K39: 34.9 | L39: Delay | M39: 23.7 | N39: 10 | O39: 8.1 | P39: 34.9
B41: Intersection 4 | C41: NB Thru | D41: SB U-Turn | G41: Intersection 4 | H41: NB Thru | I41: SB U-Turn | L41: Intersection 4 | M41: NB Thru | N41: SB U-Turn
B42: Volume | C42: =SUM(T33:V33) -> 472 | D42: =U35+T35 -> 91 | G42: Volume | H42: =SUM(X33:Z33) -> 508 | I42: =Y35+X35 -> 115 | L42: Volume | M42: =SUM(AB33:AD33) -> 0 | N42: =AC35+AB35 -> 0
B43: Delay | C43: 27.8 | D43: 42.5 | G43: Delay | H43: 27.8 | I43: 42.5 | L43: Delay | M43: 27.8 | N43: 42.5
A50: Above this line, "SB Left", NB U", etc refer to movements at each small intersection within the RCUT
A52: Below this line "SB Left", "NB U" etc refer to movements at the main intersection
B54: Opening Year AM Peak | G54: Opening Year PM Peak | L54: Opening Year Weekend Peak
B55: Computation of Control Delay for entire RCUT | G55: Computation of Control Delay for entire RCUT | L55: Computation of Control Delay for entire RCUT
C56: Computed based on formulas I have here | H56: Computed based on formulas I have here | M56: Computed based on formulas I have here
C59: Delay for each movement | D59: Extra distance travel time (EDTT) for each movement | E59: Experienced Travel Time (ETT) | F59: Average ETT | H59: Delay for each movement | I59: Extra distance travel time (EDTT) for each movement | J59: Experienced Travel Time (ETT) | K59: Average ETT | M59: Delay for each movement | N59: Extra distance travel time (EDTT) for each movement | O59: Experienced Travel Time (ETT) | P59: Average ETT
B60: SB Left | C60: =C13+C21 -> 22.5 | D60: 0 | E60: =C60+D60 -> 22.5 | G60: SB Left | H60: =H13+H21 -> 22.5 | I60: 0 | J60: =H60+I60 -> 22.5 | L60: SB Left | M60: =M13+M21 -> 22.5 | N60: 0 | O60: =M60+N60 -> 22.5
B61: SB Through | C61: =D21+C13 -> 7.8 | D61: 0 | E61: =C61+D61 -> 7.8 | G61: SB Through | H61: =I21+H13 -> 7.8 | I61: 0 | J61: =H61+I61 -> 7.8 | L61: SB Through | M61: =N21+M13 -> 7.8 | N61: 0 | O61: =M61+N61 -> 7.8
B62: SB Right | C62: =E21+C13 -> 7.7 | D62: 0 | E62: 7.7 | G62: SB Right | H62: =J21+H13 -> 7.7 | I62: 0 | J62: 7.7 | L62: SB Right | M62: =O21+M13 -> 7.7 | N62: 0 | O62: 7.7
B63: EB Left | C63: =F21+D25+D17 -> 49 | D63: =(2*$E$6)/(1.47*$E$7) -> 18.14058957 | E63: 67.14058957 | G63: EB Left | H63: =K21+I25+I17 -> 49 | I63: =(2*$E$6)/(1.47*$E$7) -> 18.14058957 | J63: 67.14058957 | L63: EB Left | M63: =P21+N25+N17 -> 49 | N63: =(2*$E$6)/(1.47*$E$7) -> 18.14058957 | O63: 67.14058957
B64: EB Through | C64: =F21+D25+E17 -> 46.9 | D64: =(2*$E$6)/(1.47*$E$7) -> 18.14058957 | E64: 65.04058957 | G64: EB Through | H64: =K21+I25+J17 -> 46.9 | I64: =(2*$E$6)/(1.47*$E$7) -> 18.14058957 | J64: 65.04058957 | L64: EB Through | M64: =P21+N25+O17 -> 46.9 | N64: =(2*$E$6)/(1.47*$E$7) -> 18.14058957 | O64: 65.04058957
B65: EB Right | C65: =F21 -> 21.3 | D65: 0 | E65: 21.3 | G65: EB Right | H65: =K21 -> 21.3 | I65: 0 | J65: 21.3 | L65: EB Right | M65: =P21 -> 21.3 | N65: 0 | O65: 21.3
B66: NB Left | C66: =C25+C17 -> 22.4 | D66: 0 | E66: 22.4 | G66: NB Left | H66: =H25+H17 -> 22.4 | I66: 0 | J66: 22.4 | L66: NB Left | M66: =M25+M17 -> 22.4 | N66: 0 | O66: 22.4
B67: NB Through | C67: =C25+D17 -> 9 | D67: 0 | E67: 9 | G67: NB Through | H67: =H25+I17 -> 9 | I67: 0 | J67: 9 | L67: NB Through | M67: =M25+N17 -> 9 | N67: 0 | O67: 9
B68: NB Right | C68: =C25+E17 -> 6.9 | D68: 0 | E68: 6.9 | G68: NB Right | H68: =H25+J17 -> 6.9 | I68: 0 | J68: 6.9 | L68: NB Right | M68: =M25+O17 -> 6.9 | N68: 0 | O68: 6.9
B69: WB Left | C69: =F17+D13+D21 -> 47.8 | D69: =2*$F$6/(1.47*$E$7) -> 18.14058957 | E69: 65.94058957 | G69: WB Left | H69: =K17+I13+I21 -> 47.8 | I69: =2*$F$6/(1.47*$E$7) -> 18.14058957 | J69: 65.94058957 | L69: WB Left | M69: =P17+N13+N21 -> 47.8 | N69: =2*$F$6/(1.47*$E$7) -> 18.14058957 | O69: 65.94058957
B70: WB Through | C70: =F17+D13+E21 -> 47.7 | D70: =2*$F$6/(1.47*$E$7) -> 18.14058957 | E70: 65.84058957 | G70: WB Through | H70: =K17+I13+J21 -> 47.7 | I70: =2*$F$6/(1.47*$E$7) -> 18.14058957 | J70: 65.84058957 | L70: WB Through | M70: =P17+N13+O21 -> 47.7 | N70: =2*$F$6/(1.47*$E$7) -> 18.14058957 | O70: 65.84058957
B71: WB Right | C71: =F17 -> 21.5 | D71: 0 | E71: 21.5 | G71: WB Right | H71: =K17 -> 21.5 | I71: 0 | J71: 21.5 | L71: WB Right | M71: =P17 -> 21.5 | N71: 0 | O71: 21.5
F72: =(E60*T14+E61*U14+E62*V14+E63*T17+E64*U17+E65*V17+E66*T15+E67*U15+E68*V15+E69*T16+E70*U16+E71*V16)/(T14+U14+V14+T15+U15+V15+T17+U17+V17+T16+U16+V16) -> 23.72313596 | K72: =(J60*X14+J61*Y14+J62*Z14+J63*X17+J64*Y17+J65*Z17+J66*X15+J67*Y15+J68*Z15+J69*X16+J70*Y16+J71*Z16)/(X14+Y14+Z14+X15+Y15+Z15+X17+Y17+Z17+X16+Y16+Z16) -> 24.61754257 | P72: =(O60*AB14+O61*AC14+O62*AD14+O63*AB17+O64*AC17+O65*AD17+O66*AB15+O67*AC15+O68*AD15+O69*AB16+O70*AC16+O71*AD16)/(AB14+AC14+AD14+AB15+AC15+AD15+AB17+AC17+AD17+AB16+AC16+AD16) -> 
B75: Design Year AM Peak | G75: Design Year PM Peak | L75: Design Year Weekend Peak
B76: Computation of Control Delay for entire RCUT | G76: Computation of Control Delay for entire RCUT | L76: Computation of Control Delay for entire RCUT
C77: Computed based on formulas I have here | H77: Computed based on formulas I have here | M77: Computed based on formulas I have here
C80: Delay for each movement | D80: Extra distance travel time (EDTT) for each movement | E80: Experienced Travel Time (ETT) | F80: Average ETT | H80: Delay for each movement | I80: Extra distance travel time (EDTT) for each movement | J80: Experienced Travel Time (ETT) | K80: Average ETT | M80: Delay for each movement | N80: Extra distance travel time (EDTT) for each movement | O80: Experienced Travel Time (ETT) | P80: Average ETT
B81: SB Left | C81: =C31+C39 -> 31.4 | D81: 0 | E81: =C81+D81 -> 31.4 | G81: SB Left | H81: =H31+H39 -> 31.4 | I81: 0 | J81: =H81+I81 -> 31.4 | L81: SB Left | M81: =M31+M39 -> 31.4 | N81: 0 | O81: =M81+N81 -> 31.4
B82: SB Through | C82: =D39+C31 -> 17.7 | D82: 0 | E82: =C82+D82 -> 17.7 | G82: SB Through | H82: =I39+H31 -> 17.7 | I82: 0 | J82: =H82+I82 -> 17.7 | L82: SB Through | M82: =N39+M31 -> 17.7 | N82: 0 | O82: =M82+N82 -> 17.7
B83: SB Right | C83: =E39+C31 -> 15.8 | D83: 0 | E83: 15.8 | G83: SB Right | H83: =J39+H31 -> 15.8 | I83: 0 | J83: 15.8 | L83: SB Right | M83: =O39+M31 -> 15.8 | N83: 0 | O83: 15.8
B84: EB Left | C84: =F39+D43+D35 -> 114.6 | D84: =(2*$E$6)/(1.47*$E$7) -> 18.14058957 | E84: 132.7405896 | G84: EB Left | H84: =K39+I43+I35 -> 114.6 | I84: =(2*$E$6)/(1.47*$E$7) -> 18.14058957 | J84: 132.7405896 | L84: EB Left | M84: =P39+N43+N35 -> 114.6 | N84: =(2*$E$6)/(1.47*$E$7) -> 18.14058957 | O84: 132.7405896
B85: EB Through | C85: =F39+D43+E35 -> 85.6 | D85: =(2*$E$6)/(1.47*$E$7) -> 18.14058957 | E85: 103.7405896 | G85: EB Through | H85: =K39+I43+J35 -> 85.6 | I85: =(2*$E$6)/(1.47*$E$7) -> 18.14058957 | J85: 103.7405896 | L85: EB Through | M85: =P39+N43+O35 -> 85.6 | N85: =(2*$E$6)/(1.47*$E$7) -> 18.14058957 | O85: 103.7405896
B86: EB Right | C86: =F39 -> 34.9 | D86: 0 | E86: 34.9 | G86: EB Right | H86: =K39 -> 34.9 | I86: 0 | J86: 34.9 | L86: EB Right | M86: =P39 -> 34.9 | N86: 0 | O86: 34.9
B87: NB Left | C87: =C43+C35 -> 55.7 | D87: 0 | E87: 55.7 | G87: NB Left | H87: =H43+H35 -> 55.7 | I87: 0 | J87: 55.7 | L87: NB Left | M87: =M43+M35 -> 55.7 | N87: 0 | O87: 55.7
B88: NB Through | C88: =C43+D35 -> 65 | D88: 0 | E88: 65 | G88: NB Through | H88: =H43+I35 -> 65 | I88: 0 | J88: 65 | L88: NB Through | M88: =M43+N35 -> 65 | N88: 0 | O88: 65
B89: NB Right | C89: =C43+E35 -> 36 | D89: 0 | E89: 36 | G89: NB Right | H89: =H43+J35 -> 36 | I89: 0 | J89: 36 | L89: NB Right | M89: =M43+O35 -> 36 | N89: 0 | O89: 36
B90: WB Left | C90: =F35+D31+D39 -> 93.9 | D90: =2*$F$6/(1.47*$E$7) -> 18.14058957 | E90: 112.0405896 | G90: WB Left | H90: =K35+I31+I39 -> 93.9 | I90: =2*$F$6/(1.47*$E$7) -> 18.14058957 | J90: 112.0405896 | L90: WB Left | M90: =P35+N31+N39 -> 93.9 | N90: =2*$F$6/(1.47*$E$7) -> 18.14058957 | O90: 112.0405896
B91: WB Through | C91: =F35+D31+E39 -> 92 | D91: =2*$F$6/(1.47*$E$7) -> 18.14058957 | E91: 110.1405896 | G91: WB Through | H91: =K35+I31+J39 -> 92 | I91: =2*$F$6/(1.47*$E$7) -> 18.14058957 | J91: 110.1405896 | L91: WB Through | M91: =P35+N31+O39 -> 92 | N91: =2*$F$6/(1.47*$E$7) -> 18.14058957 | O91: 110.1405896
B92: WB Right | C92: =F35 -> 42.2 | D92: 0 | E92: 42.2 | G92: WB Right | H92: =K35 -> 42.2 | I92: 0 | J92: 42.2 | L92: WB Right | M92: =P35 -> 42.2 | N92: 0 | O92: 42.2
F93: =(E81*T32+E82*U32+E83*V32+E84*T35+E85*U35+E86*V35+E87*T33+E88*U33+E89*V33+E90*T34+E91*U34+E92*V34)/(T32+U32+V32+T33+U33+V33+T35+U35+V35+T34+U34+V34) -> 58.84481273 | K93: =(J81*X32+J82*Y32+J83*Z32+J84*X35+J85*Y35+J86*Z35+J87*X33+J88*Y33+J89*Z33+J90*X34+J91*Y34+J92*Z34)/(X32+Y32+Z32+X33+Y33+Z33+X35+Y35+Z35+X34+Y34+Z34) -> 59.31049096 | P93: =(O81*AB32+O82*AC32+O83*AD32+O84*AB35+O85*AC35+O86*AD35+O87*AB33+O88*AC33+O89*AD33+O90*AB34+O91*AC34+O92*AD34)/(AB32+AC32+AD32+AB33+AC33+AD33+AB35+AC35+AD35+AB34+AC34+AD34) -> 

Sheet MUT EW (hidden)
A1: MUT E-W | C1: Use this sheet to enter the delay information for a MUT with the major street running East-West. (Requires turning movement count demand inputs)
C4: User must enter value on this sheet
E5: Eastern Crossover | F5: Western Crossover
A6: Distance from main intersection to: | E6: 600 | F6: 600
A7: Free-flow speed on major street | E7: 45
B10: Opening Year AM Peak | K10: Opening Year PM Peak | T10: Opening Year Weekend Peak
B11: Intersection 1 | C11: EB Thru | D11: WB U-Turn | K11: Intersection 1 | L11: EB Thru | M11: WB U-Turn | T11: Intersection 1 | U11: EB Thru | V11: WB U-Turn
B12: Volume | C12: =SUM(AE14:AH14) -> 102 | D12: =AE15+AF15+AE16+AF16+AE17 -> 90 | K12: Volume | L12: =SUM(AI14:AL14) -> 132 | M12: =AI15+AJ15+AI16+AJ16+AI17 -> 110 | T12: Volume | U12: =SUM(AM14:AP14) -> 0 | V12: =AM15+AN15+AM16+AN16+AM17 -> 0 | AE12: AM Peak Hour | AI12: PM Peak Hour | AM12: Weekend Peak Hour
B13: Delay | C13: 10.4 | D13: 9.8 | K13: Delay | L13: 10.4 | M13: 9.8 | T13: Delay | U13: 10.4 | V13: 9.8 | AE13: U | AF13: L | AG13: T | AH13: R | AI13: U | AJ13: L | AK13: T | AL13: R | AM13: U | AN13: L | AO13: T | AP13: R
AD14: Eastbound | AE14: =DemandCounts!B36 -> 0 | AF14: =DemandCounts!C36 -> 25 | AG14: =DemandCounts!D36 -> 51 | AH14: =DemandCounts!E36 -> 26 | AI14: =DemandCounts!H36 -> 0 | AJ14: =DemandCounts!I36 -> 35 | AK14: =DemandCounts!J36 -> 61 | AL14: =DemandCounts!K36 -> 36 | AM14: =DemandCounts!N36 -> 0 | AN14: =DemandCounts!O36 -> 0 | AO14: =DemandCounts!P36 -> 0 | AP14: =DemandCounts!Q36 -> 0
B15: Intersection 2 | C15: WB Thru | D15: WB Right | E15: NB Thru | F15: NB Right | G15: EB Thru | H15: EB Right | I15: SB Thru | J15: SB Right | K15: Intersection 2 | L15: WB Thru | M15: WB Right | N15: NB Thru | O15: NB Right | P15: EB Thru | Q15: EB Right | R15: SB Thru | S15: SB Right | T15: Intersection 2 | U15: WB Thru | V15: WB Right | W15: NB Thru | X15: NB Right | Y15: EB Thru | Z15: EB Right | AA15: SB Thru | AB15: SB Right | AD15: Westbound | AE15: =DemandCounts!B37 -> 0 | AF15: =DemandCounts!C37 -> 50 | AG15: =DemandCounts!D37 -> 100 | AH15: =DemandCounts!E37 -> 45 | AI15: =DemandCounts!H37 -> 0 | AJ15: =DemandCounts!I37 -> 60 | AK15: =DemandCounts!J37 -> 110 | AL15: =DemandCounts!K37 -> 55 | AM15: =DemandCounts!N37 -> 0 | AN15: =DemandCounts!O37 -> 0 | AO15: =DemandCounts!P37 -> 0 | AP15: =DemandCounts!Q37 -> 0
B16: Volume | C16: =SUM(AE15:AG15)+AE14+SUM(AE17:AF17) -> 191 | D16: =AH15+AF14+AE16 -> 70 | E16: =AG17 -> 313 | F16: =AE17+AF17+AH17 -> 80 | G16: =SUM(AE14:AG14)+AE15+SUM(AE16:AF16) -> 116 | H16: =AH14+AF15+AE17 -> 76 | I16: =AG16 -> 212 | J16: =AE16+AF16+AH16 -> 78 | K16: Volume | L16: =SUM(AI15:AK15)+AI14+SUM(AI17:AJ17) -> 221 | M16: =AL15+AJ14+AI16 -> 90 | N16: =AK17 -> 323 | O16: =AI17+AJ17+AL17 -> 100 | P16: =SUM(AI14:AK14)+AI15+SUM(AI16:AJ16) -> 146 | Q16: =AL14+AJ15+AI17 -> 96 | R16: =AK16 -> 222 | S16: =AI16+AJ16+AL16 -> 98 | T16: Volume | U16: =SUM(AM15:AO15)+AM14+SUM(AM17:AN17) -> 0 | V16: =AP15+AN14+AM16 -> 0 | W16: =AO17 -> 0 | X16: =AM17+AN17+AP17 -> 0 | Y16: =SUM(AM14:AO14)+AM15+SUM(AM16:AN16) -> 0 | Z16: =AP14+AN15+AM17 -> 0 | AA16: =AO16 -> 0 | AB16: =AM16+AN16+AP16 -> 0 | AD16: Southbound | AE16: =DemandCounts!B38 -> 0 | AF16: =DemandCounts!C38 -> 40 | AG16: =DemandCounts!D38 -> 212 | AH16: =DemandCounts!E38 -> 38 | AI16: =DemandCounts!H38 -> 0 | AJ16: =DemandCounts!I38 -> 50 | AK16: =DemandCounts!J38 -> 222 | AL16: =DemandCounts!K38 -> 48 | AM16: =DemandCounts!N38 -> 0 | AN16: =DemandCounts!O38 -> 0 | AO16: =DemandCounts!P38 -> 0 | AP16: =DemandCounts!Q38 -> 0
B17: Delay | C17: 5.9 | D17: 3.6 | E17: 12.4 | F17: 11.8 | G17: 7.7 | H17: 6.9 | I17: 11.5 | J17: 11.3 | K17: Delay | L17: 5.9 | M17: 3.6 | N17: 12.4 | O17: 11.8 | P17: 7.7 | Q17: 6.9 | R17: 11.5 | S17: 11.3 | T17: Delay | U17: 5.9 | V17: 3.6 | W17: 12.4 | X17: 11.8 | Y17: 7.7 | Z17: 6.9 | AA17: 11.5 | AB17: 11.3 | AD17: Northbound | AE17: =DemandCounts!B39 -> 0 | AF17: =DemandCounts!C39 -> 41 | AG17: =DemandCounts!D39 -> 313 | AH17: =DemandCounts!E39 -> 39 | AI17: =DemandCounts!H39 -> 0 | AJ17: =DemandCounts!I39 -> 51 | AK17: =DemandCounts!J39 -> 323 | AL17: =DemandCounts!K39 -> 49 | AM17: =DemandCounts!N39 -> 0 | AN17: =DemandCounts!O39 -> 0 | AO17: =DemandCounts!P39 -> 0 | AP17: =DemandCounts!Q39 -> 0
B19: Intersection 3 | C19: WB Thru | D19: EB U-Turn | K19: Intersection 3 | L19: WB Thru | M19: EB U-Turn | T19: Intersection 3 | U19: WB Thru | V19: EB U-Turn
B20: Volume | C20: =SUM(AE15:AH15) -> 195 | D20: =AE14+AF14+AE17+AF17+AE16 -> 66 | K20: Volume | L20: =SUM(AI15:AL15) -> 225 | M20: =AI14+AJ14+AI17+AJ17+AI16 -> 86 | T20: Volume | U20: =SUM(AM15:AP15) -> 0 | V20: =AM14+AN14+AM17+AN17+AM16 -> 0
B21: Delay | C21: 16.1 | D21: 11 | K21: Delay | L21: 16.1 | M21: 11 | T21: Delay | U21: 16.1 | V21: 11
B28: Design Year AM Peak | K28: Design Year PM Peak | T28: Design YearWeekend Peak
B29: Intersection 1 | C29: EB Thru | D29: WB U-Turn | K29: Intersection 1 | L29: EB Thru | M29: WB U-Turn | T29: Intersection 1 | U29: EB Thru | V29: WB U-Turn
B30: Volume | C30: =SUM(AE32:AH32) -> 450 | D30: =AE33+AF33+AE34+AF34+AE35 -> 300 | K30: Volume | L30: =SUM(AI32:AL32) -> 158 | M30: =AI33+AJ33+AI34+AJ34+AI35 -> 132 | T30: Volume | U30: =SUM(AM32:AP32) -> 0 | V30: =AM33+AN33+AM34+AN34+AM35 -> 0 | AE30: AM Peak Hour | AI30: PM Peak Hour | AM30: Weekend Peak Hour
B31: Delay | C31: 10.4 | D31: 9.8 | K31: Delay | L31: 10.4 | M31: 9.8 | T31: Delay | U31: 10.4 | V31: 9.8 | AE31: U | AF31: L | AG31: T | AH31: R | AI31: U | AJ31: L | AK31: T | AL31: R | AM31: U | AN31: L | AO31: T | AP31: R
AD32: Eastbound | AE32: 0 | AF32: 150 | AG32: 150 | AH32: 150 | AI32: =DemandCounts!H45 -> 0 | AJ32: =DemandCounts!I45 -> 42 | AK32: =DemandCounts!J45 -> 73 | AL32: =DemandCounts!K45 -> 43 | AM32: =DemandCounts!N45 -> 0 | AN32: =DemandCounts!O45 -> 0 | AO32: =DemandCounts!P45 -> 0 | AP32: =DemandCounts!Q45 -> 0
B33: Intersection 2 | C33: WB Thru | D33: WB Right | E33: NB Thru | F33: NB Right | G33: EB Thru | H33: EB Right | I33: SB Thru | J33: SB Right | K33: Intersection 2 | L33: WB Thru | M33: WB Right | N33: NB Thru | O33: NB Right | P33: EB Thru | Q33: EB Right | R33: SB Thru | S33: SB Right | T33: Intersection 2 | U33: WB Thru | V33: WB Right | W33: NB Thru | X33: NB Right | Y33: EB Thru | Z33: EB Right | AA33: SB Thru | AB33: SB Right | AD33: Westbound | AE33: 0 | AF33: 150 | AG33: 150 | AH33: 150 | AI33: =DemandCounts!H46 -> 0 | AJ33: =DemandCounts!I46 -> 72 | AK33: =DemandCounts!J46 -> 132 | AL33: =DemandCounts!K46 -> 66 | AM33: =DemandCounts!N46 -> 0 | AN33: =DemandCounts!O46 -> 0 | AO33: =DemandCounts!P46 -> 0 | AP33: =DemandCounts!Q46 -> 0
B34: Volume | C34: =SUM(AE33:AG33)+AE32+SUM(AE35:AF35) -> 450 | D34: =AH33+AF32+AE34 -> 300 | E34: =AG35 -> 150 | F34: =AE35+AF35+AH35 -> 300 | G34: =SUM(AE32:AG32)+AE33+SUM(AE34:AF34) -> 450 | H34: =AH32+AF33+AE35 -> 300 | I34: =AG34 -> 150 | J34: =AE34+AF34+AH34 -> 300 | K34: Volume | L34: =SUM(AI33:AK33)+AI32+SUM(AI35:AJ35) -> 265 | M34: =AL33+AJ32+AI34 -> 108 | N34: =AK35 -> 388 | O34: =AI35+AJ35+AL35 -> 120 | P34: =SUM(AI32:AK32)+AI33+SUM(AI34:AJ34) -> 175 | Q34: =AL32+AJ33+AI35 -> 115 | R34: =AK34 -> 266 | S34: =AI34+AJ34+AL34 -> 118 | T34: Volume | U34: =SUM(AM33:AO33)+AM32+SUM(AM35:AN35) -> 0 | V34: =AP33+AN32+AM34 -> 0 | W34: =AO35 -> 0 | X34: =AM35+AN35+AP35 -> 0 | Y34: =SUM(AM32:AO32)+AM33+SUM(AM34:AN34) -> 0 | Z34: =AP32+AN33+AM35 -> 0 | AA34: =AO34 -> 0 | AB34: =AM34+AN34+AP34 -> 0 | AD34: Southbound | AE34: 0 | AF34: 150 | AG34: 150 | AH34: 150 | AI34: =DemandCounts!H47 -> 0 | AJ34: =DemandCounts!I47 -> 60 | AK34: =DemandCounts!J47 -> 266 | AL34: =DemandCounts!K47 -> 58 | AM34: =DemandCounts!N47 -> 0 | AN34: =DemandCounts!O47 -> 0 | AO34: =DemandCounts!P47 -> 0 | AP34: =DemandCounts!Q47 -> 0
B35: Delay | C35: 5.9 | D35: 3.6 | E35: 12.4 | F35: 11.8 | G35: 7.7 | H35: 6.9 | I35: 11.5 | J35: 11.3 | K35: Delay | L35: 5.9 | M35: 3.6 | N35: 12.4 | O35: 11.8 | P35: 7.7 | Q35: 6.9 | R35: 11.5 | S35: 11.3 | T35: Delay | U35: 5.9 | V35: 3.6 | W35: 12.4 | X35: 11.8 | Y35: 7.7 | Z35: 6.9 | AA35: 11.5 | AB35: 11.3 | AD35: Northbound | AE35: 0 | AF35: 150 | AG35: 150 | AH35: 150 | AI35: =DemandCounts!H48 -> 0 | AJ35: =DemandCounts!I48 -> 61 | AK35: =DemandCounts!J48 -> 388 | AL35: =DemandCounts!K48 -> 59 | AM35: =DemandCounts!N48 -> 0 | AN35: =DemandCounts!O48 -> 0 | AO35: =DemandCounts!P48 -> 0 | AP35: =DemandCounts!Q48 -> 0
B37: Intersection 3 | C37: WB Thru | D37: EB U-Turn | K37: Intersection 3 | L37: WB Thru | M37: EB U-Turn | T37: Intersection 3 | U37: WB Thru | V37: EB U-Turn
B38: Volume | C38: =SUM(AE33:AH33) -> 450 | D38: =AE32+AF32+AE35+AF35+AE34 -> 300 | K38: Volume | L38: =SUM(AI33:AL33) -> 270 | M38: =AI32+AJ32+AI35+AJ35+AI34 -> 103 | T38: Volume | U38: =SUM(AM33:AP33) -> 0 | V38: =AM32+AN32+AM35+AN35+AM34 -> 0
B39: Delay | C39: 16.1 | D39: 11 | K39: Delay | L39: 16.1 | M39: 11 | T39: Delay | U39: 16.1 | V39: 11
A50: Above this line, "EB Left", WB U", etc refer to movements at each small intersection within the MUT
A52: Below this line "EB Left", "WB U" etc refer to movements at the main intersection
B53: Computation of Control Delay for entire MUT | K53: Computation of Control Delay for entire MUT | T53: Computation of Control Delay for entire MUT | AC53: Computation of Control Delay for entire MUT | AL53: Computation of Control Delay for entire MUT | AU53: Computation of Control Delay for entire MUT
C56: Delay for each movement | D56: Extra distance travel time (EDTT) for each movement | E56: Experienced Travel Time (ETT) | F56: Average ETT | L56: Delay for each movement | M56: Extra distance travel time (EDTT) for each movement | N56: Experienced Travel Time (ETT) | O56: Average ETT | U56: Delay for each movement | V56: Extra distance travel time (EDTT) for each movement | W56: Experienced Travel Time (ETT) | X56: Average ETT | AD56: Delay for each movement | AE56: Extra distance travel time (EDTT) for each movement | AF56: Experienced Travel Time (ETT) | AG56: Average ETT | AM56: Delay for each movement | AN56: Extra distance travel time (EDTT) for each movement | AO56: Experienced Travel Time (ETT) | AP56: Average ETT | AV56: Delay for each movement | AW56: Extra distance travel time (EDTT) for each movement | AX56: Experienced Travel Time (ETT) | AY56: Average ETT
B57: EB Left | C57: =C13+G17+D21+D17 -> 32.7 | D57: =(2*$E$6)/(1.47*$E$7) -> 18.14058957 | E57: =C57+D57 -> 50.84058957 | K57: EB Left | L57: =L13+P17+M21+M17 -> 32.7 | M57: =(2*$E$6)/(1.47*$E$7) -> 18.14058957 | N57: =L57+M57 -> 50.84058957 | T57: EB Left | U57: =U13+Y17+V21+V17 -> 32.7 | V57: =(2*$E$6)/(1.47*$E$7) -> 18.14058957 | W57: =U57+V57 -> 50.84058957 | AC57: EB Left | AD57: =C31+G35+D39+D35 -> 32.7 | AE57: =(2*$E$6)/(1.47*$E$7) -> 18.14058957 | AF57: =AD57+AE57 -> 50.84058957 | AL57: EB Left | AM57: =L31+P35+M39+M35 -> 32.7 | AN57: =(2*$E$6)/(1.47*$E$7) -> 18.14058957 | AO57: =AM57+AN57 -> 50.84058957 | AU57: EB Left | AV57: =U31+Y35+V39+V35 -> 32.7 | AW57: =(2*$E$6)/(1.47*$E$7) -> 18.14058957 | AX57: =AV57+AW57 -> 50.84058957
B58: EB Through | C58: =C13+G17 -> 18.1 | E58: =C58+D58 -> 18.1 | K58: EB Through | L58: =L13+P17 -> 18.1 | N58: =L58+M58 -> 18.1 | T58: EB Through | U58: =U13+Y17 -> 18.1 | W58: =U58+V58 -> 18.1 | AC58: EB Through | AD58: =C31+G35 -> 18.1 | AF58: =AD58+AE58 -> 18.1 | AL58: EB Through | AM58: =L31+P35 -> 18.1 | AO58: =AM58+AN58 -> 18.1 | AU58: EB Through | AV58: =U31+Y35 -> 18.1 | AX58: =AV58+AW58 -> 18.1
B59: EB Right | C59: =C13+H17 -> 17.3 | E59: 17.3 | K59: EB Right | L59: =L13+Q17 -> 17.3 | N59: 17.3 | T59: EB Right | U59: =U13+Z17 -> 17.3 | W59: 17.3 | AC59: EB Right | AD59: =C31+H35 -> 17.3 | AF59: 17.3 | AL59: EB Right | AM59: =L31+Q35 -> 17.3 | AO59: 17.3 | AU59: EB Right | AV59: =U31+Z35 -> 17.3 | AX59: 17.3
B60: NB Left | C60: =F17+D21+C17 -> 28.7 | D60: =(2*$E$6)/(1.47*$E$7) -> 18.14058957 | E60: 46.84058957 | K60: NB Left | L60: =O17+M21+L17 -> 28.7 | M60: =(2*$E$6)/(1.47*$E$7) -> 18.14058957 | N60: 46.84058957 | T60: NB Left | U60: =X17+V21+U17 -> 28.7 | V60: =(2*$E$6)/(1.47*$E$7) -> 18.14058957 | W60: 46.84058957 | AC60: NB Left | AD60: =F35+D39+C35 -> 28.7 | AE60: =(2*$E$6)/(1.47*$E$7) -> 18.14058957 | AF60: 46.84058957 | AL60: NB Left | AM60: =O35+M39+L35 -> 28.7 | AN60: =(2*$E$6)/(1.47*$E$7) -> 18.14058957 | AO60: 46.84058957 | AU60: NB Left | AV60: =X35+V39+U35 -> 28.7 | AW60: =(2*$E$6)/(1.47*$E$7) -> 18.14058957 | AX60: 46.84058957
B61: NB Through | C61: =E17 -> 12.4 | E61: 12.4 | K61: NB Through | L61: =N17 -> 12.4 | N61: 12.4 | T61: NB Through | U61: =W17 -> 12.4 | W61: 12.4 | AC61: NB Through | AD61: =E35 -> 12.4 | AF61: 12.4 | AL61: NB Through | AM61: =N35 -> 12.4 | AO61: 12.4 | AU61: NB Through | AV61: =W35 -> 12.4 | AX61: 12.4
B62: NB Right | C62: =F17 -> 11.8 | E62: 11.8 | K62: NB Right | L62: =O17 -> 11.8 | N62: 11.8 | T62: NB Right | U62: =X17 -> 11.8 | W62: 11.8 | AC62: NB Right | AD62: =F35 -> 11.8 | AF62: 11.8 | AL62: NB Right | AM62: =O35 -> 11.8 | AO62: 11.8 | AU62: NB Right | AV62: =X35 -> 11.8 | AX62: 11.8
B63: WB Left | C63: =C21+C17+D13+H17 -> 38.7 | D63: =(2*$F$6)/(1.47*$E$7) -> 18.14058957 | E63: 56.84058957 | K63: WB Left | L63: =L21+L17+M13+Q17 -> 38.7 | M63: =(2*$F$6)/(1.47*$E$7) -> 18.14058957 | N63: 56.84058957 | T63: WB Left | U63: =U21+U17+V13+Z17 -> 38.7 | V63: =(2*$F$6)/(1.47*$E$7) -> 18.14058957 | W63: 56.84058957 | AC63: WB Left | AD63: =C39+C35+D31+H35 -> 38.7 | AE63: =(2*$F$6)/(1.47*$E$7) -> 18.14058957 | AF63: 56.84058957 | AL63: WB Left | AM63: =L39+L35+M31+Q35 -> 38.7 | AN63: =(2*$F$6)/(1.47*$E$7) -> 18.14058957 | AO63: 56.84058957 | AU63: WB Left | AV63: =U39+U35+V31+Z35 -> 38.7 | AW63: =(2*$F$6)/(1.47*$E$7) -> 18.14058957 | AX63: 56.84058957
B64: WB Through | C64: =C21+C17 -> 22 | E64: 22 | K64: WB Through | L64: =L21+L17 -> 22 | N64: 22 | T64: WB Through | U64: =U21+U17 -> 22 | W64: 22 | AC64: WB Through | AD64: =C39+C35 -> 22 | AF64: 22 | AL64: WB Through | AM64: =L39+L35 -> 22 | AO64: 22 | AU64: WB Through | AV64: =U39+U35 -> 22 | AX64: 22
B65: WB Right | C65: =C21+D17 -> 19.7 | E65: 19.7 | K65: WB Right | L65: =L21+M17 -> 19.7 | N65: 19.7 | T65: WB Right | U65: =U21+V17 -> 19.7 | W65: 19.7 | AC65: WB Right | AD65: =C39+D35 -> 19.7 | AF65: 19.7 | AL65: WB Right | AM65: =L39+M35 -> 19.7 | AO65: 19.7 | AU65: WB Right | AV65: =U39+V35 -> 19.7 | AX65: 19.7
B66: SB Left | C66: =J17+D13+G17 -> 28.8 | D66: =(2*$F$6)/(1.47*$E$7) -> 18.14058957 | E66: 46.94058957 | K66: SB Left | L66: =S17+M13+P17 -> 28.8 | M66: =(2*$F$6)/(1.47*$E$7) -> 18.14058957 | N66: 46.94058957 | T66: SB Left | U66: =AB17+V13+Y17 -> 28.8 | V66: =(2*$F$6)/(1.47*$E$7) -> 18.14058957 | W66: 46.94058957 | AC66: SB Left | AD66: =J35+D31+G35 -> 28.8 | AE66: =(2*$F$6)/(1.47*$E$7) -> 18.14058957 | AF66: 46.94058957 | AL66: SB Left | AM66: =S35+M31+P35 -> 28.8 | AN66: =(2*$F$6)/(1.47*$E$7) -> 18.14058957 | AO66: 46.94058957 | AU66: SB Left | AV66: =AB35+V31+Y35 -> 28.8 | AW66: =(2*$F$6)/(1.47*$E$7) -> 18.14058957 | AX66: 46.94058957
B67: SB Through | C67: =I17 -> 11.5 | E67: 11.5 | K67: SB Through | L67: =R17 -> 11.5 | N67: 11.5 | T67: SB Through | U67: =AA17 -> 11.5 | W67: 11.5 | AC67: SB Through | AD67: =I35 -> 11.5 | AF67: 11.5 | AL67: SB Through | AM67: =R35 -> 11.5 | AO67: 11.5 | AU67: SB Through | AV67: =AA35 -> 11.5 | AX67: 11.5
B68: SB Right | C68: =J17 -> 11.3 | E68: 11.3 | K68: SB Right | L68: =S17 -> 11.3 | N68: 11.3 | T68: SB Right | U68: =AB17 -> 11.3 | W68: 11.3 | AC68: SB Right | AD68: =J35 -> 11.3 | AF68: 11.3 | AL68: SB Right | AM68: =S35 -> 11.3 | AO68: 11.3 | AU68: SB Right | AV68: =AB35 -> 11.3 | AX68: 11.3
F69: =(E57*AF14+E58*AG14+E59*AH14+E60*AF17+E61*AG17+E62*AH17+E63*AF15+E64*AG15+E65*AH15+E66*AF16+E67*AG16+E68*AH16)/(AF14+AG14+AH14+AF15+AG15+AH15+AF17+AG17+AH17+AF16+AG16+AH16) -> 19.97891018 | O69: =(N57*AJ14+N58*AK14+N59*AL14+N60*AJ17+N61*AK17+N62*AL17+N63*AJ15+N64*AK15+N65*AL15+N66*AJ16+N67*AK16+N68*AL16)/(AJ14+AK14+AL14+AJ15+AK15+AL15+AJ17+AK17+AL17+AJ16+AK16+AL16) -> 20.75905051 | X69: =(W57*AN14+W58*AO14+W59*AP14+W60*AN17+W61*AO17+W62*AP17+W63*AN15+W64*AO15+W65*AP15+W66*AN16+W67*AO16+W68*AP16)/(AN14+AO14+AP14+AN15+AO15+AP15+AN17+AO17+AP17+AN16+AO16+AP16) ->  | AG69: =(AF57*AF32+AF58*AG32+AF59*AH32+AF60*AF35+AF61*AG35+AF62*AH35+AF63*AF33+AF64*AG33+AF65*AH33+AF66*AF34+AF67*AG34+AF68*AH34)/(AF32+AG32+AH32+AF33+AG33+AH33+AF35+AG35+AH35+AF34+AG34+AH34) -> 27.13019652 | AP69: =(AO57*AJ32+AO58*AK32+AO59*AL32+AO60*AJ35+AO61*AK35+AO62*AL35+AO63*AJ33+AO64*AK33+AO65*AL33+AO66*AJ34+AO67*AK34+AO68*AL34)/(AJ32+AK32+AL32+AJ33+AK33+AL33+AJ35+AK35+AL35+AJ34+AK34+AL34) -> 20.75207466 | AY69: =(AX57*AN32+AX58*AO32+AX59*AP32+AX60*AN35+AX61*AO35+AX62*AP35+AX63*AN33+AX64*AO33+AX65*AP33+AX66*AN34+AX67*AO34+AX68*AP34)/(AN32+AO32+AP32+AN33+AO33+AP33+AN35+AO35+AP35+AN34+AO34+AP34) -> 

Sheet TWSC_Delay (hidden)
A1: TWSC Delay | C1: Use this sheet to compute the average delay for a two-way stop control (TWSC) intersection. (Requires turning movement count demand inputs)
C5: In general, traffic studies report the delay of the critical movement rather than the average delay of an entire intersection when TWSC is present. This ensures a high volume of major street through vehicles with zero delay do not "hide" high delay minor street approaches in an average value. However, to compute a life cycle cost accounting for all vehicles, the average delay value is needed. Some software packages report average TWSC delay and it can be directly entered onto the "Delay" worksheet. If a software package that does not report average delay was used, use this worksheet to compute it.
Q13: Computations to the right of this line, no inputs necessary
C15: Opening Year AM Peak | Q15: Weighted Average Approach Delays
C16: NB Left/U | D16: NB Thru | E16: NB Right | F16: EB Left/U | G16: EB Thru | H16: EB Right | I16: SB Left/U | J16: SB Thru | K16: SB Right | L16: WB Left/U | M16: WB Thru | N16: WB Right | Q16: NB | T16: EB | W16: SB | Z16: WB | AC16: Intx Average
B17: Volume | C17: =DemandCounts!B39+DemandCounts!C39 -> 41 | D17: =DemandCounts!D39 -> 313 | E17: =DemandCounts!E39 -> 39 | F17: =DemandCounts!B36+DemandCounts!C36 -> 25 | G17: =DemandCounts!D36 -> 51 | H17: =DemandCounts!E36 -> 26 | I17: =DemandCounts!B38+DemandCounts!C38 -> 40 | J17: =DemandCounts!D38 -> 212 | K17: =DemandCounts!E38 -> 38 | L17: =DemandCounts!B37+DemandCounts!C37 -> 50 | M17: =DemandCounts!D37 -> 100 | N17: =DemandCounts!E37 -> 45 | Q17: =IFERROR(IF(C19="Left, Through, Right",(C17*C18+D17*D18+E17*E18)/(C17+D17+E17),IF(C19="Shared Left/Through, Right",((C17+D17)*D18+E17*E18)/(C17+D17+E17),IF(C19="Left, Shared Through/Right",(C17*C18+(D17+E17)*D18)/(C17+D17+E17),IF(C19="Shared Left/Through/Right",D18,"error")))),0) -> 3.51221374 | T17: =IFERROR(IF(F19="Left, Through, Right",(F17*F18+G17*G18+H17*H18)/(F17+G17+H17),IF(F19="Shared Left/Through, Right",((F17+G17)*G18+H17*H18)/(F17+G17+H17),IF(F19="Left, Shared Through/Right",(F17*F18+(G17+H17)*G18)/(F17+G17+H17),IF(F19="Shared Left/Through/Right",G18,"error")))),0) -> 10.62156863 | W17: =IFERROR(IF(I19="Left, Through, Right",(I17*I18+J17*J18+K17*K18)/(I17+J17+K17),IF(I19="Shared Left/Through, Right",((I17+J17)*J18+K17*K18)/(I17+J17+K17),IF(I19="Left, Shared Through/Right",(I17*I18+(J17+K17)*J18)/(I17+J17+K17),IF(I19="Shared Left/Through/Right",J18,"error")))),0) -> 1.317931034 | Z17: =IFERROR(IF(L19="Left, Through, Right",(L17*L18+M17*M18+N17*N18)/(L17+M17+N17),IF(L19="Shared Left/Through, Right",((L17+M17)*M18+N17*N18)/(L17+M17+N17),IF(L19="Left, Shared Through/Right",(L17*L18+(M17+N17)*M18)/(L17+M17+N17),IF(L19="Shared Left/Through/Right",M18,"error")))),0) -> 10.31794872 | AC17: =(Q17*(C17+D17+E17)+T17*(F17+G17+H17)+W17*(I17+J17+K17)+Z17*(L17+M17+N17))/(SUM(C17:N17)) -> 4.957040816
B18: Delay | C18: 33 | D18: 0 | E18: 0.7 | F18: 11.8 | G18: 12.4 | H18: 6 | I18: 8.7 | J18: 0 | K18: 0.9 | L18: 11.3 | M18: 11.5 | N18: 6.6
B19: Lane Groups | C19: Left, Through, Right | F19: Left, Through, Right | I19: Left, Through, Right | L19: Left, Through, Right
C21: Opening Year PM Peak
C22: NB Left/U | D22: NB Thru | E22: NB Right | F22: EB Left/U | G22: EB Thru | H22: EB Right | I22: SB Left/U | J22: SB Thru | K22: SB Right | L22: WB Left/U | M22: WB Thru | N22: WB Right | Q22: NB | T22: EB | W22: SB | Z22: WB | AC22: Intx Average
B23: Volume | C23: =DemandCounts!I39 -> 51 | D23: =DemandCounts!J39 -> 323 | E23: =DemandCounts!K39 -> 49 | F23: =DemandCounts!H36+DemandCounts!I36 -> 35 | G23: =DemandCounts!J36 -> 61 | H23: =DemandCounts!K36 -> 36 | I23: =DemandCounts!H38+DemandCounts!I38 -> 50 | J23: =DemandCounts!J38 -> 222 | K23: =DemandCounts!K38 -> 48 | L23: =DemandCounts!H37+DemandCounts!I37 -> 60 | M23: =DemandCounts!J37 -> 110 | N23: =DemandCounts!K37 -> 55 | Q23: =IFERROR(IF(C25="Left, Through, Right",(C23*C24+D23*D24+E23*E24)/(C23+D23+E23),IF(C25="Shared Left/Through, Right",((C23+D23)*D24+E23*E24)/(C23+D23+E23),IF(C25="Left, Shared Through/Right",(C23*C24+(D23+E23)*D24)/(C23+D23+E23),IF(C25="Shared Left/Through/Right",D24,"error")))),0) -> 2.842553191 | T23: =IFERROR(IF(F25="Left, Through, Right",(F23*F24+G23*G24+H23*H24)/(F23+G23+H23),IF(F25="Shared Left/Through, Right",((F23+G23)*G24+H23*H24)/(F23+G23+H23),IF(F25="Left, Shared Through/Right",(F23*F24+(G23+H23)*G24)/(F23+G23+H23),IF(F25="Shared Left/Through/Right",G24,"error")))),0) -> 6.704545455 | W23: =IFERROR(IF(I25="Left, Through, Right",(I23*I24+J23*J24+K23*K24)/(I23+J23+K23),IF(I25="Shared Left/Through, Right",((I23+J23)*J24+K23*K24)/(I23+J23+K23),IF(I25="Left, Shared Through/Right",(I23*I24+(J23+K23)*J24)/(I23+J23+K23),IF(I25="Shared Left/Through/Right",J24,"error")))),0) -> 1.44625 | Z23: =IFERROR(IF(L25="Left, Through, Right",(L23*L24+M23*M24+N23*N24)/(L23+M23+N23),IF(L25="Shared Left/Through, Right",((L23+M23)*M24+N23*N24)/(L23+M23+N23),IF(L25="Left, Shared Through/Right",(L23*L24+(M23+N23)*M24)/(L23+M23+N23),IF(L25="Shared Left/Through/Right",M24,"error")))),0) -> 10.97111111 | AC23: =(Q23*(C23+D23+E23)+T23*(F23+G23+H23)+W23*(I23+J23+K23)+Z23*(L23+M23+N23))/(SUM(C23:N23)) -> 4.562454545
B24: Delay | C24: 23 | D24: 0 | E24: 0.6 | F24: 10.4 | G24: 5 | H24: 6 | I24: 8.2 | J24: 0 | K24: 1.1 | L24: 11.9 | M24: 13.6 | N24: 4.7
B25: Lane Groups | C25: Left, Through, Right | F25: Left, Through, Right | I25: Left, Through, Right | L25: Left, Through, Right
C27: Opening Year Weekend Peak
C28: NB Left/U | D28: NB Thru | E28: NB Right | F28: EB Left/U | G28: EB Thru | H28: EB Right | I28: SB Left/U | J28: SB Thru | K28: SB Right | L28: WB Left/U | M28: WB Thru | N28: WB Right | Q28: NB | T28: EB | W28: SB | Z28: WB | AC28: Intx Average
B29: Volume | C29: =DemandCounts!N39+DemandCounts!O39 -> 0 | D29: =DemandCounts!P39 -> 0 | E29: =DemandCounts!Q39 -> 0 | F29: =DemandCounts!N36+DemandCounts!O36 -> 0 | G29: =DemandCounts!P36 -> 0 | H29: =DemandCounts!Q36 -> 0 | I29: =DemandCounts!N38+DemandCounts!O38 -> 0 | J29: =DemandCounts!P38 -> 0 | K29: =DemandCounts!Q38 -> 0 | L29: =DemandCounts!N37+DemandCounts!O37 -> 0 | M29: =DemandCounts!P37 -> 0 | N29: =DemandCounts!Q37 -> 0 | Q29: =IFERROR(IF(C31="Left, Through, Right",(C29*C30+D29*D30+E29*E30)/(C29+D29+E29),IF(C31="Shared Left/Through, Right",((C29+D29)*D30+E29*E30)/(C29+D29+E29),IF(C31="Left, Shared Through/Right",(C29*C30+(D29+E29)*D30)/(C29+D29+E29),IF(C31="Shared Left/Through/Right",D30,"error")))),0) -> 0 | T29: =IFERROR(IF(F31="Left, Through, Right",(F29*F30+G29*G30+H29*H30)/(F29+G29+H29),IF(F31="Shared Left/Through, Right",((F29+G29)*G30+H29*H30)/(F29+G29+H29),IF(F31="Left, Shared Through/Right",(F29*F30+(G29+H29)*G30)/(F29+G29+H29),IF(F31="Shared Left/Through/Right",G30,"error")))),0) -> 0 | W29: =IFERROR(IF(I31="Left, Through, Right",(I29*I30+J29*J30+K29*K30)/(I29+J29+K29),IF(I31="Shared Left/Through, Right",((I29+J29)*J30+K29*K30)/(I29+J29+K29),IF(I31="Left, Shared Through/Right",(I29*I30+(J29+K29)*J30)/(I29+J29+K29),IF(I31="Shared Left/Through/Right",J30,"error")))),0) -> 0 | Z29: =IFERROR(IF(L31="Left, Through, Right",(L29*L30+M29*M30+N29*N30)/(L29+M29+N29),IF(L31="Shared Left/Through, Right",((L29+M29)*M30+N29*N30)/(L29+M29+N29),IF(L31="Left, Shared Through/Right",(L29*L30+(M29+N29)*M30)/(L29+M29+N29),IF(L31="Shared Left/Through/Right",M30,"error")))),0) -> 0 | AC29: =(Q29*(C29+D29+E29)+T29*(F29+G29+H29)+W29*(I29+J29+K29)+Z29*(L29+M29+N29))/(SUM(C29:N29)) -> 
B30: Delay | C30: 23 | D30: 0 | E30: 0.6 | F30: 10.4 | G30: 5 | H30: 6 | I30: 8.2 | J30: 0 | K30: 1.1 | L30: 11.9 | M30: 13.6 | N30: 4.7
B31: Lane Groups | C31: Left, Through, Right | F31: Left, Through, Right | I31: Left, Through, Right | L31: Left, Through, Right
C33: Design Year AM Peak
C34: NB Left/U | D34: NB Thru | E34: NB Right | F34: EB Left/U | G34: EB Thru | H34: EB Right | I34: SB Left/U | J34: SB Thru | K34: SB Right | L34: WB Left/U | M34: WB Thru | N34: WB Right | Q34: NB | T34: EB | W34: SB | Z34: WB | AC34: Intx Average
B35: Volume | C35: =DemandCounts!B48+DemandCounts!C48 -> 49 | D35: =DemandCounts!D48 -> 376 | E35: =DemandCounts!E48 -> 47 | F35: =DemandCounts!B45+DemandCounts!C45 -> 30 | G35: =DemandCounts!D45 -> 61 | H35: =DemandCounts!E45 -> 31 | I35: =DemandCounts!B47+DemandCounts!C47 -> 48 | J35: =DemandCounts!D47 -> 254 | K35: =DemandCounts!E47 -> 46 | L35: =DemandCounts!B46+DemandCounts!C46 -> 60 | M35: =DemandCounts!D46 -> 120 | N35: =DemandCounts!E46 -> 54 | Q35: =IFERROR(IF(C37="Left, Through, Right",(C35*C36+D35*D36+E35*E36)/(C35+D35+E35),IF(C37="Shared Left/Through, Right",((C35+D35)*D36+E35*E36)/(C35+D35+E35),IF(C37="Left, Shared Through/Right",(C35*C36+(D35+E35)*D36)/(C35+D35+E35),IF(C37="Shared Left/Through/Right",D36,"error")))),0) -> 3.703177966 | T35: =IFERROR(IF(F37="Left, Through, Right",(F35*F36+G35*G36+H35*H36)/(F35+G35+H35),IF(F37="Shared Left/Through, Right",((F35+G35)*G36+H35*H36)/(F35+G35+H35),IF(F37="Left, Shared Through/Right",(F35*F36+(G35+H35)*G36)/(F35+G35+H35),IF(F37="Shared Left/Through/Right",G36,"error")))),0) -> 11.16721311 | W35: =IFERROR(IF(I37="Left, Through, Right",(I35*I36+J35*J36+K35*K36)/(I35+J35+K35),IF(I37="Shared Left/Through, Right",((I35+J35)*J36+K35*K36)/(I35+J35+K35),IF(I37="Left, Shared Through/Right",(I35*I36+(J35+K35)*J36)/(I35+J35+K35),IF(I37="Shared Left/Through/Right",J36,"error")))),0) -> 1.594827586 | Z35: =IFERROR(IF(L37="Left, Through, Right",(L35*L36+M35*M36+N35*N36)/(L35+M35+N35),IF(L37="Shared Left/Through, Right",((L35+M35)*M36+N35*N36)/(L35+M35+N35),IF(L37="Left, Shared Through/Right",(L35*L36+(M35+N35)*M36)/(L35+M35+N35),IF(L37="Shared Left/Through/Right",M36,"error")))),0) -> 10.75384615 | AC35: =(Q35*(C35+D35+E35)+T35*(F35+G35+H35)+W35*(I35+J35+K35)+Z35*(L35+M35+N35))/(SUM(C35:N35)) -> 5.256547619
B36: Delay | C36: 35 | D36: 0 | E36: 0.7 | F36: 14 | G36: 12.4 | H36: 6 | I36: 10.7 | J36: 0 | K36: 0.9 | L36: 13 | M36: 11.5 | N36: 6.6
B37: Lane Groups | C37: Left, Through, Right | F37: Left, Through, Right | I37: Left, Through, Right | L37: Left, Through, Right
C39: Design Year PM Peak
C40: NB Left/U | D40: NB Thru | E40: NB Right | F40: EB Left/U | G40: EB Thru | H40: EB Right | I40: SB Left/U | J40: SB Thru | K40: SB Right | L40: WB Left/U | M40: WB Thru | N40: WB Right | Q40: NB | T40: EB | W40: SB | Z40: WB | AC40: Intx Average
